Workbook

Sheet CoverSheet
B4: =+ModelName -> Depreciation Model | P4: Information Classification: | Q4: =+InfoClassification -> Public
B5: =+A21 -> Data Version | E5: =+_LU_DataVersion -> Revenue Proposal
B6: Structural Version | E6: =+_LU_Version -> 1
A10: Model Guide | C10: (Refer Below)
A11: =+ModelName -> Depreciation Model
A12: ="Version " & _LU_Version -> Version 1
A14: Overview
A15: Organisation name | D15: ElectraNet
A16: Workbook name | D16: Depreciation Model
A17: Workbook purpose | D17: Calculation of depreciation for annual asset class additions
A18: Information Classification | D18: Public
A19: File name | D19: =MID(CELL("filename"),SEARCH("[",CELL("filename"))+1, SEARCH("]",CELL("filename"))-SEARCH("[",CELL("filename"))-1) -> ENET0117 ElectraNet Forecast Capital Expenditure Model - Dec 2017 - Public.xlsx
A20: File Location
A21: Data Version | D21: Revenue Proposal
A22: Structural Version | D22: 1
A23: Model Completed by | D23: Ian Robertson

Sheet Contents
A1: Table of Contents | F1: =+ModelName -> Depreciation Model
A3: Section | B3: Sheet Title | C3: Sheet Description
B4: Contents
H6: ElectraNet - Draft Decision - Roll Forward Model.xlsm
A7: =+Section1!C3 -> 1 | B7: =+Section1!A1 -> Section1 | C7: =+Section1!B5 -> Inputs
B8: =+'I1 '!A1 -> I1 | C8: =+'I1 '!B1 -> Standard Asset lives
B9: ='I2 RAB '!A1 -> I2 RAB | C9: ='I2 RAB '!B1 -> Opening Commissioned RAB Data - 30 June 2013
B10: ='I3 CAPEX '!A1 -> I3 CAPEX | C10: ='I3 CAPEX '!B1 -> Actual Capex
A12: =+Section2!C3 -> 2 | B12: =+Section2!A1 -> Section2 | C12: =+Section2!B5 -> Workings
B13: ='W1-Depreciation '!A1 -> W1-Depreciation | C13: ='W1-Depreciation '!B2 -> Regulatory Straight Line Depreciation
B14: ='W2-TaxDepreciation '!A1 -> W2-TaxDepreciation | C14: ='W2-TaxDepreciation '!B2 -> Straight Line Tax Depreciation
A16: =+Section3!C3 -> 3 | B16: =+Section3!A1 -> Section3 | C16: =+Section3!B5 -> Reports
B17: ='R1-RABLife '!A1 -> R1-RABLife | C17: ='R1-RABLife '!B2 -> Remaining Life Calculation
B18: ='R2-TABLife '!A1 -> R2-TABLife | C18: ='R2-TABLife '!B2 -> Remaining Tax Life Calculation
A20: =+Reference!C3 -> 4 | B20: =+Reference!A1 -> Reference | C20: =+Reference!B5 -> Lookup, Reference and Help
B21: =+_LU_L1 -> L1 | C21: =+'L1 '!B1 -> Lookup and Reference Data

Sheet Section1
A1: =RIGHT(CELL("filename",A1),LEN(CELL("filename",A1))-FIND("]",CELL("filename",A1))) -> Section1
B3: Section | C3: 1
B5: Inputs

Sheet I1
A1: =RIGHT(CELL("filename",A1),LEN(CELL("filename",A1))-FIND("]",CELL("filename",A1))) -> I1 | B1: Standard Asset lives
C3: Regulatory Lives for Regulatory Period: | H3: Tax Lives for Regulatory Period:
B5: Asset Class | C5: 2013-2018 | D5: 2018-2023 | E5: 2023-2028 | F5: 2028-2033 | H5: =C5 -> 2013-2018 | I5: =D5 -> 2018-2023 | J5: 2023-2028 | K5: 2028-2033
H6: [1] | I6: [2]
B7: =+Asset1 -> Commercial Buildings | C7: 30 | D7: 30 | E7: 30 | F7: 30 | H7: 40 | I7: 40
B8: =+Asset2 -> Communications - Civil | C8: 55 | D8: 55 | E8: 55 | F8: 55 | H8: 12.5 | I8: 12.5
B9: =+Asset3 -> Communications - Other | C9: 15 | D9: 15 | E9: 15 | F9: 15 | H9: 12.5 | I9: 12.5
B10: =+Asset4 -> Computers, software, and office machines | C10: 4 | D10: 4 | E10: 4 | F10: 4 | H10: 3.25 | I10: 3.25
B11: =+Asset5 -> Easement | C11: n/a | D11: n/a | E11: n/a | F11: n/a | H11: n/a | I11: n/a
B12: =+Asset6 -> Land | C12: n/a | D12: n/a | E12: n/a | F12: n/a | H12: n/a | I12: n/a
B13: =+Asset7 -> Network Switching Centres | C13: 5 | D13: 5 | E13: 5 | F13: 5 | H13: 4 | I13: 4
B14: =+Asset8 -> Office furniture, movable plant, and misc | C14: 10 | D14: 10 | E14: 10 | F14: 10 | H14: 12.8 | I14: 12.8
B15: =+Asset9 -> Refurbishment | C15: 10 | D15: 10 | E15: 10 | F15: 10 | H15: 43.75 | I15: 43.75
B16: =+Asset10 -> Substation Primary Plant | C16: 44.8 | D16: 44.8 | E16: 44.8 | F16: 44.8 | H16: 40 | I16: 40
B17: =+Asset11 -> Substation Demountable Buildings | C17: 15 | D17: 15 | E17: 15 | F17: 15 | H17: 40 | I17: 40
B18: =+Asset12 -> Substation Establishment | C18: 55 | D18: 55 | E18: 55 | F18: 55 | H18: 40 | I18: 40
B19: =+Asset13 -> Substation Fences | C19: 35 | D19: 35 | E19: 35 | F19: 35 | H19: 40 | I19: 40
B20: =+Asset14 -> Substation Secondary Systems - Electromechanical | C20: 27 | D20: 27 | E20: 27 | F20: 27 | H20: 12.5 | I20: 12.5
B21: =+Asset15 -> Substation Secondary Systems - Electronic | C21: 15 | D21: 15 | E21: 15 | F21: 15 | H21: 12.5 | I21: 12.5
B22: =+Asset16 -> Transmission lines - Overhead | C22: 55 | D22: 55 | E22: 55 | F22: 55 | H22: 47.5 | I22: 47.5
B23: =+Asset17 -> Transmission lines - Underground | C23: 40 | D23: 40 | E23: 40 | F23: 40 | H23: 47.5 | I23: 47.5
B24: =+Asset18 -> Capital Work in Progress | C24: n/a | D24: n/a | E24: n/a | F24: n/a | H24: n/a | I24: n/a
B25: =+Asset19 -> Accelerated Depreciation | C25: 5 | D25: 5 | E25: 5 | F25: 5 | H25: 5 | I25: 5
B26: =+Asset20 -> Refurbishment Projects 2008-2013 | C26: 12.5 | D26: 12.5 | E26: 12.5 | F26: 12.5 | H26: 40 | I26: 40
B27: =+Asset21 -> Equity Raising Cost - 2003 Opening RAB and 2003-08 capex | C27: 43 | D27: 43 | E27: 43 | F27: 43 | H27: 44 | I27: 44
B28: =+Asset22 -> Equity Raising Cost 2013-2018 | C28: 43 | D28: 43 | E28: 43 | F28: 43 | H28: 5 | I28: 5
B29: =+Asset23 -> Transmission Line Refit - insulators replacement 2013-18 | C29: 27 | D29: 27 | E29: 27 | F29: 27 | H29: 27 | I29: 27
B30: =+Asset24 -> Communications - Other (post 2018) | C30: 10 | D30: 10 | E30: 10 | F30: 10 | H30: 10 | I30: 10
B31: Transmission Line Refit 2018-2023 | D31: 48.1 | E31: 48.1 | F31: 48.1 | H31: 47.5 | I31: 47.5
B32: =+Asset26 -> Asset26 - Not in Use
B33: =+Asset27 -> Asset27 - Not in Use
B34: =+Asset28 -> Asset28 - Not in Use
B35: =+Asset29 -> Asset29 - Not in Use
B36: =+Asset30 -> Asset30 - Not in Use
B39: Data Source:
C40: [ElectraNet - PTRM - amended - final decision w Heywood.xlsm]Input

Sheet I2 RAB
A1: =RIGHT(CELL("filename",A2),LEN(CELL("filename",A2))-FIND("]",CELL("filename",A2))) -> I2 RAB | B1: Opening Commissioned RAB Data - 30 June 2013
D3: Standard Control Opening Asset Base as at: | E3: 2013-06-30
D5: RAB - As Commissioned | H5: RAB - As Incurred | L5: Tax Base
A6: Asset No. | B6: Asset Classes - Master List | D6: RAB Value @ 30/6/2013 | E6: Remaining Life @ 30/6/2013 | F6: 2019 Opening RAB Value | H6: RAB Value @ 30/6/2013 | I6: Remaining Life @ 30/6/2013 | J6: 2019 Opening RAB Value | L6: TAB Value @ 30/6/2013 | M6: Remaining Life @ 30/6/2013 | N6: 2018-2019 Opening TAB Value | Q6: TAB adjustment
D7: $m June 2013 | F7: $m June 2018 | H7: $m June 2013 | J7: $m June 2018 | L7: $m June 2013 | N7: $m June 2018 | Q7: $m June 2018
C8: Data Source: | D8: [1] | E8: [2] | F8: [3] | L8: [1] | M8: [2] | Q8: Accelerated Depn ($ mid 2018)
A9: Asset1 | B9: Commercial Buildings | D9: 11.48585491 | E9: 23.26612118 | F9: ='[1]PTRM input summary'!$K7 -> 19.57699628 | H9: 0 | I9: 0 | J9: 0 | L9: 7.701107483 | M9: 30.85958882 | N9: ='[1]PTRM input summary'!$N7 -> 15.07658685 | Q9: =-1*'[1]PTRM input summary'!I65 -> 0
A10: Asset2 | B10: Communications - Civil | D10: 7.698910695 | E10: 44.71344089 | F10: ='[1]PTRM input summary'!$K8 -> 21.70371448 | H10: 0 | I10: 0 | J10: 0 | L10: 5.392695081 | M10: 38.05477412 | N10: ='[1]PTRM input summary'!$N8 -> 15.66209648 | Q10: =-1*'[1]PTRM input summary'!I66 -> -0.19
A11: Asset3 | B11: Communications - Other | D11: 77.05562629 | E11: 11.66905449 | F11: ='[1]PTRM input summary'!$K9 -> 80.91671552 | H11: 0 | I11: 0 | J11: 0 | L11: 52.68904157 | M11: 10.69980716 | N11: ='[1]PTRM input summary'!$N9 -> 70.515787 | Q11: =-1*'[1]PTRM input summary'!I67 -> -3.4
A12: Asset4 | B12: Computers, software, and office machines | D12: 34.8918299 | E12: 3.495058628 | F12: ='[1]PTRM input summary'!$K10 -> 40.13638589 | H12: 0 | I12: 0 | J12: 0 | L12: 21.4252675 | M12: 2.846289956 | N12: ='[1]PTRM input summary'!$N10 -> 47.16276036 | Q12: =-1*'[1]PTRM input summary'!I68 -> 0
A13: Asset5 | B13: Easement | D13: 109.4635498 | E13: n/a | F13: ='[1]PTRM input summary'!$K11 -> 104.4882108 | H13: 0 | I13: 0 | J13: 0 | L13: 146.1938618 | M13: n/a | N13: ='[1]PTRM input summary'!$N11 -> 157.5908422 | Q13: =-1*'[1]PTRM input summary'!I69 -> 0
A14: Asset6 | B14: Land | D14: 34.206626 | E14: n/a | F14: ='[1]PTRM input summary'!$K12 -> 78.94499417 | H14: 0 | I14: 0 | J14: 0 | L14: 41.97774383 | M14: n/a | N14: ='[1]PTRM input summary'!$N12 -> 59.42286402 | Q14: =-1*'[1]PTRM input summary'!I70 -> 0
A15: Asset7 | B15: Network Switching Centres | D15: -0.4621257019 | E15: 0.8305211354 | F15: ='[1]PTRM input summary'!$K13 -> 5.010217958 | H15: 0 | I15: 0 | J15: 0 | L15: 2.528095471 | M15: 3.502635962 | N15: ='[1]PTRM input summary'!$N13 -> 1.260053572 | Q15: =-1*'[1]PTRM input summary'!I71 -> 0
A16: Asset8 | B16: Office furniture, movable plant, and misc | D16: 11.47482637 | E16: 9.009586157 | F16: ='[1]PTRM input summary'!$K14 -> 22.28799167 | H16: 0 | I16: 0 | J16: 0 | L16: 5.299424586 | M16: 11.83662417 | N16: ='[1]PTRM input summary'!$N14 -> 25.96112816 | Q16: =-1*'[1]PTRM input summary'!I72 -> 0
A17: Asset9 | B17: Refurbishment | D17: 36.4132208 | E17: 4.382842703 | F17: ='[1]PTRM input summary'!$K15 -> -0.2116131698 | H17: 0 | I17: 0 | J17: 0 | L17: 50.71651625 | M17: 31.33406384 | N17: ='[1]PTRM input summary'!$N15 -> 42.62364383 | Q17: =-1*'[1]PTRM input summary'!I73 -> 0
A18: Asset10 | B18: Substation Primary Plant | D18: 631.7614832 | E18: 33.01872275 | F18: ='[1]PTRM input summary'!$K16 -> 860.4843776 | H18: 0 | I18: 0 | J18: 0 | L18: 421.526405 | M18: 32.9063313 | N18: ='[1]PTRM input summary'!$N16 -> 597.632174 | Q18: =-1*'[1]PTRM input summary'!I74 -> -6.4
A19: Asset11 | B19: Substation Demountable Buildings | D19: 1.329803554 | E19: 14.48798592 | F19: ='[1]PTRM input summary'!$K17 -> 11.40340498 | H19: 0 | I19: 0 | J19: 0 | L19: 0.1792600842 | M19: 39.4398314 | N19: ='[1]PTRM input summary'!$N17 -> 11.69776785 | Q19: =-1*'[1]PTRM input summary'!I75 -> 0
A20: Asset12 | B20: Substation Establishment | D20: 86.00403399 | E20: 53.63131216 | F20: ='[1]PTRM input summary'!$K18 -> 256.418913 | H20: 0 | I20: 0 | J20: 0 | L20: 108.565319 | M20: 38.6556737 | N20: ='[1]PTRM input summary'!$N18 -> 219.6106308 | Q20: =-1*'[1]PTRM input summary'!I76 -> -3.37
A21: Asset13 | B21: Substation Fences | D21: 20.79496022 | E21: 35.00955258 | F21: ='[1]PTRM input summary'!$K19 -> 4.264005602 | H21: 0 | I21: 0 | J21: 0 | L21: 3.727999175 | M21: 40.00901438 | N21: ='[1]PTRM input summary'!$N19 -> 6.169871048 | Q21: =-1*'[1]PTRM input summary'!I77 -> -0.64
A22: Asset14 | B22: Substation Secondary Systems - Electromechanical | D22: 87.79463926 | E22: 17.17111887 | F22: ='[1]PTRM input summary'!$K20 -> 62.50266699 | H22: 0 | I22: 0 | J22: 0 | L22: 22.16990159 | M22: 18.40170032 | N22: ='[1]PTRM input summary'!$N20 -> 12.63353446 | Q22: =-1*'[1]PTRM input summary'!I78 -> -0.04
A23: Asset15 | B23: Substation Secondary Systems - Electronic | D23: 66.43775292 | E23: 14.10433879 | F23: ='[1]PTRM input summary'!$K21 -> 176.8322698 | H23: 0 | I23: 0 | J23: 0 | L23: 56.28849959 | M23: 11.65164211 | N23: ='[1]PTRM input summary'!$N21 -> 154.1627235 | Q23: =-1*'[1]PTRM input summary'!I79 -> -1.09
A24: Asset16 | B24: Transmission lines - Overhead | D24: 426.1259795 | E24: 30.19105425 | F24: ='[1]PTRM input summary'!$K22 -> 486.8538551 | H24: 0 | I24: 0 | J24: 0 | L24: 278.6290883 | M24: 26.44134201 | N24: ='[1]PTRM input summary'!$N22 -> 297.7089023 | Q24: =-1*'[1]PTRM input summary'!I80 -> -2.1
A25: Asset17 | B25: Transmission lines - Underground | D25: 108.6481911 | E25: 36.49340013 | F25: ='[1]PTRM input summary'!$K23 -> 107.7800996 | H25: 0 | I25: 0 | J25: 0 | L25: 97.56416742 | M25: 44.08303656 | N25: ='[1]PTRM input summary'!$N23 -> 90.7561365 | Q25: =-1*'[1]PTRM input summary'!I81 -> 0
A26: Asset18 | B26: Capital Work in Progress | D26: 16.14421735 | E26: n/a | F26: ='[1]PTRM input summary'!$K24 -> 17.85678142 | H26: 0 | I26: 0 | J26: 0 | L26: 0 | M26: n/a | N26: ='[1]PTRM input summary'!$N24 -> 0 | Q26: =-1*'[1]PTRM input summary'!I82 -> 0
A27: Asset19 | B27: Accelerated Depreciation | D27: 3.999042036 | E27: 5 | F27: ='[1]PTRM input summary'!$K25 -> 25.35571022 | H27: 0 | I27: 0 | J27: 0 | L27: 0 | M27: n/a | N27: ='[1]PTRM input summary'!$N25 -> 17.23 | Q27: =-1*'[1]PTRM input summary'!I83 -> 17.23
A28: Asset20 | B28: Refurbishment Projects 2008-2013 | D28: 11.35770834 | E28: 12.50616679 | F28: ='[1]PTRM input summary'!$K26 -> -1.388958392 | H28: 0 | I28: 0 | J28: 0 | L28: -0.006607706878 | M28: 40.00764051 | N28: ='[1]PTRM input summary'!$N26 -> 4.804614752 | Q28: =-1*'[1]PTRM input summary'!I84 -> 0
A29: Asset21 | B29: Equity Raising Cost - 2003 Opening RAB and 2003-08 capex | D29: 20.55008212 | E29: 38 | F29: ='[1]PTRM input summary'!$K27 -> 19.7255183 | H29: 0 | I29: 0 | J29: 0 | L29: 18.155501 | M29: 38 | N29: ='[1]PTRM input summary'!$N27 -> 15.76661929 | Q29: =-1*'[1]PTRM input summary'!I85 -> 0
A30: Asset22 | B30: Equity Raising Cost 2013-2018 | D30: 0 | E30: n/a | F30: ='[1]PTRM input summary'!$K28 -> 0.393305782 | H30: 0 | I30: 0 | J30: 0 | L30: 0 | M30: n/a | N30: ='[1]PTRM input summary'!$N28 -> 0.07776721524 | Q30: =-1*'[1]PTRM input summary'!I86 -> 0
A31: Asset23 | B31: Transmission Line Refit - insulators replacement 2013-18 | D31: 0 | E31: n/a | F31: ='[1]PTRM input summary'!$K29 -> 78.07014309 | H31: 0 | I31: 0 | J31: 0 | L31: 0 | M31: n/a | N31: ='[1]PTRM input summary'!$N29 -> 74.94658869 | Q31: =-1*'[1]PTRM input summary'!I87 -> 0
A32: Asset24 | B32: Communications - Other (post 2018) | D32: 0 | E32: 0 | F32: 0 | H32: 0 | I32: 0 | J32: 0 | L32: 0 | M32: 0 | N32: ='[1]PTRM input summary'!N30 -> 0 | Q32: =-1*'[1]PTRM input summary'!I88 -> 0
A33: Asset25 | B33: Synchronous Condensers | D33: 0 | E33: 0 | F33: 0 | H33: 0 | I33: 0 | J33: 0 | L33: 0 | M33: 0 | N33: ='[1]PTRM input summary'!N31 -> 0 | Q33: =-1*'[1]PTRM input summary'!I89 -> 0
A34: Asset26 | B34: Asset26 - Not in Use | D34: 0 | E34: 0 | F34: 0 | H34: 0 | I34: 0 | J34: 0 | L34: 0 | M34: 0 | N34: ='[1]PTRM input summary'!N32 -> 0 | Q34: =-1*'[1]PTRM input summary'!I90 -> 0
A35: Asset27 | B35: Asset27 - Not in Use | D35: 0 | E35: 0 | F35: 0 | H35: 0 | I35: 0 | J35: 0 | L35: 0 | M35: 0 | N35: ='[1]PTRM input summary'!N33 -> 0 | Q35: =-1*'[1]PTRM input summary'!I91 -> 0
A36: Asset28 | B36: Asset28 - Not in Use | D36: 0 | E36: 0 | F36: 0 | H36: 0 | I36: 0 | J36: 0 | L36: 0 | M36: 0 | N36: ='[1]PTRM input summary'!N34 -> 0 | Q36: =-1*'[1]PTRM input summary'!I92 -> 0
A37: Asset29 | B37: Asset29 - Not in Use | D37: 0 | E37: 0 | F37: 0 | H37: 0 | I37: 0 | J37: 0 | L37: 0 | M37: 0 | N37: ='[1]PTRM input summary'!N35 -> 0 | Q37: =-1*'[1]PTRM input summary'!I93 -> 0
A38: Asset30 | B38: Asset30 - Not in Use | D38: 0 | E38: 0 | F38: 0 | H38: 0 | I38: 0 | J38: 0 | L38: 0 | M38: 0 | N38: ='[1]PTRM input summary'!N36 -> 0 | Q38: =-1*'[1]PTRM input summary'!I94 -> 0
Q39: =SUM(Q9:Q38) -> 0
B40: Total | D40: =SUM(D9:D38) -> 1803.176213 | F40: =SUM(F9:F38) -> 2479.405707 | H40: =SUM(H9:H38) -> 0 | J40: =SUM(J9:J38) -> 0 | L40: =SUM(L9:L38) -> 1340.723287 | N40: =SUM(N9:N38) -> 1938.473093
B43: Data Source: | H43: =SUM('PTRM input'!K75:O75) -> 525.2767448
B44: [1] | C44: [ElectraNet 2013-2018 RFM.xlsm]RAB Roll Forward
B45: [2] | C45: [ElectraNet - RFM - amended - final decision.xlsm]Output Summary
B46: [3] | C46: [ElectraNet 2013-2018 RFM.xlsm]PTRM input summary
B50: CPI factors | D50: ='L1 '!E49 -> 1.025025025 | E50: ='L1 '!F49 -> 1.055055055 | F50: ='L1 '!G49 -> 1.069069069 | G50: ='L1 '!H49 -> 1.083083083 | H50: ='L1 '!I49 -> 1.106106106 | I50: ='L1 '!J49 -> 1.133758759 | J50: ='L1 '!K49 -> 1.162102728 | K50: ='L1 '!L49 -> 1.191155296 | L50: ='L1 '!M49 -> 1.220934178 | M50: ='L1 '!N49 -> 1.251457533
B52: Per Roll Forward Model | D52: -76.95855786 | E52: -86.80682029 | F52: -93.20242586 | G52: -95.36633601 | H52: -99.03154704
B53: Year by Year Depreciation
B54: $m REAL | D54: F14 | E54: ="F"&RIGHT(D54,2)+1 -> F15 | F54: ="F"&RIGHT(E54,2)+1 -> F16 | G54: F17 | H54: F18 | I54: F19 | J54: F20 | K54: F21 | L54: F22 | M54: F23
B55: Total depreciation | C55: 18 | D55: =SUM(D56:D78) -> 0 | E55: =SUM(E56:E78) -> 0 | F55: =SUM(F56:F78) -> 0 | G55: =SUM(G56:G78) -> 0 | H55: =SUM(H56:H78) -> 0 | I55: =SUM(I56:I78) -> 0 | J55: =SUM(J56:J78) -> 0 | K55: =SUM(K56:K78) -> 0 | L55: =SUM(L56:L78) -> 0 | M55: =SUM(M56:M78) -> 0
B56: Commercial Buildings | D56: =INDEX(SAPNDepn,MATCH($B56,SAPNDepnRow,0)+$C$55,MATCH(D$54,SAPNDepnCol,0)) -> 0 | E56: 0 | F56: 0 | G56: 0 | H56: 0 | I56: 0 | J56: 0 | K56: 0 | L56: 0 | M56: 0
B57: Communications - Civil | D57: 0 | E57: 0 | F57: 0 | G57: 0 | H57: 0 | I57: 0 | J57: 0 | K57: 0 | L57: 0 | M57: 0
B58: Communications - Other | D58: 0 | E58: 0 | F58: 0 | G58: 0 | H58: 0 | I58: 0 | J58: 0 | K58: 0 | L58: 0 | M58: 0
B59: Computers, software, and office machines | D59: 0 | E59: 0 | F59: 0 | G59: 0 | H59: 0 | I59: 0 | J59: 0 | K59: 0 | L59: 0 | M59: 0
B60: Easement | D60: 0 | E60: 0 | F60: 0 | G60: 0 | H60: 0 | I60: 0 | J60: 0 | K60: 0 | L60: 0 | M60: 0
B61: Land | D61: 0 | E61: 0 | F61: 0 | G61: 0 | H61: 0 | I61: 0 | J61: 0 | K61: 0 | L61: 0 | M61: 0
B62: Network Switching Centres | D62: 0 | E62: 0 | F62: 0 | G62: 0 | H62: 0 | I62: 0 | J62: 0 | K62: 0 | L62: 0 | M62: 0
B63: Office furniture, movable plant, and misc | D63: 0 | E63: 0 | F63: 0 | G63: 0 | H63: 0 | I63: 0 | J63: 0 | K63: 0 | L63: 0 | M63: 0
B64: Refurbishment | D64: 0 | E64: 0 | F64: 0 | G64: 0 | H64: 0 | I64: 0 | J64: 0 | K64: 0 | L64: 0 | M64: 0
B65: Substation Primary Plant | D65: 0 | E65: 0 | F65: 0 | G65: 0 | H65: 0 | I65: 0 | J65: 0 | K65: 0 | L65: 0 | M65: 0
B66: Substation Demountable Buildings | D66: =INDEX(SAPNDepn,MATCH($B66,SAPNDepnRow,0)+$C$55,MATCH(D$54,SAPNDepnCol,0)) -> 0 | E66: 0 | F66: 0 | G66: 0 | H66: 0 | I66: 0 | J66: 0 | K66: 0 | L66: 0 | M66: 0
B67: Substation Establishment | D67: 0 | E67: 0 | F67: 0 | G67: 0 | H67: 0 | I67: 0 | J67: 0 | K67: 0 | L67: 0 | M67: 0
B68: Substation Fences | D68: 0 | E68: 0 | F68: 0 | G68: 0 | H68: 0 | I68: 0 | J68: 0 | K68: 0 | L68: 0 | M68: 0
B69: Substation Secondary Systems - Electromechanical | D69: 0 | E69: 0 | F69: 0 | G69: 0 | H69: 0 | I69: 0 | J69: 0 | K69: 0 | L69: 0 | M69: 0
B70: Substation Secondary Systems - Electronic | D70: 0 | E70: 0 | F70: 0 | G70: 0 | H70: 0 | I70: 0 | J70: 0 | K70: 0 | L70: 0 | M70: 0
B71: Transmission lines - Overhead | D71: 0 | E71: 0 | F71: 0 | G71: 0 | H71: 0 | I71: 0 | J71: 0 | K71: 0 | L71: 0 | M71: 0
B72: Transmission lines - Underground | D72: 0 | E72: 0 | F72: 0 | G72: 0 | H72: 0 | I72: 0 | J72: 0 | K72: 0 | L72: 0 | M72: 0
B73: Capital Work in Progress | D73: 0 | E73: 0 | F73: 0 | G73: 0 | H73: 0 | I73: 0 | J73: 0 | K73: 0 | L73: 0 | M73: 0
B74: Accelerated Depreciation | D74: 0 | E74: 0 | F74: 0 | G74: 0 | H74: 0 | I74: 0 | J74: 0 | K74: 0 | L74: 0 | M74: 0
B75: Refurbishment Projects 2008-2013 | D75: 0 | E75: 0 | F75: 0 | G75: 0 | H75: 0 | I75: 0 | J75: 0 | K75: 0 | L75: 0 | M75: 0
B76: Equity Raising Cost - 2003 Opening RAB and 2003-08 capex | D76: 0 | E76: 0 | F76: 0 | G76: 0 | H76: 0 | I76: 0 | J76: 0 | K76: 0 | L76: 0 | M76: 0
B77: Equity Raising Cost 2013-2018 | D77: 0 | E77: 0 | F77: 0 | G77: 0 | H77: 0 | I77: 0 | J77: 0 | K77: 0 | L77: 0 | M77: 0
B78: Transmission Line Refit - insulators replacement 2013-18 | D78: 0 | E78: 0 | F78: 0 | G78: 0 | H78: 0 | I78: 0 | J78: 0 | K78: 0 | L78: 0 | M78: 0
B81: Check totals below | D81: =D86+D116+D146+D176+D206+D236+D266+D296+D326+D356+D386+D416 -> 76.95855786 | E81: =E86+E116+E146+E176+E206+E236+E266+E296+E326+E356+E386+E416 -> 86.81689285 | F81: 93.21249842 | G81: 95.38072601 | H81: 94.00923114 | I81: 84.99081116 | J81: 100.0743813 | K81: 97.38487537 | L81: 94.21259869 | M81: 84.96887884
B82: Adjusted to $m Real 2017/18 | D82: =D81*$H$50 -> 85.12433077 | E82: =E81*$H$50 -> 96.0286953 | F82: 103.1029137 | G82: 105.5012034 | H82: 103.9841846 | I82: 94.00885519 | J82: 110.6928842 | K82: 107.7180053 | L82: 104.2091307 | M82: 93.98459572
I83: =I82='PTRM input'!K39 -> FALSE | J83: =J82='PTRM input'!L39 -> FALSE | K83: =K82='PTRM input'!M39 -> FALSE | L83: =L82='PTRM input'!N39 -> FALSE | M83: =M82='PTRM input'!O39 -> FALSE
D85: =D54 -> F14 | E85: =E54 -> F15 | F85: F16 | G85: F17 | H85: F18 | I85: F19 | J85: F20 | K85: F21 | L85: F22 | M85: F23
B86: Opening balance depreciation | C86: 1 | D86: =SUM(D87:D109) -> 76.95855786 | E86: =SUM(E87:E109) -> 77.42068356 | F86: =SUM(F87:F109) -> 77.42068356 | G86: =SUM(G87:G109) -> 72.37975855 | H86: =SUM(H87:H109) -> 62.31007264 | I86: =SUM(I87:I109) -> 58.70500474 | J86: =SUM(J87:J109) -> 58.70500474 | K86: =SUM(K87:K109) -> 58.70500474 | L86: =SUM(L87:L109) -> 58.70500474 | M86: =SUM(M87:M109) -> 57.44358977
B87: Commercial Buildings | D87: =INDEX(SAPNDepn,MATCH($B87,SAPNDepnRow,0)+$C$86,MATCH(D$85,SAPNDepnCol,0)) -> 0.4936729601 | E87: 0.4936729601 | F87: 0.4936729601 | G87: 0.4936729601 | H87: 0.4936729601 | I87: 0.4936729601 | J87: 0.4936729601 | K87: 0.4936729601 | L87: 0.4936729601 | M87: 0.4936729601
B88: Communications - Civil | D88: 0.1721833646 | E88: 0.1721833646 | F88: 0.1721833646 | G88: 0.1721833646 | H88: 0.1721833646 | I88: 0.1721833646 | J88: 0.1721833646 | K88: 0.1721833646 | L88: 0.1721833646 | M88: 0.1721833646
B89: Communications - Other | D89: 6.603416444 | E89: 6.603416444 | F89: 6.603416444 | G89: 6.603416444 | H89: 6.603416444 | I89: 6.603416444 | J89: 6.603416444 | K89: 6.603416444 | L89: 6.603416444 | M89: 6.603416444
B90: Computers, software, and office machines | D90: 9.983188728 | E90: 9.983188728 | F90: 9.983188728 | G90: 4.942263714 | H90: 0 | I90: 0 | J90: 0 | K90: 0 | L90: 0 | M90: 0
B91: Easement | D91: n/a | E91: n/a | F91: n/a | G91: n/a | H91: n/a | I91: n/a | J91: n/a | K91: n/a | L91: n/a | M91: n/a
B92: Land | D92: n/a | E92: n/a | F92: n/a | G92: n/a | H92: n/a | I92: n/a | J92: n/a | K92: n/a | L92: n/a | M92: n/a
B93: Network Switching Centres | D93: -0.4621257019 | E93: 0 | F93: 0 | G93: 0 | H93: 0 | I93: 0 | J93: 0 | K93: 0 | L93: 0 | M93: 0
B94: Office furniture, movable plant, and misc | D94: 1.273624134 | E94: 1.273624134 | F94: 1.273624134 | G94: 1.273624134 | H94: 1.273624134 | I94: 1.273624134 | J94: 1.273624134 | K94: 1.273624134 | L94: 1.273624134 | M94: 0.01220916081
B95: Refurbishment | D95: 8.308128598 | E95: 8.308128598 | F95: 8.308128598 | G95: 8.308128598 | H95: 3.180706407 | I95: 0 | J95: 0 | K95: 0 | L95: 0 | M95: 0
B96: Substation Primary Plant | D96: 19.1334319 | E96: 19.1334319 | F96: 19.1334319 | G96: 19.1334319 | H96: 19.1334319 | I96: 19.1334319 | J96: 19.1334319 | K96: 19.1334319 | L96: 19.1334319 | M96: 19.1334319
B97: Substation Demountable Buildings | D97: =INDEX(SAPNDepn,MATCH($B97,SAPNDepnRow,0)+$C$86,MATCH(D$85,SAPNDepnCol,0)) -> 0.09178664046 | E97: 0.09178664046 | F97: 0.09178664046 | G97: 0.09178664046 | H97: 0.09178664046 | I97: 0.09178664046 | J97: 0.09178664046 | K97: 0.09178664046 | L97: 0.09178664046 | M97: 0.09178664046
B98: Substation Establishment | D98: 1.603616069 | E98: 1.603616069 | F98: 1.603616069 | G98: 1.603616069 | H98: 1.603616069 | I98: 1.603616069 | J98: 1.603616069 | K98: 1.603616069 | L98: 1.603616069 | M98: 1.603616069
B99: Substation Fences | D99: 0.5939796051 | E99: 0.5939796051 | F99: 0.5939796051 | G99: 0.5939796051 | H99: 0.5939796051 | I99: 0.5939796051 | J99: 0.5939796051 | K99: 0.5939796051 | L99: 0.5939796051 | M99: 0.5939796051
B100: Substation Secondary Systems - Electromechanical | D100: 5.112924786 | E100: 5.112924786 | F100: 5.112924786 | G100: 5.112924786 | H100: 5.112924786 | I100: 5.112924786 | J100: 5.112924786 | K100: 5.112924786 | L100: 5.112924786 | M100: 5.112924786
B101: Substation Secondary Systems - Electronic | D101: 4.710447891 | E101: 4.710447891 | F101: 4.710447891 | G101: 4.710447891 | H101: 4.710447891 | I101: 4.710447891 | J101: 4.710447891 | K101: 4.710447891 | L101: 4.710447891 | M101: 4.710447891
B102: Transmission lines - Overhead | D102: 14.11431267 | E102: 14.11431267 | F102: 14.11431267 | G102: 14.11431267 | H102: 14.11431267 | I102: 14.11431267 | J102: 14.11431267 | K102: 14.11431267 | L102: 14.11431267 | M102: 14.11431267
B103: Transmission lines - Underground | D103: 2.977201104 | E103: 2.977201104 | F103: 2.977201104 | G103: 2.977201104 | H103: 2.977201104 | I103: 2.977201104 | J103: 2.977201104 | K103: 2.977201104 | L103: 2.977201104 | M103: 2.977201104
B104: Capital Work in Progress | D104: n/a | E104: n/a | F104: n/a | G104: n/a | H104: n/a | I104: 0.3754469151 | J104: 0.3754469151 | K104: 0.3754469151 | L104: 0.3754469151 | M104: 0.3754469151
B105: Accelerated Depreciation | D105: 0.7998084072 | E105: 0.7998084072 | F105: 0.7998084072 | G105: 0.7998084072 | H105: 0.7998084072 | I105: 0 | J105: 0 | K105: 0 | L105: 0 | M105: 0
B106: Refurbishment Projects 2008-2013 | D106: 0.9081686285 | E106: 0.9081686285 | F106: 0.9081686285 | G106: 0.9081686285 | H106: 0.9081686285 | I106: 0.9081686285 | J106: 0.9081686285 | K106: 0.9081686285 | L106: 0.9081686285 | M106: 0.9081686285
B107: Equity Raising Cost - 2003 Opening RAB and 2003-08 capex | D107: 0.5407916348 | E107: 0.5407916348 | F107: 0.5407916348 | G107: 0.5407916348 | H107: 0.5407916348 | I107: 0.5407916348 | J107: 0.5407916348 | K107: 0.5407916348 | L107: 0.5407916348 | M107: 0.5407916348
B108: Equity Raising Cost 2013-2018 | D108: n/a | E108: n/a | F108: n/a | G108: n/a | H108: n/a | I108: n/a | J108: n/a | K108: n/a | L108: n/a | M108: n/a
B109: Transmission Line Refit - insulators replacement 2013-18 | D109: n/a | E109: n/a | F109: n/a | G109: n/a | H109: n/a | I109: n/a | J109: n/a | K109: n/a | L109: n/a | M109: n/a
D115: F09 | E115: F10 | F115: F11 | G115: F12 | H115: F13 | I115: F14 | J115: F15 | K115: F16 | L115: F17 | M115: F18
B116: Year 5 true up for Actual vs Forecast additions in 2007/08 | C116: 2 | D116: =SUM(D117:D139) -> 0 | E116: 0 | F116: 0 | G116: 0 | H116: 0 | I116: -13.09840559 | J116: -3.981226387 | K116: -3.981226387 | L116: -3.981226387 | M116: =SUM(M117:M139) -> -3.981226387
B117: Commercial Buildings | I117: =INDEX(SAPNDepn,MATCH($B117,SAPNDepnRow,0)+$C$116,MATCH(I$85,SAPNDepnCol,0)) -> 0.02261511373 | J117: 0.02261511373 | K117: 0.02261511373 | L117: 0.02261511373 | M117: 0.02261511373
B118: Communications - Civil | I118: 0.03148680532 | J118: 0.03148680532 | K118: 0.03148680532 | L118: 0.03148680532 | M118: 0.03148680532
B119: Communications - Other | I119: -1.207698474 | J119: -1.207698474 | K119: -1.207698474 | L119: -1.207698474 | M119: -1.207698474
B120: Computers, software, and office machines | I120: -12.33070994 | J120: 0 | K120: 0 | L120: 0 | M120: 0
B121: Easement | I121: n/a | J121: n/a | K121: n/a | L121: n/a | M121: n/a
B122: Land | I122: n/a | J122: n/a | K122: n/a | L122: n/a | M122: n/a
B123: Network Switching Centres | I123: 3.213530738 | J123: 0 | K123: 0 | L123: 0 | M123: 0
B124: Office furniture, movable plant, and misc | I124: -1.211443621 | J124: -1.211443621 | K124: -1.211443621 | L124: -1.211443621 | M124: -1.211443621
B125: Refurbishment | I125: -0.0002135203393 | J125: -0.0002135203393 | K125: -0.0002135203393 | L125: -0.0002135203393 | M125: -0.0002135203393
B126: Substation Primary Plant | I126: 0.2257153186 | J126: 0.2257153186 | K126: 0.2257153186 | L126: 0.2257153186 | M126: 0.2257153186
B127: Substation Demountable Buildings | I127: =INDEX(SAPNDepn,MATCH($B127,SAPNDepnRow,0)+$C$116,MATCH(I$85,SAPNDepnCol,0)) -> -0.10588305 | J127: -0.10588305 | K127: -0.10588305 | L127: -0.10588305 | M127: -0.10588305
B128: Substation Establishment | I128: 0.619848505 | J128: 0.619848505 | K128: 0.619848505 | L128: 0.619848505 | M128: 0.619848505
B129: Substation Fences | I129: -0.5593092477 | J129: -0.5593092477 | K129: -0.5593092477 | L129: -0.5593092477 | M129: -0.5593092477
B130: Substation Secondary Systems - Electromechanical | I130: 0 | J130: 0 | K130: 0 | L130: 0 | M130: 0
B131: Substation Secondary Systems - Electronic | I131: -0.4801402739 | J131: -0.4801402739 | K131: -0.4801402739 | L131: -0.4801402739 | M131: -0.4801402739
B132: Transmission lines - Overhead | I132: 0.2864179859 | J132: 0.2864179859 | K132: 0.2864179859 | L132: 0.2864179859 | M132: 0.2864179859
B133: Transmission lines - Underground | I133: -0.007175692645 | J133: -0.007175692645 | K133: -0.007175692645 | L133: -0.007175692645 | M133: -0.007175692645
B134: Capital Work in Progress | I134: n/a | J134: n/a | K134: n/a | L134: n/a | M134: n/a
B135: Accelerated Depreciation | I135: 0 | J135: 0 | K135: 0 | L135: 0 | M135: 0
B136: Refurbishment Projects 2008-2013 | I136: -1.595446236 | J136: -1.595446236 | K136: -1.595446236 | L136: -1.595446236 | M136: -1.595446236
B137: Equity Raising Cost - 2003 Opening RAB and 2003-08 capex | I137: 0 | J137: 0 | K137: 0 | L137: 0 | M137: 0
B138: Equity Raising Cost 2013-2018 | I138: 0 | J138: 0 | K138: 0 | L138: 0 | M138: 0
B139: Transmission Line Refit - insulators replacement 2013-18 | I139: 0 | J139: 0 | K139: 0 | L139: 0 | M139: 0
D145: =D54 -> F14 | E145: =E54 -> F15 | F145: F16 | G145: F17 | H145: F18 | I145: F19 | J145: F20 | K145: F21 | L145: F22 | M145: F23
B146: ="Depreciation on Year "&C146-2&" Additions" -> Depreciation on Year 1 Additions | C146: 3 | D146: =SUM(D147:D169) -> 0 | E146: =SUM(E147:E169) -> 0 | F146: =SUM(F147:F169) -> 0 | G146: =SUM(G147:G169) -> 0 | H146: =SUM(H147:H169) -> 0 | I146: =SUM(I147:I169) -> 3.121520061 | J146: =SUM(J147:J169) -> 3.121520061 | K146: =SUM(K147:K169) -> 3.121520061 | L146: =SUM(L147:L169) -> 3.121520061 | M146: =SUM(M147:M169) -> 3.121520061
B147: Commercial Buildings | D147: =INDEX(SAPNDepn,MATCH($B147,SAPNDepnRow,0)+$C$146,MATCH(D$85,SAPNDepnCol,0)) -> 0 | E147: 0 | F147: 0 | G147: 0 | H147: Accel Dep adj | I147: 0 | J147: 0 | K147: 0 | L147: 0 | M147: 0
B148: Communications - Civil | D148: 0 | E148: 0 | F148: 0 | G148: 0 | H148: Accel Dep adj | I148: -0.02288155303 | J148: -0.02288155303 | K148: -0.02288155303 | L148: -0.02288155303 | M148: -0.02288155303
B149: Communications - Other | D149: 0 | E149: 0 | F149: 0 | G149: 0 | H149: Accel Dep adj | I149: -0.70732522 | J149: -0.70732522 | K149: -0.70732522 | L149: -0.70732522 | M149: -0.70732522
B150: Computers, software, and office machines | D150: 0 | E150: 0 | F150: 0 | G150: 0 | H150: Accel Dep adj | I150: 0 | J150: 0 | K150: 0 | L150: 0 | M150: 0
B151: Easement | D151: 0 | E151: 0 | F151: 0 | G151: 0 | H151: Accel Dep adj | I151: n/a | J151: n/a | K151: n/a | L151: n/a | M151: n/a
B152: Land | D152: 0 | E152: 0 | F152: 0 | G152: 0 | H152: Accel Dep adj | I152: n/a | J152: n/a | K152: n/a | L152: n/a | M152: n/a
B153: Network Switching Centres | D153: 0 | E153: 0 | F153: 0 | G153: 0 | H153: Accel Dep adj | I153: 0 | J153: 0 | K153: 0 | L153: 0 | M153: 0
B154: Office furniture, movable plant, and misc | D154: 0 | E154: 0 | F154: 0 | G154: 0 | H154: Accel Dep adj | I154: 0 | J154: 0 | K154: 0 | L154: 0 | M154: 0
B155: Refurbishment | D155: 0 | E155: 0 | F155: 0 | G155: 0 | H155: Accel Dep adj | I155: 0 | J155: 0 | K155: 0 | L155: 0 | M155: 0
B156: Substation Primary Plant | D156: 0 | E156: 0 | F156: 0 | G156: 0 | H156: Accel Dep adj | I156: -0.2467870195 | J156: -0.2467870195 | K156: -0.2467870195 | L156: -0.2467870195 | M156: -0.2467870195
B157: Substation Demountable Buildings | D157: =INDEX(SAPNDepn,MATCH($B157,SAPNDepnRow,0)+$C$146,MATCH(D$85,SAPNDepnCol,0)) -> 0 | E157: 0 | F157: 0 | G157: 0 | H157: Accel Dep adj | I157: 0 | J157: 0 | K157: 0 | L157: 0 | M157: 0
B158: Substation Establishment | D158: 0 | E158: 0 | F158: 0 | G158: 0 | H158: Accel Dep adj | I158: -0.09062526163 | J158: -0.09062526163 | K158: -0.09062526163 | L158: -0.09062526163 | M158: -0.09062526163
B159: Substation Fences | D159: 0 | E159: 0 | F159: 0 | G159: 0 | H159: Accel Dep adj | I159: -0.0215643622 | J159: -0.0215643622 | K159: -0.0215643622 | L159: -0.0215643622 | M159: -0.0215643622
B160: Substation Secondary Systems - Electromechanical | D160: 0 | E160: 0 | F160: 0 | G160: 0 | H160: Accel Dep adj | I160: -0.1535117639 | J160: -0.1535117639 | K160: -0.1535117639 | L160: -0.1535117639 | M160: -0.1535117639
B161: Substation Secondary Systems - Electronic | D161: 0 | E161: 0 | F161: 0 | G161: 0 | H161: Accel Dep adj | I161: -0.1347486081 | J161: -0.1347486081 | K161: -0.1347486081 | L161: -0.1347486081 | M161: -0.1347486081
B162: Transmission lines - Overhead | D162: 0 | E162: 0 | F162: 0 | G162: 0 | H162: Accel Dep adj | I162: -0.08938103754 | J162: -0.08938103754 | K162: -0.08938103754 | L162: -0.08938103754 | M162: -0.08938103754
B163: Transmission lines - Underground | D163: 0 | E163: 0 | F163: 0 | G163: 0 | H163: Accel Dep adj | I163: 0 | J163: 0 | K163: 0 | L163: 0 | M163: 0
B164: Capital Work in Progress | D164: 0 | E164: 0 | F164: 0 | G164: 0 | H164: Accel Dep adj | I164: n/a | J164: n/a | K164: n/a | L164: n/a | M164: n/a
B165: Accelerated Depreciation | D165: 0 | E165: 0 | F165: 0 | G165: 0 | H165: Accel Dep adj | I165: 4.588344887 | J165: 4.588344887 | K165: 4.588344887 | L165: 4.588344887 | M165: 4.588344887
B166: Refurbishment Projects 2008-2013 | D166: 0 | E166: 0 | F166: 0 | G166: 0 | H166: Accel Dep adj | I166: 0 | J166: 0 | K166: 0 | L166: 0 | M166: 0
B167: Equity Raising Cost - 2003 Opening RAB and 2003-08 capex | D167: 0 | E167: 0 | F167: 0 | G167: 0 | H167: Accel Dep adj | I167: 0 | J167: 0 | K167: 0 | L167: 0 | M167: 0
B168: Equity Raising Cost 2013-2018 | D168: 0 | E168: 0 | F168: 0 | G168: 0 | H168: Accel Dep adj | I168: n/a | J168: n/a | K168: n/a | L168: n/a | M168: n/a
B169: Transmission Line Refit - insulators replacement 2013-18 | D169: 0 | E169: 0 | F169: 0 | G169: 0 | H169: Accel Dep adj | I169: n/a | J169: n/a | K169: n/a | L169: n/a | M169: n/a
D175: F09 | E175: F10 | F175: F11 | G175: F12 | H175: F13 | I175: F14 | J175: F15 | K175: F16 | L175: F17 | M175: F18
B176: ="Depreciation on Year "&C176-2&" Additions" -> Depreciation on Year 2 Additions | C176: =C146+1 -> 4 | D176: =SUM(D177:D199) -> 0 | E176: =SUM(E177:E199) -> 0 | F176: =SUM(F177:F199) -> 0 | G176: =SUM(G177:G199) -> 0 | H176: =SUM(H177:H199) -> 0 | I176: =SUM(I177:I199) -> -9.976885526 | J176: =SUM(J177:J199) -> -0.8597063263 | K176: =SUM(K177:K199) -> -0.8597063263 | L176: =SUM(L177:L199) -> -0.8597063263 | M176: =SUM(M177:M199) -> -0.8597063263
B177: Commercial Buildings | D177: =INDEX(SAPNDepn,MATCH($B177,SAPNDepnRow,0)+$C$176,MATCH(D$85,SAPNDepnCol,0)) -> 0 | E177: 0 | F177: 0 | G177: 0 | H177: Initial Asset Base Adjustment | I177: 0.02261511373 | J177: 0.02261511373 | K177: 0.02261511373 | L177: 0.02261511373 | M177: 0.02261511373
B178: Communications - Civil | D178: 0 | E178: 0 | F178: 0 | G178: 0 | H178: Initial Asset Base Adjustment | I178: 0.008605252294 | J178: 0.008605252294 | K178: 0.008605252294 | L178: 0.008605252294 | M178: 0.008605252294
B179: Communications - Other | D179: 0 | E179: 0 | F179: 0 | G179: 0 | H179: Initial Asset Base Adjustment | I179: -1.915023694 | J179: -1.915023694 | K179: -1.915023694 | L179: -1.915023694 | M179: -1.915023694
B180: Computers, software, and office machines | D180: 0 | E180: 0 | F180: 0 | G180: 0 | H180: Initial Asset Base Adjustment | I180: -12.33070994 | J180: 0 | K180: 0 | L180: 0 | M180: 0
B181: Easement | D181: 0 | E181: 0 | F181: 0 | G181: 0 | H181: Initial Asset Base Adjustment | I181: n/a | J181: n/a | K181: n/a | L181: n/a | M181: n/a
B182: Land | D182: 0 | E182: 0 | F182: 0 | G182: 0 | H182: Initial Asset Base Adjustment | I182: n/a | J182: n/a | K182: n/a | L182: n/a | M182: n/a
B183: Network Switching Centres | D183: 0 | E183: 0 | F183: 0 | G183: 0 | H183: Initial Asset Base Adjustment | I183: 3.213530738 | J183: 0 | K183: 0 | L183: 0 | M183: 0
B184: Office furniture, movable plant, and misc | D184: 0 | E184: 0 | F184: 0 | G184: 0 | H184: Initial Asset Base Adjustment | I184: -1.211443621 | J184: -1.211443621 | K184: -1.211443621 | L184: -1.211443621 | M184: -1.211443621
B185: Refurbishment | D185: 0 | E185: 0 | F185: 0 | G185: 0 | H185: Initial Asset Base Adjustment | I185: -0.0002135203393 | J185: -0.0002135203393 | K185: -0.0002135203393 | L185: -0.0002135203393 | M185: -0.0002135203393
B186: Substation Primary Plant | D186: 0 | E186: 0 | F186: 0 | G186: 0 | H186: Initial Asset Base Adjustment | I186: -0.02107170089 | J186: -0.02107170089 | K186: -0.02107170089 | L186: -0.02107170089 | M186: -0.02107170089
B187: Substation Demountable Buildings | D187: =INDEX(SAPNDepn,MATCH($B187,SAPNDepnRow,0)+$C$176,MATCH(D$85,SAPNDepnCol,0)) -> 0 | E187: 0 | F187: 0 | G187: 0 | H187: Initial Asset Base Adjustment | I187: -0.10588305 | J187: -0.10588305 | K187: -0.10588305 | L187: -0.10588305 | M187: -0.10588305
B188: Substation Establishment | D188: 0 | E188: 0 | F188: 0 | G188: 0 | H188: Initial Asset Base Adjustment | I188: 0.5292232434 | J188: 0.5292232434 | K188: 0.5292232434 | L188: 0.5292232434 | M188: 0.5292232434
B189: Substation Fences | D189: 0 | E189: 0 | F189: 0 | G189: 0 | H189: Initial Asset Base Adjustment | I189: -0.5808736099 | J189: -0.5808736099 | K189: -0.5808736099 | L189: -0.5808736099 | M189: -0.5808736099
B190: Substation Secondary Systems - Electromechanical | D190: 0 | E190: 0 | F190: 0 | G190: 0 | H190: Initial Asset Base Adjustment | I190: -0.1535117639 | J190: -0.1535117639 | K190: -0.1535117639 | L190: -0.1535117639 | M190: -0.1535117639
B191: Substation Secondary Systems - Electronic | D191: 0 | E191: 0 | F191: 0 | G191: 0 | H191: Initial Asset Base Adjustment | I191: -0.614888882 | J191: -0.614888882 | K191: -0.614888882 | L191: -0.614888882 | M191: -0.614888882
B192: Transmission lines - Overhead | D192: 0 | E192: 0 | F192: 0 | G192: 0 | H192: Initial Asset Base Adjustment | I192: 0.1970369483 | J192: 0.1970369483 | K192: 0.1970369483 | L192: 0.1970369483 | M192: 0.1970369483
B193: Transmission lines - Underground | D193: 0 | E193: 0 | F193: 0 | G193: 0 | H193: Initial Asset Base Adjustment | I193: -0.007175692645 | J193: -0.007175692645 | K193: -0.007175692645 | L193: -0.007175692645 | M193: -0.007175692645
B194: Capital Work in Progress | D194: 0 | E194: 0 | F194: 0 | G194: 0 | H194: Initial Asset Base Adjustment | I194: n/a | J194: n/a | K194: n/a | L194: n/a | M194: n/a
B195: Accelerated Depreciation | D195: 0 | E195: 0 | F195: 0 | G195: 0 | H195: Initial Asset Base Adjustment | I195: 4.588344887 | J195: 4.588344887 | K195: 4.588344887 | L195: 4.588344887 | M195: 4.588344887
B196: Refurbishment Projects 2008-2013 | D196: 0 | E196: 0 | F196: 0 | G196: 0 | H196: Initial Asset Base Adjustment | I196: -1.595446236 | J196: -1.595446236 | K196: -1.595446236 | L196: -1.595446236 | M196: -1.595446236
B197: Equity Raising Cost - 2003 Opening RAB and 2003-08 capex | D197: 0 | E197: 0 | F197: 0 | G197: 0 | H197: Initial Asset Base Adjustment | I197: 0 | J197: 0 | K197: 0 | L197: 0 | M197: 0
B198: Equity Raising Cost 2013-2018 | D198: 0 | E198: 0 | F198: 0 | G198: 0 | H198: Initial Asset Base Adjustment | I198: 0 | J198: 0 | K198: 0 | L198: 0 | M198: 0
B199: Transmission Line Refit - insulators replacement 2013-18 | D199: 0 | E199: 0 | F199: 0 | G199: 0 | H199: Initial Asset Base Adjustment | I199: 0 | J199: 0 | K199: 0 | L199: 0 | M199: 0
D205: F09 | E205: F10 | F205: F11 | G205: F12 | H205: F13 | I205: F14 | J205: F15 | K205: F16 | L205: F17 | M205: F18
B206: ="Depreciation on Year "&C206-2&" Additions" -> Depreciation on Year 3 Additions | C206: =C176+1 -> 5 | D206: =SUM(D207:D229) -> 0 | E206: =SUM(E207:E229) -> 9.396209291 | F206: =SUM(F207:F229) -> 9.396209291 | G206: =SUM(G207:G229) -> 9.396209291 | H206: =SUM(H207:H229) -> 9.396209291 | I206: =SUM(I207:I229) -> 7.176698423 | J206: =SUM(J207:J229) -> 7.165005826 | K206: =SUM(K207:K229) -> 7.165005826 | L206: =SUM(L207:L229) -> 7.165005826 | M206: =SUM(M207:M229) -> 7.165005826
B207: Commercial Buildings | D207: =INDEX(SAPNDepn,MATCH($B207,SAPNDepnRow,0)+$C$206,MATCH(D$85,SAPNDepnCol,0)) -> 0 | E207: 0.009546404022 | F207: 0.009546404022 | G207: 0.009546404022 | H207: 0.009546404022 | I207: 0.009546404022 | J207: 0.009546404022 | K207: 0.009546404022 | L207: 0.009546404022 | M207: 0.009546404022
B208: Communications - Civil | D208: 0 | E208: 0.007034207703 | F208: 0.007034207703 | G208: 0.007034207703 | H208: 0.007034207703 | I208: 0.007034207703 | J208: 0.007034207703 | K208: 0.007034207703 | L208: 0.007034207703 | M208: 0.007034207703
B209: Communications - Other | D209: 0 | E209: 0.8942482702 | F209: 0.8942482702 | G209: 0.8942482702 | H209: 0.8942482702 | I209: 0.8942482702 | J209: 0.8942482702 | K209: 0.8942482702 | L209: 0.8942482702 | M209: 0.8942482702
B210: Computers, software, and office machines | D210: 0 | E210: 2.219510868 | F210: 2.219510868 | G210: 2.219510868 | H210: 2.219510868 | I210: 0 | J210: 0 | K210: 0 | L210: 0 | M210: 0
B211: Easement | D211: 0 | E211: n/a | F211: n/a | G211: n/a | H211: n/a | I211: n/a | J211: n/a | K211: n/a | L211: n/a | M211: n/a
B212: Land | D212: 0 | E212: n/a | F212: n/a | G212: n/a | H212: n/a | I212: n/a | J212: n/a | K212: n/a | L212: n/a | M212: n/a
B213: Network Switching Centres | D213: 0 | E213: 0.01169259746 | F213: 0.01169259746 | G213: 0.01169259746 | H213: 0.01169259746 | I213: 0.01169259746 | J213: 0 | K213: 0 | L213: 0 | M213: 0
B214: Office furniture, movable plant, and misc | D214: 0 | E214: 0.6633449331 | F214: 0.6633449331 | G214: 0.6633449331 | H214: 0.6633449331 | I214: 0.6633449331 | J214: 0.6633449331 | K214: 0.6633449331 | L214: 0.6633449331 | M214: 0.6633449331
B215: Refurbishment | D215: 0 | E215: 0 | F215: 0 | G215: 0 | H215: 0 | I215: 0 | J215: 0 | K215: 0 | L215: 0 | M215: 0
B216: Substation Primary Plant | D216: 0 | E216: 1.891573246 | F216: 1.891573246 | G216: 1.891573246 | H216: 1.891573246 | I216: 1.891573246 | J216: 1.891573246 | K216: 1.891573246 | L216: 1.891573246 | M216: 1.891573246
B217: Substation Demountable Buildings | D217: =INDEX(SAPNDepn,MATCH($B217,SAPNDepnRow,0)+$C$206,MATCH(D$85,SAPNDepnCol,0)) -> 0 | E217: 0 | F217: 0 | G217: 0 | H217: 0 | I217: 0 | J217: 0 | K217: 0 | L217: 0 | M217: 0
B218: Substation Establishment | D218: 0 | E218: 0.7245755708 | F218: 0.7245755708 | G218: 0.7245755708 | H218: 0.7245755708 | I218: 0.7245755708 | J218: 0.7245755708 | K218: 0.7245755708 | L218: 0.7245755708 | M218: 0.7245755708
B219: Substation Fences | D219: 0 | E219: 0.09489060628 | F219: 0.09489060628 | G219: 0.09489060628 | H219: 0.09489060628 | I219: 0.09489060628 | J219: 0.09489060628 | K219: 0.09489060628 | L219: 0.09489060628 | M219: 0.09489060628
B220: Substation Secondary Systems - Electromechanical | D220: 0 | E220: 0 | F220: 0 | G220: 0 | H220: 0 | I220: 0 | J220: 0 | K220: 0 | L220: 0 | M220: 0
B221: Substation Secondary Systems - Electronic | D221: 0 | E221: 2.389892591 | F221: 2.389892591 | G221: 2.389892591 | H221: 2.389892591 | I221: 2.389892591 | J221: 2.389892591 | K221: 2.389892591 | L221: 2.389892591 | M221: 2.389892591
B222: Transmission lines - Overhead | D222: 0 | E222: 0.4762591943 | F222: 0.4762591943 | G222: 0.4762591943 | H222: 0.4762591943 | I222: 0.4762591943 | J222: 0.4762591943 | K222: 0.4762591943 | L222: 0.4762591943 | M222: 0.4762591943
B223: Transmission lines - Underground | D223: 0 | E223: 0.004474920324 | F223: 0.004474920324 | G223: 0.004474920324 | H223: 0.004474920324 | I223: 0.004474920324 | J223: 0.004474920324 | K223: 0.004474920324 | L223: 0.004474920324 | M223: 0.004474920324
B224: Capital Work in Progress | D224: 0 | E224: n/a | F224: n/a | G224: n/a | H224: n/a | I224: n/a | J224: n/a | K224: n/a | L224: n/a | M224: n/a
B225: Accelerated Depreciation | D225: 0 | E225: 0 | F225: 0 | G225: 0 | H225: 0 | I225: 0 | J225: 0 | K225: 0 | L225: 0 | M225: 0
B226: Refurbishment Projects 2008-2013 | D226: 0 | E226: 0 | F226: 0 | G226: 0 | H226: 0 | I226: 0 | J226: 0 | K226: 0 | L226: 0 | M226: 0
B227: Equity Raising Cost - 2003 Opening RAB and 2003-08 capex | D227: 0 | E227: 0 | F227: 0 | G227: 0 | H227: 0 | I227: 0 | J227: 0 | K227: 0 | L227: 0 | M227: 0
B228: Equity Raising Cost 2013-2018 | D228: 0 | E228: 0.009165882275 | F228: 0.009165882275 | G228: 0.009165882275 | H228: 0.009165882275 | I228: 0.009165882275 | J228: 0.009165882275 | K228: 0.009165882275 | L228: 0.009165882275 | M228: 0.009165882275
B229: Transmission Line Refit - insulators replacement 2013-18 | D229: 0 | E229: 0 | F229: 0 | G229: 0 | H229: 0 | I229: 0 | J229: 0 | K229: 0 | L229: 0 | M229: 0
D235: F09 | E235: F10 | F235: F11 | G235: F12 | H235: F13 | I235: F14 | J235: F15 | K235: F16 | L235: F17 | M235: F18
B236: ="Depreciation on Year "&C236-2&" Additions" -> Depreciation on Year 4 Additions | C236: =C206+1 -> 6 | D236: =SUM(D237:D259) -> 0 | E236: =SUM(E237:E259) -> 0 | F236: =SUM(F237:F259) -> 6.395605568 | G236: =SUM(G237:G259) -> 6.395605568 | H236: =SUM(H237:H259) -> 6.395605568 | I236: =SUM(I237:I259) -> 6.395605568 | J236: =SUM(J237:J259) -> 3.256509905 | K236: =SUM(K237:K259) -> 3.233623879 | L236: =SUM(L237:L259) -> 3.233623879 | M236: =SUM(M237:M259) -> 3.233623879
... 552 more rows

Sheet I3 CAPEX
A1: =RIGHT(CELL("filename",A2),LEN(CELL("filename",A2))-FIND("]",CELL("filename",A2))) -> I3 CAPEX | B1: Actual Capex
F3: Note - data is Real Actual Net Capex, per Actual RAB roll forward sheet of RFM
I5: $'M Nominal
F6: Regulatory Period 1 | I6: =F7 -> 2013-14 | K6: Regulatory Period 2 | N6: =K7 -> 2018-19 | P6: Regulatory Period 3 | S6: =P7 -> 2023-24 | U6: Regulatory Period 4 | X6: =U7 -> 2028-29
C7: Asset Class Name | E7: ='L1 '!D47 -> 2012-13 | F7: =LEFT(E7,4)+1&"-"&TEXT(RIGHT(E7,2)+1,"00") -> 2013-14 | G7: =LEFT(F7,4)+1&"-"&TEXT(RIGHT(F7,2)+1,"00") -> 2014-15 | H7: 2015-16 | I7: 2016-17 | J7: 2017-18 | K7: 2018-19 | L7: 2019-20 | M7: 2020-21 | N7: 2021-22 | O7: 2022-23 | P7: 2023-24 | Q7: 2024-25 | R7: 2025-26 | S7: 2026-27 | T7: 2027-28 | U7: 2028-29 | V7: 2029-30 | W7: 2030-31 | X7: 2031-32 | Y7: 2032-33
C8: Net Capital Expenditure – As Commissioned ($m Nominal)
B10: Asset1 | C10: =+Asset1 -> Commercial Buildings | E10: ='[1]RFM input'!G223-'[1]RFM input'!G277 -> 0.3608680267 | F10: ='[1]RFM input'!H223-'[1]RFM input'!H277 -> 0.2825432177 | G10: ='[1]RFM input'!I223-'[1]RFM input'!I277 -> 0.4437958055 | H10: ='[1]RFM input'!J223-'[1]RFM input'!J277 -> 0.7341685078 | I10: ='[1]RFM input'!K223-'[1]RFM input'!K277 -> 0.8166 | J10: ='[1]RFM input'!L223-'[1]RFM input'!L277 -> 6.4648
B11: Asset2 | C11: =+Asset2 -> Communications - Civil | E11: ='[1]RFM input'!G224-'[1]RFM input'!G278 -> 1.404142924 | F11: ='[1]RFM input'!H224-'[1]RFM input'!H278 -> 0.3816820172 | G11: ='[1]RFM input'!I224-'[1]RFM input'!I278 -> 1.816825406 | H11: ='[1]RFM input'!J224-'[1]RFM input'!J278 -> 5.897073988 | I11: ='[1]RFM input'!K224-'[1]RFM input'!K278 -> 2.9491 | J11: ='[1]RFM input'!L224-'[1]RFM input'!L278 -> 1.8609
B12: Asset3 | C12: =+Asset3 -> Communications - Other | E12: ='[1]RFM input'!G225-'[1]RFM input'!G279 -> 7.025818724 | F12: ='[1]RFM input'!H225-'[1]RFM input'!H279 -> 13.2334533 | G12: ='[1]RFM input'!I225-'[1]RFM input'!I279 -> 10.48084787 | H12: ='[1]RFM input'!J225-'[1]RFM input'!J279 -> 9.477752379 | I12: ='[1]RFM input'!K225-'[1]RFM input'!K279 -> 11.1796 | J12: ='[1]RFM input'!L225-'[1]RFM input'!L279 -> 10.6375
B13: Asset4 | C13: =+Asset4 -> Computers, software, and office machines | E13: ='[1]RFM input'!G226-'[1]RFM input'!G280 -> 12.74361727 | F13: ='[1]RFM input'!H226-'[1]RFM input'!H280 -> 8.758728988 | G13: ='[1]RFM input'!I226-'[1]RFM input'!I280 -> 12.8509142 | H13: ='[1]RFM input'!J226-'[1]RFM input'!J280 -> 11.0626341 | I13: ='[1]RFM input'!K226-'[1]RFM input'!K280 -> 13.2796 | J13: ='[1]RFM input'!L226-'[1]RFM input'!L280 -> 32.7258
B14: Asset5 | C14: =+Asset5 -> Easement | E14: ='[1]RFM input'!G227-'[1]RFM input'!G281 -> 0 | F14: ='[1]RFM input'!H227-'[1]RFM input'!H281 -> 0 | G14: ='[1]RFM input'!I227-'[1]RFM input'!I281 -> 0 | H14: ='[1]RFM input'!J227-'[1]RFM input'!J281 -> 3.334880391 | I14: ='[1]RFM input'!K227-'[1]RFM input'!K281 -> 6.1046 | J14: ='[1]RFM input'!L227-'[1]RFM input'!L281 -> 1.9575
B15: Asset6 | C15: =+Asset6 -> Land | E15: ='[1]RFM input'!G228-'[1]RFM input'!G282 -> 18.13308289 | F15: ='[1]RFM input'!H228-'[1]RFM input'!H282 -> 3.388918811 | G15: ='[1]RFM input'!I228-'[1]RFM input'!I282 -> 0.1479691569 | H15: ='[1]RFM input'!J228-'[1]RFM input'!J282 -> 0.9559514 | I15: ='[1]RFM input'!K228-'[1]RFM input'!K282 -> 0.1583808144 | J15: ='[1]RFM input'!L228-'[1]RFM input'!L282 -> 12.7939
B16: Asset7 | C16: =+Asset7 -> Network Switching Centres | E16: ='[1]RFM input'!G229-'[1]RFM input'!G283 -> 3.005111421 | F16: ='[1]RFM input'!H229-'[1]RFM input'!H283 -> 0.05767728705 | G16: ='[1]RFM input'!I229-'[1]RFM input'!I283 -> 0.1171142874 | H16: ='[1]RFM input'!J229-'[1]RFM input'!J283 -> 0 | I16: ='[1]RFM input'!K229-'[1]RFM input'!K283 -> 1.6397 | J16: ='[1]RFM input'!L229-'[1]RFM input'!L283 -> 0.001
B17: Asset8 | C17: =+Asset8 -> Office furniture, movable plant, and misc | E17: ='[1]RFM input'!G230-'[1]RFM input'!G284 -> 1.868691978 | F17: ='[1]RFM input'!H230-'[1]RFM input'!H284 -> 6.54430057 | G17: ='[1]RFM input'!I230-'[1]RFM input'!I284 -> 0.9581705174 | H17: ='[1]RFM input'!J230-'[1]RFM input'!J284 -> 3.262829575 | I17: ='[1]RFM input'!K230-'[1]RFM input'!K284 -> 3.397376132 | J17: ='[1]RFM input'!L230-'[1]RFM input'!L284 -> 11.7825
B18: Asset9 | C18: =+Asset9 -> Refurbishment | E18: ='[1]RFM input'!G231-'[1]RFM input'!G285 -> 0 | F18: ='[1]RFM input'!H231-'[1]RFM input'!H285 -> 0 | G18: ='[1]RFM input'!I231-'[1]RFM input'!I285 -> 0 | H18: ='[1]RFM input'!J231-'[1]RFM input'!J285 -> 0 | I18: ='[1]RFM input'!K231-'[1]RFM input'!K285 -> 0 | J18: ='[1]RFM input'!L231-'[1]RFM input'!L285 -> 0
B19: Asset10 | C19: =+Asset10 -> Substation Primary Plant | E19: ='[1]RFM input'!G232-'[1]RFM input'!G286 -> 52.67463359 | F19: ='[1]RFM input'!H232-'[1]RFM input'!H286 -> 83.60360376 | G19: ='[1]RFM input'!I232-'[1]RFM input'!I286 -> 18.66652704 | H19: ='[1]RFM input'!J232-'[1]RFM input'!J286 -> 13.79804058 | I19: ='[1]RFM input'!K232-'[1]RFM input'!K286 -> 53.0365 | J19: ='[1]RFM input'!L232-'[1]RFM input'!L286 -> 89.2267
B20: Asset11 | C20: =+Asset11 -> Substation Demountable Buildings | E20: ='[1]RFM input'!G233-'[1]RFM input'!G287 -> 0 | F20: ='[1]RFM input'!H233-'[1]RFM input'!H287 -> 0 | G20: ='[1]RFM input'!I233-'[1]RFM input'!I287 -> 0.09911577322 | H20: ='[1]RFM input'!J233-'[1]RFM input'!J287 -> 7.109527832 | I20: ='[1]RFM input'!K233-'[1]RFM input'!K287 -> 0 | J20: ='[1]RFM input'!L233-'[1]RFM input'!L287 -> 4.6955
B21: Asset12 | C21: =+Asset12 -> Substation Establishment | E21: ='[1]RFM input'!G234-'[1]RFM input'!G288 -> 32.9396191 | F21: ='[1]RFM input'!H234-'[1]RFM input'!H288 -> 39.31607896 | G21: ='[1]RFM input'!I234-'[1]RFM input'!I288 -> 8.640622965 | H21: ='[1]RFM input'!J234-'[1]RFM input'!J288 -> 33.04390597 | I21: ='[1]RFM input'!K234-'[1]RFM input'!K288 -> 37.6414 | J21: ='[1]RFM input'!L234-'[1]RFM input'!L288 -> 16.9888
B22: Asset13 | C22: =+Asset13 -> Substation Fences | E22: ='[1]RFM input'!G235-'[1]RFM input'!G289 -> 3.821667765 | F22: ='[1]RFM input'!H235-'[1]RFM input'!H289 -> 3.276537081 | G22: ='[1]RFM input'!I235-'[1]RFM input'!I289 -> -0.8674443391 | H22: ='[1]RFM input'!J235-'[1]RFM input'!J289 -> 0.2760230707 | I22: ='[1]RFM input'!K235-'[1]RFM input'!K289 -> 0.4381 | J22: ='[1]RFM input'!L235-'[1]RFM input'!L289 -> 0.7119
B23: Asset14 | C23: =+Asset14 -> Substation Secondary Systems - Electromechanical | E23: ='[1]RFM input'!G236-'[1]RFM input'!G290 -> 0 | F23: ='[1]RFM input'!H236-'[1]RFM input'!H290 -> 0 | G23: ='[1]RFM input'!I236-'[1]RFM input'!I290 -> 0.01440585163 | H23: ='[1]RFM input'!J236-'[1]RFM input'!J290 -> -4.146955305 | I23: ='[1]RFM input'!K236-'[1]RFM input'!K290 -> 0 | J23: ='[1]RFM input'!L236-'[1]RFM input'!L290 -> 0
B24: Asset15 | C24: =+Asset15 -> Substation Secondary Systems - Electronic | E24: ='[1]RFM input'!G237-'[1]RFM input'!G291 -> 24.82877509 | F24: ='[1]RFM input'!H237-'[1]RFM input'!H291 -> 35.36661245 | G24: ='[1]RFM input'!I237-'[1]RFM input'!I291 -> 18.06065027 | H24: ='[1]RFM input'!J237-'[1]RFM input'!J291 -> 31.0313844 | I24: ='[1]RFM input'!K237-'[1]RFM input'!K291 -> 27.4285 | J24: ='[1]RFM input'!L237-'[1]RFM input'!L291 -> 34.043
B25: Asset16 | C25: =+Asset16 -> Transmission lines - Overhead | E25: ='[1]RFM input'!G238-'[1]RFM input'!G292 -> 16.14556124 | F25: ='[1]RFM input'!H238-'[1]RFM input'!H292 -> 25.84222384 | G25: ='[1]RFM input'!I238-'[1]RFM input'!I292 -> 15.97551109 | H25: ='[1]RFM input'!J238-'[1]RFM input'!J292 -> 12.24291744 | I25: ='[1]RFM input'!K238-'[1]RFM input'!K292 -> 8.7366 | J25: ='[1]RFM input'!L238-'[1]RFM input'!L292 -> 14.9553
B26: Asset17 | C26: =+Asset17 -> Transmission lines - Underground | E26: ='[1]RFM input'!G239-'[1]RFM input'!G293 -> 1.321814932 | F26: ='[1]RFM input'!H239-'[1]RFM input'!H293 -> 0.1765912253 | G26: ='[1]RFM input'!I239-'[1]RFM input'!I293 -> 0.01772154369 | H26: ='[1]RFM input'!J239-'[1]RFM input'!J293 -> 0 | I26: ='[1]RFM input'!K239-'[1]RFM input'!K293 -> 0 | J26: ='[1]RFM input'!L239-'[1]RFM input'!L293 -> 4.0796
B27: Asset18 | C27: =+Asset18 -> Capital Work in Progress | E27: ='[1]RFM input'!G240-'[1]RFM input'!G294 -> 0 | F27: ='[1]RFM input'!H240-'[1]RFM input'!H294 -> 0 | G27: ='[1]RFM input'!I240-'[1]RFM input'!I294 -> 0 | H27: ='[1]RFM input'!J240-'[1]RFM input'!J294 -> 0 | I27: ='[1]RFM input'!K240-'[1]RFM input'!K294 -> 0 | J27: ='[1]RFM input'!L240-'[1]RFM input'!L294 -> 0
B28: Asset19 | C28: =+Asset19 -> Accelerated Depreciation | E28: ='[1]RFM input'!G241-'[1]RFM input'!G295 -> 0 | F28: ='[1]RFM input'!H241-'[1]RFM input'!H295 -> 0 | G28: ='[1]RFM input'!I241-'[1]RFM input'!I295 -> 0 | H28: ='[1]RFM input'!J241-'[1]RFM input'!J295 -> 0 | I28: ='[1]RFM input'!K241-'[1]RFM input'!K295 -> 0 | J28: ='[1]RFM input'!L241-'[1]RFM input'!L295 -> 0
B29: Asset20 | C29: =+Asset20 -> Refurbishment Projects 2008-2013 | E29: ='[1]RFM input'!G242-'[1]RFM input'!G296 -> 0 | F29: ='[1]RFM input'!H242-'[1]RFM input'!H296 -> 0 | G29: ='[1]RFM input'!I242-'[1]RFM input'!I296 -> 5.200428814 | H29: ='[1]RFM input'!J242-'[1]RFM input'!J296 -> 0 | I29: ='[1]RFM input'!K242-'[1]RFM input'!K296 -> 0 | J29: ='[1]RFM input'!L242-'[1]RFM input'!L296 -> 0
B30: Asset21 | C30: =+Asset21 -> Equity Raising Cost - 2003 Opening RAB and 2003-08 capex | E30: ='[1]RFM input'!G243-'[1]RFM input'!G297 -> 0 | F30: ='[1]RFM input'!H243-'[1]RFM input'!H297 -> 0 | G30: ='[1]RFM input'!I243-'[1]RFM input'!I297 -> 0 | H30: ='[1]RFM input'!J243-'[1]RFM input'!J297 -> 0 | I30: ='[1]RFM input'!K243-'[1]RFM input'!K297 -> 0 | J30: ='[1]RFM input'!L243-'[1]RFM input'!L297 -> 0
B31: Asset22 | C31: =+Asset22 -> Equity Raising Cost 2013-2018 | E31: ='[1]RFM input'!G244-'[1]RFM input'!G298 -> 0 | F31: ='[1]RFM input'!H244-'[1]RFM input'!H298 -> 0.3888360762 | G31: ='[1]RFM input'!I244-'[1]RFM input'!I298 -> 0 | H31: ='[1]RFM input'!J244-'[1]RFM input'!J298 -> 0 | I31: ='[1]RFM input'!K244-'[1]RFM input'!K298 -> 0 | J31: ='[1]RFM input'!L244-'[1]RFM input'!L298 -> 0
B32: Asset23 | C32: =+Asset23 -> Transmission Line Refit - insulators replacement 2013-18 | E32: ='[1]RFM input'!G245-'[1]RFM input'!G299 -> 0 | F32: ='[1]RFM input'!H245-'[1]RFM input'!H299 -> 0 | G32: ='[1]RFM input'!I245-'[1]RFM input'!I299 -> 0 | H32: ='[1]RFM input'!J245-'[1]RFM input'!J299 -> 2.511171789 | I32: ='[1]RFM input'!K245-'[1]RFM input'!K299 -> 11.3689 | J32: ='[1]RFM input'!L245-'[1]RFM input'!L299 -> 61.6736
B33: Asset24 | C33: =+Asset24 -> Communications - Other (post 2018) | E33: ='[1]RFM input'!G246-'[1]RFM input'!G300 -> 0 | F33: ='[1]RFM input'!H246-'[1]RFM input'!H300 -> 0 | G33: ='[1]RFM input'!I246-'[1]RFM input'!I300 -> 0 | H33: ='[1]RFM input'!J246-'[1]RFM input'!J300 -> 0 | I33: ='[1]RFM input'!K246-'[1]RFM input'!K300 -> 0 | J33: ='[1]RFM input'!L246-'[1]RFM input'!L300 -> 0
B34: Asset25 | C34: =+Asset25 -> Synchronous Condensers
B35: Asset26 | C35: =+Asset26 -> Asset26 - Not in Use
B36: Asset27 | C36: =+Asset27 -> Asset27 - Not in Use
B37: Asset28 | C37: =+Asset28 -> Asset28 - Not in Use
B38: Asset29 | C38: =+Asset29 -> Asset29 - Not in Use
B39: Asset30 | C39: =+Asset30 -> Asset30 - Not in Use
B40: Total | E40: =SUM(E10:E39) -> 176.273405 | F40: =SUM(F10:F39) -> 220.6177876 | G40: =SUM(G10:G39) -> 92.62317625 | H40: 130.5913061 | I40: 178.1749569 | J40: 304.5983 | K40: 0 | L40: 0 | M40: 0 | N40: 0 | O40: 0 | P40: 0 | Q40: 0 | R40: 0 | S40: 0 | T40: 0 | U40: 0 | V40: 0 | W40: 0 | X40: 0 | Y40: 0
J41: =SUM(F40:J40) -> 926.6055269 | O41: =SUM(K40:O40) -> 0 | T41: =SUM(P40:T40) -> 0 | Y41: =SUM(U40:Y40) -> 0
C43: Forecast Net Capital Expenditure – As Commissioned ($m Real) | I43: $'M Real | J43: =E7 -> 2012-13
C44: Note - data is Real Actual Net Capex, per Actual RAB roll forward sheet of RFM - includes half year capitalised WACC, as used for RAB
B45: Asset1 | C45: =+Asset1 -> Commercial Buildings | F45: =F10/'L1 '!E$49*(1+'L1 '!E$54)^0.5 -> 0.2863921207 | G45: =G10/'L1 '!F$49*(1+'L1 '!F$54)^0.5 -> 0.4336243994 | H45: =H10/'L1 '!G$49*(1+'L1 '!G$54)^0.5 -> 0.70787783 | I45: =I10/'L1 '!H$49*(1+'L1 '!H$54)^0.5 -> 0.7802889047 | J45: =J10/'L1 '!I$49*(1+'L1 '!I$54)^0.5 -> 6.059831614
B46: Asset2 | C46: =+Asset2 -> Communications - Civil | F46: =F11/'L1 '!E$49*(1+'L1 '!E$54)^0.5 -> 0.3868814237 | G46: =G11/'L1 '!F$49*(1+'L1 '!F$54)^0.5 -> 1.77518538 | H46: =H11/'L1 '!G$49*(1+'L1 '!G$54)^0.5 -> 5.685898937 | I46: =I11/'L1 '!H$49*(1+'L1 '!H$54)^0.5 -> 2.817964743 | J46: =J11/'L1 '!I$49*(1+'L1 '!I$54)^0.5 -> 1.744329392
B47: Asset3 | C47: =+Asset3 -> Communications - Other | F47: =F12/'L1 '!E$49*(1+'L1 '!E$54)^0.5 -> 13.41372405 | G47: =G12/'L1 '!F$49*(1+'L1 '!F$54)^0.5 -> 10.24063613 | H47: =H12/'L1 '!G$49*(1+'L1 '!G$54)^0.5 -> 9.13835273 | I47: =I12/'L1 '!H$49*(1+'L1 '!H$54)^0.5 -> 10.68248572 | J47: =J12/'L1 '!I$49*(1+'L1 '!I$54)^0.5 -> 9.971145093
B48: Asset4 | C48: =+Asset4 -> Computers, software, and office machines | F48: =F13/'L1 '!E$49*(1+'L1 '!E$54)^0.5 -> 8.878043471 | G48: =G13/'L1 '!F$49*(1+'L1 '!F$54)^0.5 -> 12.55638265 | H48: =H13/'L1 '!G$49*(1+'L1 '!G$54)^0.5 -> 10.66647961 | I48: =I13/'L1 '!H$49*(1+'L1 '!H$54)^0.5 -> 12.68910671 | J48: =J13/'L1 '!I$49*(1+'L1 '!I$54)^0.5 -> 30.67578849
B49: Asset5 | C49: =+Asset5 -> Easement | F49: =F14/'L1 '!E$49*(1+'L1 '!E$54)^0.5 -> 0 | G49: =G14/'L1 '!F$49*(1+'L1 '!F$54)^0.5 -> 0 | H49: =H14/'L1 '!G$49*(1+'L1 '!G$54)^0.5 -> 3.215457854 | I49: =I14/'L1 '!H$49*(1+'L1 '!H$54)^0.5 -> 5.833151662 | J49: =J14/'L1 '!I$49*(1+'L1 '!I$54)^0.5 -> 1.834878169
B50: Asset6 | C50: =+Asset6 -> Land | F50: =F15/'L1 '!E$49*(1+'L1 '!E$54)^0.5 -> 3.435083853 | G50: =G15/'L1 '!F$49*(1+'L1 '!F$54)^0.5 -> 0.1445778351 | H50: =H15/'L1 '!G$49*(1+'L1 '!G$54)^0.5 -> 0.9217186456 | I50: =I15/'L1 '!H$49*(1+'L1 '!H$54)^0.5 -> 0.1513382222 | J50: =J15/'L1 '!I$49*(1+'L1 '!I$54)^0.5 -> 11.99246376
B51: Asset7 | C51: =+Asset7 -> Network Switching Centres | F51: =F16/'L1 '!E$49*(1+'L1 '!E$54)^0.5 -> 0.05846298731 | G51: =G16/'L1 '!F$49*(1+'L1 '!F$54)^0.5 -> 0.1144301319 | H51: =H16/'L1 '!G$49*(1+'L1 '!G$54)^0.5 -> 0 | I51: =I16/'L1 '!H$49*(1+'L1 '!H$54)^0.5 -> 1.566788779 | J51: =J16/'L1 '!I$49*(1+'L1 '!I$54)^0.5 -> 0.0009373579406
B52: Asset8 | C52: =+Asset8 -> Office furniture, movable plant, and misc | F52: =F17/'L1 '!E$49*(1+'L1 '!E$54)^0.5 -> 6.633449331 | G52: =G17/'L1 '!F$49*(1+'L1 '!F$54)^0.5 -> 0.9362100993 | H52: =H17/'L1 '!G$49*(1+'L1 '!G$54)^0.5 -> 3.145987188 | I52: =I17/'L1 '!H$49*(1+'L1 '!H$54)^0.5 -> 3.24630774 | J52: =J17/'L1 '!I$49*(1+'L1 '!I$54)^0.5 -> 11.04441993
B53: Asset9 | C53: =+Asset9 -> Refurbishment | F53: =F18/'L1 '!E$49*(1+'L1 '!E$54)^0.5 -> 0 | G53: =G18/'L1 '!F$49*(1+'L1 '!F$54)^0.5 -> 0 | H53: =H18/'L1 '!G$49*(1+'L1 '!G$54)^0.5 -> 0 | I53: =I18/'L1 '!H$49*(1+'L1 '!H$54)^0.5 -> 0 | J53: =J18/'L1 '!I$49*(1+'L1 '!I$54)^0.5 -> 0
B54: Asset10 | C54: =+Asset10 -> Substation Primary Plant | F54: =F19/'L1 '!E$49*(1+'L1 '!E$54)^0.5 -> 84.74248142 | G54: =G19/'L1 '!F$49*(1+'L1 '!F$54)^0.5 -> 18.2387068 | H54: =H19/'L1 '!G$49*(1+'L1 '!G$54)^0.5 -> 13.3039308 | I54: =I19/'L1 '!H$49*(1+'L1 '!H$54)^0.5 -> 50.67816862 | J54: =J19/'L1 '!I$49*(1+'L1 '!I$54)^0.5 -> 83.63735576
B55: Asset11 | C55: =+Asset11 -> Substation Demountable Buildings | F55: =F20/'L1 '!E$49*(1+'L1 '!E$54)^0.5 -> 0 | G55: =G20/'L1 '!F$49*(1+'L1 '!F$54)^0.5 -> 0.09684412764 | H55: =H20/'L1 '!G$49*(1+'L1 '!G$54)^0.5 -> 6.854934638 | I55: =I20/'L1 '!H$49*(1+'L1 '!H$54)^0.5 -> 0 | J55: =J20/'L1 '!I$49*(1+'L1 '!I$54)^0.5 -> 4.40136421
B56: Asset12 | C56: =+Asset12 -> Substation Establishment | F56: =F21/'L1 '!E$49*(1+'L1 '!E$54)^0.5 -> 39.8516564 | G56: =G21/'L1 '!F$49*(1+'L1 '!F$54)^0.5 -> 8.442587553 | H56: =H21/'L1 '!G$49*(1+'L1 '!G$54)^0.5 -> 31.86059904 | I56: =I21/'L1 '!H$49*(1+'L1 '!H$54)^0.5 -> 35.96763015 | J56: =J21/'L1 '!I$49*(1+'L1 '!I$54)^0.5 -> 15.92458658
B57: Asset13 | C57: =+Asset13 -> Substation Fences | F57: =F22/'L1 '!E$49*(1+'L1 '!E$54)^0.5 -> 3.32117122 | G57: =G22/'L1 '!F$49*(1+'L1 '!F$54)^0.5 -> -0.8475632845 | H57: =H22/'L1 '!G$49*(1+'L1 '!G$54)^0.5 -> 0.2661386457 | I57: =I22/'L1 '!H$49*(1+'L1 '!H$54)^0.5 -> 0.4186193597 | J57: =J22/'L1 '!I$49*(1+'L1 '!I$54)^0.5 -> 0.6673051179
B58: Asset14 | C58: =+Asset14 -> Substation Secondary Systems - Electromechanical | F58: =F23/'L1 '!E$49*(1+'L1 '!E$54)^0.5 -> 0 | G58: =G23/'L1 '!F$49*(1+'L1 '!F$54)^0.5 -> 0.01407568229 | H58: =H23/'L1 '!G$49*(1+'L1 '!G$54)^0.5 -> -3.998452251 | I58: =I23/'L1 '!H$49*(1+'L1 '!H$54)^0.5 -> 0 | J58: =J23/'L1 '!I$49*(1+'L1 '!I$54)^0.5 -> 0
B59: Asset15 | C59: =+Asset15 -> Substation Secondary Systems - Electronic | F59: =F24/'L1 '!E$49*(1+'L1 '!E$54)^0.5 -> 35.84838886 | G59: =G24/'L1 '!F$49*(1+'L1 '!F$54)^0.5 -> 17.64671619 | H59: =H24/'L1 '!G$49*(1+'L1 '!G$54)^0.5 -> 29.92014615 | I59: =I24/'L1 '!H$49*(1+'L1 '!H$54)^0.5 -> 26.20885895 | J59: =J24/'L1 '!I$49*(1+'L1 '!I$54)^0.5 -> 31.91047637
B60: Asset16 | C60: =+Asset16 -> Transmission lines - Overhead | F60: =F25/'L1 '!E$49*(1+'L1 '!E$54)^0.5 -> 26.19425569 | G60: =G25/'L1 '!F$49*(1+'L1 '!F$54)^0.5 -> 15.60936655 | H60: =H25/'L1 '!G$49*(1+'L1 '!G$54)^0.5 -> 11.80449684 | I60: =I25/'L1 '!H$49*(1+'L1 '!H$54)^0.5 -> 8.348116636 | J60: =J25/'L1 '!I$49*(1+'L1 '!I$54)^0.5 -> 14.01846921
B61: Asset17 | C61: =+Asset17 -> Transmission lines - Underground | F61: =F26/'L1 '!E$49*(1+'L1 '!E$54)^0.5 -> 0.178996813 | G61: =G26/'L1 '!F$49*(1+'L1 '!F$54)^0.5 -> 0.01731538163 | H61: =H26/'L1 '!G$49*(1+'L1 '!G$54)^0.5 -> 0 | I61: =I26/'L1 '!H$49*(1+'L1 '!H$54)^0.5 -> 0 | J61: =J26/'L1 '!I$49*(1+'L1 '!I$54)^0.5 -> 3.824045454
B62: Asset18 | C62: =+Asset18 -> Capital Work in Progress | F62: =F27/'L1 '!E$49*(1+'L1 '!E$54)^0.5 -> 0 | G62: =G27/'L1 '!F$49*(1+'L1 '!F$54)^0.5 -> 0 | H62: =H27/'L1 '!G$49*(1+'L1 '!G$54)^0.5 -> 0 | I62: =I27/'L1 '!H$49*(1+'L1 '!H$54)^0.5 -> 0 | J62: =J27/'L1 '!I$49*(1+'L1 '!I$54)^0.5 -> 0
B63: Asset19 | C63: =+Asset19 -> Accelerated Depreciation | F63: =F28/'L1 '!E$49*(1+'L1 '!E$54)^0.5 -> 0 | G63: =G28/'L1 '!F$49*(1+'L1 '!F$54)^0.5 -> 0 | H63: =H28/'L1 '!G$49*(1+'L1 '!G$54)^0.5 -> 0 | I63: =I28/'L1 '!H$49*(1+'L1 '!H$54)^0.5 -> 0 | J63: =J28/'L1 '!I$49*(1+'L1 '!I$54)^0.5 -> 0
B64: Asset20 | C64: =+Asset20 -> Refurbishment Projects 2008-2013 | F64: =F29/'L1 '!E$49*(1+'L1 '!E$54)^0.5 -> 0 | G64: =G29/'L1 '!F$49*(1+'L1 '!F$54)^0.5 -> 5.0812396 | H64: =H29/'L1 '!G$49*(1+'L1 '!G$54)^0.5 -> 0 | I64: =I29/'L1 '!H$49*(1+'L1 '!H$54)^0.5 -> 0 | J64: =J29/'L1 '!I$49*(1+'L1 '!I$54)^0.5 -> 0
B65: Asset21 | C65: =+Asset21 -> Equity Raising Cost - 2003 Opening RAB and 2003-08 capex | F65: =F30/'L1 '!E$49*(1+'L1 '!E$54)^0.5 -> 0 | G65: =G30/'L1 '!F$49*(1+'L1 '!F$54)^0.5 -> 0 | H65: =H30/'L1 '!G$49*(1+'L1 '!G$54)^0.5 -> 0 | I65: =I30/'L1 '!H$49*(1+'L1 '!H$54)^0.5 -> 0 | J65: =J30/'L1 '!I$49*(1+'L1 '!I$54)^0.5 -> 0
B66: Asset22 | C66: =+Asset22 -> Equity Raising Cost 2013-2018 | F66: =F31/'L1 '!E$49*(1+'L1 '!E$54)^0.5 -> 0.3941329378 | G66: =G31/'L1 '!F$49*(1+'L1 '!F$54)^0.5 -> 0 | H66: =H31/'L1 '!G$49*(1+'L1 '!G$54)^0.5 -> 0 | I66: =I31/'L1 '!H$49*(1+'L1 '!H$54)^0.5 -> 0 | J66: =J31/'L1 '!I$49*(1+'L1 '!I$54)^0.5 -> 0
B67: Asset23 | C67: =+Asset23 -> Transmission Line Refit - insulators replacement 2013-18 | F67: =F32/'L1 '!E$49*(1+'L1 '!E$54)^0.5 -> 0 | G67: =G32/'L1 '!F$49*(1+'L1 '!F$54)^0.5 -> 0 | H67: =H32/'L1 '!G$49*(1+'L1 '!G$54)^0.5 -> 2.421246374 | I67: =I32/'L1 '!H$49*(1+'L1 '!H$54)^0.5 -> 10.86336827 | J67: =J32/'L1 '!I$49*(1+'L1 '!I$54)^0.5 -> 57.81023868
B68: Asset24 | C68: =+Asset24 -> Communications - Other (post 2018) | F68: 0 | G68: 0 | H68: 0 | I68: 0 | J68: 0
B69: Asset25 | C69: =+Asset25 -> Synchronous Condensers | F69: 0 | G69: 0 | H69: 0 | I69: 0 | J69: 0
B70: Asset26 | C70: =+Asset26 -> Asset26 - Not in Use | F70: 0 | G70: 0 | H70: 0 | I70: 0 | J70: 0
B71: Asset27 | C71: =+Asset27 -> Asset27 - Not in Use | F71: 0 | G71: 0 | H71: 0 | I71: 0 | J71: 0
B72: Asset28 | C72: =+Asset28 -> Asset28 - Not in Use | F72: 0 | G72: 0 | H72: 0 | I72: 0 | J72: 0
B73: Asset29 | C73: =+Asset29 -> Asset29 - Not in Use | F73: 0 | G73: 0 | H73: 0 | I73: 0 | J73: 0
B74: Asset30 | C74: =+Asset30 -> Asset30 - Not in Use | F74: 0 | G74: 0 | H74: 0 | I74: 0 | J74: 0
F75: =SUM(F45:F74) -> 223.6231206 | G75: 90.50033523 | H75: 125.914813 | I75: 170.2521945 | J75: 285.5176352 | K75: 0 | L75: 0 | M75: 0 | N75: 0 | O75: 0 | P75: 0 | Q75: 0 | R75: 0 | S75: 0 | T75: 0 | U75: 0 | V75: 0 | W75: 0 | X75: 0 | Y75: 0
J76: =SUM(F75:J75) -> 895.8080985 | O76: =SUM(K75:O75) -> 0 | T76: =SUM(P75:T75) -> 0 | Y76: =SUM(U75:Y75) -> 0
C77: Commissioned ($m Real) net of 1/2 WACC | F77: =F75/(1+'L1 '!E$54)^0.5 -> 215.2316111 | G77: =G75/(1+'L1 '!F$54)^0.5 -> 87.78989855 | H77: =H75/(1+'L1 '!G$54)^0.5 -> 122.1542274 | I77: =I75/(1+'L1 '!H$54)^0.5 -> 164.5071922 | J77: =J75/(1+'L1 '!I$54)^0.5 -> 275.3789156
C79: Other RAB Adjustments - end of final year of RCP | E79: Per RFM: | F79: Difference Between Actual and Forecast Net Capex | G79: Return on Difference - Net Capex | I79: ORAB True up Adjustment ($2012-13) | J79: WIP Adjustment $2013 | AE79: Accelerated Depn ($2017-18) | AF79: ORAB Accel dep Adjustment ($2012-13)
B80: Asset1 | C80: =+Asset1 -> Commercial Buildings | F80: 0.4201727656 | G80: 0.205195119 | I80: =SUM(F80:G80)/'R1-RABLife '!$G$40 -> 0.5653778432 | O80: =SUM(K80:N80) -> 0 | T80: =SUM(P80:S80) -> 0 | Y80: =SUM(U80:X80) -> 0 | AE80: 0 | AF80: =AE80/'R1-RABLife '!$G$40 -> 0
B81: Asset2 | C81: =+Asset2 -> Communications - Civil | F81: 1.630806017 | G81: 0.110581364 | I81: =SUM(F81:G81)/'R1-RABLife '!$G$40 -> 1.574340266 | O81: =SUM(K81:N81) -> 0 | T81: =SUM(P81:S81) -> 0 | Y81: =SUM(U81:X81) -> 0 | AE81: -1.005124374 | AF81: =AE81/'R1-RABLife '!$G$40 -> -0.9087052036
B82: Asset3 | C82: =+Asset3 -> Communications - Other | F82: -13.15750233 | G82: -0.2009242368 | I82: =SUM(F82:G82)/'R1-RABLife '!$G$40 -> -12.07698474 | O82: 0 | T82: 0 | Y82: 0 | AE82: -5.217713141 | AF82: =AE82/'R1-RABLife '!$G$40 -> -4.717190433
B83: Asset4 | C83: =+Asset4 -> Computers, software, and office machines | F83: -12.52633656 | G83: -1.112736993 | I83: =SUM(F83:G83)/'R1-RABLife '!$G$40 -> -12.33070994 | O83: 0 | T83: 0 | Y83: 0 | AE83: 0 | AF83: =AE83/'R1-RABLife '!$G$40 -> 0
B84: Asset5 | C84: =+Asset5 -> Easement | F84: -24.89379365 | G84: -3.797026557 | I84: =SUM(F84:G84)/'R1-RABLife '!$G$40 -> -25.93857863 | O84: 0 | T84: 0 | Y84: 0 | AE84: 0 | AF84: =AE84/'R1-RABLife '!$G$40 -> 0
B85: Asset6 | C85: =+Asset6 -> Land | F85: 20.66154891 | G85: 2.038305488 | I85: =SUM(F85:G85)/'R1-RABLife '!$G$40 -> 20.52231181 | O85: 0 | T85: 0 | Y85: 0 | AE85: 0 | AF85: =AE85/'R1-RABLife '!$G$40 -> 0
B86: Asset7 | C86: =+Asset7 -> Network Switching Centres | F86: 3.493373284 | G86: 0.06113268745 | I86: =SUM(F86:G86)/'R1-RABLife '!$G$40 -> 3.213530738 | O86: 0 | T86: 0 | Y86: 0 | AE86: 0 | AF86: =AE86/'R1-RABLife '!$G$40 -> 0
B87: Asset8 | C87: =+Asset8 -> Office furniture, movable plant, and misc | F87: -6.280068313 | G87: -0.4198576182 | I87: =SUM(F87:G87)/'R1-RABLife '!$G$40 -> -6.057218104 | O87: 0 | T87: 0 | Y87: 0 | AE87: 0 | AF87: =AE87/'R1-RABLife '!$G$40 -> 0
B88: Asset9 | C88: =+Asset9 -> Refurbishment | F88: 0 | G88: -0.001180880755 | I88: =SUM(F88:G88)/'R1-RABLife '!$G$40 -> -0.001067601697 | O88: 0 | T88: 0 | Y88: 0 | AE88: 0 | AF88: =AE88/'R1-RABLife '!$G$40 -> 0
B89: Asset10 | C89: =+Asset10 -> Substation Primary Plant | F89: 7.433244684 | G89: 2.503425983 | I89: =SUM(F89:G89)/'R1-RABLife '!$G$40 -> 8.983469679 | O89: 0 | T89: 0 | Y89: 0 | AE89: -7.648344414 | AF89: =AE89/'R1-RABLife '!$G$40 -> -6.914657077
B90: Asset11 | C90: =+Asset11 -> Substation Demountable Buildings | F90: -1.283633282 | G90: 0.1124543999 | I90: =SUM(F90:G90)/'R1-RABLife '!$G$40 -> -1.0588305 | O90: 0 | T90: 0 | Y90: 0 | AE90: 0 | AF90: =AE90/'R1-RABLife '!$G$40 -> 0
B91: Asset12 | C91: =+Asset12 -> Substation Establishment | F91: 33.95195284 | G91: 0.328957976 | I91: =SUM(F91:G91)/'R1-RABLife '!$G$40 -> 30.99242525 | O91: 0 | T91: 0 | Y91: 0 | AE91: -4.874858912 | AF91: =AE91/'R1-RABLife '!$G$40 -> -4.407225387
B92: Asset13 | C92: =+Asset13 -> Substation Fences | F92: -18.67146494 | G92: 0.1118037203 | I92: =SUM(F92:G92)/'R1-RABLife '!$G$40 -> -16.77927743 | O92: 0 | T92: 0 | Y92: 0 | AE92: -0.7158020337 | AF92: =AE92/'R1-RABLife '!$G$40 -> -0.6471368612
B93: Asset14 | C93: =+Asset14 -> Substation Secondary Systems - Electromechanical | F93: 0 | G93: 0 | I93: =SUM(F93:G93)/'R1-RABLife '!$G$40 -> 0 | O93: 0 | T93: 0 | Y93: 0 | AE93: -2.066659628 | AF93: =AE93/'R1-RABLife '!$G$40 -> -1.868409926
B94: Asset15 | C94: =+Asset15 -> Substation Secondary Systems - Electronic | F94: -5.708999559 | G94: 0.3981386712 | I94: =SUM(F94:G94)/'R1-RABLife '!$G$40 -> -4.801402739 | O94: 0 | T94: 0 | Y94: 0 | AE94: -1.356967631 | AF94: =AE94/'R1-RABLife '!$G$40 -> -1.22679698
B95: Asset16 | C95: =+Asset16 -> Transmission lines - Overhead | F95: 15.70102466 | G95: 0.1394094918 | I95: =SUM(F95:G95)/'R1-RABLife '!$G$40 -> 14.32089929 | O95: 0 | T95: 0 | Y95: 0 | AE95: -2.490511347 | AF95: =AE95/'R1-RABLife '!$G$40 -> -2.251602566
B96: Asset17 | C96: =+Asset17 -> Transmission lines - Underground | F96: -0.1805798024 | G96: -0.0972179084 | I96: =SUM(F96:G96)/'R1-RABLife '!$G$40 -> -0.2511492426 | O96: 0 | T96: 0 | Y96: 0 | AE96: 0 | AF96: =AE96/'R1-RABLife '!$G$40 -> 0
B97: Asset18 | C97: =+Asset18 -> Capital Work in Progress | F97: 0 | G97: 0 | I97: =SUM(F97:G97)/'R1-RABLife '!$G$40 -> 0 | O97: 0 | T97: 0 | Y97: 0 | AE97: 0 | AF97: =AE97/'R1-RABLife '!$G$40 -> 0
B98: Asset19 | C98: =+Asset19 -> Accelerated Depreciation | F98: 0 | G98: 0 | I98: =SUM(F98:G98)/'R1-RABLife '!$G$40 -> 0 | O98: 0 | T98: 0 | Y98: 0 | AE98: 25.37598148 | AF98: =AE98/'R1-RABLife '!$G$40 -> 22.94172443
B99: Asset20 | C99: =+Asset20 -> Refurbishment Projects 2008-2013 | F99: -12.56653578 | G99: -0.668960404 | I99: =SUM(F99:G99)/'R1-RABLife '!$G$40 -> -11.96584677 | O99: 0 | T99: 0 | Y99: 0 | AE99: 0 | AF99: =AE99/'R1-RABLife '!$G$40 -> 0
B100: Asset21 | C100: =+Asset21 -> Equity Raising Cost - 2003 Opening RAB and 2003-08 capex | F100: 0 | G100: 0 | I100: =SUM(F100:G100)/'R1-RABLife '!$G$40 -> 0 | O100: 0 | T100: 0 | Y100: 0 | AE100: 0 | AF100: =AE100/'R1-RABLife '!$G$40 -> 0
B101: Asset22 | C101: =+Asset22 -> Equity Raising Cost 2013-2018 | F101: 0 | G101: 0 | I101: =SUM(F101:G101)/'R1-RABLife '!$G$40 -> 0 | O101: 0 | T101: 0 | Y101: 0 | AE101: 0 | AF101: =AE101/'R1-RABLife '!$G$40 -> 0
B102: Asset23 | C102: =+Asset23 -> Transmission Line Refit - insulators replacement 2013-18 | F102: 0 | G102: 0 | I102: =SUM(F102:G102)/'R1-RABLife '!$G$40 -> 0 | O102: 0 | T102: 0 | Y102: 0 | AE102: 0 | AF102: =AE102/'R1-RABLife '!$G$40 -> 0
B103: Asset24 | C103: =+Asset24 -> Communications - Other (post 2018) | F103: 0 | G103: 0 | I103: =SUM(F103:G103)/'R1-RABLife '!$G$40 -> 0 | O103: 0 | T103: 0 | Y103: 0 | AF103: =AE103/'R1-RABLife '!$G$40 -> 0
B104: Asset25 | C104: =+Asset25 -> Synchronous Condensers | F104: 0 | G104: 0 | I104: =SUM(F104:G104)/'R1-RABLife '!$G$40 -> 0 | O104: 0 | T104: 0 | Y104: 0 | AF104: =AE104/'R1-RABLife '!$G$40 -> 0
B105: Asset26 | C105: =+Asset26 -> Asset26 - Not in Use | F105: 0 | G105: 0 | I105: =SUM(F105:G105)/'R1-RABLife '!$G$40 -> 0 | O105: 0 | T105: 0 | Y105: 0 | AF105: =AE105/'R1-RABLife '!$G$40 -> 0
B106: Asset27 | C106: =+Asset27 -> Asset27 - Not in Use | F106: 0 | G106: 0 | I106: =SUM(F106:G106)/'R1-RABLife '!$G$40 -> 0 | O106: 0 | T106: 0 | Y106: 0 | AF106: =AE106/'R1-RABLife '!$G$40 -> 0
B107: Asset28 | C107: =+Asset28 -> Asset28 - Not in Use | F107: 0 | G107: 0 | I107: =SUM(F107:G107)/'R1-RABLife '!$G$40 -> 0 | O107: 0 | T107: 0 | Y107: 0 | AF107: =AE107/'R1-RABLife '!$G$40 -> 0
B108: Asset29 | C108: =+Asset29 -> Asset29 - Not in Use | F108: 0 | G108: 0 | I108: =SUM(F108:G108)/'R1-RABLife '!$G$40 -> 0 | O108: 0 | T108: 0 | Y108: 0 | AF108: =AE108/'R1-RABLife '!$G$40 -> 0
B109: Asset30 | C109: =+Asset30 -> Asset30 - Not in Use | F109: 0 | G109: 0 | I109: =SUM(F109:G109)/'R1-RABLife '!$G$40 -> 0 | O109: 0 | T109: 0 | Y109: 0 | AF109: =AE109/'R1-RABLife '!$G$40 -> 0
F110: =SUM(F80:F109) -> -11.97679105 | G110: =SUM(G80:G109) -> -0.2884996971 | I110: =SUM(I80:I109) -> -11.08871082 | J110: =SUM(J80:J109) -> 0 | K110: 0 | L110: 0 | M110: 0 | N110: 0 | O110: 0 | P110: 0 | Q110: 0 | R110: 0 | S110: 0 | T110: 0 | U110: 0 | V110: 0 | W110: 0 | X110: 0 | Y110: 0 | AE110: =SUM(AE80:AE109) -> 0 | AF110: =SUM(AF80:AF109) -> 0
O111: =SUM(K110:O110) -> 0 | T111: =SUM(P110:T110) -> 0 | Y111: =SUM(U110:Y110) -> 0
C113: Other TAB Adjustments - end of final year of RCP | H113: Reallocation of 2014-15 interim WIP balance | J113: Total closing 2014/15 Adjustment $2015
B114: Asset1 | C114: =+Asset1 -> Commercial Buildings | J114: =SUM(F114:I114) -> 0 | O114: =SUM(K114:N114) -> 0 | T114: =SUM(P114:S114) -> 0 | Y114: =SUM(U114:X114) -> 0
B115: Asset2 | C115: =+Asset2 -> Communications - Civil | J115: =SUM(F115:I115) -> 0 | O115: =SUM(K115:N115) -> 0 | T115: =SUM(P115:S115) -> 0 | Y115: =SUM(U115:X115) -> 0
B116: Asset3 | C116: =+Asset3 -> Communications - Other | J116: 0 | O116: 0 | T116: 0 | Y116: 0
B117: Asset4 | C117: =+Asset4 -> Computers, software, and office machines | J117: 0 | O117: 0 | T117: 0 | Y117: 0
B118: Asset5 | C118: =+Asset5 -> Easement | J118: 0 | O118: 0 | T118: 0 | Y118: 0
B119: Asset6 | C119: =+Asset6 -> Land | J119: 0 | O119: 0 | T119: 0 | Y119: 0
B120: Asset7 | C120: =+Asset7 -> Network Switching Centres | J120: 0 | O120: 0 | T120: 0 | Y120: 0
B121: Asset8 | C121: =+Asset8 -> Office furniture, movable plant, and misc | J121: 0 | O121: 0 | T121: 0 | Y121: 0
B122: Asset9 | C122: =+Asset9 -> Refurbishment | J122: 0 | O122: 0 | T122: 0 | Y122: 0
B123: Asset10 | C123: =+Asset10 -> Substation Primary Plant | J123: 0 | O123: 0 | T123: 0 | Y123: 0
B124: Asset11 | C124: =+Asset11 -> Substation Demountable Buildings | J124: 0 | O124: 0 | T124: 0 | Y124: 0
B125: Asset12 | C125: =+Asset12 -> Substation Establishment | J125: 0 | O125: 0 | T125: 0 | Y125: 0
B126: Asset13 | C126: =+Asset13 -> Substation Fences | J126: 0 | O126: 0 | T126: 0 | Y126: 0
B127: Asset14 | C127: =+Asset14 -> Substation Secondary Systems - Electromechanical | J127: 0 | O127: 0 | T127: 0 | Y127: 0
B128: Asset15 | C128: =+Asset15 -> Substation Secondary Systems - Electronic | J128: 0 | O128: 0 | T128: 0 | Y128: 0
B129: Asset16 | C129: =+Asset16 -> Transmission lines - Overhead | J129: 0 | O129: 0 | T129: 0 | Y129: 0
B130: Asset17 | C130: =+Asset17 -> Transmission lines - Underground | J130: 0 | O130: 0 | T130: 0 | Y130: 0
B131: Asset18 | C131: =+Asset18 -> Capital Work in Progress | J131: 0 | O131: 0 | T131: 0 | Y131: 0
B132: Asset19 | C132: =+Asset19 -> Accelerated Depreciation | J132: 0 | O132: 0 | T132: 0 | Y132: 0
B133: Asset20 | C133: =+Asset20 -> Refurbishment Projects 2008-2013 | J133: 0 | O133: 0 | T133: 0 | Y133: 0
B134: Asset21 | C134: =+Asset21 -> Equity Raising Cost - 2003 Opening RAB and 2003-08 capex | J134: 0 | O134: 0 | T134: 0 | Y134: 0
B135: Asset22 | C135: =+Asset22 -> Equity Raising Cost 2013-2018 | J135: 0 | O135: 0 | T135: 0 | Y135: 0
B136: Asset23 | C136: =+Asset23 -> Transmission Line Refit - insulators replacement 2013-18 | J136: 0 | O136: 0 | T136: 0 | Y136: 0
B137: Asset24 | C137: =+Asset24 -> Communications - Other (post 2018) | J137: 0 | O137: 0 | T137: 0 | Y137: 0
B138: Asset25 | C138: =+Asset25 -> Synchronous Condensers | J138: 0 | O138: 0 | T138: 0 | Y138: 0
B139: Asset26 | C139: =+Asset26 -> Asset26 - Not in Use | J139: 0 | O139: 0 | T139: 0 | Y139: 0
B140: Asset27 | C140: =+Asset27 -> Asset27 - Not in Use | J140: 0 | O140: 0 | T140: 0 | Y140: 0
B141: Asset28 | C141: =+Asset28 -> Asset28 - Not in Use | J141: 0 | O141: 0 | T141: 0 | Y141: 0
B142: Asset29 | C142: =+Asset29 -> Asset29 - Not in Use | J142: 0 | O142: 0 | T142: 0 | Y142: 0
B143: Asset30 | C143: =+Asset30 -> Asset30 - Not in Use | J143: 0 | O143: 0 | T143: 0 | Y143: 0
F144: =SUM(F114:F143) -> 0 | G144: =SUM(G114:G143) -> 0 | H144: =SUM(H114:H143) -> 0 | I144: 0 | J144: =SUM(J114:J143) -> 0 | K144: =SUM(K114:K143) -> 0 | L144: 0 | M144: 0 | N144: 0 | O144: 0 | P144: 0 | Q144: 0 | R144: 0 | S144: 0 | T144: 0 | U144: 0 | V144: 0 | W144: 0 | X144: 0 | Y144: 0
O145: =SUM(K144:O144) -> 0 | T145: =SUM(P144:T144) -> 0 | Y145: =SUM(U144:Y144) -> 0
J147: ='PTRM input'!K75 -> 105.0159835 | K147: ='PTRM input'!L75 -> 111.5986617 | L147: ='PTRM input'!M75 -> 108.6276593 | M147: ='PTRM input'!N75 -> 105.1234246 | N147: ='PTRM input'!O75 -> 94.91101567

Sheet Section2
A1: =RIGHT(CELL("filename",A1),LEN(CELL("filename",A1))-FIND("]",CELL("filename",A1))) -> Section2
B3: Section | C3: =+Section1!C3+1 -> 2
B5: Workings

Sheet W1-Depreciation
A1: =RIGHT(CELL("filename",A2),LEN(CELL("filename",A2))-FIND("]",CELL("filename",A2))) -> W1-Depreciation | K1: =MAX(B17-5,5) -> 18.26612118
B2: Regulatory Straight Line Depreciation
F3: 1 | G3: =F3+1 -> 2 | H3: 3 | I3: 4 | J3: 5 | K3: 6 | L3: 7 | M3: 8 | N3: 9 | O3: 10 | P3: 11 | Q3: 12 | R3: 13 | S3: 14 | T3: 15 | U3: 16 | V3: 17 | W3: 18 | X3: 19 | Y3: 20 | Z3: =Y3+1 -> 21 | AA3: =Z3+1 -> 22 | AB3: =AA3+1 -> 23 | AC3: =AB3+1 -> 24 | AD3: =AC3+1 -> 25 | AE3: =AD3+1 -> 26 | AF3: =AE3+1 -> 27 | AG3: =AF3+1 -> 28 | AH3: =AG3+1 -> 29 | AI3: =AH3+1 -> 30 | AJ3: =AI3+1 -> 31 | AK3: =AJ3+1 -> 32 | AL3: =AK3+1 -> 33 | AM3: =AL3+1 -> 34 | AN3: =AM3+1 -> 35 | AO3: =AN3+1 -> 36 | AP3: =AO3+1 -> 37 | AQ3: =AP3+1 -> 38 | AR3: =AQ3+1 -> 39 | AS3: =AR3+1 -> 40 | AT3: =AS3+1 -> 41 | AU3: =AT3+1 -> 42 | AV3: =AU3+1 -> 43 | AW3: =AV3+1 -> 44 | AX3: =AW3+1 -> 45 | AY3: =AX3+1 -> 46 | AZ3: =AY3+1 -> 47 | BA3: =AZ3+1 -> 48 | BB3: =BA3+1 -> 49 | BC3: =BB3+1 -> 50 | BD3: =BC3+1 -> 51 | BE3: =BD3+1 -> 52 | BF3: =BE3+1 -> 53 | BG3: =BF3+1 -> 54 | BH3: =BG3+1 -> 55 | BI3: =BH3+1 -> 56 | BJ3: =BI3+1 -> 57 | BK3: =BJ3+1 -> 58 | BL3: =BK3+1 -> 59 | BM3: =BL3+1 -> 60 | BN3: 61
B4: Year | F4: ='L1 '!E20 -> 2013-14 | G4: =CONCATENATE(LEFT(F4, 4)+1 &"-" &IF(F4>"2007-08",,"0") &RIGHT(F4,2)+1) -> 2014-15 | H4: =CONCATENATE(LEFT(G4, 4)+1 &"-" &IF(G4>"2007-08",,"0") &RIGHT(G4,2)+1) -> 2015-16 | I4: =CONCATENATE(LEFT(H4, 4)+1 &"-" &IF(H4>"2007-08",,"0") &RIGHT(H4,2)+1) -> 2016-17 | J4: =CONCATENATE(LEFT(I4, 4)+1 &"-" &IF(I4>"2007-08",,"0") &RIGHT(I4,2)+1) -> 2017-18 | K4: =CONCATENATE(LEFT(J4, 4)+1 &"-" &IF(J4>"2007-08",,"0") &RIGHT(J4,2)+1) -> 2018-19 | L4: =CONCATENATE(LEFT(K4, 4)+1 &"-" &IF(K4>"2007-08",,"0") &RIGHT(K4,2)+1) -> 2019-20 | M4: =CONCATENATE(LEFT(L4, 4)+1 &"-" &IF(L4>"2007-08",,"0") &RIGHT(L4,2)+1) -> 2020-21 | N4: =CONCATENATE(LEFT(M4, 4)+1 &"-" &IF(M4>"2007-08",,"0") &RIGHT(M4,2)+1) -> 2021-22 | O4: =CONCATENATE(LEFT(N4, 4)+1 &"-" &IF(N4>"2007-08",,"0") &RIGHT(N4,2)+1) -> 2022-23 | P4: =CONCATENATE(LEFT(O4, 4)+1 &"-" &IF(O4>"2007-08",,"0") &RIGHT(O4,2)+1) -> 2023-24 | Q4: =CONCATENATE(LEFT(P4, 4)+1 &"-" &IF(P4>"2007-08",,"0") &RIGHT(P4,2)+1) -> 2024-25 | R4: =CONCATENATE(LEFT(Q4, 4)+1 &"-" &IF(Q4>"2007-08",,"0") &RIGHT(Q4,2)+1) -> 2025-26 | S4: =CONCATENATE(LEFT(R4, 4)+1 &"-" &IF(R4>"2007-08",,"0") &RIGHT(R4,2)+1) -> 2026-27 | T4: =CONCATENATE(LEFT(S4, 4)+1 &"-" &IF(S4>"2007-08",,"0") &RIGHT(S4,2)+1) -> 2027-28 | U4: =CONCATENATE(LEFT(T4, 4)+1 &"-" &IF(T4>"2007-08",,"0") &RIGHT(T4,2)+1) -> 2028-29 | V4: =CONCATENATE(LEFT(U4, 4)+1 &"-" &IF(U4>"2007-08",,"0") &RIGHT(U4,2)+1) -> 2029-30 | W4: =CONCATENATE(LEFT(V4, 4)+1 &"-" &IF(V4>"2007-08",,"0") &RIGHT(V4,2)+1) -> 2030-31 | X4: =CONCATENATE(LEFT(W4, 4)+1 &"-" &IF(W4>"2007-08",,"0") &RIGHT(W4,2)+1) -> 2031-32 | Y4: =CONCATENATE(LEFT(X4, 4)+1 &"-" &IF(X4>"2007-08",,"0") &RIGHT(X4,2)+1) -> 2032-33 | Z4: =CONCATENATE(LEFT(Y4, 4)+1 &"-" &IF(Y4>"2007-08",,"0") &RIGHT(Y4,2)+1) -> 2033-34 | AA4: =CONCATENATE(LEFT(Z4, 4)+1 &"-" &IF(Z4>"2007-08",,"0") &RIGHT(Z4,2)+1) -> 2034-35 | AB4: =CONCATENATE(LEFT(AA4, 4)+1 &"-" &IF(AA4>"2007-08",,"0") &RIGHT(AA4,2)+1) -> 2035-36 | AC4: =CONCATENATE(LEFT(AB4, 4)+1 &"-" &IF(AB4>"2007-08",,"0") &RIGHT(AB4,2)+1) -> 2036-37 | AD4: =CONCATENATE(LEFT(AC4, 4)+1 &"-" &IF(AC4>"2007-08",,"0") &RIGHT(AC4,2)+1) -> 2037-38 | AE4: =CONCATENATE(LEFT(AD4, 4)+1 &"-" &IF(AD4>"2007-08",,"0") &RIGHT(AD4,2)+1) -> 2038-39 | AF4: =CONCATENATE(LEFT(AE4, 4)+1 &"-" &IF(AE4>"2007-08",,"0") &RIGHT(AE4,2)+1) -> 2039-40 | AG4: =CONCATENATE(LEFT(AF4, 4)+1 &"-" &IF(AF4>"2007-08",,"0") &RIGHT(AF4,2)+1) -> 2040-41 | AH4: =CONCATENATE(LEFT(AG4, 4)+1 &"-" &IF(AG4>"2007-08",,"0") &RIGHT(AG4,2)+1) -> 2041-42 | AI4: =CONCATENATE(LEFT(AH4, 4)+1 &"-" &IF(AH4>"2007-08",,"0") &RIGHT(AH4,2)+1) -> 2042-43 | AJ4: =CONCATENATE(LEFT(AI4, 4)+1 &"-" &IF(AI4>"2007-08",,"0") &RIGHT(AI4,2)+1) -> 2043-44 | AK4: =CONCATENATE(LEFT(AJ4, 4)+1 &"-" &IF(AJ4>"2007-08",,"0") &RIGHT(AJ4,2)+1) -> 2044-45 | AL4: =CONCATENATE(LEFT(AK4, 4)+1 &"-" &IF(AK4>"2007-08",,"0") &RIGHT(AK4,2)+1) -> 2045-46 | AM4: =CONCATENATE(LEFT(AL4, 4)+1 &"-" &IF(AL4>"2007-08",,"0") &RIGHT(AL4,2)+1) -> 2046-47 | AN4: =CONCATENATE(LEFT(AM4, 4)+1 &"-" &IF(AM4>"2007-08",,"0") &RIGHT(AM4,2)+1) -> 2047-48 | AO4: =CONCATENATE(LEFT(AN4, 4)+1 &"-" &IF(AN4>"2007-08",,"0") &RIGHT(AN4,2)+1) -> 2048-49 | AP4: =CONCATENATE(LEFT(AO4, 4)+1 &"-" &IF(AO4>"2007-08",,"0") &RIGHT(AO4,2)+1) -> 2049-50 | AQ4: =CONCATENATE(LEFT(AP4, 4)+1 &"-" &IF(AP4>"2007-08",,"0") &RIGHT(AP4,2)+1) -> 2050-51 | AR4: =CONCATENATE(LEFT(AQ4, 4)+1 &"-" &IF(AQ4>"2007-08",,"0") &RIGHT(AQ4,2)+1) -> 2051-52 | AS4: =CONCATENATE(LEFT(AR4, 4)+1 &"-" &IF(AR4>"2007-08",,"0") &RIGHT(AR4,2)+1) -> 2052-53 | AT4: =CONCATENATE(LEFT(AS4, 4)+1 &"-" &IF(AS4>"2007-08",,"0") &RIGHT(AS4,2)+1) -> 2053-54 | AU4: =CONCATENATE(LEFT(AT4, 4)+1 &"-" &IF(AT4>"2007-08",,"0") &RIGHT(AT4,2)+1) -> 2054-55 | AV4: =CONCATENATE(LEFT(AU4, 4)+1 &"-" &IF(AU4>"2007-08",,"0") &RIGHT(AU4,2)+1) -> 2055-56 | AW4: =CONCATENATE(LEFT(AV4, 4)+1 &"-" &IF(AV4>"2007-08",,"0") &RIGHT(AV4,2)+1) -> 2056-57 | AX4: =CONCATENATE(LEFT(AW4, 4)+1 &"-" &IF(AW4>"2007-08",,"0") &RIGHT(AW4,2)+1) -> 2057-58 | AY4: =CONCATENATE(LEFT(AX4, 4)+1 &"-" &IF(AX4>"2007-08",,"0") &RIGHT(AX4,2)+1) -> 2058-59 | AZ4: =CONCATENATE(LEFT(AY4, 4)+1 &"-" &IF(AY4>"2007-08",,"0") &RIGHT(AY4,2)+1) -> 2059-60 | BA4: =CONCATENATE(LEFT(AZ4, 4)+1 &"-" &IF(AZ4>"2007-08",,"0") &RIGHT(AZ4,2)+1) -> 2060-61 | BB4: =CONCATENATE(LEFT(BA4, 4)+1 &"-" &IF(BA4>"2007-08",,"0") &RIGHT(BA4,2)+1) -> 2061-62 | BC4: =CONCATENATE(LEFT(BB4, 4)+1 &"-" &IF(BB4>"2007-08",,"0") &RIGHT(BB4,2)+1) -> 2062-63 | BD4: =CONCATENATE(LEFT(BC4, 4)+1 &"-" &IF(BC4>"2007-08",,"0") &RIGHT(BC4,2)+1) -> 2063-64 | BE4: =CONCATENATE(LEFT(BD4, 4)+1 &"-" &IF(BD4>"2007-08",,"0") &RIGHT(BD4,2)+1) -> 2064-65 | BF4: =CONCATENATE(LEFT(BE4, 4)+1 &"-" &IF(BE4>"2007-08",,"0") &RIGHT(BE4,2)+1) -> 2065-66 | BG4: =CONCATENATE(LEFT(BF4, 4)+1 &"-" &IF(BF4>"2007-08",,"0") &RIGHT(BF4,2)+1) -> 2066-67 | BH4: =CONCATENATE(LEFT(BG4, 4)+1 &"-" &IF(BG4>"2007-08",,"0") &RIGHT(BG4,2)+1) -> 2067-68 | BI4: =CONCATENATE(LEFT(BH4, 4)+1 &"-" &IF(BH4>"2007-08",,"0") &RIGHT(BH4,2)+1) -> 2068-69 | BJ4: =CONCATENATE(LEFT(BI4, 4)+1 &"-" &IF(BI4>"2007-08",,"0") &RIGHT(BI4,2)+1) -> 2069-70 | BK4: =CONCATENATE(LEFT(BJ4, 4)+1 &"-" &IF(BJ4>"2007-08",,"0") &RIGHT(BJ4,2)+1) -> 2070-71 | BL4: =CONCATENATE(LEFT(BK4, 4)+1 &"-" &IF(BK4>"2007-08",,"0") &RIGHT(BK4,2)+1) -> 2071-72 | BM4: =CONCATENATE(LEFT(BL4, 4)+1 &"-" &IF(BL4>"2007-08",,"0") &RIGHT(BL4,2)+1) -> 2072-73 | BN4: 2073-74
B6: Real Asset Values
B8: Real Straight-line Depreciation | F8: =SUMIFS(F$10:F$629,$E$10:$E$629,"Total") -> 76.95855786 | G8: 86.81689285 | H8: 93.21249842 | I8: 95.38072601 | J8: =SUMIFS(J$10:J$629,$E$10:$E$629,"Total") -> 94.00923114 | K8: =SUMIFS(K$10:K$629,$E$10:$E$629,"Total") -> 94.96769669 | L8: =SUMIFS(L$10:L$629,$E$10:$E$629,"Total") -> 100.9340876 | M8: 98.2445817 | N8: 95.07230502 | O8: 85.82858517 | P8: 82.43950079 | Q8: 79.82487093 | R8: 76.13568291 | S8: 76.15912251 | T8: 71.48596976 | U8: 71.44978645 | V8: 68.16564559 | W8: 62.18926862 | X8: 58.2797239 | Y8: 55.82030093 | Z8: 52.73476855 | AA8: 52.73476855 | AB8: 52.73476855 | AC8: 52.37247242 | AD8: 52.24109559 | AE8: 52.24109559 | AF8: 52.24109559 | AG8: 52.24109559 | AH8: 52.24109559 | AI8: 52.24057427 | AJ8: 40.9309654 | AK8: 37.83954918 | AL8: 35.68397508 | AM8: 17.12734421 | AN8: 16.74772464 | AO8: 16.5380923 | AP8: 14.92948396 | AQ8: 13.48474864 | AR8: 12.93635305 | AS8: 12.92439249 | AT8: 12.91250233 | AU8: 12.9080274 | AV8: 12.90759452 | AW8: 12.90759452 | AX8: 12.81050178 | AY8: 12.04949572 | AZ8: 10.45481433 | BA8: 10.06973059 | BB8: 9.230471654 | BC8: 7.952123305 | BD8: 6.458599095 | BE8: 6.458599095 | BF8: 6.458599095 | BG8: 5.900777776 | BH8: 4.945608287 | BI8: 4.007854991 | BJ8: 2.799986018 | BK8: 2.330401664 | BL8: 1.433110849 | BM8: 0.576134276 | BN8: -3.352873534e-14
F9: F14 | G9: F15 | H9: F16 | I9: F17 | J9: F18 | K9: F19 | L9: F20 | M9: F21 | N9: F22 | O9: F23 | P9: F24 | Q9: F25 | R9: F26 | S9: F27 | T9: F28 | U9: F29 | V9: F30 | W9: F31 | X9: F32 | Y9: F33 | Z9: F34 | AA9: F35 | AB9: F36 | AC9: F37 | AD9: F38 | AE9: F39 | AF9: F40 | AG9: F41 | AH9: F42 | AI9: F43 | AJ9: F44 | AK9: F45 | AL9: F46 | AM9: F47 | AN9: F48 | AO9: F49 | AP9: F50 | AQ9: F51 | AR9: F52 | AS9: F53 | AT9: F54 | AU9: F55 | AV9: F56 | AW9: F57 | AX9: F58 | AY9: F59 | AZ9: F60 | BA9: F61 | BB9: F62 | BC9: F63 | BD9: F64 | BE9: F65 | BF9: F66 | BG9: F67 | BH9: F68 | BI9: F69 | BJ9: F70 | BK9: F71 | BL9: F72 | BM9: F73 | BN9: F74
A10: 1 | B10: =INDIRECT(CONCATENATE("Asset",A10)) -> Commercial Buildings | E10: Year
C11: =SUM(C15:C618) -> 895.8080985 | E11: Initial Asset Base | F11: =IF($B17="n/a","n/a",IF(F$3>$B17,+$B19,+$B19/$B17)) -> 0.4936729601 | G11: =IF($B17="n/a","n/a",IF(G$3>$B17,+$B19-SUM($F11:F11),+$B19/$B17)) -> 0.4936729601 | H11: =IF($B17="n/a","n/a",IF(H$3>$B17,+$B19-SUM($F11:G11),+$B19/$B17)) -> 0.4936729601 | I11: =IF($B17="n/a","n/a",IF(I$3>$B17,+$B19-SUM($F11:H11),+$B19/$B17)) -> 0.4936729601 | J11: =IF($B17="n/a","n/a",IF(J$3>$B17,+$B19-SUM($F11:I11),+$B19/$B17)) -> 0.4936729601 | K11: =IF($B17="n/a","n/a",IF(K$3>$B17,+$B19-SUM($F11:J11),+$B19/$B17)) -> 0.4936729601 | L11: =IF($B17="n/a","n/a",IF(L$3>$B17,+$B19-SUM($F11:K11),+$B19/$B17)) -> 0.4936729601 | M11: =IF($B17="n/a","n/a",IF(M$3>$B17,+$B19-SUM($F11:L11),+$B19/$B17)) -> 0.4936729601 | N11: =IF($B17="n/a","n/a",IF(N$3>$B17,+$B19-SUM($F11:M11),+$B19/$B17)) -> 0.4936729601 | O11: =IF($B17="n/a","n/a",IF(O$3>$B17,+$B19-SUM($F11:N11),+$B19/$B17)) -> 0.4936729601 | P11: =IF($B17="n/a","n/a",IF(P$3>$B17,+$B19-SUM($F11:O11),+$B19/$B17)) -> 0.4936729601 | Q11: =IF($B17="n/a","n/a",IF(Q$3>$B17,+$B19-SUM($F11:P11),+$B19/$B17)) -> 0.4936729601 | R11: =IF($B17="n/a","n/a",IF(R$3>$B17,+$B19-SUM($F11:Q11),+$B19/$B17)) -> 0.4936729601 | S11: =IF($B17="n/a","n/a",IF(S$3>$B17,+$B19-SUM($F11:R11),+$B19/$B17)) -> 0.4936729601 | T11: =IF($B17="n/a","n/a",IF(T$3>$B17,+$B19-SUM($F11:S11),+$B19/$B17)) -> 0.4936729601 | U11: =IF($B17="n/a","n/a",IF(U$3>$B17,+$B19-SUM($F11:T11),+$B19/$B17)) -> 0.4936729601 | V11: =IF($B17="n/a","n/a",IF(V$3>$B17,+$B19-SUM($F11:U11),+$B19/$B17)) -> 0.4936729601 | W11: =IF($B17="n/a","n/a",IF(W$3>$B17,+$B19-SUM($F11:V11),+$B19/$B17)) -> 0.4936729601 | X11: =IF($B17="n/a","n/a",IF(X$3>$B17,+$B19-SUM($F11:W11),+$B19/$B17)) -> 0.4936729601 | Y11: =IF($B17="n/a","n/a",IF(Y$3>$B17,+$B19-SUM($F11:X11),+$B19/$B17)) -> 0.4936729601 | Z11: =IF($B17="n/a","n/a",IF(Z$3>$B17,+$B19-SUM($F11:Y11),+$B19/$B17)) -> 0.4936729601 | AA11: =IF($B17="n/a","n/a",IF(AA$3>$B17,+$B19-SUM($F11:Z11),+$B19/$B17)) -> 0.4936729601 | AB11: =IF($B17="n/a","n/a",IF(AB$3>$B17,+$B19-SUM($F11:AA11),+$B19/$B17)) -> 0.4936729601 | AC11: =IF($B17="n/a","n/a",IF(AC$3>$B17,+$B19-SUM($F11:AB11),+$B19/$B17)) -> 0.13137683 | AD11: =IF($B17="n/a","n/a",IF(AD$3>$B17,+$B19-SUM($F11:AC11),+$B19/$B17)) -> 0 | AE11: =IF($B17="n/a","n/a",IF(AE$3>$B17,+$B19-SUM($F11:AD11),+$B19/$B17)) -> 0 | AF11: =IF($B17="n/a","n/a",IF(AF$3>$B17,+$B19-SUM($F11:AE11),+$B19/$B17)) -> 0 | AG11: =IF($B17="n/a","n/a",IF(AG$3>$B17,+$B19-SUM($F11:AF11),+$B19/$B17)) -> 0 | AH11: =IF($B17="n/a","n/a",IF(AH$3>$B17,+$B19-SUM($F11:AG11),+$B19/$B17)) -> 0 | AI11: =IF($B17="n/a","n/a",IF(AI$3>$B17,+$B19-SUM($F11:AH11),+$B19/$B17)) -> 0 | AJ11: =IF($B17="n/a","n/a",IF(AJ$3>$B17,+$B19-SUM($F11:AI11),+$B19/$B17)) -> 0 | AK11: =IF($B17="n/a","n/a",IF(AK$3>$B17,+$B19-SUM($F11:AJ11),+$B19/$B17)) -> 0 | AL11: =IF($B17="n/a","n/a",IF(AL$3>$B17,+$B19-SUM($F11:AK11),+$B19/$B17)) -> 0 | AM11: =IF($B17="n/a","n/a",IF(AM$3>$B17,+$B19-SUM($F11:AL11),+$B19/$B17)) -> 0 | AN11: =IF($B17="n/a","n/a",IF(AN$3>$B17,+$B19-SUM($F11:AM11),+$B19/$B17)) -> 0 | AO11: =IF($B17="n/a","n/a",IF(AO$3>$B17,+$B19-SUM($F11:AN11),+$B19/$B17)) -> 0 | AP11: =IF($B17="n/a","n/a",IF(AP$3>$B17,+$B19-SUM($F11:AO11),+$B19/$B17)) -> 0 | AQ11: =IF($B17="n/a","n/a",IF(AQ$3>$B17,+$B19-SUM($F11:AP11),+$B19/$B17)) -> 0 | AR11: =IF($B17="n/a","n/a",IF(AR$3>$B17,+$B19-SUM($F11:AQ11),+$B19/$B17)) -> 0 | AS11: =IF($B17="n/a","n/a",IF(AS$3>$B17,+$B19-SUM($F11:AR11),+$B19/$B17)) -> 0 | AT11: =IF($B17="n/a","n/a",IF(AT$3>$B17,+$B19-SUM($F11:AS11),+$B19/$B17)) -> 0 | AU11: =IF($B17="n/a","n/a",IF(AU$3>$B17,+$B19-SUM($F11:AT11),+$B19/$B17)) -> 0 | AV11: =IF($B17="n/a","n/a",IF(AV$3>$B17,+$B19-SUM($F11:AU11),+$B19/$B17)) -> 0 | AW11: =IF($B17="n/a","n/a",IF(AW$3>$B17,+$B19-SUM($F11:AV11),+$B19/$B17)) -> 0 | AX11: =IF($B17="n/a","n/a",IF(AX$3>$B17,+$B19-SUM($F11:AW11),+$B19/$B17)) -> 0 | AY11: =IF($B17="n/a","n/a",IF(AY$3>$B17,+$B19-SUM($F11:AX11),+$B19/$B17)) -> 0 | AZ11: =IF($B17="n/a","n/a",IF(AZ$3>$B17,+$B19-SUM($F11:AY11),+$B19/$B17)) -> 0 | BA11: =IF($B17="n/a","n/a",IF(BA$3>$B17,+$B19-SUM($F11:AZ11),+$B19/$B17)) -> 0 | BB11: =IF($B17="n/a","n/a",IF(BB$3>$B17,+$B19-SUM($F11:BA11),+$B19/$B17)) -> 0 | BC11: =IF($B17="n/a","n/a",IF(BC$3>$B17,+$B19-SUM($F11:BB11),+$B19/$B17)) -> 0 | BD11: =IF($B17="n/a","n/a",IF(BD$3>$B17,+$B19-SUM($F11:BC11),+$B19/$B17)) -> 0 | BE11: =IF($B17="n/a","n/a",IF(BE$3>$B17,+$B19-SUM($F11:BD11),+$B19/$B17)) -> 0 | BF11: =IF($B17="n/a","n/a",IF(BF$3>$B17,+$B19-SUM($F11:BE11),+$B19/$B17)) -> 0 | BG11: =IF($B17="n/a","n/a",IF(BG$3>$B17,+$B19-SUM($F11:BF11),+$B19/$B17)) -> 0 | BH11: =IF($B17="n/a","n/a",IF(BH$3>$B17,+$B19-SUM($F11:BG11),+$B19/$B17)) -> 0 | BI11: =IF($B17="n/a","n/a",IF(BI$3>$B17,+$B19-SUM($F11:BH11),+$B19/$B17)) -> 0 | BJ11: =IF($B17="n/a","n/a",IF(BJ$3>$B17,+$B19-SUM($F11:BI11),+$B19/$B17)) -> 0 | BK11: =IF($B17="n/a","n/a",IF(BK$3>$B17,+$B19-SUM($F11:BJ11),+$B19/$B17)) -> 0 | BL11: =IF($B17="n/a","n/a",IF(BL$3>$B17,+$B19-SUM($F11:BK11),+$B19/$B17)) -> 0 | BM11: =IF($B17="n/a","n/a",IF(BM$3>$B17,+$B19-SUM($F11:BL11),+$B19/$B17)) -> 0 | BN11: =IF($B17="n/a","n/a",IF(BN$3>$B17,+$B19-SUM($F11:BM11),+$B19/$B17)) -> 0
J12: 2012-13 Capex True up adj | K12: =IF($B15="n/a","n/a",IF(K$3>$B15,+$B21-SUM($F12:J12),+$B21/($B15-$E19))) -> 0.02261511373 | L12: =IF($B15="n/a","n/a",IF(L$3>$B15,+$B21-SUM($F12:K12),+$B21/($B15-$E19))) -> 0.02261511373 | M12: =IF($B15="n/a","n/a",IF(M$3>$B15,+$B21-SUM($F12:L12),+$B21/($B15-$E19))) -> 0.02261511373 | N12: =IF($B15="n/a","n/a",IF(N$3>$B15,+$B21-SUM($F12:M12),+$B21/($B15-$E19))) -> 0.02261511373 | O12: =IF($B15="n/a","n/a",IF(O$3>$B15,+$B21-SUM($F12:N12),+$B21/($B15-$E19))) -> 0.02261511373 | P12: =IF($B15="n/a","n/a",IF(P$3>$B15,+$B21-SUM($F12:O12),+$B21/($B15-$E19))) -> 0.02261511373 | Q12: =IF($B15="n/a","n/a",IF(Q$3>$B15,+$B21-SUM($F12:P12),+$B21/($B15-$E19))) -> 0.02261511373 | R12: =IF($B15="n/a","n/a",IF(R$3>$B15,+$B21-SUM($F12:Q12),+$B21/($B15-$E19))) -> 0.02261511373 | S12: =IF($B15="n/a","n/a",IF(S$3>$B15,+$B21-SUM($F12:R12),+$B21/($B15-$E19))) -> 0.02261511373 | T12: =IF($B15="n/a","n/a",IF(T$3>$B15,+$B21-SUM($F12:S12),+$B21/($B15-$E19))) -> 0.02261511373 | U12: =IF($B15="n/a","n/a",IF(U$3>$B15,+$B21-SUM($F12:T12),+$B21/($B15-$E19))) -> 0.02261511373 | V12: =IF($B15="n/a","n/a",IF(V$3>$B15,+$B21-SUM($F12:U12),+$B21/($B15-$E19))) -> 0.02261511373 | W12: =IF($B15="n/a","n/a",IF(W$3>$B15,+$B21-SUM($F12:V12),+$B21/($B15-$E19))) -> 0.02261511373 | X12: =IF($B15="n/a","n/a",IF(X$3>$B15,+$B21-SUM($F12:W12),+$B21/($B15-$E19))) -> 0.02261511373 | Y12: =IF($B15="n/a","n/a",IF(Y$3>$B15,+$B21-SUM($F12:X12),+$B21/($B15-$E19))) -> 0.02261511373 | Z12: =IF($B15="n/a","n/a",IF(Z$3>$B15,+$B21-SUM($F12:Y12),+$B21/($B15-$E19))) -> 0.02261511373 | AA12: =IF($B15="n/a","n/a",IF(AA$3>$B15,+$B21-SUM($F12:Z12),+$B21/($B15-$E19))) -> 0.02261511373 | AB12: =IF($B15="n/a","n/a",IF(AB$3>$B15,+$B21-SUM($F12:AA12),+$B21/($B15-$E19))) -> 0.02261511373 | AC12: =IF($B15="n/a","n/a",IF(AC$3>$B15,+$B21-SUM($F12:AB12),+$B21/($B15-$E19))) -> 0.02261511373 | AD12: =IF($B15="n/a","n/a",IF(AD$3>$B15,+$B21-SUM($F12:AC12),+$B21/($B15-$E19))) -> 0.02261511373 | AE12: =IF($B15="n/a","n/a",IF(AE$3>$B15,+$B21-SUM($F12:AD12),+$B21/($B15-$E19))) -> 0.02261511373 | AF12: =IF($B15="n/a","n/a",IF(AF$3>$B15,+$B21-SUM($F12:AE12),+$B21/($B15-$E19))) -> 0.02261511373 | AG12: =IF($B15="n/a","n/a",IF(AG$3>$B15,+$B21-SUM($F12:AF12),+$B21/($B15-$E19))) -> 0.02261511373 | AH12: =IF($B15="n/a","n/a",IF(AH$3>$B15,+$B21-SUM($F12:AG12),+$B21/($B15-$E19))) -> 0.02261511373 | AI12: =IF($B15="n/a","n/a",IF(AI$3>$B15,+$B21-SUM($F12:AH12),+$B21/($B15-$E19))) -> 0.02261511373 | AJ12: =IF($B15="n/a","n/a",IF(AJ$3>$B15,+$B21-SUM($F12:AI12),+$B21/($B15-$E19))) -> -1.110223025e-16 | AK12: =IF($B15="n/a","n/a",IF(AK$3>$B15,+$B21-SUM($F12:AJ12),+$B21/($B15-$E19))) -> 0 | AL12: =IF($B15="n/a","n/a",IF(AL$3>$B15,+$B21-SUM($F12:AK12),+$B21/($B15-$E19))) -> 0 | AM12: =IF($B15="n/a","n/a",IF(AM$3>$B15,+$B21-SUM($F12:AL12),+$B21/($B15-$E19))) -> 0 | AN12: =IF($B15="n/a","n/a",IF(AN$3>$B15,+$B21-SUM($F12:AM12),+$B21/($B15-$E19))) -> 0 | AO12: =IF($B15="n/a","n/a",IF(AO$3>$B15,+$B21-SUM($F12:AN12),+$B21/($B15-$E19))) -> 0 | AP12: =IF($B15="n/a","n/a",IF(AP$3>$B15,+$B21-SUM($F12:AO12),+$B21/($B15-$E19))) -> 0 | AQ12: =IF($B15="n/a","n/a",IF(AQ$3>$B15,+$B21-SUM($F12:AP12),+$B21/($B15-$E19))) -> 0 | AR12: =IF($B15="n/a","n/a",IF(AR$3>$B15,+$B21-SUM($F12:AQ12),+$B21/($B15-$E19))) -> 0 | AS12: =IF($B15="n/a","n/a",IF(AS$3>$B15,+$B21-SUM($F12:AR12),+$B21/($B15-$E19))) -> 0 | AT12: =IF($B15="n/a","n/a",IF(AT$3>$B15,+$B21-SUM($F12:AS12),+$B21/($B15-$E19))) -> 0 | AU12: =IF($B15="n/a","n/a",IF(AU$3>$B15,+$B21-SUM($F12:AT12),+$B21/($B15-$E19))) -> 0 | AV12: =IF($B15="n/a","n/a",IF(AV$3>$B15,+$B21-SUM($F12:AU12),+$B21/($B15-$E19))) -> 0 | AW12: =IF($B15="n/a","n/a",IF(AW$3>$B15,+$B21-SUM($F12:AV12),+$B21/($B15-$E19))) -> 0 | AX12: =IF($B15="n/a","n/a",IF(AX$3>$B15,+$B21-SUM($F12:AW12),+$B21/($B15-$E19))) -> 0 | AY12: =IF($B15="n/a","n/a",IF(AY$3>$B15,+$B21-SUM($F12:AX12),+$B21/($B15-$E19))) -> 0 | AZ12: =IF($B15="n/a","n/a",IF(AZ$3>$B15,+$B21-SUM($F12:AY12),+$B21/($B15-$E19))) -> 0 | BA12: =IF($B15="n/a","n/a",IF(BA$3>$B15,+$B21-SUM($F12:AZ12),+$B21/($B15-$E19))) -> 0 | BB12: =IF($B15="n/a","n/a",IF(BB$3>$B15,+$B21-SUM($F12:BA12),+$B21/($B15-$E19))) -> 0 | BC12: =IF($B15="n/a","n/a",IF(BC$3>$B15,+$B21-SUM($F12:BB12),+$B21/($B15-$E19))) -> 0 | BD12: =IF($B15="n/a","n/a",IF(BD$3>$B15,+$B21-SUM($F12:BC12),+$B21/($B15-$E19))) -> 0 | BE12: =IF($B15="n/a","n/a",IF(BE$3>$B15,+$B21-SUM($F12:BD12),+$B21/($B15-$E19))) -> 0 | BF12: =IF($B15="n/a","n/a",IF(BF$3>$B15,+$B21-SUM($F12:BE12),+$B21/($B15-$E19))) -> 0 | BG12: =IF($B15="n/a","n/a",IF(BG$3>$B15,+$B21-SUM($F12:BF12),+$B21/($B15-$E19))) -> 0 | BH12: =IF($B15="n/a","n/a",IF(BH$3>$B15,+$B21-SUM($F12:BG12),+$B21/($B15-$E19))) -> 0 | BI12: =IF($B15="n/a","n/a",IF(BI$3>$B15,+$B21-SUM($F12:BH12),+$B21/($B15-$E19))) -> 0 | BJ12: =IF($B15="n/a","n/a",IF(BJ$3>$B15,+$B21-SUM($F12:BI12),+$B21/($B15-$E19))) -> 0 | BK12: =IF($B15="n/a","n/a",IF(BK$3>$B15,+$B21-SUM($F12:BJ12),+$B21/($B15-$E19))) -> 0 | BL12: =IF($B15="n/a","n/a",IF(BL$3>$B15,+$B21-SUM($F12:BK12),+$B21/($B15-$E19))) -> 0 | BM12: =IF($B15="n/a","n/a",IF(BM$3>$B15,+$B21-SUM($F12:BL12),+$B21/($B15-$E19))) -> 0 | BN12: =IF($B15="n/a","n/a",IF(BN$3>$B15,+$B21-SUM($F12:BM12),+$B21/($B15-$E19))) -> 0
J13: Accel Dep adj | K13: =IF($B17="n/a","n/a",IF(K$3>$B17,+$B23-SUM($F13:J13),+$B23/($B17-$E19))) -> 0 | L13: =IF($B17="n/a","n/a",IF(L$3>$B17,+$B23-SUM($F13:K13),+$B23/($B17-$E19))) -> 0 | M13: =IF($B17="n/a","n/a",IF(M$3>$B17,+$B23-SUM($F13:L13),+$B23/($B17-$E19))) -> 0 | N13: =IF($B17="n/a","n/a",IF(N$3>$B17,+$B23-SUM($F13:M13),+$B23/($B17-$E19))) -> 0 | O13: =IF($B17="n/a","n/a",IF(O$3>$B17,+$B23-SUM($F13:N13),+$B23/($B17-$E19))) -> 0 | P13: =IF($B17="n/a","n/a",IF(P$3>$B17,+$B23-SUM($F13:O13),+$B23/($B17-$E19))) -> 0 | Q13: =IF($B17="n/a","n/a",IF(Q$3>$B17,+$B23-SUM($F13:P13),+$B23/($B17-$E19))) -> 0 | R13: =IF($B17="n/a","n/a",IF(R$3>$B17,+$B23-SUM($F13:Q13),+$B23/($B17-$E19))) -> 0 | S13: =IF($B17="n/a","n/a",IF(S$3>$B17,+$B23-SUM($F13:R13),+$B23/($B17-$E19))) -> 0 | T13: =IF($B17="n/a","n/a",IF(T$3>$B17,+$B23-SUM($F13:S13),+$B23/($B17-$E19))) -> 0 | U13: =IF($B17="n/a","n/a",IF(U$3>$B17,+$B23-SUM($F13:T13),+$B23/($B17-$E19))) -> 0 | V13: =IF($B17="n/a","n/a",IF(V$3>$B17,+$B23-SUM($F13:U13),+$B23/($B17-$E19))) -> 0 | W13: =IF($B17="n/a","n/a",IF(W$3>$B17,+$B23-SUM($F13:V13),+$B23/($B17-$E19))) -> 0 | X13: =IF($B17="n/a","n/a",IF(X$3>$B17,+$B23-SUM($F13:W13),+$B23/($B17-$E19))) -> 0 | Y13: =IF($B17="n/a","n/a",IF(Y$3>$B17,+$B23-SUM($F13:X13),+$B23/($B17-$E19))) -> 0 | Z13: =IF($B17="n/a","n/a",IF(Z$3>$B17,+$B23-SUM($F13:Y13),+$B23/($B17-$E19))) -> 0 | AA13: =IF($B17="n/a","n/a",IF(AA$3>$B17,+$B23-SUM($F13:Z13),+$B23/($B17-$E19))) -> 0 | AB13: =IF($B17="n/a","n/a",IF(AB$3>$B17,+$B23-SUM($F13:AA13),+$B23/($B17-$E19))) -> 0 | AC13: =IF($B17="n/a","n/a",IF(AC$3>$B17,+$B23-SUM($F13:AB13),+$B23/($B17-$E19))) -> 0 | AD13: =IF($B17="n/a","n/a",IF(AD$3>$B17,+$B23-SUM($F13:AC13),+$B23/($B17-$E19))) -> 0 | AE13: =IF($B17="n/a","n/a",IF(AE$3>$B17,+$B23-SUM($F13:AD13),+$B23/($B17-$E19))) -> 0 | AF13: =IF($B17="n/a","n/a",IF(AF$3>$B17,+$B23-SUM($F13:AE13),+$B23/($B17-$E19))) -> 0 | AG13: =IF($B17="n/a","n/a",IF(AG$3>$B17,+$B23-SUM($F13:AF13),+$B23/($B17-$E19))) -> 0 | AH13: =IF($B17="n/a","n/a",IF(AH$3>$B17,+$B23-SUM($F13:AG13),+$B23/($B17-$E19))) -> 0 | AI13: =IF($B17="n/a","n/a",IF(AI$3>$B17,+$B23-SUM($F13:AH13),+$B23/($B17-$E19))) -> 0 | AJ13: =IF($B17="n/a","n/a",IF(AJ$3>$B17,+$B23-SUM($F13:AI13),+$B23/($B17-$E19))) -> 0 | AK13: =IF($B17="n/a","n/a",IF(AK$3>$B17,+$B23-SUM($F13:AJ13),+$B23/($B17-$E19))) -> 0 | AL13: =IF($B17="n/a","n/a",IF(AL$3>$B17,+$B23-SUM($F13:AK13),+$B23/($B17-$E19))) -> 0 | AM13: =IF($B17="n/a","n/a",IF(AM$3>$B17,+$B23-SUM($F13:AL13),+$B23/($B17-$E19))) -> 0 | AN13: =IF($B17="n/a","n/a",IF(AN$3>$B17,+$B23-SUM($F13:AM13),+$B23/($B17-$E19))) -> 0 | AO13: =IF($B17="n/a","n/a",IF(AO$3>$B17,+$B23-SUM($F13:AN13),+$B23/($B17-$E19))) -> 0 | AP13: =IF($B17="n/a","n/a",IF(AP$3>$B17,+$B23-SUM($F13:AO13),+$B23/($B17-$E19))) -> 0 | AQ13: =IF($B17="n/a","n/a",IF(AQ$3>$B17,+$B23-SUM($F13:AP13),+$B23/($B17-$E19))) -> 0 | AR13: =IF($B17="n/a","n/a",IF(AR$3>$B17,+$B23-SUM($F13:AQ13),+$B23/($B17-$E19))) -> 0 | AS13: =IF($B17="n/a","n/a",IF(AS$3>$B17,+$B23-SUM($F13:AR13),+$B23/($B17-$E19))) -> 0 | AT13: =IF($B17="n/a","n/a",IF(AT$3>$B17,+$B23-SUM($F13:AS13),+$B23/($B17-$E19))) -> 0 | AU13: =IF($B17="n/a","n/a",IF(AU$3>$B17,+$B23-SUM($F13:AT13),+$B23/($B17-$E19))) -> 0 | AV13: =IF($B17="n/a","n/a",IF(AV$3>$B17,+$B23-SUM($F13:AU13),+$B23/($B17-$E19))) -> 0 | AW13: =IF($B17="n/a","n/a",IF(AW$3>$B17,+$B23-SUM($F13:AV13),+$B23/($B17-$E19))) -> 0 | AX13: =IF($B17="n/a","n/a",IF(AX$3>$B17,+$B23-SUM($F13:AW13),+$B23/($B17-$E19))) -> 0 | AY13: =IF($B17="n/a","n/a",IF(AY$3>$B17,+$B23-SUM($F13:AX13),+$B23/($B17-$E19))) -> 0 | AZ13: =IF($B17="n/a","n/a",IF(AZ$3>$B17,+$B23-SUM($F13:AY13),+$B23/($B17-$E19))) -> 0 | BA13: =IF($B17="n/a","n/a",IF(BA$3>$B17,+$B23-SUM($F13:AZ13),+$B23/($B17-$E19))) -> 0 | BB13: =IF($B17="n/a","n/a",IF(BB$3>$B17,+$B23-SUM($F13:BA13),+$B23/($B17-$E19))) -> 0 | BC13: =IF($B17="n/a","n/a",IF(BC$3>$B17,+$B23-SUM($F13:BB13),+$B23/($B17-$E19))) -> 0 | BD13: =IF($B17="n/a","n/a",IF(BD$3>$B17,+$B23-SUM($F13:BC13),+$B23/($B17-$E19))) -> 0 | BE13: =IF($B17="n/a","n/a",IF(BE$3>$B17,+$B23-SUM($F13:BD13),+$B23/($B17-$E19))) -> 0 | BF13: =IF($B17="n/a","n/a",IF(BF$3>$B17,+$B23-SUM($F13:BE13),+$B23/($B17-$E19))) -> 0 | BG13: =IF($B17="n/a","n/a",IF(BG$3>$B17,+$B23-SUM($F13:BF13),+$B23/($B17-$E19))) -> 0 | BH13: =IF($B17="n/a","n/a",IF(BH$3>$B17,+$B23-SUM($F13:BG13),+$B23/($B17-$E19))) -> 0 | BI13: =IF($B17="n/a","n/a",IF(BI$3>$B17,+$B23-SUM($F13:BH13),+$B23/($B17-$E19))) -> 0 | BJ13: =IF($B17="n/a","n/a",IF(BJ$3>$B17,+$B23-SUM($F13:BI13),+$B23/($B17-$E19))) -> 0 | BK13: =IF($B17="n/a","n/a",IF(BK$3>$B17,+$B23-SUM($F13:BJ13),+$B23/($B17-$E19))) -> 0 | BL13: =IF($B17="n/a","n/a",IF(BL$3>$B17,+$B23-SUM($F13:BK13),+$B23/($B17-$E19))) -> 0 | BM13: =IF($B17="n/a","n/a",IF(BM$3>$B17,+$B23-SUM($F13:BL13),+$B23/($B17-$E19))) -> 0 | BN13: =IF($B17="n/a","n/a",IF(BN$3>$B17,+$B23-SUM($F13:BM13),+$B23/($B17-$E19))) -> 0
A14: Tot Cpx | B14: Std Life | C14: Capex: | E14: 0 | J14: Initial Asset Base Adjustment | K14: =IF(AND(K12="n/a",K13="n/a")=TRUE,"n/a",SUM(IF(K12="n/a",0,K12),IF(K13="n/a",0,K13))) -> 0.02261511373 | L14: =IF(AND(L12="n/a",L13="n/a")=TRUE,"n/a",SUM(IF(L12="n/a",0,L12),IF(L13="n/a",0,L13))) -> 0.02261511373 | M14: 0.02261511373 | N14: 0.02261511373 | O14: 0.02261511373 | P14: 0.02261511373 | Q14: 0.02261511373 | R14: 0.02261511373 | S14: 0.02261511373 | T14: 0.02261511373 | U14: 0.02261511373 | V14: 0.02261511373 | W14: 0.02261511373 | X14: 0.02261511373 | Y14: 0.02261511373 | Z14: 0.02261511373 | AA14: 0.02261511373 | AB14: 0.02261511373 | AC14: 0.02261511373 | AD14: 0.02261511373 | AE14: 0.02261511373 | AF14: 0.02261511373 | AG14: 0.02261511373 | AH14: 0.02261511373 | AI14: 0.02261511373 | AJ14: -1.110223025e-16 | AK14: 0 | AL14: 0 | AM14: 0 | AN14: 0 | AO14: 0 | AP14: 0 | AQ14: 0 | AR14: 0 | AS14: 0 | AT14: 0 | AU14: 0 | AV14: 0 | AW14: 0 | AX14: 0 | AY14: 0 | AZ14: 0 | BA14: 0 | BB14: 0 | BC14: 0 | BD14: 0 | BE14: 0 | BF14: 0 | BG14: 0 | BH14: 0 | BI14: 0 | BJ14: 0 | BK14: 0 | BL14: 0 | BM14: 0 | BN14: 0
A15: =SUMIFS($C$15:$C$618,$E$15:$E$618,E15) -> 223.6231206 | B15: =INDEX('I1 '!$C$7:$C$36,A10) -> 30 | C15: =OFFSET('I3 CAPEX '!$E$44,$A10,E15) -> 0.2863921207 | E15: 1 | G15: =IF($B15="n/a","n/a",IF(G$3>($B15+$E15),$C15-SUM($F15:F15),($C15/$B15))) -> 0.009546404022 | H15: =IF($B15="n/a","n/a",IF(H$3>($B15+$E15),$C15-SUM($F15:G15),($C15/$B15))) -> 0.009546404022 | I15: =IF($B15="n/a","n/a",IF(I$3>($B15+$E15),$C15-SUM($F15:H15),($C15/$B15))) -> 0.009546404022 | J15: =IF($B15="n/a","n/a",IF(J$3>($B15+$E15),$C15-SUM($F15:I15),($C15/$B15))) -> 0.009546404022 | K15: =IF($B15="n/a","n/a",IF(K$3>($B15+$E15),$C15-SUM($F15:J15),($C15/$B15))) -> 0.009546404022 | L15: =IF($B15="n/a","n/a",IF(L$3>($B15+$E15),$C15-SUM($F15:K15),($C15/$B15))) -> 0.009546404022 | M15: =IF($B15="n/a","n/a",IF(M$3>($B15+$E15),$C15-SUM($F15:L15),($C15/$B15))) -> 0.009546404022 | N15: =IF($B15="n/a","n/a",IF(N$3>($B15+$E15),$C15-SUM($F15:M15),($C15/$B15))) -> 0.009546404022 | O15: =IF($B15="n/a","n/a",IF(O$3>($B15+$E15),$C15-SUM($F15:N15),($C15/$B15))) -> 0.009546404022 | P15: =IF($B15="n/a","n/a",IF(P$3>($B15+$E15),$C15-SUM($F15:O15),($C15/$B15))) -> 0.009546404022 | Q15: =IF($B15="n/a","n/a",IF(Q$3>($B15+$E15),$C15-SUM($F15:P15),($C15/$B15))) -> 0.009546404022 | R15: =IF($B15="n/a","n/a",IF(R$3>($B15+$E15),$C15-SUM($F15:Q15),($C15/$B15))) -> 0.009546404022 | S15: =IF($B15="n/a","n/a",IF(S$3>($B15+$E15),$C15-SUM($F15:R15),($C15/$B15))) -> 0.009546404022 | T15: =IF($B15="n/a","n/a",IF(T$3>($B15+$E15),$C15-SUM($F15:S15),($C15/$B15))) -> 0.009546404022 | U15: =IF($B15="n/a","n/a",IF(U$3>($B15+$E15),$C15-SUM($F15:T15),($C15/$B15))) -> 0.009546404022 | V15: =IF($B15="n/a","n/a",IF(V$3>($B15+$E15),$C15-SUM($F15:U15),($C15/$B15))) -> 0.009546404022 | W15: =IF($B15="n/a","n/a",IF(W$3>($B15+$E15),$C15-SUM($F15:V15),($C15/$B15))) -> 0.009546404022 | X15: =IF($B15="n/a","n/a",IF(X$3>($B15+$E15),$C15-SUM($F15:W15),($C15/$B15))) -> 0.009546404022 | Y15: =IF($B15="n/a","n/a",IF(Y$3>($B15+$E15),$C15-SUM($F15:X15),($C15/$B15))) -> 0.009546404022 | Z15: =IF($B15="n/a","n/a",IF(Z$3>($B15+$E15),$C15-SUM($F15:Y15),($C15/$B15))) -> 0.009546404022 | AA15: =IF($B15="n/a","n/a",IF(AA$3>($B15+$E15),$C15-SUM($F15:Z15),($C15/$B15))) -> 0.009546404022 | AB15: =IF($B15="n/a","n/a",IF(AB$3>($B15+$E15),$C15-SUM($F15:AA15),($C15/$B15))) -> 0.009546404022 | AC15: =IF($B15="n/a","n/a",IF(AC$3>($B15+$E15),$C15-SUM($F15:AB15),($C15/$B15))) -> 0.009546404022 | AD15: =IF($B15="n/a","n/a",IF(AD$3>($B15+$E15),$C15-SUM($F15:AC15),($C15/$B15))) -> 0.009546404022 | AE15: =IF($B15="n/a","n/a",IF(AE$3>($B15+$E15),$C15-SUM($F15:AD15),($C15/$B15))) -> 0.009546404022 | AF15: =IF($B15="n/a","n/a",IF(AF$3>($B15+$E15),$C15-SUM($F15:AE15),($C15/$B15))) -> 0.009546404022 | AG15: =IF($B15="n/a","n/a",IF(AG$3>($B15+$E15),$C15-SUM($F15:AF15),($C15/$B15))) -> 0.009546404022 | AH15: =IF($B15="n/a","n/a",IF(AH$3>($B15+$E15),$C15-SUM($F15:AG15),($C15/$B15))) -> 0.009546404022 | AI15: =IF($B15="n/a","n/a",IF(AI$3>($B15+$E15),$C15-SUM($F15:AH15),($C15/$B15))) -> 0.009546404022 | AJ15: =IF($B15="n/a","n/a",IF(AJ$3>($B15+$E15),$C15-SUM($F15:AI15),($C15/$B15))) -> 0.009546404022 | AK15: =IF($B15="n/a","n/a",IF(AK$3>($B15+$E15),$C15-SUM($F15:AJ15),($C15/$B15))) -> -5.551115123e-17 | AL15: =IF($B15="n/a","n/a",IF(AL$3>($B15+$E15),$C15-SUM($F15:AK15),($C15/$B15))) -> 0 | AM15: =IF($B15="n/a","n/a",IF(AM$3>($B15+$E15),$C15-SUM($F15:AL15),($C15/$B15))) -> 0 | AN15: =IF($B15="n/a","n/a",IF(AN$3>($B15+$E15),$C15-SUM($F15:AM15),($C15/$B15))) -> 0 | AO15: =IF($B15="n/a","n/a",IF(AO$3>($B15+$E15),$C15-SUM($F15:AN15),($C15/$B15))) -> 0 | AP15: =IF($B15="n/a","n/a",IF(AP$3>($B15+$E15),$C15-SUM($F15:AO15),($C15/$B15))) -> 0 | AQ15: =IF($B15="n/a","n/a",IF(AQ$3>($B15+$E15),$C15-SUM($F15:AP15),($C15/$B15))) -> 0 | AR15: =IF($B15="n/a","n/a",IF(AR$3>($B15+$E15),$C15-SUM($F15:AQ15),($C15/$B15))) -> 0 | AS15: =IF($B15="n/a","n/a",IF(AS$3>($B15+$E15),$C15-SUM($F15:AR15),($C15/$B15))) -> 0 | AT15: =IF($B15="n/a","n/a",IF(AT$3>($B15+$E15),$C15-SUM($F15:AS15),($C15/$B15))) -> 0 | AU15: =IF($B15="n/a","n/a",IF(AU$3>($B15+$E15),$C15-SUM($F15:AT15),($C15/$B15))) -> 0 | AV15: =IF($B15="n/a","n/a",IF(AV$3>($B15+$E15),$C15-SUM($F15:AU15),($C15/$B15))) -> 0 | AW15: =IF($B15="n/a","n/a",IF(AW$3>($B15+$E15),$C15-SUM($F15:AV15),($C15/$B15))) -> 0 | AX15: =IF($B15="n/a","n/a",IF(AX$3>($B15+$E15),$C15-SUM($F15:AW15),($C15/$B15))) -> 0 | AY15: =IF($B15="n/a","n/a",IF(AY$3>($B15+$E15),$C15-SUM($F15:AX15),($C15/$B15))) -> 0 | AZ15: =IF($B15="n/a","n/a",IF(AZ$3>($B15+$E15),$C15-SUM($F15:AY15),($C15/$B15))) -> 0 | BA15: =IF($B15="n/a","n/a",IF(BA$3>($B15+$E15),$C15-SUM($F15:AZ15),($C15/$B15))) -> 0 | BB15: =IF($B15="n/a","n/a",IF(BB$3>($B15+$E15),$C15-SUM($F15:BA15),($C15/$B15))) -> 0 | BC15: =IF($B15="n/a","n/a",IF(BC$3>($B15+$E15),$C15-SUM($F15:BB15),($C15/$B15))) -> 0 | BD15: =IF($B15="n/a","n/a",IF(BD$3>($B15+$E15),$C15-SUM($F15:BC15),($C15/$B15))) -> 0 | BE15: =IF($B15="n/a","n/a",IF(BE$3>($B15+$E15),$C15-SUM($F15:BD15),($C15/$B15))) -> 0 | BF15: =IF($B15="n/a","n/a",IF(BF$3>($B15+$E15),$C15-SUM($F15:BE15),($C15/$B15))) -> 0 | BG15: =IF($B15="n/a","n/a",IF(BG$3>($B15+$E15),$C15-SUM($F15:BF15),($C15/$B15))) -> 0 | BH15: =IF($B15="n/a","n/a",IF(BH$3>($B15+$E15),$C15-SUM($F15:BG15),($C15/$B15))) -> 0 | BI15: =IF($B15="n/a","n/a",IF(BI$3>($B15+$E15),$C15-SUM($F15:BH15),($C15/$B15))) -> 0 | BJ15: =IF($B15="n/a","n/a",IF(BJ$3>($B15+$E15),$C15-SUM($F15:BI15),($C15/$B15))) -> 0 | BK15: =IF($B15="n/a","n/a",IF(BK$3>($B15+$E15),$C15-SUM($F15:BJ15),($C15/$B15))) -> 0 | BL15: =IF($B15="n/a","n/a",IF(BL$3>($B15+$E15),$C15-SUM($F15:BK15),($C15/$B15))) -> 0 | BM15: =IF($B15="n/a","n/a",IF(BM$3>($B15+$E15),$C15-SUM($F15:BL15),($C15/$B15))) -> 0 | BN15: =IF($B15="n/a","n/a",IF(BN$3>($B15+$E15),$C15-SUM($F15:BM15),($C15/$B15))) -> 0
A16: =SUMIFS($C$15:$C$618,$E$15:$E$618,E16) -> 90.50033523 | B16: Rem Life | C16: =OFFSET('I3 CAPEX '!$E$44,$A10,E16) -> 0.4336243994 | E16: 2 | H16: =IF($B15="n/a","n/a",IF(H$3>($B15+$E16),$C16-SUM($F16:G16),($C16/$B15))) -> 0.01445414665 | I16: =IF($B15="n/a","n/a",IF(I$3>($B15+$E16),$C16-SUM($F16:H16),($C16/$B15))) -> 0.01445414665 | J16: =IF($B15="n/a","n/a",IF(J$3>($B15+$E16),$C16-SUM($F16:I16),($C16/$B15))) -> 0.01445414665 | K16: =IF($B15="n/a","n/a",IF(K$3>($B15+$E16),$C16-SUM($F16:J16),($C16/$B15))) -> 0.01445414665 | L16: =IF($B15="n/a","n/a",IF(L$3>($B15+$E16),$C16-SUM($F16:K16),($C16/$B15))) -> 0.01445414665 | M16: =IF($B15="n/a","n/a",IF(M$3>($B15+$E16),$C16-SUM($F16:L16),($C16/$B15))) -> 0.01445414665 | N16: =IF($B15="n/a","n/a",IF(N$3>($B15+$E16),$C16-SUM($F16:M16),($C16/$B15))) -> 0.01445414665 | O16: =IF($B15="n/a","n/a",IF(O$3>($B15+$E16),$C16-SUM($F16:N16),($C16/$B15))) -> 0.01445414665 | P16: =IF($B15="n/a","n/a",IF(P$3>($B15+$E16),$C16-SUM($F16:O16),($C16/$B15))) -> 0.01445414665 | Q16: =IF($B15="n/a","n/a",IF(Q$3>($B15+$E16),$C16-SUM($F16:P16),($C16/$B15))) -> 0.01445414665 | R16: =IF($B15="n/a","n/a",IF(R$3>($B15+$E16),$C16-SUM($F16:Q16),($C16/$B15))) -> 0.01445414665 | S16: =IF($B15="n/a","n/a",IF(S$3>($B15+$E16),$C16-SUM($F16:R16),($C16/$B15))) -> 0.01445414665 | T16: =IF($B15="n/a","n/a",IF(T$3>($B15+$E16),$C16-SUM($F16:S16),($C16/$B15))) -> 0.01445414665 | U16: =IF($B15="n/a","n/a",IF(U$3>($B15+$E16),$C16-SUM($F16:T16),($C16/$B15))) -> 0.01445414665 | V16: =IF($B15="n/a","n/a",IF(V$3>($B15+$E16),$C16-SUM($F16:U16),($C16/$B15))) -> 0.01445414665 | W16: =IF($B15="n/a","n/a",IF(W$3>($B15+$E16),$C16-SUM($F16:V16),($C16/$B15))) -> 0.01445414665 | X16: =IF($B15="n/a","n/a",IF(X$3>($B15+$E16),$C16-SUM($F16:W16),($C16/$B15))) -> 0.01445414665 | Y16: =IF($B15="n/a","n/a",IF(Y$3>($B15+$E16),$C16-SUM($F16:X16),($C16/$B15))) -> 0.01445414665 | Z16: =IF($B15="n/a","n/a",IF(Z$3>($B15+$E16),$C16-SUM($F16:Y16),($C16/$B15))) -> 0.01445414665 | AA16: =IF($B15="n/a","n/a",IF(AA$3>($B15+$E16),$C16-SUM($F16:Z16),($C16/$B15))) -> 0.01445414665 | AB16: =IF($B15="n/a","n/a",IF(AB$3>($B15+$E16),$C16-SUM($F16:AA16),($C16/$B15))) -> 0.01445414665 | AC16: =IF($B15="n/a","n/a",IF(AC$3>($B15+$E16),$C16-SUM($F16:AB16),($C16/$B15))) -> 0.01445414665 | AD16: =IF($B15="n/a","n/a",IF(AD$3>($B15+$E16),$C16-SUM($F16:AC16),($C16/$B15))) -> 0.01445414665 | AE16: =IF($B15="n/a","n/a",IF(AE$3>($B15+$E16),$C16-SUM($F16:AD16),($C16/$B15))) -> 0.01445414665 | AF16: =IF($B15="n/a","n/a",IF(AF$3>($B15+$E16),$C16-SUM($F16:AE16),($C16/$B15))) -> 0.01445414665 | AG16: =IF($B15="n/a","n/a",IF(AG$3>($B15+$E16),$C16-SUM($F16:AF16),($C16/$B15))) -> 0.01445414665 | AH16: =IF($B15="n/a","n/a",IF(AH$3>($B15+$E16),$C16-SUM($F16:AG16),($C16/$B15))) -> 0.01445414665 | AI16: =IF($B15="n/a","n/a",IF(AI$3>($B15+$E16),$C16-SUM($F16:AH16),($C16/$B15))) -> 0.01445414665 | AJ16: =IF($B15="n/a","n/a",IF(AJ$3>($B15+$E16),$C16-SUM($F16:AI16),($C16/$B15))) -> 0.01445414665 | AK16: =IF($B15="n/a","n/a",IF(AK$3>($B15+$E16),$C16-SUM($F16:AJ16),($C16/$B15))) -> 0.01445414665 | AL16: =IF($B15="n/a","n/a",IF(AL$3>($B15+$E16),$C16-SUM($F16:AK16),($C16/$B15))) -> -5.551115123e-17 | AM16: =IF($B15="n/a","n/a",IF(AM$3>($B15+$E16),$C16-SUM($F16:AL16),($C16/$B15))) -> 0 | AN16: =IF($B15="n/a","n/a",IF(AN$3>($B15+$E16),$C16-SUM($F16:AM16),($C16/$B15))) -> 0 | AO16: =IF($B15="n/a","n/a",IF(AO$3>($B15+$E16),$C16-SUM($F16:AN16),($C16/$B15))) -> 0 | AP16: =IF($B15="n/a","n/a",IF(AP$3>($B15+$E16),$C16-SUM($F16:AO16),($C16/$B15))) -> 0 | AQ16: =IF($B15="n/a","n/a",IF(AQ$3>($B15+$E16),$C16-SUM($F16:AP16),($C16/$B15))) -> 0 | AR16: =IF($B15="n/a","n/a",IF(AR$3>($B15+$E16),$C16-SUM($F16:AQ16),($C16/$B15))) -> 0 | AS16: =IF($B15="n/a","n/a",IF(AS$3>($B15+$E16),$C16-SUM($F16:AR16),($C16/$B15))) -> 0 | AT16: =IF($B15="n/a","n/a",IF(AT$3>($B15+$E16),$C16-SUM($F16:AS16),($C16/$B15))) -> 0 | AU16: =IF($B15="n/a","n/a",IF(AU$3>($B15+$E16),$C16-SUM($F16:AT16),($C16/$B15))) -> 0 | AV16: =IF($B15="n/a","n/a",IF(AV$3>($B15+$E16),$C16-SUM($F16:AU16),($C16/$B15))) -> 0 | AW16: =IF($B15="n/a","n/a",IF(AW$3>($B15+$E16),$C16-SUM($F16:AV16),($C16/$B15))) -> 0 | AX16: =IF($B15="n/a","n/a",IF(AX$3>($B15+$E16),$C16-SUM($F16:AW16),($C16/$B15))) -> 0 | AY16: =IF($B15="n/a","n/a",IF(AY$3>($B15+$E16),$C16-SUM($F16:AX16),($C16/$B15))) -> 0 | AZ16: =IF($B15="n/a","n/a",IF(AZ$3>($B15+$E16),$C16-SUM($F16:AY16),($C16/$B15))) -> 0 | BA16: =IF($B15="n/a","n/a",IF(BA$3>($B15+$E16),$C16-SUM($F16:AZ16),($C16/$B15))) -> 0 | BB16: =IF($B15="n/a","n/a",IF(BB$3>($B15+$E16),$C16-SUM($F16:BA16),($C16/$B15))) -> 0 | BC16: =IF($B15="n/a","n/a",IF(BC$3>($B15+$E16),$C16-SUM($F16:BB16),($C16/$B15))) -> 0 | BD16: =IF($B15="n/a","n/a",IF(BD$3>($B15+$E16),$C16-SUM($F16:BC16),($C16/$B15))) -> 0 | BE16: =IF($B15="n/a","n/a",IF(BE$3>($B15+$E16),$C16-SUM($F16:BD16),($C16/$B15))) -> 0 | BF16: =IF($B15="n/a","n/a",IF(BF$3>($B15+$E16),$C16-SUM($F16:BE16),($C16/$B15))) -> 0 | BG16: =IF($B15="n/a","n/a",IF(BG$3>($B15+$E16),$C16-SUM($F16:BF16),($C16/$B15))) -> 0 | BH16: =IF($B15="n/a","n/a",IF(BH$3>($B15+$E16),$C16-SUM($F16:BG16),($C16/$B15))) -> 0 | BI16: =IF($B15="n/a","n/a",IF(BI$3>($B15+$E16),$C16-SUM($F16:BH16),($C16/$B15))) -> 0 | BJ16: =IF($B15="n/a","n/a",IF(BJ$3>($B15+$E16),$C16-SUM($F16:BI16),($C16/$B15))) -> 0 | BK16: =IF($B15="n/a","n/a",IF(BK$3>($B15+$E16),$C16-SUM($F16:BJ16),($C16/$B15))) -> 0 | BL16: =IF($B15="n/a","n/a",IF(BL$3>($B15+$E16),$C16-SUM($F16:BK16),($C16/$B15))) -> 0 | BM16: =IF($B15="n/a","n/a",IF(BM$3>($B15+$E16),$C16-SUM($F16:BL16),($C16/$B15))) -> 0 | BN16: =IF($B15="n/a","n/a",IF(BN$3>($B15+$E16),$C16-SUM($F16:BM16),($C16/$B15))) -> 0
A17: =SUMIFS($C$15:$C$618,$E$15:$E$618,E17) -> 125.914813 | B17: =INDEX('I2 RAB '!$E$9:$E$38,A10) -> 23.26612118 | C17: =OFFSET('I3 CAPEX '!$E$44,$A10,E17) -> 0.70787783 | E17: 3 | I17: =IF($B15="n/a","n/a",IF(I$3>($B15+$E17),$C17-SUM($F17:H17),($C17/$B15))) -> 0.02359592767 | J17: =IF($B15="n/a","n/a",IF(J$3>($B15+$E17),$C17-SUM($F17:I17),($C17/$B15))) -> 0.02359592767 | K17: =IF($B15="n/a","n/a",IF(K$3>($B15+$E17),$C17-SUM($F17:J17),($C17/$B15))) -> 0.02359592767 | L17: =IF($B15="n/a","n/a",IF(L$3>($B15+$E17),$C17-SUM($F17:K17),($C17/$B15))) -> 0.02359592767 | M17: =IF($B15="n/a","n/a",IF(M$3>($B15+$E17),$C17-SUM($F17:L17),($C17/$B15))) -> 0.02359592767 | N17: =IF($B15="n/a","n/a",IF(N$3>($B15+$E17),$C17-SUM($F17:M17),($C17/$B15))) -> 0.02359592767 | O17: =IF($B15="n/a","n/a",IF(O$3>($B15+$E17),$C17-SUM($F17:N17),($C17/$B15))) -> 0.02359592767 | P17: =IF($B15="n/a","n/a",IF(P$3>($B15+$E17),$C17-SUM($F17:O17),($C17/$B15))) -> 0.02359592767 | Q17: =IF($B15="n/a","n/a",IF(Q$3>($B15+$E17),$C17-SUM($F17:P17),($C17/$B15))) -> 0.02359592767 | R17: =IF($B15="n/a","n/a",IF(R$3>($B15+$E17),$C17-SUM($F17:Q17),($C17/$B15))) -> 0.02359592767 | S17: =IF($B15="n/a","n/a",IF(S$3>($B15+$E17),$C17-SUM($F17:R17),($C17/$B15))) -> 0.02359592767 | T17: =IF($B15="n/a","n/a",IF(T$3>($B15+$E17),$C17-SUM($F17:S17),($C17/$B15))) -> 0.02359592767 | U17: =IF($B15="n/a","n/a",IF(U$3>($B15+$E17),$C17-SUM($F17:T17),($C17/$B15))) -> 0.02359592767 | V17: =IF($B15="n/a","n/a",IF(V$3>($B15+$E17),$C17-SUM($F17:U17),($C17/$B15))) -> 0.02359592767 | W17: =IF($B15="n/a","n/a",IF(W$3>($B15+$E17),$C17-SUM($F17:V17),($C17/$B15))) -> 0.02359592767 | X17: =IF($B15="n/a","n/a",IF(X$3>($B15+$E17),$C17-SUM($F17:W17),($C17/$B15))) -> 0.02359592767 | Y17: =IF($B15="n/a","n/a",IF(Y$3>($B15+$E17),$C17-SUM($F17:X17),($C17/$B15))) -> 0.02359592767 | Z17: =IF($B15="n/a","n/a",IF(Z$3>($B15+$E17),$C17-SUM($F17:Y17),($C17/$B15))) -> 0.02359592767 | AA17: =IF($B15="n/a","n/a",IF(AA$3>($B15+$E17),$C17-SUM($F17:Z17),($C17/$B15))) -> 0.02359592767 | AB17: =IF($B15="n/a","n/a",IF(AB$3>($B15+$E17),$C17-SUM($F17:AA17),($C17/$B15))) -> 0.02359592767 | AC17: =IF($B15="n/a","n/a",IF(AC$3>($B15+$E17),$C17-SUM($F17:AB17),($C17/$B15))) -> 0.02359592767 | AD17: =IF($B15="n/a","n/a",IF(AD$3>($B15+$E17),$C17-SUM($F17:AC17),($C17/$B15))) -> 0.02359592767 | AE17: =IF($B15="n/a","n/a",IF(AE$3>($B15+$E17),$C17-SUM($F17:AD17),($C17/$B15))) -> 0.02359592767 | AF17: =IF($B15="n/a","n/a",IF(AF$3>($B15+$E17),$C17-SUM($F17:AE17),($C17/$B15))) -> 0.02359592767 | AG17: =IF($B15="n/a","n/a",IF(AG$3>($B15+$E17),$C17-SUM($F17:AF17),($C17/$B15))) -> 0.02359592767 | AH17: =IF($B15="n/a","n/a",IF(AH$3>($B15+$E17),$C17-SUM($F17:AG17),($C17/$B15))) -> 0.02359592767 | AI17: =IF($B15="n/a","n/a",IF(AI$3>($B15+$E17),$C17-SUM($F17:AH17),($C17/$B15))) -> 0.02359592767 | AJ17: =IF($B15="n/a","n/a",IF(AJ$3>($B15+$E17),$C17-SUM($F17:AI17),($C17/$B15))) -> 0.02359592767 | AK17: =IF($B15="n/a","n/a",IF(AK$3>($B15+$E17),$C17-SUM($F17:AJ17),($C17/$B15))) -> 0.02359592767 | AL17: =IF($B15="n/a","n/a",IF(AL$3>($B15+$E17),$C17-SUM($F17:AK17),($C17/$B15))) -> 0.02359592767 | AM17: =IF($B15="n/a","n/a",IF(AM$3>($B15+$E17),$C17-SUM($F17:AL17),($C17/$B15))) -> -4.440892099e-16 | AN17: =IF($B15="n/a","n/a",IF(AN$3>($B15+$E17),$C17-SUM($F17:AM17),($C17/$B15))) -> 0 | AO17: =IF($B15="n/a","n/a",IF(AO$3>($B15+$E17),$C17-SUM($F17:AN17),($C17/$B15))) -> 0 | AP17: =IF($B15="n/a","n/a",IF(AP$3>($B15+$E17),$C17-SUM($F17:AO17),($C17/$B15))) -> 0 | AQ17: =IF($B15="n/a","n/a",IF(AQ$3>($B15+$E17),$C17-SUM($F17:AP17),($C17/$B15))) -> 0 | AR17: =IF($B15="n/a","n/a",IF(AR$3>($B15+$E17),$C17-SUM($F17:AQ17),($C17/$B15))) -> 0 | AS17: =IF($B15="n/a","n/a",IF(AS$3>($B15+$E17),$C17-SUM($F17:AR17),($C17/$B15))) -> 0 | AT17: =IF($B15="n/a","n/a",IF(AT$3>($B15+$E17),$C17-SUM($F17:AS17),($C17/$B15))) -> 0 | AU17: =IF($B15="n/a","n/a",IF(AU$3>($B15+$E17),$C17-SUM($F17:AT17),($C17/$B15))) -> 0 | AV17: =IF($B15="n/a","n/a",IF(AV$3>($B15+$E17),$C17-SUM($F17:AU17),($C17/$B15))) -> 0 | AW17: =IF($B15="n/a","n/a",IF(AW$3>($B15+$E17),$C17-SUM($F17:AV17),($C17/$B15))) -> 0 | AX17: =IF($B15="n/a","n/a",IF(AX$3>($B15+$E17),$C17-SUM($F17:AW17),($C17/$B15))) -> 0 | AY17: =IF($B15="n/a","n/a",IF(AY$3>($B15+$E17),$C17-SUM($F17:AX17),($C17/$B15))) -> 0 | AZ17: =IF($B15="n/a","n/a",IF(AZ$3>($B15+$E17),$C17-SUM($F17:AY17),($C17/$B15))) -> 0 | BA17: =IF($B15="n/a","n/a",IF(BA$3>($B15+$E17),$C17-SUM($F17:AZ17),($C17/$B15))) -> 0 | BB17: =IF($B15="n/a","n/a",IF(BB$3>($B15+$E17),$C17-SUM($F17:BA17),($C17/$B15))) -> 0 | BC17: =IF($B15="n/a","n/a",IF(BC$3>($B15+$E17),$C17-SUM($F17:BB17),($C17/$B15))) -> 0 | BD17: =IF($B15="n/a","n/a",IF(BD$3>($B15+$E17),$C17-SUM($F17:BC17),($C17/$B15))) -> 0 | BE17: =IF($B15="n/a","n/a",IF(BE$3>($B15+$E17),$C17-SUM($F17:BD17),($C17/$B15))) -> 0 | BF17: =IF($B15="n/a","n/a",IF(BF$3>($B15+$E17),$C17-SUM($F17:BE17),($C17/$B15))) -> 0 | BG17: =IF($B15="n/a","n/a",IF(BG$3>($B15+$E17),$C17-SUM($F17:BF17),($C17/$B15))) -> 0 | BH17: =IF($B15="n/a","n/a",IF(BH$3>($B15+$E17),$C17-SUM($F17:BG17),($C17/$B15))) -> 0 | BI17: =IF($B15="n/a","n/a",IF(BI$3>($B15+$E17),$C17-SUM($F17:BH17),($C17/$B15))) -> 0 | BJ17: =IF($B15="n/a","n/a",IF(BJ$3>($B15+$E17),$C17-SUM($F17:BI17),($C17/$B15))) -> 0 | BK17: =IF($B15="n/a","n/a",IF(BK$3>($B15+$E17),$C17-SUM($F17:BJ17),($C17/$B15))) -> 0 | BL17: =IF($B15="n/a","n/a",IF(BL$3>($B15+$E17),$C17-SUM($F17:BK17),($C17/$B15))) -> 0 | BM17: =IF($B15="n/a","n/a",IF(BM$3>($B15+$E17),$C17-SUM($F17:BL17),($C17/$B15))) -> 0 | BN17: =IF($B15="n/a","n/a",IF(BN$3>($B15+$E17),$C17-SUM($F17:BM17),($C17/$B15))) -> 0
A18: =SUMIFS($C$15:$C$618,$E$15:$E$618,E18) -> 170.2521945 | B18: Op Bal | C18: =OFFSET('I3 CAPEX '!$E$44,$A10,E18) -> 0.7802889047 | E18: 4 | J18: =IF($B15="n/a","n/a",IF(J$3>($B15+$E18),$C18-SUM($F18:I18),($C18/$B15))) -> 0.02600963016 | K18: =IF($B15="n/a","n/a",IF(K$3>($B15+$E18),$C18-SUM($F18:J18),($C18/$B15))) -> 0.02600963016 | L18: =IF($B15="n/a","n/a",IF(L$3>($B15+$E18),$C18-SUM($F18:K18),($C18/$B15))) -> 0.02600963016 | M18: =IF($B15="n/a","n/a",IF(M$3>($B15+$E18),$C18-SUM($F18:L18),($C18/$B15))) -> 0.02600963016 | N18: =IF($B15="n/a","n/a",IF(N$3>($B15+$E18),$C18-SUM($F18:M18),($C18/$B15))) -> 0.02600963016 | O18: =IF($B15="n/a","n/a",IF(O$3>($B15+$E18),$C18-SUM($F18:N18),($C18/$B15))) -> 0.02600963016 | P18: =IF($B15="n/a","n/a",IF(P$3>($B15+$E18),$C18-SUM($F18:O18),($C18/$B15))) -> 0.02600963016 | Q18: =IF($B15="n/a","n/a",IF(Q$3>($B15+$E18),$C18-SUM($F18:P18),($C18/$B15))) -> 0.02600963016 | R18: =IF($B15="n/a","n/a",IF(R$3>($B15+$E18),$C18-SUM($F18:Q18),($C18/$B15))) -> 0.02600963016 | S18: =IF($B15="n/a","n/a",IF(S$3>($B15+$E18),$C18-SUM($F18:R18),($C18/$B15))) -> 0.02600963016 | T18: =IF($B15="n/a","n/a",IF(T$3>($B15+$E18),$C18-SUM($F18:S18),($C18/$B15))) -> 0.02600963016 | U18: =IF($B15="n/a","n/a",IF(U$3>($B15+$E18),$C18-SUM($F18:T18),($C18/$B15))) -> 0.02600963016 | V18: =IF($B15="n/a","n/a",IF(V$3>($B15+$E18),$C18-SUM($F18:U18),($C18/$B15))) -> 0.02600963016 | W18: =IF($B15="n/a","n/a",IF(W$3>($B15+$E18),$C18-SUM($F18:V18),($C18/$B15))) -> 0.02600963016 | X18: =IF($B15="n/a","n/a",IF(X$3>($B15+$E18),$C18-SUM($F18:W18),($C18/$B15))) -> 0.02600963016 | Y18: =IF($B15="n/a","n/a",IF(Y$3>($B15+$E18),$C18-SUM($F18:X18),($C18/$B15))) -> 0.02600963016 | Z18: =IF($B15="n/a","n/a",IF(Z$3>($B15+$E18),$C18-SUM($F18:Y18),($C18/$B15))) -> 0.02600963016 | AA18: =IF($B15="n/a","n/a",IF(AA$3>($B15+$E18),$C18-SUM($F18:Z18),($C18/$B15))) -> 0.02600963016 | AB18: =IF($B15="n/a","n/a",IF(AB$3>($B15+$E18),$C18-SUM($F18:AA18),($C18/$B15))) -> 0.02600963016 | AC18: =IF($B15="n/a","n/a",IF(AC$3>($B15+$E18),$C18-SUM($F18:AB18),($C18/$B15))) -> 0.02600963016 | AD18: =IF($B15="n/a","n/a",IF(AD$3>($B15+$E18),$C18-SUM($F18:AC18),($C18/$B15))) -> 0.02600963016 | AE18: =IF($B15="n/a","n/a",IF(AE$3>($B15+$E18),$C18-SUM($F18:AD18),($C18/$B15))) -> 0.02600963016 | AF18: =IF($B15="n/a","n/a",IF(AF$3>($B15+$E18),$C18-SUM($F18:AE18),($C18/$B15))) -> 0.02600963016 | AG18: =IF($B15="n/a","n/a",IF(AG$3>($B15+$E18),$C18-SUM($F18:AF18),($C18/$B15))) -> 0.02600963016 | AH18: =IF($B15="n/a","n/a",IF(AH$3>($B15+$E18),$C18-SUM($F18:AG18),($C18/$B15))) -> 0.02600963016 | AI18: =IF($B15="n/a","n/a",IF(AI$3>($B15+$E18),$C18-SUM($F18:AH18),($C18/$B15))) -> 0.02600963016 | AJ18: =IF($B15="n/a","n/a",IF(AJ$3>($B15+$E18),$C18-SUM($F18:AI18),($C18/$B15))) -> 0.02600963016 | AK18: =IF($B15="n/a","n/a",IF(AK$3>($B15+$E18),$C18-SUM($F18:AJ18),($C18/$B15))) -> 0.02600963016 | AL18: =IF($B15="n/a","n/a",IF(AL$3>($B15+$E18),$C18-SUM($F18:AK18),($C18/$B15))) -> 0.02600963016 | AM18: =IF($B15="n/a","n/a",IF(AM$3>($B15+$E18),$C18-SUM($F18:AL18),($C18/$B15))) -> 0.02600963016 | AN18: =IF($B15="n/a","n/a",IF(AN$3>($B15+$E18),$C18-SUM($F18:AM18),($C18/$B15))) -> 3.330669074e-16 | AO18: =IF($B15="n/a","n/a",IF(AO$3>($B15+$E18),$C18-SUM($F18:AN18),($C18/$B15))) -> 0 | AP18: =IF($B15="n/a","n/a",IF(AP$3>($B15+$E18),$C18-SUM($F18:AO18),($C18/$B15))) -> 0 | AQ18: =IF($B15="n/a","n/a",IF(AQ$3>($B15+$E18),$C18-SUM($F18:AP18),($C18/$B15))) -> 0 | AR18: =IF($B15="n/a","n/a",IF(AR$3>($B15+$E18),$C18-SUM($F18:AQ18),($C18/$B15))) -> 0 | AS18: =IF($B15="n/a","n/a",IF(AS$3>($B15+$E18),$C18-SUM($F18:AR18),($C18/$B15))) -> 0 | AT18: =IF($B15="n/a","n/a",IF(AT$3>($B15+$E18),$C18-SUM($F18:AS18),($C18/$B15))) -> 0 | AU18: =IF($B15="n/a","n/a",IF(AU$3>($B15+$E18),$C18-SUM($F18:AT18),($C18/$B15))) -> 0 | AV18: =IF($B15="n/a","n/a",IF(AV$3>($B15+$E18),$C18-SUM($F18:AU18),($C18/$B15))) -> 0 | AW18: =IF($B15="n/a","n/a",IF(AW$3>($B15+$E18),$C18-SUM($F18:AV18),($C18/$B15))) -> 0 | AX18: =IF($B15="n/a","n/a",IF(AX$3>($B15+$E18),$C18-SUM($F18:AW18),($C18/$B15))) -> 0 | AY18: =IF($B15="n/a","n/a",IF(AY$3>($B15+$E18),$C18-SUM($F18:AX18),($C18/$B15))) -> 0 | AZ18: =IF($B15="n/a","n/a",IF(AZ$3>($B15+$E18),$C18-SUM($F18:AY18),($C18/$B15))) -> 0 | BA18: =IF($B15="n/a","n/a",IF(BA$3>($B15+$E18),$C18-SUM($F18:AZ18),($C18/$B15))) -> 0 | BB18: =IF($B15="n/a","n/a",IF(BB$3>($B15+$E18),$C18-SUM($F18:BA18),($C18/$B15))) -> 0 | BC18: =IF($B15="n/a","n/a",IF(BC$3>($B15+$E18),$C18-SUM($F18:BB18),($C18/$B15))) -> 0 | BD18: =IF($B15="n/a","n/a",IF(BD$3>($B15+$E18),$C18-SUM($F18:BC18),($C18/$B15))) -> 0 | BE18: =IF($B15="n/a","n/a",IF(BE$3>($B15+$E18),$C18-SUM($F18:BD18),($C18/$B15))) -> 0 | BF18: =IF($B15="n/a","n/a",IF(BF$3>($B15+$E18),$C18-SUM($F18:BE18),($C18/$B15))) -> 0 | BG18: =IF($B15="n/a","n/a",IF(BG$3>($B15+$E18),$C18-SUM($F18:BF18),($C18/$B15))) -> 0 | BH18: =IF($B15="n/a","n/a",IF(BH$3>($B15+$E18),$C18-SUM($F18:BG18),($C18/$B15))) -> 0 | BI18: =IF($B15="n/a","n/a",IF(BI$3>($B15+$E18),$C18-SUM($F18:BH18),($C18/$B15))) -> 0 | BJ18: =IF($B15="n/a","n/a",IF(BJ$3>($B15+$E18),$C18-SUM($F18:BI18),($C18/$B15))) -> 0 | BK18: =IF($B15="n/a","n/a",IF(BK$3>($B15+$E18),$C18-SUM($F18:BJ18),($C18/$B15))) -> 0 | BL18: =IF($B15="n/a","n/a",IF(BL$3>($B15+$E18),$C18-SUM($F18:BK18),($C18/$B15))) -> 0 | BM18: =IF($B15="n/a","n/a",IF(BM$3>($B15+$E18),$C18-SUM($F18:BL18),($C18/$B15))) -> 0 | BN18: =IF($B15="n/a","n/a",IF(BN$3>($B15+$E18),$C18-SUM($F18:BM18),($C18/$B15))) -> 0
A19: =SUMIFS($C$15:$C$618,$E$15:$E$618,E19) -> 285.5176352 | B19: =INDEX('I2 RAB '!$D$9:$D$38,A10) -> 11.48585491 | C19: =OFFSET('I3 CAPEX '!$E$44,$A10,E19)+OFFSET('I3 CAPEX '!$E$79,$A10,E19) -> 6.059831614 | E19: 5 | K19: =IF($B15="n/a","n/a",IF(K$3>($B15+$E19),$C19-SUM($F19:J19),($C19/$B15))) -> 0.2019943871 | L19: =IF($B15="n/a","n/a",IF(L$3>($B15+$E19),$C19-SUM($F19:K19),($C19/$B15))) -> 0.2019943871 | M19: =IF($B15="n/a","n/a",IF(M$3>($B15+$E19),$C19-SUM($F19:L19),($C19/$B15))) -> 0.2019943871 | N19: =IF($B15="n/a","n/a",IF(N$3>($B15+$E19),$C19-SUM($F19:M19),($C19/$B15))) -> 0.2019943871 | O19: =IF($B15="n/a","n/a",IF(O$3>($B15+$E19),$C19-SUM($F19:N19),($C19/$B15))) -> 0.2019943871 | P19: =IF($B15="n/a","n/a",IF(P$3>($B15+$E19),$C19-SUM($F19:O19),($C19/$B15))) -> 0.2019943871 | Q19: =IF($B15="n/a","n/a",IF(Q$3>($B15+$E19),$C19-SUM($F19:P19),($C19/$B15))) -> 0.2019943871 | R19: =IF($B15="n/a","n/a",IF(R$3>($B15+$E19),$C19-SUM($F19:Q19),($C19/$B15))) -> 0.2019943871 | S19: =IF($B15="n/a","n/a",IF(S$3>($B15+$E19),$C19-SUM($F19:R19),($C19/$B15))) -> 0.2019943871 | T19: =IF($B15="n/a","n/a",IF(T$3>($B15+$E19),$C19-SUM($F19:S19),($C19/$B15))) -> 0.2019943871 | U19: =IF($B15="n/a","n/a",IF(U$3>($B15+$E19),$C19-SUM($F19:T19),($C19/$B15))) -> 0.2019943871 | V19: =IF($B15="n/a","n/a",IF(V$3>($B15+$E19),$C19-SUM($F19:U19),($C19/$B15))) -> 0.2019943871 | W19: =IF($B15="n/a","n/a",IF(W$3>($B15+$E19),$C19-SUM($F19:V19),($C19/$B15))) -> 0.2019943871 | X19: =IF($B15="n/a","n/a",IF(X$3>($B15+$E19),$C19-SUM($F19:W19),($C19/$B15))) -> 0.2019943871 | Y19: =IF($B15="n/a","n/a",IF(Y$3>($B15+$E19),$C19-SUM($F19:X19),($C19/$B15))) -> 0.2019943871 | Z19: =IF($B15="n/a","n/a",IF(Z$3>($B15+$E19),$C19-SUM($F19:Y19),($C19/$B15))) -> 0.2019943871 | AA19: =IF($B15="n/a","n/a",IF(AA$3>($B15+$E19),$C19-SUM($F19:Z19),($C19/$B15))) -> 0.2019943871 | AB19: =IF($B15="n/a","n/a",IF(AB$3>($B15+$E19),$C19-SUM($F19:AA19),($C19/$B15))) -> 0.2019943871 | AC19: =IF($B15="n/a","n/a",IF(AC$3>($B15+$E19),$C19-SUM($F19:AB19),($C19/$B15))) -> 0.2019943871 | AD19: =IF($B15="n/a","n/a",IF(AD$3>($B15+$E19),$C19-SUM($F19:AC19),($C19/$B15))) -> 0.2019943871 | AE19: =IF($B15="n/a","n/a",IF(AE$3>($B15+$E19),$C19-SUM($F19:AD19),($C19/$B15))) -> 0.2019943871 | AF19: =IF($B15="n/a","n/a",IF(AF$3>($B15+$E19),$C19-SUM($F19:AE19),($C19/$B15))) -> 0.2019943871 | AG19: =IF($B15="n/a","n/a",IF(AG$3>($B15+$E19),$C19-SUM($F19:AF19),($C19/$B15))) -> 0.2019943871 | AH19: =IF($B15="n/a","n/a",IF(AH$3>($B15+$E19),$C19-SUM($F19:AG19),($C19/$B15))) -> 0.2019943871 | AI19: =IF($B15="n/a","n/a",IF(AI$3>($B15+$E19),$C19-SUM($F19:AH19),($C19/$B15))) -> 0.2019943871 | AJ19: =IF($B15="n/a","n/a",IF(AJ$3>($B15+$E19),$C19-SUM($F19:AI19),($C19/$B15))) -> 0.2019943871 | AK19: =IF($B15="n/a","n/a",IF(AK$3>($B15+$E19),$C19-SUM($F19:AJ19),($C19/$B15))) -> 0.2019943871 | AL19: =IF($B15="n/a","n/a",IF(AL$3>($B15+$E19),$C19-SUM($F19:AK19),($C19/$B15))) -> 0.2019943871 | AM19: =IF($B15="n/a","n/a",IF(AM$3>($B15+$E19),$C19-SUM($F19:AL19),($C19/$B15))) -> 0.2019943871 | AN19: =IF($B15="n/a","n/a",IF(AN$3>($B15+$E19),$C19-SUM($F19:AM19),($C19/$B15))) -> 0.2019943871 | AO19: =IF($B15="n/a","n/a",IF(AO$3>($B15+$E19),$C19-SUM($F19:AN19),($C19/$B15))) -> 8.881784197e-16 | AP19: =IF($B15="n/a","n/a",IF(AP$3>($B15+$E19),$C19-SUM($F19:AO19),($C19/$B15))) -> 0 | AQ19: =IF($B15="n/a","n/a",IF(AQ$3>($B15+$E19),$C19-SUM($F19:AP19),($C19/$B15))) -> 0 | AR19: =IF($B15="n/a","n/a",IF(AR$3>($B15+$E19),$C19-SUM($F19:AQ19),($C19/$B15))) -> 0 | AS19: =IF($B15="n/a","n/a",IF(AS$3>($B15+$E19),$C19-SUM($F19:AR19),($C19/$B15))) -> 0 | AT19: =IF($B15="n/a","n/a",IF(AT$3>($B15+$E19),$C19-SUM($F19:AS19),($C19/$B15))) -> 0 | AU19: =IF($B15="n/a","n/a",IF(AU$3>($B15+$E19),$C19-SUM($F19:AT19),($C19/$B15))) -> 0 | AV19: =IF($B15="n/a","n/a",IF(AV$3>($B15+$E19),$C19-SUM($F19:AU19),($C19/$B15))) -> 0 | AW19: =IF($B15="n/a","n/a",IF(AW$3>($B15+$E19),$C19-SUM($F19:AV19),($C19/$B15))) -> 0 | AX19: =IF($B15="n/a","n/a",IF(AX$3>($B15+$E19),$C19-SUM($F19:AW19),($C19/$B15))) -> 0 | AY19: =IF($B15="n/a","n/a",IF(AY$3>($B15+$E19),$C19-SUM($F19:AX19),($C19/$B15))) -> 0 | AZ19: =IF($B15="n/a","n/a",IF(AZ$3>($B15+$E19),$C19-SUM($F19:AY19),($C19/$B15))) -> 0 | BA19: =IF($B15="n/a","n/a",IF(BA$3>($B15+$E19),$C19-SUM($F19:AZ19),($C19/$B15))) -> 0 | BB19: =IF($B15="n/a","n/a",IF(BB$3>($B15+$E19),$C19-SUM($F19:BA19),($C19/$B15))) -> 0 | BC19: =IF($B15="n/a","n/a",IF(BC$3>($B15+$E19),$C19-SUM($F19:BB19),($C19/$B15))) -> 0 | BD19: =IF($B15="n/a","n/a",IF(BD$3>($B15+$E19),$C19-SUM($F19:BC19),($C19/$B15))) -> 0 | BE19: =IF($B15="n/a","n/a",IF(BE$3>($B15+$E19),$C19-SUM($F19:BD19),($C19/$B15))) -> 0 | BF19: =IF($B15="n/a","n/a",IF(BF$3>($B15+$E19),$C19-SUM($F19:BE19),($C19/$B15))) -> 0 | BG19: =IF($B15="n/a","n/a",IF(BG$3>($B15+$E19),$C19-SUM($F19:BF19),($C19/$B15))) -> 0 | BH19: =IF($B15="n/a","n/a",IF(BH$3>($B15+$E19),$C19-SUM($F19:BG19),($C19/$B15))) -> 0 | BI19: =IF($B15="n/a","n/a",IF(BI$3>($B15+$E19),$C19-SUM($F19:BH19),($C19/$B15))) -> 0 | BJ19: =IF($B15="n/a","n/a",IF(BJ$3>($B15+$E19),$C19-SUM($F19:BI19),($C19/$B15))) -> 0 | BK19: =IF($B15="n/a","n/a",IF(BK$3>($B15+$E19),$C19-SUM($F19:BJ19),($C19/$B15))) -> 0 | BL19: =IF($B15="n/a","n/a",IF(BL$3>($B15+$E19),$C19-SUM($F19:BK19),($C19/$B15))) -> 0 | BM19: =IF($B15="n/a","n/a",IF(BM$3>($B15+$E19),$C19-SUM($F19:BL19),($C19/$B15))) -> 0 | BN19: =IF($B15="n/a","n/a",IF(BN$3>($B15+$E19),$C19-SUM($F19:BM19),($C19/$B15))) -> 0
B20: 2012-13 Capex True up adj | C20: =OFFSET('I3 CAPEX '!$E$44,$A10,E20)+OFFSET('I3 CAPEX '!$E$79,$A10,E20) -> 0 | E20: 6 | L20: =IF($B15="n/a","n/a",IF(L$3>($B15+$E20),$C20-SUM($F20:K20),($C20/$B15))) -> 0 | M20: =IF($B15="n/a","n/a",IF(M$3>($B15+$E20),$C20-SUM($F20:L20),($C20/$B15))) -> 0 | N20: =IF($B15="n/a","n/a",IF(N$3>($B15+$E20),$C20-SUM($F20:M20),($C20/$B15))) -> 0 | O20: =IF($B15="n/a","n/a",IF(O$3>($B15+$E20),$C20-SUM($F20:N20),($C20/$B15))) -> 0 | P20: =IF($B15="n/a","n/a",IF(P$3>($B15+$E20),$C20-SUM($F20:O20),($C20/$B15))) -> 0 | Q20: =IF($B15="n/a","n/a",IF(Q$3>($B15+$E20),$C20-SUM($F20:P20),($C20/$B15))) -> 0 | R20: =IF($B15="n/a","n/a",IF(R$3>($B15+$E20),$C20-SUM($F20:Q20),($C20/$B15))) -> 0 | S20: =IF($B15="n/a","n/a",IF(S$3>($B15+$E20),$C20-SUM($F20:R20),($C20/$B15))) -> 0 | T20: =IF($B15="n/a","n/a",IF(T$3>($B15+$E20),$C20-SUM($F20:S20),($C20/$B15))) -> 0 | U20: =IF($B15="n/a","n/a",IF(U$3>($B15+$E20),$C20-SUM($F20:T20),($C20/$B15))) -> 0 | V20: =IF($B15="n/a","n/a",IF(V$3>($B15+$E20),$C20-SUM($F20:U20),($C20/$B15))) -> 0 | W20: =IF($B15="n/a","n/a",IF(W$3>($B15+$E20),$C20-SUM($F20:V20),($C20/$B15))) -> 0 | X20: =IF($B15="n/a","n/a",IF(X$3>($B15+$E20),$C20-SUM($F20:W20),($C20/$B15))) -> 0 | Y20: =IF($B15="n/a","n/a",IF(Y$3>($B15+$E20),$C20-SUM($F20:X20),($C20/$B15))) -> 0 | Z20: =IF($B15="n/a","n/a",IF(Z$3>($B15+$E20),$C20-SUM($F20:Y20),($C20/$B15))) -> 0 | AA20: =IF($B15="n/a","n/a",IF(AA$3>($B15+$E20),$C20-SUM($F20:Z20),($C20/$B15))) -> 0 | AB20: =IF($B15="n/a","n/a",IF(AB$3>($B15+$E20),$C20-SUM($F20:AA20),($C20/$B15))) -> 0 | AC20: =IF($B15="n/a","n/a",IF(AC$3>($B15+$E20),$C20-SUM($F20:AB20),($C20/$B15))) -> 0 | AD20: =IF($B15="n/a","n/a",IF(AD$3>($B15+$E20),$C20-SUM($F20:AC20),($C20/$B15))) -> 0 | AE20: =IF($B15="n/a","n/a",IF(AE$3>($B15+$E20),$C20-SUM($F20:AD20),($C20/$B15))) -> 0 | AF20: =IF($B15="n/a","n/a",IF(AF$3>($B15+$E20),$C20-SUM($F20:AE20),($C20/$B15))) -> 0 | AG20: =IF($B15="n/a","n/a",IF(AG$3>($B15+$E20),$C20-SUM($F20:AF20),($C20/$B15))) -> 0 | AH20: =IF($B15="n/a","n/a",IF(AH$3>($B15+$E20),$C20-SUM($F20:AG20),($C20/$B15))) -> 0 | AI20: =IF($B15="n/a","n/a",IF(AI$3>($B15+$E20),$C20-SUM($F20:AH20),($C20/$B15))) -> 0 | AJ20: =IF($B15="n/a","n/a",IF(AJ$3>($B15+$E20),$C20-SUM($F20:AI20),($C20/$B15))) -> 0 | AK20: =IF($B15="n/a","n/a",IF(AK$3>($B15+$E20),$C20-SUM($F20:AJ20),($C20/$B15))) -> 0 | AL20: =IF($B15="n/a","n/a",IF(AL$3>($B15+$E20),$C20-SUM($F20:AK20),($C20/$B15))) -> 0 | AM20: =IF($B15="n/a","n/a",IF(AM$3>($B15+$E20),$C20-SUM($F20:AL20),($C20/$B15))) -> 0 | AN20: =IF($B15="n/a","n/a",IF(AN$3>($B15+$E20),$C20-SUM($F20:AM20),($C20/$B15))) -> 0 | AO20: =IF($B15="n/a","n/a",IF(AO$3>($B15+$E20),$C20-SUM($F20:AN20),($C20/$B15))) -> 0 | AP20: =IF($B15="n/a","n/a",IF(AP$3>($B15+$E20),$C20-SUM($F20:AO20),($C20/$B15))) -> 0 | AQ20: =IF($B15="n/a","n/a",IF(AQ$3>($B15+$E20),$C20-SUM($F20:AP20),($C20/$B15))) -> 0 | AR20: =IF($B15="n/a","n/a",IF(AR$3>($B15+$E20),$C20-SUM($F20:AQ20),($C20/$B15))) -> 0 | AS20: =IF($B15="n/a","n/a",IF(AS$3>($B15+$E20),$C20-SUM($F20:AR20),($C20/$B15))) -> 0 | AT20: =IF($B15="n/a","n/a",IF(AT$3>($B15+$E20),$C20-SUM($F20:AS20),($C20/$B15))) -> 0 | AU20: =IF($B15="n/a","n/a",IF(AU$3>($B15+$E20),$C20-SUM($F20:AT20),($C20/$B15))) -> 0 | AV20: =IF($B15="n/a","n/a",IF(AV$3>($B15+$E20),$C20-SUM($F20:AU20),($C20/$B15))) -> 0 | AW20: =IF($B15="n/a","n/a",IF(AW$3>($B15+$E20),$C20-SUM($F20:AV20),($C20/$B15))) -> 0 | AX20: =IF($B15="n/a","n/a",IF(AX$3>($B15+$E20),$C20-SUM($F20:AW20),($C20/$B15))) -> 0 | AY20: =IF($B15="n/a","n/a",IF(AY$3>($B15+$E20),$C20-SUM($F20:AX20),($C20/$B15))) -> 0 | AZ20: =IF($B15="n/a","n/a",IF(AZ$3>($B15+$E20),$C20-SUM($F20:AY20),($C20/$B15))) -> 0 | BA20: =IF($B15="n/a","n/a",IF(BA$3>($B15+$E20),$C20-SUM($F20:AZ20),($C20/$B15))) -> 0 | BB20: =IF($B15="n/a","n/a",IF(BB$3>($B15+$E20),$C20-SUM($F20:BA20),($C20/$B15))) -> 0 | BC20: =IF($B15="n/a","n/a",IF(BC$3>($B15+$E20),$C20-SUM($F20:BB20),($C20/$B15))) -> 0 | BD20: =IF($B15="n/a","n/a",IF(BD$3>($B15+$E20),$C20-SUM($F20:BC20),($C20/$B15))) -> 0 | BE20: =IF($B15="n/a","n/a",IF(BE$3>($B15+$E20),$C20-SUM($F20:BD20),($C20/$B15))) -> 0 | BF20: =IF($B15="n/a","n/a",IF(BF$3>($B15+$E20),$C20-SUM($F20:BE20),($C20/$B15))) -> 0 | BG20: =IF($B15="n/a","n/a",IF(BG$3>($B15+$E20),$C20-SUM($F20:BF20),($C20/$B15))) -> 0 | BH20: =IF($B15="n/a","n/a",IF(BH$3>($B15+$E20),$C20-SUM($F20:BG20),($C20/$B15))) -> 0 | BI20: =IF($B15="n/a","n/a",IF(BI$3>($B15+$E20),$C20-SUM($F20:BH20),($C20/$B15))) -> 0 | BJ20: =IF($B15="n/a","n/a",IF(BJ$3>($B15+$E20),$C20-SUM($F20:BI20),($C20/$B15))) -> 0 | BK20: =IF($B15="n/a","n/a",IF(BK$3>($B15+$E20),$C20-SUM($F20:BJ20),($C20/$B15))) -> 0 | BL20: =IF($B15="n/a","n/a",IF(BL$3>($B15+$E20),$C20-SUM($F20:BK20),($C20/$B15))) -> 0 | BM20: =IF($B15="n/a","n/a",IF(BM$3>($B15+$E20),$C20-SUM($F20:BL20),($C20/$B15))) -> 0 | BN20: =IF($B15="n/a","n/a",IF(BN$3>($B15+$E20),$C20-SUM($F20:BM20),($C20/$B15))) -> 0
B21: =+OFFSET('I3 CAPEX '!$E$79,$A10,E18) -> 0.5653778432 | C21: =OFFSET('I3 CAPEX '!$E$44,$A10,E21)+OFFSET('I3 CAPEX '!$E$79,$A10,E21) -> 0 | E21: 7 | M21: =IF($B15="n/a","n/a",IF(M$3>($B15+$E21),$C21-SUM($F21:L21),($C21/$B15))) -> 0 | N21: =IF($B15="n/a","n/a",IF(N$3>($B15+$E21),$C21-SUM($F21:M21),($C21/$B15))) -> 0 | O21: =IF($B15="n/a","n/a",IF(O$3>($B15+$E21),$C21-SUM($F21:N21),($C21/$B15))) -> 0 | P21: =IF($B15="n/a","n/a",IF(P$3>($B15+$E21),$C21-SUM($F21:O21),($C21/$B15))) -> 0 | Q21: =IF($B15="n/a","n/a",IF(Q$3>($B15+$E21),$C21-SUM($F21:P21),($C21/$B15))) -> 0 | R21: =IF($B15="n/a","n/a",IF(R$3>($B15+$E21),$C21-SUM($F21:Q21),($C21/$B15))) -> 0 | S21: =IF($B15="n/a","n/a",IF(S$3>($B15+$E21),$C21-SUM($F21:R21),($C21/$B15))) -> 0 | T21: =IF($B15="n/a","n/a",IF(T$3>($B15+$E21),$C21-SUM($F21:S21),($C21/$B15))) -> 0 | U21: =IF($B15="n/a","n/a",IF(U$3>($B15+$E21),$C21-SUM($F21:T21),($C21/$B15))) -> 0 | V21: =IF($B15="n/a","n/a",IF(V$3>($B15+$E21),$C21-SUM($F21:U21),($C21/$B15))) -> 0 | W21: =IF($B15="n/a","n/a",IF(W$3>($B15+$E21),$C21-SUM($F21:V21),($C21/$B15))) -> 0 | X21: =IF($B15="n/a","n/a",IF(X$3>($B15+$E21),$C21-SUM($F21:W21),($C21/$B15))) -> 0 | Y21: =IF($B15="n/a","n/a",IF(Y$3>($B15+$E21),$C21-SUM($F21:X21),($C21/$B15))) -> 0 | Z21: =IF($B15="n/a","n/a",IF(Z$3>($B15+$E21),$C21-SUM($F21:Y21),($C21/$B15))) -> 0 | AA21: =IF($B15="n/a","n/a",IF(AA$3>($B15+$E21),$C21-SUM($F21:Z21),($C21/$B15))) -> 0 | AB21: =IF($B15="n/a","n/a",IF(AB$3>($B15+$E21),$C21-SUM($F21:AA21),($C21/$B15))) -> 0 | AC21: =IF($B15="n/a","n/a",IF(AC$3>($B15+$E21),$C21-SUM($F21:AB21),($C21/$B15))) -> 0 | AD21: =IF($B15="n/a","n/a",IF(AD$3>($B15+$E21),$C21-SUM($F21:AC21),($C21/$B15))) -> 0 | AE21: =IF($B15="n/a","n/a",IF(AE$3>($B15+$E21),$C21-SUM($F21:AD21),($C21/$B15))) -> 0 | AF21: =IF($B15="n/a","n/a",IF(AF$3>($B15+$E21),$C21-SUM($F21:AE21),($C21/$B15))) -> 0 | AG21: =IF($B15="n/a","n/a",IF(AG$3>($B15+$E21),$C21-SUM($F21:AF21),($C21/$B15))) -> 0 | AH21: =IF($B15="n/a","n/a",IF(AH$3>($B15+$E21),$C21-SUM($F21:AG21),($C21/$B15))) -> 0 | AI21: =IF($B15="n/a","n/a",IF(AI$3>($B15+$E21),$C21-SUM($F21:AH21),($C21/$B15))) -> 0 | AJ21: =IF($B15="n/a","n/a",IF(AJ$3>($B15+$E21),$C21-SUM($F21:AI21),($C21/$B15))) -> 0 | AK21: =IF($B15="n/a","n/a",IF(AK$3>($B15+$E21),$C21-SUM($F21:AJ21),($C21/$B15))) -> 0 | AL21: =IF($B15="n/a","n/a",IF(AL$3>($B15+$E21),$C21-SUM($F21:AK21),($C21/$B15))) -> 0 | AM21: =IF($B15="n/a","n/a",IF(AM$3>($B15+$E21),$C21-SUM($F21:AL21),($C21/$B15))) -> 0 | AN21: =IF($B15="n/a","n/a",IF(AN$3>($B15+$E21),$C21-SUM($F21:AM21),($C21/$B15))) -> 0 | AO21: =IF($B15="n/a","n/a",IF(AO$3>($B15+$E21),$C21-SUM($F21:AN21),($C21/$B15))) -> 0 | AP21: =IF($B15="n/a","n/a",IF(AP$3>($B15+$E21),$C21-SUM($F21:AO21),($C21/$B15))) -> 0 | AQ21: =IF($B15="n/a","n/a",IF(AQ$3>($B15+$E21),$C21-SUM($F21:AP21),($C21/$B15))) -> 0 | AR21: =IF($B15="n/a","n/a",IF(AR$3>($B15+$E21),$C21-SUM($F21:AQ21),($C21/$B15))) -> 0 | AS21: =IF($B15="n/a","n/a",IF(AS$3>($B15+$E21),$C21-SUM($F21:AR21),($C21/$B15))) -> 0 | AT21: =IF($B15="n/a","n/a",IF(AT$3>($B15+$E21),$C21-SUM($F21:AS21),($C21/$B15))) -> 0 | AU21: =IF($B15="n/a","n/a",IF(AU$3>($B15+$E21),$C21-SUM($F21:AT21),($C21/$B15))) -> 0 | AV21: =IF($B15="n/a","n/a",IF(AV$3>($B15+$E21),$C21-SUM($F21:AU21),($C21/$B15))) -> 0 | AW21: =IF($B15="n/a","n/a",IF(AW$3>($B15+$E21),$C21-SUM($F21:AV21),($C21/$B15))) -> 0 | AX21: =IF($B15="n/a","n/a",IF(AX$3>($B15+$E21),$C21-SUM($F21:AW21),($C21/$B15))) -> 0 | AY21: =IF($B15="n/a","n/a",IF(AY$3>($B15+$E21),$C21-SUM($F21:AX21),($C21/$B15))) -> 0 | AZ21: =IF($B15="n/a","n/a",IF(AZ$3>($B15+$E21),$C21-SUM($F21:AY21),($C21/$B15))) -> 0 | BA21: =IF($B15="n/a","n/a",IF(BA$3>($B15+$E21),$C21-SUM($F21:AZ21),($C21/$B15))) -> 0 | BB21: =IF($B15="n/a","n/a",IF(BB$3>($B15+$E21),$C21-SUM($F21:BA21),($C21/$B15))) -> 0 | BC21: =IF($B15="n/a","n/a",IF(BC$3>($B15+$E21),$C21-SUM($F21:BB21),($C21/$B15))) -> 0 | BD21: =IF($B15="n/a","n/a",IF(BD$3>($B15+$E21),$C21-SUM($F21:BC21),($C21/$B15))) -> 0 | BE21: =IF($B15="n/a","n/a",IF(BE$3>($B15+$E21),$C21-SUM($F21:BD21),($C21/$B15))) -> 0 | BF21: =IF($B15="n/a","n/a",IF(BF$3>($B15+$E21),$C21-SUM($F21:BE21),($C21/$B15))) -> 0 | BG21: =IF($B15="n/a","n/a",IF(BG$3>($B15+$E21),$C21-SUM($F21:BF21),($C21/$B15))) -> 0 | BH21: =IF($B15="n/a","n/a",IF(BH$3>($B15+$E21),$C21-SUM($F21:BG21),($C21/$B15))) -> 0 | BI21: =IF($B15="n/a","n/a",IF(BI$3>($B15+$E21),$C21-SUM($F21:BH21),($C21/$B15))) -> 0 | BJ21: =IF($B15="n/a","n/a",IF(BJ$3>($B15+$E21),$C21-SUM($F21:BI21),($C21/$B15))) -> 0 | BK21: =IF($B15="n/a","n/a",IF(BK$3>($B15+$E21),$C21-SUM($F21:BJ21),($C21/$B15))) -> 0 | BL21: =IF($B15="n/a","n/a",IF(BL$3>($B15+$E21),$C21-SUM($F21:BK21),($C21/$B15))) -> 0 | BM21: =IF($B15="n/a","n/a",IF(BM$3>($B15+$E21),$C21-SUM($F21:BL21),($C21/$B15))) -> 0 | BN21: =IF($B15="n/a","n/a",IF(BN$3>($B15+$E21),$C21-SUM($F21:BM21),($C21/$B15))) -> 0
B22: Accel Dep adj | C22: =OFFSET('I3 CAPEX '!$E$44,$A10,E22)+OFFSET('I3 CAPEX '!$E$79,$A10,E22) -> 0 | E22: 8 | N22: =IF($B15="n/a","n/a",IF(N$3>($B15+$E22),$C22-SUM($F22:M22),($C22/$B15))) -> 0 | O22: =IF($B15="n/a","n/a",IF(O$3>($B15+$E22),$C22-SUM($F22:N22),($C22/$B15))) -> 0 | P22: =IF($B15="n/a","n/a",IF(P$3>($B15+$E22),$C22-SUM($F22:O22),($C22/$B15))) -> 0 | Q22: =IF($B15="n/a","n/a",IF(Q$3>($B15+$E22),$C22-SUM($F22:P22),($C22/$B15))) -> 0 | R22: =IF($B15="n/a","n/a",IF(R$3>($B15+$E22),$C22-SUM($F22:Q22),($C22/$B15))) -> 0 | S22: =IF($B15="n/a","n/a",IF(S$3>($B15+$E22),$C22-SUM($F22:R22),($C22/$B15))) -> 0 | T22: =IF($B15="n/a","n/a",IF(T$3>($B15+$E22),$C22-SUM($F22:S22),($C22/$B15))) -> 0 | U22: =IF($B15="n/a","n/a",IF(U$3>($B15+$E22),$C22-SUM($F22:T22),($C22/$B15))) -> 0 | V22: =IF($B15="n/a","n/a",IF(V$3>($B15+$E22),$C22-SUM($F22:U22),($C22/$B15))) -> 0 | W22: =IF($B15="n/a","n/a",IF(W$3>($B15+$E22),$C22-SUM($F22:V22),($C22/$B15))) -> 0 | X22: =IF($B15="n/a","n/a",IF(X$3>($B15+$E22),$C22-SUM($F22:W22),($C22/$B15))) -> 0 | Y22: =IF($B15="n/a","n/a",IF(Y$3>($B15+$E22),$C22-SUM($F22:X22),($C22/$B15))) -> 0 | Z22: =IF($B15="n/a","n/a",IF(Z$3>($B15+$E22),$C22-SUM($F22:Y22),($C22/$B15))) -> 0 | AA22: =IF($B15="n/a","n/a",IF(AA$3>($B15+$E22),$C22-SUM($F22:Z22),($C22/$B15))) -> 0 | AB22: =IF($B15="n/a","n/a",IF(AB$3>($B15+$E22),$C22-SUM($F22:AA22),($C22/$B15))) -> 0 | AC22: =IF($B15="n/a","n/a",IF(AC$3>($B15+$E22),$C22-SUM($F22:AB22),($C22/$B15))) -> 0 | AD22: =IF($B15="n/a","n/a",IF(AD$3>($B15+$E22),$C22-SUM($F22:AC22),($C22/$B15))) -> 0 | AE22: =IF($B15="n/a","n/a",IF(AE$3>($B15+$E22),$C22-SUM($F22:AD22),($C22/$B15))) -> 0 | AF22: =IF($B15="n/a","n/a",IF(AF$3>($B15+$E22),$C22-SUM($F22:AE22),($C22/$B15))) -> 0 | AG22: =IF($B15="n/a","n/a",IF(AG$3>($B15+$E22),$C22-SUM($F22:AF22),($C22/$B15))) -> 0 | AH22: =IF($B15="n/a","n/a",IF(AH$3>($B15+$E22),$C22-SUM($F22:AG22),($C22/$B15))) -> 0 | AI22: =IF($B15="n/a","n/a",IF(AI$3>($B15+$E22),$C22-SUM($F22:AH22),($C22/$B15))) -> 0 | AJ22: =IF($B15="n/a","n/a",IF(AJ$3>($B15+$E22),$C22-SUM($F22:AI22),($C22/$B15))) -> 0 | AK22: =IF($B15="n/a","n/a",IF(AK$3>($B15+$E22),$C22-SUM($F22:AJ22),($C22/$B15))) -> 0 | AL22: =IF($B15="n/a","n/a",IF(AL$3>($B15+$E22),$C22-SUM($F22:AK22),($C22/$B15))) -> 0 | AM22: =IF($B15="n/a","n/a",IF(AM$3>($B15+$E22),$C22-SUM($F22:AL22),($C22/$B15))) -> 0 | AN22: =IF($B15="n/a","n/a",IF(AN$3>($B15+$E22),$C22-SUM($F22:AM22),($C22/$B15))) -> 0 | AO22: =IF($B15="n/a","n/a",IF(AO$3>($B15+$E22),$C22-SUM($F22:AN22),($C22/$B15))) -> 0 | AP22: =IF($B15="n/a","n/a",IF(AP$3>($B15+$E22),$C22-SUM($F22:AO22),($C22/$B15))) -> 0 | AQ22: =IF($B15="n/a","n/a",IF(AQ$3>($B15+$E22),$C22-SUM($F22:AP22),($C22/$B15))) -> 0 | AR22: =IF($B15="n/a","n/a",IF(AR$3>($B15+$E22),$C22-SUM($F22:AQ22),($C22/$B15))) -> 0 | AS22: =IF($B15="n/a","n/a",IF(AS$3>($B15+$E22),$C22-SUM($F22:AR22),($C22/$B15))) -> 0 | AT22: =IF($B15="n/a","n/a",IF(AT$3>($B15+$E22),$C22-SUM($F22:AS22),($C22/$B15))) -> 0 | AU22: =IF($B15="n/a","n/a",IF(AU$3>($B15+$E22),$C22-SUM($F22:AT22),($C22/$B15))) -> 0 | AV22: =IF($B15="n/a","n/a",IF(AV$3>($B15+$E22),$C22-SUM($F22:AU22),($C22/$B15))) -> 0 | AW22: =IF($B15="n/a","n/a",IF(AW$3>($B15+$E22),$C22-SUM($F22:AV22),($C22/$B15))) -> 0 | AX22: =IF($B15="n/a","n/a",IF(AX$3>($B15+$E22),$C22-SUM($F22:AW22),($C22/$B15))) -> 0 | AY22: =IF($B15="n/a","n/a",IF(AY$3>($B15+$E22),$C22-SUM($F22:AX22),($C22/$B15))) -> 0 | AZ22: =IF($B15="n/a","n/a",IF(AZ$3>($B15+$E22),$C22-SUM($F22:AY22),($C22/$B15))) -> 0 | BA22: =IF($B15="n/a","n/a",IF(BA$3>($B15+$E22),$C22-SUM($F22:AZ22),($C22/$B15))) -> 0 | BB22: =IF($B15="n/a","n/a",IF(BB$3>($B15+$E22),$C22-SUM($F22:BA22),($C22/$B15))) -> 0 | BC22: =IF($B15="n/a","n/a",IF(BC$3>($B15+$E22),$C22-SUM($F22:BB22),($C22/$B15))) -> 0 | BD22: =IF($B15="n/a","n/a",IF(BD$3>($B15+$E22),$C22-SUM($F22:BC22),($C22/$B15))) -> 0 | BE22: =IF($B15="n/a","n/a",IF(BE$3>($B15+$E22),$C22-SUM($F22:BD22),($C22/$B15))) -> 0 | BF22: =IF($B15="n/a","n/a",IF(BF$3>($B15+$E22),$C22-SUM($F22:BE22),($C22/$B15))) -> 0 | BG22: =IF($B15="n/a","n/a",IF(BG$3>($B15+$E22),$C22-SUM($F22:BF22),($C22/$B15))) -> 0 | BH22: =IF($B15="n/a","n/a",IF(BH$3>($B15+$E22),$C22-SUM($F22:BG22),($C22/$B15))) -> 0 | BI22: =IF($B15="n/a","n/a",IF(BI$3>($B15+$E22),$C22-SUM($F22:BH22),($C22/$B15))) -> 0 | BJ22: =IF($B15="n/a","n/a",IF(BJ$3>($B15+$E22),$C22-SUM($F22:BI22),($C22/$B15))) -> 0 | BK22: =IF($B15="n/a","n/a",IF(BK$3>($B15+$E22),$C22-SUM($F22:BJ22),($C22/$B15))) -> 0 | BL22: =IF($B15="n/a","n/a",IF(BL$3>($B15+$E22),$C22-SUM($F22:BK22),($C22/$B15))) -> 0 | BM22: =IF($B15="n/a","n/a",IF(BM$3>($B15+$E22),$C22-SUM($F22:BL22),($C22/$B15))) -> 0 | BN22: =IF($B15="n/a","n/a",IF(BN$3>($B15+$E22),$C22-SUM($F22:BM22),($C22/$B15))) -> 0
B23: =INDEX('I3 CAPEX '!$AF$80:$AF$109,A10) -> 0 | C23: =OFFSET('I3 CAPEX '!$E$44,$A10,E23)+OFFSET('I3 CAPEX '!$E$79,$A10,E23) -> 0 | E23: 9 | O23: =IF($B15="n/a","n/a",IF(O$3>($B15+$E23),$C23-SUM($F23:N23),($C23/$B15))) -> 0 | P23: =IF($B15="n/a","n/a",IF(P$3>($B15+$E23),$C23-SUM($F23:O23),($C23/$B15))) -> 0 | Q23: =IF($B15="n/a","n/a",IF(Q$3>($B15+$E23),$C23-SUM($F23:P23),($C23/$B15))) -> 0 | R23: =IF($B15="n/a","n/a",IF(R$3>($B15+$E23),$C23-SUM($F23:Q23),($C23/$B15))) -> 0 | S23: =IF($B15="n/a","n/a",IF(S$3>($B15+$E23),$C23-SUM($F23:R23),($C23/$B15))) -> 0 | T23: =IF($B15="n/a","n/a",IF(T$3>($B15+$E23),$C23-SUM($F23:S23),($C23/$B15))) -> 0 | U23: =IF($B15="n/a","n/a",IF(U$3>($B15+$E23),$C23-SUM($F23:T23),($C23/$B15))) -> 0 | V23: =IF($B15="n/a","n/a",IF(V$3>($B15+$E23),$C23-SUM($F23:U23),($C23/$B15))) -> 0 | W23: =IF($B15="n/a","n/a",IF(W$3>($B15+$E23),$C23-SUM($F23:V23),($C23/$B15))) -> 0 | X23: =IF($B15="n/a","n/a",IF(X$3>($B15+$E23),$C23-SUM($F23:W23),($C23/$B15))) -> 0 | Y23: =IF($B15="n/a","n/a",IF(Y$3>($B15+$E23),$C23-SUM($F23:X23),($C23/$B15))) -> 0 | Z23: =IF($B15="n/a","n/a",IF(Z$3>($B15+$E23),$C23-SUM($F23:Y23),($C23/$B15))) -> 0 | AA23: =IF($B15="n/a","n/a",IF(AA$3>($B15+$E23),$C23-SUM($F23:Z23),($C23/$B15))) -> 0 | AB23: =IF($B15="n/a","n/a",IF(AB$3>($B15+$E23),$C23-SUM($F23:AA23),($C23/$B15))) -> 0 | AC23: =IF($B15="n/a","n/a",IF(AC$3>($B15+$E23),$C23-SUM($F23:AB23),($C23/$B15))) -> 0 | AD23: =IF($B15="n/a","n/a",IF(AD$3>($B15+$E23),$C23-SUM($F23:AC23),($C23/$B15))) -> 0 | AE23: =IF($B15="n/a","n/a",IF(AE$3>($B15+$E23),$C23-SUM($F23:AD23),($C23/$B15))) -> 0 | AF23: =IF($B15="n/a","n/a",IF(AF$3>($B15+$E23),$C23-SUM($F23:AE23),($C23/$B15))) -> 0 | AG23: =IF($B15="n/a","n/a",IF(AG$3>($B15+$E23),$C23-SUM($F23:AF23),($C23/$B15))) -> 0 | AH23: =IF($B15="n/a","n/a",IF(AH$3>($B15+$E23),$C23-SUM($F23:AG23),($C23/$B15))) -> 0 | AI23: =IF($B15="n/a","n/a",IF(AI$3>($B15+$E23),$C23-SUM($F23:AH23),($C23/$B15))) -> 0 | AJ23: =IF($B15="n/a","n/a",IF(AJ$3>($B15+$E23),$C23-SUM($F23:AI23),($C23/$B15))) -> 0 | AK23: =IF($B15="n/a","n/a",IF(AK$3>($B15+$E23),$C23-SUM($F23:AJ23),($C23/$B15))) -> 0 | AL23: =IF($B15="n/a","n/a",IF(AL$3>($B15+$E23),$C23-SUM($F23:AK23),($C23/$B15))) -> 0 | AM23: =IF($B15="n/a","n/a",IF(AM$3>($B15+$E23),$C23-SUM($F23:AL23),($C23/$B15))) -> 0 | AN23: =IF($B15="n/a","n/a",IF(AN$3>($B15+$E23),$C23-SUM($F23:AM23),($C23/$B15))) -> 0 | AO23: =IF($B15="n/a","n/a",IF(AO$3>($B15+$E23),$C23-SUM($F23:AN23),($C23/$B15))) -> 0 | AP23: =IF($B15="n/a","n/a",IF(AP$3>($B15+$E23),$C23-SUM($F23:AO23),($C23/$B15))) -> 0 | AQ23: =IF($B15="n/a","n/a",IF(AQ$3>($B15+$E23),$C23-SUM($F23:AP23),($C23/$B15))) -> 0 | AR23: =IF($B15="n/a","n/a",IF(AR$3>($B15+$E23),$C23-SUM($F23:AQ23),($C23/$B15))) -> 0 | AS23: =IF($B15="n/a","n/a",IF(AS$3>($B15+$E23),$C23-SUM($F23:AR23),($C23/$B15))) -> 0 | AT23: =IF($B15="n/a","n/a",IF(AT$3>($B15+$E23),$C23-SUM($F23:AS23),($C23/$B15))) -> 0 | AU23: =IF($B15="n/a","n/a",IF(AU$3>($B15+$E23),$C23-SUM($F23:AT23),($C23/$B15))) -> 0 | AV23: =IF($B15="n/a","n/a",IF(AV$3>($B15+$E23),$C23-SUM($F23:AU23),($C23/$B15))) -> 0 | AW23: =IF($B15="n/a","n/a",IF(AW$3>($B15+$E23),$C23-SUM($F23:AV23),($C23/$B15))) -> 0 | AX23: =IF($B15="n/a","n/a",IF(AX$3>($B15+$E23),$C23-SUM($F23:AW23),($C23/$B15))) -> 0 | AY23: =IF($B15="n/a","n/a",IF(AY$3>($B15+$E23),$C23-SUM($F23:AX23),($C23/$B15))) -> 0 | AZ23: =IF($B15="n/a","n/a",IF(AZ$3>($B15+$E23),$C23-SUM($F23:AY23),($C23/$B15))) -> 0 | BA23: =IF($B15="n/a","n/a",IF(BA$3>($B15+$E23),$C23-SUM($F23:AZ23),($C23/$B15))) -> 0 | BB23: =IF($B15="n/a","n/a",IF(BB$3>($B15+$E23),$C23-SUM($F23:BA23),($C23/$B15))) -> 0 | BC23: =IF($B15="n/a","n/a",IF(BC$3>($B15+$E23),$C23-SUM($F23:BB23),($C23/$B15))) -> 0 | BD23: =IF($B15="n/a","n/a",IF(BD$3>($B15+$E23),$C23-SUM($F23:BC23),($C23/$B15))) -> 0 | BE23: =IF($B15="n/a","n/a",IF(BE$3>($B15+$E23),$C23-SUM($F23:BD23),($C23/$B15))) -> 0 | BF23: =IF($B15="n/a","n/a",IF(BF$3>($B15+$E23),$C23-SUM($F23:BE23),($C23/$B15))) -> 0 | BG23: =IF($B15="n/a","n/a",IF(BG$3>($B15+$E23),$C23-SUM($F23:BF23),($C23/$B15))) -> 0 | BH23: =IF($B15="n/a","n/a",IF(BH$3>($B15+$E23),$C23-SUM($F23:BG23),($C23/$B15))) -> 0 | BI23: =IF($B15="n/a","n/a",IF(BI$3>($B15+$E23),$C23-SUM($F23:BH23),($C23/$B15))) -> 0 | BJ23: =IF($B15="n/a","n/a",IF(BJ$3>($B15+$E23),$C23-SUM($F23:BI23),($C23/$B15))) -> 0 | BK23: =IF($B15="n/a","n/a",IF(BK$3>($B15+$E23),$C23-SUM($F23:BJ23),($C23/$B15))) -> 0 | BL23: =IF($B15="n/a","n/a",IF(BL$3>($B15+$E23),$C23-SUM($F23:BK23),($C23/$B15))) -> 0 | BM23: =IF($B15="n/a","n/a",IF(BM$3>($B15+$E23),$C23-SUM($F23:BL23),($C23/$B15))) -> 0 | BN23: =IF($B15="n/a","n/a",IF(BN$3>($B15+$E23),$C23-SUM($F23:BM23),($C23/$B15))) -> 0
C24: =OFFSET('I3 CAPEX '!$E$44,$A10,E24)+OFFSET('I3 CAPEX '!$E$79,$A10,E24) -> 0 | E24: 10 | P24: =IF($B15="n/a","n/a",IF(P$3>($B15+$E24),$C24-SUM($F24:O24),($C24/$B15))) -> 0 | Q24: =IF($B15="n/a","n/a",IF(Q$3>($B15+$E24),$C24-SUM($F24:P24),($C24/$B15))) -> 0 | R24: =IF($B15="n/a","n/a",IF(R$3>($B15+$E24),$C24-SUM($F24:Q24),($C24/$B15))) -> 0 | S24: =IF($B15="n/a","n/a",IF(S$3>($B15+$E24),$C24-SUM($F24:R24),($C24/$B15))) -> 0 | T24: =IF($B15="n/a","n/a",IF(T$3>($B15+$E24),$C24-SUM($F24:S24),($C24/$B15))) -> 0 | U24: =IF($B15="n/a","n/a",IF(U$3>($B15+$E24),$C24-SUM($F24:T24),($C24/$B15))) -> 0 | V24: =IF($B15="n/a","n/a",IF(V$3>($B15+$E24),$C24-SUM($F24:U24),($C24/$B15))) -> 0 | W24: =IF($B15="n/a","n/a",IF(W$3>($B15+$E24),$C24-SUM($F24:V24),($C24/$B15))) -> 0 | X24: =IF($B15="n/a","n/a",IF(X$3>($B15+$E24),$C24-SUM($F24:W24),($C24/$B15))) -> 0 | Y24: =IF($B15="n/a","n/a",IF(Y$3>($B15+$E24),$C24-SUM($F24:X24),($C24/$B15))) -> 0 | Z24: =IF($B15="n/a","n/a",IF(Z$3>($B15+$E24),$C24-SUM($F24:Y24),($C24/$B15))) -> 0 | AA24: =IF($B15="n/a","n/a",IF(AA$3>($B15+$E24),$C24-SUM($F24:Z24),($C24/$B15))) -> 0 | AB24: =IF($B15="n/a","n/a",IF(AB$3>($B15+$E24),$C24-SUM($F24:AA24),($C24/$B15))) -> 0 | AC24: =IF($B15="n/a","n/a",IF(AC$3>($B15+$E24),$C24-SUM($F24:AB24),($C24/$B15))) -> 0 | AD24: =IF($B15="n/a","n/a",IF(AD$3>($B15+$E24),$C24-SUM($F24:AC24),($C24/$B15))) -> 0 | AE24: =IF($B15="n/a","n/a",IF(AE$3>($B15+$E24),$C24-SUM($F24:AD24),($C24/$B15))) -> 0 | AF24: =IF($B15="n/a","n/a",IF(AF$3>($B15+$E24),$C24-SUM($F24:AE24),($C24/$B15))) -> 0 | AG24: =IF($B15="n/a","n/a",IF(AG$3>($B15+$E24),$C24-SUM($F24:AF24),($C24/$B15))) -> 0 | AH24: =IF($B15="n/a","n/a",IF(AH$3>($B15+$E24),$C24-SUM($F24:AG24),($C24/$B15))) -> 0 | AI24: =IF($B15="n/a","n/a",IF(AI$3>($B15+$E24),$C24-SUM($F24:AH24),($C24/$B15))) -> 0 | AJ24: =IF($B15="n/a","n/a",IF(AJ$3>($B15+$E24),$C24-SUM($F24:AI24),($C24/$B15))) -> 0 | AK24: =IF($B15="n/a","n/a",IF(AK$3>($B15+$E24),$C24-SUM($F24:AJ24),($C24/$B15))) -> 0 | AL24: =IF($B15="n/a","n/a",IF(AL$3>($B15+$E24),$C24-SUM($F24:AK24),($C24/$B15))) -> 0 | AM24: =IF($B15="n/a","n/a",IF(AM$3>($B15+$E24),$C24-SUM($F24:AL24),($C24/$B15))) -> 0 | AN24: =IF($B15="n/a","n/a",IF(AN$3>($B15+$E24),$C24-SUM($F24:AM24),($C24/$B15))) -> 0 | AO24: =IF($B15="n/a","n/a",IF(AO$3>($B15+$E24),$C24-SUM($F24:AN24),($C24/$B15))) -> 0 | AP24: =IF($B15="n/a","n/a",IF(AP$3>($B15+$E24),$C24-SUM($F24:AO24),($C24/$B15))) -> 0 | AQ24: =IF($B15="n/a","n/a",IF(AQ$3>($B15+$E24),$C24-SUM($F24:AP24),($C24/$B15))) -> 0 | AR24: =IF($B15="n/a","n/a",IF(AR$3>($B15+$E24),$C24-SUM($F24:AQ24),($C24/$B15))) -> 0 | AS24: =IF($B15="n/a","n/a",IF(AS$3>($B15+$E24),$C24-SUM($F24:AR24),($C24/$B15))) -> 0 | AT24: =IF($B15="n/a","n/a",IF(AT$3>($B15+$E24),$C24-SUM($F24:AS24),($C24/$B15))) -> 0 | AU24: =IF($B15="n/a","n/a",IF(AU$3>($B15+$E24),$C24-SUM($F24:AT24),($C24/$B15))) -> 0 | AV24: =IF($B15="n/a","n/a",IF(AV$3>($B15+$E24),$C24-SUM($F24:AU24),($C24/$B15))) -> 0 | AW24: =IF($B15="n/a","n/a",IF(AW$3>($B15+$E24),$C24-SUM($F24:AV24),($C24/$B15))) -> 0 | AX24: =IF($B15="n/a","n/a",IF(AX$3>($B15+$E24),$C24-SUM($F24:AW24),($C24/$B15))) -> 0 | AY24: =IF($B15="n/a","n/a",IF(AY$3>($B15+$E24),$C24-SUM($F24:AX24),($C24/$B15))) -> 0 | AZ24: =IF($B15="n/a","n/a",IF(AZ$3>($B15+$E24),$C24-SUM($F24:AY24),($C24/$B15))) -> 0 | BA24: =IF($B15="n/a","n/a",IF(BA$3>($B15+$E24),$C24-SUM($F24:AZ24),($C24/$B15))) -> 0 | BB24: =IF($B15="n/a","n/a",IF(BB$3>($B15+$E24),$C24-SUM($F24:BA24),($C24/$B15))) -> 0 | BC24: =IF($B15="n/a","n/a",IF(BC$3>($B15+$E24),$C24-SUM($F24:BB24),($C24/$B15))) -> 0 | BD24: =IF($B15="n/a","n/a",IF(BD$3>($B15+$E24),$C24-SUM($F24:BC24),($C24/$B15))) -> 0 | BE24: =IF($B15="n/a","n/a",IF(BE$3>($B15+$E24),$C24-SUM($F24:BD24),($C24/$B15))) -> 0 | BF24: =IF($B15="n/a","n/a",IF(BF$3>($B15+$E24),$C24-SUM($F24:BE24),($C24/$B15))) -> 0 | BG24: =IF($B15="n/a","n/a",IF(BG$3>($B15+$E24),$C24-SUM($F24:BF24),($C24/$B15))) -> 0 | BH24: =IF($B15="n/a","n/a",IF(BH$3>($B15+$E24),$C24-SUM($F24:BG24),($C24/$B15))) -> 0 | BI24: =IF($B15="n/a","n/a",IF(BI$3>($B15+$E24),$C24-SUM($F24:BH24),($C24/$B15))) -> 0 | BJ24: =IF($B15="n/a","n/a",IF(BJ$3>($B15+$E24),$C24-SUM($F24:BI24),($C24/$B15))) -> 0 | BK24: =IF($B15="n/a","n/a",IF(BK$3>($B15+$E24),$C24-SUM($F24:BJ24),($C24/$B15))) -> 0 | BL24: =IF($B15="n/a","n/a",IF(BL$3>($B15+$E24),$C24-SUM($F24:BK24),($C24/$B15))) -> 0 | BM24: =IF($B15="n/a","n/a",IF(BM$3>($B15+$E24),$C24-SUM($F24:BL24),($C24/$B15))) -> 0 | BN24: =IF($B15="n/a","n/a",IF(BN$3>($B15+$E24),$C24-SUM($F24:BM24),($C24/$B15))) -> 0
E25: 11
E26: 12
E27: 13
E28: 14
E29: 15
C30: =+B10 -> Commercial Buildings | E30: Total | F30: =SUBTOTAL(9,F11:F29) -> 0.4936729601 | G30: =SUBTOTAL(9,G11:G29) -> 0.5032193641 | H30: 0.5176735108 | I30: 0.5412694384 | J30: 0.5672790686 | K30: =SUBTOTAL(9,K11,K14:K29) -> 0.7918885695 | L30: =SUBTOTAL(9,L11,L14:L29) -> 0.7918885695 | M30: =SUBTOTAL(9,M11,M14:M29) -> 0.7918885695 | N30: =SUBTOTAL(9,N11,N14:N29) -> 0.7918885695 | O30: =SUBTOTAL(9,O11,O14:O29) -> 0.7918885695 | P30: =SUBTOTAL(9,P11,P14:P29) -> 0.7918885695 | Q30: =SUBTOTAL(9,Q11,Q14:Q29) -> 0.7918885695 | R30: =SUBTOTAL(9,R11,R14:R29) -> 0.7918885695 | S30: =SUBTOTAL(9,S11,S14:S29) -> 0.7918885695 | T30: =SUBTOTAL(9,T11,T14:T29) -> 0.7918885695 | U30: =SUBTOTAL(9,U11,U14:U29) -> 0.7918885695 | V30: =SUBTOTAL(9,V11,V14:V29) -> 0.7918885695 | W30: =SUBTOTAL(9,W11,W14:W29) -> 0.7918885695 | X30: =SUBTOTAL(9,X11,X14:X29) -> 0.7918885695 | Y30: =SUBTOTAL(9,Y11,Y14:Y29) -> 0.7918885695 | Z30: =SUBTOTAL(9,Z11,Z14:Z29) -> 0.7918885695 | AA30: =SUBTOTAL(9,AA11,AA14:AA29) -> 0.7918885695 | AB30: =SUBTOTAL(9,AB11,AB14:AB29) -> 0.7918885695 | AC30: =SUBTOTAL(9,AC11,AC14:AC29) -> 0.4295924393 | AD30: =SUBTOTAL(9,AD11,AD14:AD29) -> 0.2982156094 | AE30: =SUBTOTAL(9,AE11,AE14:AE29) -> 0.2982156094 | AF30: =SUBTOTAL(9,AF11,AF14:AF29) -> 0.2982156094 | AG30: =SUBTOTAL(9,AG11,AG14:AG29) -> 0.2982156094 | AH30: =SUBTOTAL(9,AH11,AH14:AH29) -> 0.2982156094 | AI30: =SUBTOTAL(9,AI11,AI14:AI29) -> 0.2982156094 | AJ30: =SUBTOTAL(9,AJ11,AJ14:AJ29) -> 0.2756004956 | AK30: =SUBTOTAL(9,AK11,AK14:AK29) -> 0.2660540916 | AL30: =SUBTOTAL(9,AL11,AL14:AL29) -> 0.251599945 | AM30: =SUBTOTAL(9,AM11,AM14:AM29) -> 0.2280040173 | AN30: =SUBTOTAL(9,AN11,AN14:AN29) -> 0.2019943871 | AO30: =SUBTOTAL(9,AO11,AO14:AO29) -> 8.881784197e-16 | AP30: =SUBTOTAL(9,AP11,AP14:AP29) -> 0 | AQ30: =SUBTOTAL(9,AQ11,AQ14:AQ29) -> 0 | AR30: =SUBTOTAL(9,AR11,AR14:AR29) -> 0 | AS30: =SUBTOTAL(9,AS11,AS14:AS29) -> 0 | AT30: =SUBTOTAL(9,AT11,AT14:AT29) -> 0 | AU30: =SUBTOTAL(9,AU11,AU14:AU29) -> 0 | AV30: =SUBTOTAL(9,AV11,AV14:AV29) -> 0 | AW30: =SUBTOTAL(9,AW11,AW14:AW29) -> 0 | AX30: =SUBTOTAL(9,AX11,AX14:AX29) -> 0 | AY30: =SUBTOTAL(9,AY11,AY14:AY29) -> 0 | AZ30: =SUBTOTAL(9,AZ11,AZ14:AZ29) -> 0 | BA30: =SUBTOTAL(9,BA11,BA14:BA29) -> 0 | BB30: =SUBTOTAL(9,BB11,BB14:BB29) -> 0 | BC30: =SUBTOTAL(9,BC11,BC14:BC29) -> 0 | BD30: =SUBTOTAL(9,BD11,BD14:BD29) -> 0 | BE30: =SUBTOTAL(9,BE11,BE14:BE29) -> 0 | BF30: =SUBTOTAL(9,BF11,BF14:BF29) -> 0 | BG30: =SUBTOTAL(9,BG11,BG14:BG29) -> 0 | BH30: =SUBTOTAL(9,BH11,BH14:BH29) -> 0 | BI30: =SUBTOTAL(9,BI11,BI14:BI29) -> 0 | BJ30: =SUBTOTAL(9,BJ11,BJ14:BJ29) -> 0 | BK30: =SUBTOTAL(9,BK11,BK14:BK29) -> 0 | BL30: =SUBTOTAL(9,BL11,BL14:BL29) -> 0 | BM30: =SUBTOTAL(9,BM11,BM14:BM29) -> 0 | BN30: =SUBTOTAL(9,BN11,BN14:BN29) -> 0
A31: =+A10+1 -> 2 | B31: =INDIRECT(CONCATENATE("Asset",A31)) -> Communications - Civil
E32: Initial Asset Base | F32: =IF($B38="n/a","n/a",IF(F$3>$B38,+$B40,+$B40/$B38)) -> 0.1721833646 | G32: =IF($B38="n/a","n/a",IF(G$3>$B38,+$B40-SUM($F32:F32),+$B40/$B38)) -> 0.1721833646 | H32: =IF($B38="n/a","n/a",IF(H$3>$B38,+$B40-SUM($F32:G32),+$B40/$B38)) -> 0.1721833646 | I32: =IF($B38="n/a","n/a",IF(I$3>$B38,+$B40-SUM($F32:H32),+$B40/$B38)) -> 0.1721833646 | J32: =IF($B38="n/a","n/a",IF(J$3>$B38,+$B40-SUM($F32:I32),+$B40/$B38)) -> 0.1721833646 | K32: =IF($B38="n/a","n/a",IF(K$3>$B38,+$B40-SUM($F32:J32),+$B40/$B38)) -> 0.1721833646 | L32: =IF($B38="n/a","n/a",IF(L$3>$B38,+$B40-SUM($F32:K32),+$B40/$B38)) -> 0.1721833646 | M32: =IF($B38="n/a","n/a",IF(M$3>$B38,+$B40-SUM($F32:L32),+$B40/$B38)) -> 0.1721833646 | N32: =IF($B38="n/a","n/a",IF(N$3>$B38,+$B40-SUM($F32:M32),+$B40/$B38)) -> 0.1721833646 | O32: =IF($B38="n/a","n/a",IF(O$3>$B38,+$B40-SUM($F32:N32),+$B40/$B38)) -> 0.1721833646 | P32: =IF($B38="n/a","n/a",IF(P$3>$B38,+$B40-SUM($F32:O32),+$B40/$B38)) -> 0.1721833646 | Q32: =IF($B38="n/a","n/a",IF(Q$3>$B38,+$B40-SUM($F32:P32),+$B40/$B38)) -> 0.1721833646 | R32: =IF($B38="n/a","n/a",IF(R$3>$B38,+$B40-SUM($F32:Q32),+$B40/$B38)) -> 0.1721833646 | S32: =IF($B38="n/a","n/a",IF(S$3>$B38,+$B40-SUM($F32:R32),+$B40/$B38)) -> 0.1721833646 | T32: =IF($B38="n/a","n/a",IF(T$3>$B38,+$B40-SUM($F32:S32),+$B40/$B38)) -> 0.1721833646 | U32: =IF($B38="n/a","n/a",IF(U$3>$B38,+$B40-SUM($F32:T32),+$B40/$B38)) -> 0.1721833646 | V32: =IF($B38="n/a","n/a",IF(V$3>$B38,+$B40-SUM($F32:U32),+$B40/$B38)) -> 0.1721833646 | W32: =IF($B38="n/a","n/a",IF(W$3>$B38,+$B40-SUM($F32:V32),+$B40/$B38)) -> 0.1721833646 | X32: =IF($B38="n/a","n/a",IF(X$3>$B38,+$B40-SUM($F32:W32),+$B40/$B38)) -> 0.1721833646 | Y32: =IF($B38="n/a","n/a",IF(Y$3>$B38,+$B40-SUM($F32:X32),+$B40/$B38)) -> 0.1721833646 | Z32: =IF($B38="n/a","n/a",IF(Z$3>$B38,+$B40-SUM($F32:Y32),+$B40/$B38)) -> 0.1721833646 | AA32: =IF($B38="n/a","n/a",IF(AA$3>$B38,+$B40-SUM($F32:Z32),+$B40/$B38)) -> 0.1721833646 | AB32: =IF($B38="n/a","n/a",IF(AB$3>$B38,+$B40-SUM($F32:AA32),+$B40/$B38)) -> 0.1721833646 | AC32: =IF($B38="n/a","n/a",IF(AC$3>$B38,+$B40-SUM($F32:AB32),+$B40/$B38)) -> 0.1721833646 | AD32: =IF($B38="n/a","n/a",IF(AD$3>$B38,+$B40-SUM($F32:AC32),+$B40/$B38)) -> 0.1721833646 | AE32: =IF($B38="n/a","n/a",IF(AE$3>$B38,+$B40-SUM($F32:AD32),+$B40/$B38)) -> 0.1721833646 | AF32: =IF($B38="n/a","n/a",IF(AF$3>$B38,+$B40-SUM($F32:AE32),+$B40/$B38)) -> 0.1721833646 | AG32: =IF($B38="n/a","n/a",IF(AG$3>$B38,+$B40-SUM($F32:AF32),+$B40/$B38)) -> 0.1721833646 | AH32: =IF($B38="n/a","n/a",IF(AH$3>$B38,+$B40-SUM($F32:AG32),+$B40/$B38)) -> 0.1721833646 | AI32: =IF($B38="n/a","n/a",IF(AI$3>$B38,+$B40-SUM($F32:AH32),+$B40/$B38)) -> 0.1721833646 | AJ32: =IF($B38="n/a","n/a",IF(AJ$3>$B38,+$B40-SUM($F32:AI32),+$B40/$B38)) -> 0.1721833646 | AK32: =IF($B38="n/a","n/a",IF(AK$3>$B38,+$B40-SUM($F32:AJ32),+$B40/$B38)) -> 0.1721833646 | AL32: =IF($B38="n/a","n/a",IF(AL$3>$B38,+$B40-SUM($F32:AK32),+$B40/$B38)) -> 0.1721833646 | AM32: =IF($B38="n/a","n/a",IF(AM$3>$B38,+$B40-SUM($F32:AL32),+$B40/$B38)) -> 0.1721833646 | AN32: =IF($B38="n/a","n/a",IF(AN$3>$B38,+$B40-SUM($F32:AM32),+$B40/$B38)) -> 0.1721833646 | AO32: =IF($B38="n/a","n/a",IF(AO$3>$B38,+$B40-SUM($F32:AN32),+$B40/$B38)) -> 0.1721833646 | AP32: =IF($B38="n/a","n/a",IF(AP$3>$B38,+$B40-SUM($F32:AO32),+$B40/$B38)) -> 0.1721833646 | AQ32: =IF($B38="n/a","n/a",IF(AQ$3>$B38,+$B40-SUM($F32:AP32),+$B40/$B38)) -> 0.1721833646 | AR32: =IF($B38="n/a","n/a",IF(AR$3>$B38,+$B40-SUM($F32:AQ32),+$B40/$B38)) -> 0.1721833646 | AS32: =IF($B38="n/a","n/a",IF(AS$3>$B38,+$B40-SUM($F32:AR32),+$B40/$B38)) -> 0.1721833646 | AT32: =IF($B38="n/a","n/a",IF(AT$3>$B38,+$B40-SUM($F32:AS32),+$B40/$B38)) -> 0.1721833646 | AU32: =IF($B38="n/a","n/a",IF(AU$3>$B38,+$B40-SUM($F32:AT32),+$B40/$B38)) -> 0.1721833646 | AV32: =IF($B38="n/a","n/a",IF(AV$3>$B38,+$B40-SUM($F32:AU32),+$B40/$B38)) -> 0.1721833646 | AW32: =IF($B38="n/a","n/a",IF(AW$3>$B38,+$B40-SUM($F32:AV32),+$B40/$B38)) -> 0.1721833646 | AX32: =IF($B38="n/a","n/a",IF(AX$3>$B38,+$B40-SUM($F32:AW32),+$B40/$B38)) -> 0.122842653 | AY32: =IF($B38="n/a","n/a",IF(AY$3>$B38,+$B40-SUM($F32:AX32),+$B40/$B38)) -> 0 | AZ32: =IF($B38="n/a","n/a",IF(AZ$3>$B38,+$B40-SUM($F32:AY32),+$B40/$B38)) -> 0 | BA32: =IF($B38="n/a","n/a",IF(BA$3>$B38,+$B40-SUM($F32:AZ32),+$B40/$B38)) -> 0 | BB32: =IF($B38="n/a","n/a",IF(BB$3>$B38,+$B40-SUM($F32:BA32),+$B40/$B38)) -> 0 | BC32: =IF($B38="n/a","n/a",IF(BC$3>$B38,+$B40-SUM($F32:BB32),+$B40/$B38)) -> 0 | BD32: =IF($B38="n/a","n/a",IF(BD$3>$B38,+$B40-SUM($F32:BC32),+$B40/$B38)) -> 0 | BE32: =IF($B38="n/a","n/a",IF(BE$3>$B38,+$B40-SUM($F32:BD32),+$B40/$B38)) -> 0 | BF32: =IF($B38="n/a","n/a",IF(BF$3>$B38,+$B40-SUM($F32:BE32),+$B40/$B38)) -> 0 | BG32: =IF($B38="n/a","n/a",IF(BG$3>$B38,+$B40-SUM($F32:BF32),+$B40/$B38)) -> 0 | BH32: =IF($B38="n/a","n/a",IF(BH$3>$B38,+$B40-SUM($F32:BG32),+$B40/$B38)) -> 0 | BI32: =IF($B38="n/a","n/a",IF(BI$3>$B38,+$B40-SUM($F32:BH32),+$B40/$B38)) -> 0 | BJ32: =IF($B38="n/a","n/a",IF(BJ$3>$B38,+$B40-SUM($F32:BI32),+$B40/$B38)) -> 0 | BK32: =IF($B38="n/a","n/a",IF(BK$3>$B38,+$B40-SUM($F32:BJ32),+$B40/$B38)) -> 0 | BL32: =IF($B38="n/a","n/a",IF(BL$3>$B38,+$B40-SUM($F32:BK32),+$B40/$B38)) -> 0 | BM32: =IF($B38="n/a","n/a",IF(BM$3>$B38,+$B40-SUM($F32:BL32),+$B40/$B38)) -> 0 | BN32: =IF($B38="n/a","n/a",IF(BN$3>$B38,+$B40-SUM($F32:BM32),+$B40/$B38)) -> 0
J33: 2012-13 Capex True up adj | K33: =IF($B36="n/a","n/a",IF(K$3>$B36,+$B42-SUM($F33:J33),+$B42/($B36-$E40))) -> 0.03148680532 | L33: =IF($B36="n/a","n/a",IF(L$3>$B36,+$B42-SUM($F33:K33),+$B42/($B36-$E40))) -> 0.03148680532 | M33: =IF($B36="n/a","n/a",IF(M$3>$B36,+$B42-SUM($F33:L33),+$B42/($B36-$E40))) -> 0.03148680532 | N33: =IF($B36="n/a","n/a",IF(N$3>$B36,+$B42-SUM($F33:M33),+$B42/($B36-$E40))) -> 0.03148680532 | O33: =IF($B36="n/a","n/a",IF(O$3>$B36,+$B42-SUM($F33:N33),+$B42/($B36-$E40))) -> 0.03148680532 | P33: =IF($B36="n/a","n/a",IF(P$3>$B36,+$B42-SUM($F33:O33),+$B42/($B36-$E40))) -> 0.03148680532 | Q33: =IF($B36="n/a","n/a",IF(Q$3>$B36,+$B42-SUM($F33:P33),+$B42/($B36-$E40))) -> 0.03148680532 | R33: =IF($B36="n/a","n/a",IF(R$3>$B36,+$B42-SUM($F33:Q33),+$B42/($B36-$E40))) -> 0.03148680532 | S33: =IF($B36="n/a","n/a",IF(S$3>$B36,+$B42-SUM($F33:R33),+$B42/($B36-$E40))) -> 0.03148680532 | T33: =IF($B36="n/a","n/a",IF(T$3>$B36,+$B42-SUM($F33:S33),+$B42/($B36-$E40))) -> 0.03148680532 | U33: =IF($B36="n/a","n/a",IF(U$3>$B36,+$B42-SUM($F33:T33),+$B42/($B36-$E40))) -> 0.03148680532 | V33: =IF($B36="n/a","n/a",IF(V$3>$B36,+$B42-SUM($F33:U33),+$B42/($B36-$E40))) -> 0.03148680532 | W33: =IF($B36="n/a","n/a",IF(W$3>$B36,+$B42-SUM($F33:V33),+$B42/($B36-$E40))) -> 0.03148680532 | X33: =IF($B36="n/a","n/a",IF(X$3>$B36,+$B42-SUM($F33:W33),+$B42/($B36-$E40))) -> 0.03148680532 | Y33: =IF($B36="n/a","n/a",IF(Y$3>$B36,+$B42-SUM($F33:X33),+$B42/($B36-$E40))) -> 0.03148680532 | Z33: =IF($B36="n/a","n/a",IF(Z$3>$B36,+$B42-SUM($F33:Y33),+$B42/($B36-$E40))) -> 0.03148680532 | AA33: =IF($B36="n/a","n/a",IF(AA$3>$B36,+$B42-SUM($F33:Z33),+$B42/($B36-$E40))) -> 0.03148680532 | AB33: =IF($B36="n/a","n/a",IF(AB$3>$B36,+$B42-SUM($F33:AA33),+$B42/($B36-$E40))) -> 0.03148680532 | AC33: =IF($B36="n/a","n/a",IF(AC$3>$B36,+$B42-SUM($F33:AB33),+$B42/($B36-$E40))) -> 0.03148680532 | AD33: =IF($B36="n/a","n/a",IF(AD$3>$B36,+$B42-SUM($F33:AC33),+$B42/($B36-$E40))) -> 0.03148680532 | AE33: =IF($B36="n/a","n/a",IF(AE$3>$B36,+$B42-SUM($F33:AD33),+$B42/($B36-$E40))) -> 0.03148680532 | AF33: =IF($B36="n/a","n/a",IF(AF$3>$B36,+$B42-SUM($F33:AE33),+$B42/($B36-$E40))) -> 0.03148680532 | AG33: =IF($B36="n/a","n/a",IF(AG$3>$B36,+$B42-SUM($F33:AF33),+$B42/($B36-$E40))) -> 0.03148680532 | AH33: =IF($B36="n/a","n/a",IF(AH$3>$B36,+$B42-SUM($F33:AG33),+$B42/($B36-$E40))) -> 0.03148680532 | AI33: =IF($B36="n/a","n/a",IF(AI$3>$B36,+$B42-SUM($F33:AH33),+$B42/($B36-$E40))) -> 0.03148680532 | AJ33: =IF($B36="n/a","n/a",IF(AJ$3>$B36,+$B42-SUM($F33:AI33),+$B42/($B36-$E40))) -> 0.03148680532 | AK33: =IF($B36="n/a","n/a",IF(AK$3>$B36,+$B42-SUM($F33:AJ33),+$B42/($B36-$E40))) -> 0.03148680532 | AL33: =IF($B36="n/a","n/a",IF(AL$3>$B36,+$B42-SUM($F33:AK33),+$B42/($B36-$E40))) -> 0.03148680532 | AM33: =IF($B36="n/a","n/a",IF(AM$3>$B36,+$B42-SUM($F33:AL33),+$B42/($B36-$E40))) -> 0.03148680532 | AN33: =IF($B36="n/a","n/a",IF(AN$3>$B36,+$B42-SUM($F33:AM33),+$B42/($B36-$E40))) -> 0.03148680532 | AO33: =IF($B36="n/a","n/a",IF(AO$3>$B36,+$B42-SUM($F33:AN33),+$B42/($B36-$E40))) -> 0.03148680532 | AP33: =IF($B36="n/a","n/a",IF(AP$3>$B36,+$B42-SUM($F33:AO33),+$B42/($B36-$E40))) -> 0.03148680532 | AQ33: =IF($B36="n/a","n/a",IF(AQ$3>$B36,+$B42-SUM($F33:AP33),+$B42/($B36-$E40))) -> 0.03148680532 | AR33: =IF($B36="n/a","n/a",IF(AR$3>$B36,+$B42-SUM($F33:AQ33),+$B42/($B36-$E40))) -> 0.03148680532 | AS33: =IF($B36="n/a","n/a",IF(AS$3>$B36,+$B42-SUM($F33:AR33),+$B42/($B36-$E40))) -> 0.03148680532 | AT33: =IF($B36="n/a","n/a",IF(AT$3>$B36,+$B42-SUM($F33:AS33),+$B42/($B36-$E40))) -> 0.03148680532 | AU33: =IF($B36="n/a","n/a",IF(AU$3>$B36,+$B42-SUM($F33:AT33),+$B42/($B36-$E40))) -> 0.03148680532 | AV33: =IF($B36="n/a","n/a",IF(AV$3>$B36,+$B42-SUM($F33:AU33),+$B42/($B36-$E40))) -> 0.03148680532 | AW33: =IF($B36="n/a","n/a",IF(AW$3>$B36,+$B42-SUM($F33:AV33),+$B42/($B36-$E40))) -> 0.03148680532 | AX33: =IF($B36="n/a","n/a",IF(AX$3>$B36,+$B42-SUM($F33:AW33),+$B42/($B36-$E40))) -> 0.03148680532 | AY33: =IF($B36="n/a","n/a",IF(AY$3>$B36,+$B42-SUM($F33:AX33),+$B42/($B36-$E40))) -> 0.03148680532 | AZ33: =IF($B36="n/a","n/a",IF(AZ$3>$B36,+$B42-SUM($F33:AY33),+$B42/($B36-$E40))) -> 0.03148680532 | BA33: =IF($B36="n/a","n/a",IF(BA$3>$B36,+$B42-SUM($F33:AZ33),+$B42/($B36-$E40))) -> 0.03148680532 | BB33: =IF($B36="n/a","n/a",IF(BB$3>$B36,+$B42-SUM($F33:BA33),+$B42/($B36-$E40))) -> 0.03148680532 | BC33: =IF($B36="n/a","n/a",IF(BC$3>$B36,+$B42-SUM($F33:BB33),+$B42/($B36-$E40))) -> 0.03148680532 | BD33: =IF($B36="n/a","n/a",IF(BD$3>$B36,+$B42-SUM($F33:BC33),+$B42/($B36-$E40))) -> 0.03148680532 | BE33: =IF($B36="n/a","n/a",IF(BE$3>$B36,+$B42-SUM($F33:BD33),+$B42/($B36-$E40))) -> 0.03148680532 | BF33: =IF($B36="n/a","n/a",IF(BF$3>$B36,+$B42-SUM($F33:BE33),+$B42/($B36-$E40))) -> 0.03148680532 | BG33: =IF($B36="n/a","n/a",IF(BG$3>$B36,+$B42-SUM($F33:BF33),+$B42/($B36-$E40))) -> 0.03148680532 | BH33: =IF($B36="n/a","n/a",IF(BH$3>$B36,+$B42-SUM($F33:BG33),+$B42/($B36-$E40))) -> 0.03148680532 | BI33: =IF($B36="n/a","n/a",IF(BI$3>$B36,+$B42-SUM($F33:BH33),+$B42/($B36-$E40))) -> -1.33226763e-15 | BJ33: =IF($B36="n/a","n/a",IF(BJ$3>$B36,+$B42-SUM($F33:BI33),+$B42/($B36-$E40))) -> 0 | BK33: =IF($B36="n/a","n/a",IF(BK$3>$B36,+$B42-SUM($F33:BJ33),+$B42/($B36-$E40))) -> 0 | BL33: =IF($B36="n/a","n/a",IF(BL$3>$B36,+$B42-SUM($F33:BK33),+$B42/($B36-$E40))) -> 0 | BM33: =IF($B36="n/a","n/a",IF(BM$3>$B36,+$B42-SUM($F33:BL33),+$B42/($B36-$E40))) -> 0 | BN33: =IF($B36="n/a","n/a",IF(BN$3>$B36,+$B42-SUM($F33:BM33),+$B42/($B36-$E40))) -> 0
J34: Accel Dep adj | K34: =IF($B38="n/a","n/a",IF(K$3>$B38,+$B44-SUM($F34:J34),+$B44/($B38-$E40))) -> -0.02288155303 | L34: =IF($B38="n/a","n/a",IF(L$3>$B38,+$B44-SUM($F34:K34),+$B44/($B38-$E40))) -> -0.02288155303 | M34: =IF($B38="n/a","n/a",IF(M$3>$B38,+$B44-SUM($F34:L34),+$B44/($B38-$E40))) -> -0.02288155303 | N34: =IF($B38="n/a","n/a",IF(N$3>$B38,+$B44-SUM($F34:M34),+$B44/($B38-$E40))) -> -0.02288155303 | O34: =IF($B38="n/a","n/a",IF(O$3>$B38,+$B44-SUM($F34:N34),+$B44/($B38-$E40))) -> -0.02288155303 | P34: =IF($B38="n/a","n/a",IF(P$3>$B38,+$B44-SUM($F34:O34),+$B44/($B38-$E40))) -> -0.02288155303 | Q34: =IF($B38="n/a","n/a",IF(Q$3>$B38,+$B44-SUM($F34:P34),+$B44/($B38-$E40))) -> -0.02288155303 | R34: =IF($B38="n/a","n/a",IF(R$3>$B38,+$B44-SUM($F34:Q34),+$B44/($B38-$E40))) -> -0.02288155303 | S34: =IF($B38="n/a","n/a",IF(S$3>$B38,+$B44-SUM($F34:R34),+$B44/($B38-$E40))) -> -0.02288155303 | T34: =IF($B38="n/a","n/a",IF(T$3>$B38,+$B44-SUM($F34:S34),+$B44/($B38-$E40))) -> -0.02288155303 | U34: =IF($B38="n/a","n/a",IF(U$3>$B38,+$B44-SUM($F34:T34),+$B44/($B38-$E40))) -> -0.02288155303 | V34: =IF($B38="n/a","n/a",IF(V$3>$B38,+$B44-SUM($F34:U34),+$B44/($B38-$E40))) -> -0.02288155303 | W34: =IF($B38="n/a","n/a",IF(W$3>$B38,+$B44-SUM($F34:V34),+$B44/($B38-$E40))) -> -0.02288155303 | X34: =IF($B38="n/a","n/a",IF(X$3>$B38,+$B44-SUM($F34:W34),+$B44/($B38-$E40))) -> -0.02288155303 | Y34: =IF($B38="n/a","n/a",IF(Y$3>$B38,+$B44-SUM($F34:X34),+$B44/($B38-$E40))) -> -0.02288155303 | Z34: =IF($B38="n/a","n/a",IF(Z$3>$B38,+$B44-SUM($F34:Y34),+$B44/($B38-$E40))) -> -0.02288155303 | AA34: =IF($B38="n/a","n/a",IF(AA$3>$B38,+$B44-SUM($F34:Z34),+$B44/($B38-$E40))) -> -0.02288155303 | AB34: =IF($B38="n/a","n/a",IF(AB$3>$B38,+$B44-SUM($F34:AA34),+$B44/($B38-$E40))) -> -0.02288155303 | AC34: =IF($B38="n/a","n/a",IF(AC$3>$B38,+$B44-SUM($F34:AB34),+$B44/($B38-$E40))) -> -0.02288155303 | AD34: =IF($B38="n/a","n/a",IF(AD$3>$B38,+$B44-SUM($F34:AC34),+$B44/($B38-$E40))) -> -0.02288155303 | AE34: =IF($B38="n/a","n/a",IF(AE$3>$B38,+$B44-SUM($F34:AD34),+$B44/($B38-$E40))) -> -0.02288155303 | AF34: =IF($B38="n/a","n/a",IF(AF$3>$B38,+$B44-SUM($F34:AE34),+$B44/($B38-$E40))) -> -0.02288155303 | AG34: =IF($B38="n/a","n/a",IF(AG$3>$B38,+$B44-SUM($F34:AF34),+$B44/($B38-$E40))) -> -0.02288155303 | AH34: =IF($B38="n/a","n/a",IF(AH$3>$B38,+$B44-SUM($F34:AG34),+$B44/($B38-$E40))) -> -0.02288155303 | AI34: =IF($B38="n/a","n/a",IF(AI$3>$B38,+$B44-SUM($F34:AH34),+$B44/($B38-$E40))) -> -0.02288155303 | AJ34: =IF($B38="n/a","n/a",IF(AJ$3>$B38,+$B44-SUM($F34:AI34),+$B44/($B38-$E40))) -> -0.02288155303 | AK34: =IF($B38="n/a","n/a",IF(AK$3>$B38,+$B44-SUM($F34:AJ34),+$B44/($B38-$E40))) -> -0.02288155303 | AL34: =IF($B38="n/a","n/a",IF(AL$3>$B38,+$B44-SUM($F34:AK34),+$B44/($B38-$E40))) -> -0.02288155303 | AM34: =IF($B38="n/a","n/a",IF(AM$3>$B38,+$B44-SUM($F34:AL34),+$B44/($B38-$E40))) -> -0.02288155303 | AN34: =IF($B38="n/a","n/a",IF(AN$3>$B38,+$B44-SUM($F34:AM34),+$B44/($B38-$E40))) -> -0.02288155303 | AO34: =IF($B38="n/a","n/a",IF(AO$3>$B38,+$B44-SUM($F34:AN34),+$B44/($B38-$E40))) -> -0.02288155303 | AP34: =IF($B38="n/a","n/a",IF(AP$3>$B38,+$B44-SUM($F34:AO34),+$B44/($B38-$E40))) -> -0.02288155303 | AQ34: =IF($B38="n/a","n/a",IF(AQ$3>$B38,+$B44-SUM($F34:AP34),+$B44/($B38-$E40))) -> -0.02288155303 | AR34: =IF($B38="n/a","n/a",IF(AR$3>$B38,+$B44-SUM($F34:AQ34),+$B44/($B38-$E40))) -> -0.02288155303 | AS34: =IF($B38="n/a","n/a",IF(AS$3>$B38,+$B44-SUM($F34:AR34),+$B44/($B38-$E40))) -> -0.02288155303 | AT34: =IF($B38="n/a","n/a",IF(AT$3>$B38,+$B44-SUM($F34:AS34),+$B44/($B38-$E40))) -> -0.02288155303 | AU34: =IF($B38="n/a","n/a",IF(AU$3>$B38,+$B44-SUM($F34:AT34),+$B44/($B38-$E40))) -> -0.02288155303 | AV34: =IF($B38="n/a","n/a",IF(AV$3>$B38,+$B44-SUM($F34:AU34),+$B44/($B38-$E40))) -> -0.02288155303 | AW34: =IF($B38="n/a","n/a",IF(AW$3>$B38,+$B44-SUM($F34:AV34),+$B44/($B38-$E40))) -> -0.02288155303 | AX34: =IF($B38="n/a","n/a",IF(AX$3>$B38,+$B44-SUM($F34:AW34),+$B44/($B38-$E40))) -> -0.01632463557 | AY34: =IF($B38="n/a","n/a",IF(AY$3>$B38,+$B44-SUM($F34:AX34),+$B44/($B38-$E40))) -> 0 | AZ34: =IF($B38="n/a","n/a",IF(AZ$3>$B38,+$B44-SUM($F34:AY34),+$B44/($B38-$E40))) -> 0 | BA34: =IF($B38="n/a","n/a",IF(BA$3>$B38,+$B44-SUM($F34:AZ34),+$B44/($B38-$E40))) -> 0 | BB34: =IF($B38="n/a","n/a",IF(BB$3>$B38,+$B44-SUM($F34:BA34),+$B44/($B38-$E40))) -> 0 | BC34: =IF($B38="n/a","n/a",IF(BC$3>$B38,+$B44-SUM($F34:BB34),+$B44/($B38-$E40))) -> 0 | BD34: =IF($B38="n/a","n/a",IF(BD$3>$B38,+$B44-SUM($F34:BC34),+$B44/($B38-$E40))) -> 0 | BE34: =IF($B38="n/a","n/a",IF(BE$3>$B38,+$B44-SUM($F34:BD34),+$B44/($B38-$E40))) -> 0 | BF34: =IF($B38="n/a","n/a",IF(BF$3>$B38,+$B44-SUM($F34:BE34),+$B44/($B38-$E40))) -> 0 | BG34: =IF($B38="n/a","n/a",IF(BG$3>$B38,+$B44-SUM($F34:BF34),+$B44/($B38-$E40))) -> 0 | BH34: =IF($B38="n/a","n/a",IF(BH$3>$B38,+$B44-SUM($F34:BG34),+$B44/($B38-$E40))) -> 0 | BI34: =IF($B38="n/a","n/a",IF(BI$3>$B38,+$B44-SUM($F34:BH34),+$B44/($B38-$E40))) -> 0 | BJ34: =IF($B38="n/a","n/a",IF(BJ$3>$B38,+$B44-SUM($F34:BI34),+$B44/($B38-$E40))) -> 0 | BK34: =IF($B38="n/a","n/a",IF(BK$3>$B38,+$B44-SUM($F34:BJ34),+$B44/($B38-$E40))) -> 0 | BL34: =IF($B38="n/a","n/a",IF(BL$3>$B38,+$B44-SUM($F34:BK34),+$B44/($B38-$E40))) -> 0 | BM34: =IF($B38="n/a","n/a",IF(BM$3>$B38,+$B44-SUM($F34:BL34),+$B44/($B38-$E40))) -> 0 | BN34: =IF($B38="n/a","n/a",IF(BN$3>$B38,+$B44-SUM($F34:BM34),+$B44/($B38-$E40))) -> 0
B35: Std Life | C35: Capex: | E35: 0 | J35: Initial Asset Base Adjustment | K35: =IF(AND(K33="n/a",K34="n/a")=TRUE,"n/a",SUM(IF(K33="n/a",0,K33),IF(K34="n/a",0,K34))) -> 0.008605252294 | L35: =IF(AND(L33="n/a",L34="n/a")=TRUE,"n/a",SUM(IF(L33="n/a",0,L33),IF(L34="n/a",0,L34))) -> 0.008605252294 | M35: =IF(AND(M33="n/a",M34="n/a")=TRUE,"n/a",SUM(IF(M33="n/a",0,M33),IF(M34="n/a",0,M34))) -> 0.008605252294 | N35: =IF(AND(N33="n/a",N34="n/a")=TRUE,"n/a",SUM(IF(N33="n/a",0,N33),IF(N34="n/a",0,N34))) -> 0.008605252294 | O35: =IF(AND(O33="n/a",O34="n/a")=TRUE,"n/a",SUM(IF(O33="n/a",0,O33),IF(O34="n/a",0,O34))) -> 0.008605252294 | P35: =IF(AND(P33="n/a",P34="n/a")=TRUE,"n/a",SUM(IF(P33="n/a",0,P33),IF(P34="n/a",0,P34))) -> 0.008605252294 | Q35: =IF(AND(Q33="n/a",Q34="n/a")=TRUE,"n/a",SUM(IF(Q33="n/a",0,Q33),IF(Q34="n/a",0,Q34))) -> 0.008605252294 | R35: =IF(AND(R33="n/a",R34="n/a")=TRUE,"n/a",SUM(IF(R33="n/a",0,R33),IF(R34="n/a",0,R34))) -> 0.008605252294 | S35: =IF(AND(S33="n/a",S34="n/a")=TRUE,"n/a",SUM(IF(S33="n/a",0,S33),IF(S34="n/a",0,S34))) -> 0.008605252294 | T35: =IF(AND(T33="n/a",T34="n/a")=TRUE,"n/a",SUM(IF(T33="n/a",0,T33),IF(T34="n/a",0,T34))) -> 0.008605252294 | U35: =IF(AND(U33="n/a",U34="n/a")=TRUE,"n/a",SUM(IF(U33="n/a",0,U33),IF(U34="n/a",0,U34))) -> 0.008605252294 | V35: =IF(AND(V33="n/a",V34="n/a")=TRUE,"n/a",SUM(IF(V33="n/a",0,V33),IF(V34="n/a",0,V34))) -> 0.008605252294 | W35: =IF(AND(W33="n/a",W34="n/a")=TRUE,"n/a",SUM(IF(W33="n/a",0,W33),IF(W34="n/a",0,W34))) -> 0.008605252294 | X35: =IF(AND(X33="n/a",X34="n/a")=TRUE,"n/a",SUM(IF(X33="n/a",0,X33),IF(X34="n/a",0,X34))) -> 0.008605252294 | Y35: =IF(AND(Y33="n/a",Y34="n/a")=TRUE,"n/a",SUM(IF(Y33="n/a",0,Y33),IF(Y34="n/a",0,Y34))) -> 0.008605252294 | Z35: =IF(AND(Z33="n/a",Z34="n/a")=TRUE,"n/a",SUM(IF(Z33="n/a",0,Z33),IF(Z34="n/a",0,Z34))) -> 0.008605252294 | AA35: =IF(AND(AA33="n/a",AA34="n/a")=TRUE,"n/a",SUM(IF(AA33="n/a",0,AA33),IF(AA34="n/a",0,AA34))) -> 0.008605252294 | AB35: =IF(AND(AB33="n/a",AB34="n/a")=TRUE,"n/a",SUM(IF(AB33="n/a",0,AB33),IF(AB34="n/a",0,AB34))) -> 0.008605252294 | AC35: =IF(AND(AC33="n/a",AC34="n/a")=TRUE,"n/a",SUM(IF(AC33="n/a",0,AC33),IF(AC34="n/a",0,AC34))) -> 0.008605252294 | AD35: =IF(AND(AD33="n/a",AD34="n/a")=TRUE,"n/a",SUM(IF(AD33="n/a",0,AD33),IF(AD34="n/a",0,AD34))) -> 0.008605252294 | AE35: =IF(AND(AE33="n/a",AE34="n/a")=TRUE,"n/a",SUM(IF(AE33="n/a",0,AE33),IF(AE34="n/a",0,AE34))) -> 0.008605252294 | AF35: =IF(AND(AF33="n/a",AF34="n/a")=TRUE,"n/a",SUM(IF(AF33="n/a",0,AF33),IF(AF34="n/a",0,AF34))) -> 0.008605252294 | AG35: =IF(AND(AG33="n/a",AG34="n/a")=TRUE,"n/a",SUM(IF(AG33="n/a",0,AG33),IF(AG34="n/a",0,AG34))) -> 0.008605252294 | AH35: =IF(AND(AH33="n/a",AH34="n/a")=TRUE,"n/a",SUM(IF(AH33="n/a",0,AH33),IF(AH34="n/a",0,AH34))) -> 0.008605252294 | AI35: =IF(AND(AI33="n/a",AI34="n/a")=TRUE,"n/a",SUM(IF(AI33="n/a",0,AI33),IF(AI34="n/a",0,AI34))) -> 0.008605252294 | AJ35: =IF(AND(AJ33="n/a",AJ34="n/a")=TRUE,"n/a",SUM(IF(AJ33="n/a",0,AJ33),IF(AJ34="n/a",0,AJ34))) -> 0.008605252294 | AK35: =IF(AND(AK33="n/a",AK34="n/a")=TRUE,"n/a",SUM(IF(AK33="n/a",0,AK33),IF(AK34="n/a",0,AK34))) -> 0.008605252294 | AL35: =IF(AND(AL33="n/a",AL34="n/a")=TRUE,"n/a",SUM(IF(AL33="n/a",0,AL33),IF(AL34="n/a",0,AL34))) -> 0.008605252294 | AM35: =IF(AND(AM33="n/a",AM34="n/a")=TRUE,"n/a",SUM(IF(AM33="n/a",0,AM33),IF(AM34="n/a",0,AM34))) -> 0.008605252294 | AN35: =IF(AND(AN33="n/a",AN34="n/a")=TRUE,"n/a",SUM(IF(AN33="n/a",0,AN33),IF(AN34="n/a",0,AN34))) -> 0.008605252294 | AO35: =IF(AND(AO33="n/a",AO34="n/a")=TRUE,"n/a",SUM(IF(AO33="n/a",0,AO33),IF(AO34="n/a",0,AO34))) -> 0.008605252294 | AP35: =IF(AND(AP33="n/a",AP34="n/a")=TRUE,"n/a",SUM(IF(AP33="n/a",0,AP33),IF(AP34="n/a",0,AP34))) -> 0.008605252294 | AQ35: =IF(AND(AQ33="n/a",AQ34="n/a")=TRUE,"n/a",SUM(IF(AQ33="n/a",0,AQ33),IF(AQ34="n/a",0,AQ34))) -> 0.008605252294 | AR35: =IF(AND(AR33="n/a",AR34="n/a")=TRUE,"n/a",SUM(IF(AR33="n/a",0,AR33),IF(AR34="n/a",0,AR34))) -> 0.008605252294 | AS35: =IF(AND(AS33="n/a",AS34="n/a")=TRUE,"n/a",SUM(IF(AS33="n/a",0,AS33),IF(AS34="n/a",0,AS34))) -> 0.008605252294 | AT35: =IF(AND(AT33="n/a",AT34="n/a")=TRUE,"n/a",SUM(IF(AT33="n/a",0,AT33),IF(AT34="n/a",0,AT34))) -> 0.008605252294 | AU35: =IF(AND(AU33="n/a",AU34="n/a")=TRUE,"n/a",SUM(IF(AU33="n/a",0,AU33),IF(AU34="n/a",0,AU34))) -> 0.008605252294 | AV35: =IF(AND(AV33="n/a",AV34="n/a")=TRUE,"n/a",SUM(IF(AV33="n/a",0,AV33),IF(AV34="n/a",0,AV34))) -> 0.008605252294 | AW35: =IF(AND(AW33="n/a",AW34="n/a")=TRUE,"n/a",SUM(IF(AW33="n/a",0,AW33),IF(AW34="n/a",0,AW34))) -> 0.008605252294 | AX35: =IF(AND(AX33="n/a",AX34="n/a")=TRUE,"n/a",SUM(IF(AX33="n/a",0,AX33),IF(AX34="n/a",0,AX34))) -> 0.01516216975 | AY35: =IF(AND(AY33="n/a",AY34="n/a")=TRUE,"n/a",SUM(IF(AY33="n/a",0,AY33),IF(AY34="n/a",0,AY34))) -> 0.03148680532 | AZ35: =IF(AND(AZ33="n/a",AZ34="n/a")=TRUE,"n/a",SUM(IF(AZ33="n/a",0,AZ33),IF(AZ34="n/a",0,AZ34))) -> 0.03148680532 | BA35: =IF(AND(BA33="n/a",BA34="n/a")=TRUE,"n/a",SUM(IF(BA33="n/a",0,BA33),IF(BA34="n/a",0,BA34))) -> 0.03148680532 | BB35: =IF(AND(BB33="n/a",BB34="n/a")=TRUE,"n/a",SUM(IF(BB33="n/a",0,BB33),IF(BB34="n/a",0,BB34))) -> 0.03148680532 | BC35: =IF(AND(BC33="n/a",BC34="n/a")=TRUE,"n/a",SUM(IF(BC33="n/a",0,BC33),IF(BC34="n/a",0,BC34))) -> 0.03148680532 | BD35: =IF(AND(BD33="n/a",BD34="n/a")=TRUE,"n/a",SUM(IF(BD33="n/a",0,BD33),IF(BD34="n/a",0,BD34))) -> 0.03148680532 | BE35: =IF(AND(BE33="n/a",BE34="n/a")=TRUE,"n/a",SUM(IF(BE33="n/a",0,BE33),IF(BE34="n/a",0,BE34))) -> 0.03148680532 | BF35: =IF(AND(BF33="n/a",BF34="n/a")=TRUE,"n/a",SUM(IF(BF33="n/a",0,BF33),IF(BF34="n/a",0,BF34))) -> 0.03148680532 | BG35: =IF(AND(BG33="n/a",BG34="n/a")=TRUE,"n/a",SUM(IF(BG33="n/a",0,BG33),IF(BG34="n/a",0,BG34))) -> 0.03148680532 | BH35: =IF(AND(BH33="n/a",BH34="n/a")=TRUE,"n/a",SUM(IF(BH33="n/a",0,BH33),IF(BH34="n/a",0,BH34))) -> 0.03148680532 | BI35: =IF(AND(BI33="n/a",BI34="n/a")=TRUE,"n/a",SUM(IF(BI33="n/a",0,BI33),IF(BI34="n/a",0,BI34))) -> -1.33226763e-15 | BJ35: =IF(AND(BJ33="n/a",BJ34="n/a")=TRUE,"n/a",SUM(IF(BJ33="n/a",0,BJ33),IF(BJ34="n/a",0,BJ34))) -> 0 | BK35: =IF(AND(BK33="n/a",BK34="n/a")=TRUE,"n/a",SUM(IF(BK33="n/a",0,BK33),IF(BK34="n/a",0,BK34))) -> 0 | BL35: =IF(AND(BL33="n/a",BL34="n/a")=TRUE,"n/a",SUM(IF(BL33="n/a",0,BL33),IF(BL34="n/a",0,BL34))) -> 0 | BM35: =IF(AND(BM33="n/a",BM34="n/a")=TRUE,"n/a",SUM(IF(BM33="n/a",0,BM33),IF(BM34="n/a",0,BM34))) -> 0 | BN35: =IF(AND(BN33="n/a",BN34="n/a")=TRUE,"n/a",SUM(IF(BN33="n/a",0,BN33),IF(BN34="n/a",0,BN34))) -> 0
B36: =INDEX('I1 '!$C$7:$C$36,A31) -> 55 | C36: =OFFSET('I3 CAPEX '!$E$44,$A31,E36) -> 0.3868814237 | E36: 1 | G36: =IF($B36="n/a","n/a",IF(G$3>($B36+$E36),$C36-SUM($F36:F36),($C36/$B36))) -> 0.007034207703 | H36: =IF($B36="n/a","n/a",IF(H$3>($B36+$E36),$C36-SUM($F36:G36),($C36/$B36))) -> 0.007034207703 | I36: =IF($B36="n/a","n/a",IF(I$3>($B36+$E36),$C36-SUM($F36:H36),($C36/$B36))) -> 0.007034207703 | J36: =IF($B36="n/a","n/a",IF(J$3>($B36+$E36),$C36-SUM($F36:I36),($C36/$B36))) -> 0.007034207703 | K36: =IF($B36="n/a","n/a",IF(K$3>($B36+$E36),$C36-SUM($F36:J36),($C36/$B36))) -> 0.007034207703 | L36: =IF($B36="n/a","n/a",IF(L$3>($B36+$E36),$C36-SUM($F36:K36),($C36/$B36))) -> 0.007034207703 | M36: =IF($B36="n/a","n/a",IF(M$3>($B36+$E36),$C36-SUM($F36:L36),($C36/$B36))) -> 0.007034207703 | N36: =IF($B36="n/a","n/a",IF(N$3>($B36+$E36),$C36-SUM($F36:M36),($C36/$B36))) -> 0.007034207703 | O36: =IF($B36="n/a","n/a",IF(O$3>($B36+$E36),$C36-SUM($F36:N36),($C36/$B36))) -> 0.007034207703 | P36: =IF($B36="n/a","n/a",IF(P$3>($B36+$E36),$C36-SUM($F36:O36),($C36/$B36))) -> 0.007034207703 | Q36: =IF($B36="n/a","n/a",IF(Q$3>($B36+$E36),$C36-SUM($F36:P36),($C36/$B36))) -> 0.007034207703 | R36: =IF($B36="n/a","n/a",IF(R$3>($B36+$E36),$C36-SUM($F36:Q36),($C36/$B36))) -> 0.007034207703 | S36: =IF($B36="n/a","n/a",IF(S$3>($B36+$E36),$C36-SUM($F36:R36),($C36/$B36))) -> 0.007034207703 | T36: =IF($B36="n/a","n/a",IF(T$3>($B36+$E36),$C36-SUM($F36:S36),($C36/$B36))) -> 0.007034207703 | U36: =IF($B36="n/a","n/a",IF(U$3>($B36+$E36),$C36-SUM($F36:T36),($C36/$B36))) -> 0.007034207703 | V36: =IF($B36="n/a","n/a",IF(V$3>($B36+$E36),$C36-SUM($F36:U36),($C36/$B36))) -> 0.007034207703 | W36: =IF($B36="n/a","n/a",IF(W$3>($B36+$E36),$C36-SUM($F36:V36),($C36/$B36))) -> 0.007034207703 | X36: =IF($B36="n/a","n/a",IF(X$3>($B36+$E36),$C36-SUM($F36:W36),($C36/$B36))) -> 0.007034207703 | Y36: =IF($B36="n/a","n/a",IF(Y$3>($B36+$E36),$C36-SUM($F36:X36),($C36/$B36))) -> 0.007034207703 | Z36: =IF($B36="n/a","n/a",IF(Z$3>($B36+$E36),$C36-SUM($F36:Y36),($C36/$B36))) -> 0.007034207703 | AA36: =IF($B36="n/a","n/a",IF(AA$3>($B36+$E36),$C36-SUM($F36:Z36),($C36/$B36))) -> 0.007034207703 | AB36: =IF($B36="n/a","n/a",IF(AB$3>($B36+$E36),$C36-SUM($F36:AA36),($C36/$B36))) -> 0.007034207703 | AC36: =IF($B36="n/a","n/a",IF(AC$3>($B36+$E36),$C36-SUM($F36:AB36),($C36/$B36))) -> 0.007034207703 | AD36: =IF($B36="n/a","n/a",IF(AD$3>($B36+$E36),$C36-SUM($F36:AC36),($C36/$B36))) -> 0.007034207703 | AE36: =IF($B36="n/a","n/a",IF(AE$3>($B36+$E36),$C36-SUM($F36:AD36),($C36/$B36))) -> 0.007034207703 | AF36: =IF($B36="n/a","n/a",IF(AF$3>($B36+$E36),$C36-SUM($F36:AE36),($C36/$B36))) -> 0.007034207703 | AG36: =IF($B36="n/a","n/a",IF(AG$3>($B36+$E36),$C36-SUM($F36:AF36),($C36/$B36))) -> 0.007034207703 | AH36: =IF($B36="n/a","n/a",IF(AH$3>($B36+$E36),$C36-SUM($F36:AG36),($C36/$B36))) -> 0.007034207703 | AI36: =IF($B36="n/a","n/a",IF(AI$3>($B36+$E36),$C36-SUM($F36:AH36),($C36/$B36))) -> 0.007034207703 | AJ36: =IF($B36="n/a","n/a",IF(AJ$3>($B36+$E36),$C36-SUM($F36:AI36),($C36/$B36))) -> 0.007034207703 | AK36: =IF($B36="n/a","n/a",IF(AK$3>($B36+$E36),$C36-SUM($F36:AJ36),($C36/$B36))) -> 0.007034207703 | AL36: =IF($B36="n/a","n/a",IF(AL$3>($B36+$E36),$C36-SUM($F36:AK36),($C36/$B36))) -> 0.007034207703 | AM36: =IF($B36="n/a","n/a",IF(AM$3>($B36+$E36),$C36-SUM($F36:AL36),($C36/$B36))) -> 0.007034207703 | AN36: =IF($B36="n/a","n/a",IF(AN$3>($B36+$E36),$C36-SUM($F36:AM36),($C36/$B36))) -> 0.007034207703 | AO36: =IF($B36="n/a","n/a",IF(AO$3>($B36+$E36),$C36-SUM($F36:AN36),($C36/$B36))) -> 0.007034207703 | AP36: =IF($B36="n/a","n/a",IF(AP$3>($B36+$E36),$C36-SUM($F36:AO36),($C36/$B36))) -> 0.007034207703 | AQ36: =IF($B36="n/a","n/a",IF(AQ$3>($B36+$E36),$C36-SUM($F36:AP36),($C36/$B36))) -> 0.007034207703 | AR36: =IF($B36="n/a","n/a",IF(AR$3>($B36+$E36),$C36-SUM($F36:AQ36),($C36/$B36))) -> 0.007034207703 | AS36: =IF($B36="n/a","n/a",IF(AS$3>($B36+$E36),$C36-SUM($F36:AR36),($C36/$B36))) -> 0.007034207703 | AT36: =IF($B36="n/a","n/a",IF(AT$3>($B36+$E36),$C36-SUM($F36:AS36),($C36/$B36))) -> 0.007034207703 | AU36: =IF($B36="n/a","n/a",IF(AU$3>($B36+$E36),$C36-SUM($F36:AT36),($C36/$B36))) -> 0.007034207703 | AV36: =IF($B36="n/a","n/a",IF(AV$3>($B36+$E36),$C36-SUM($F36:AU36),($C36/$B36))) -> 0.007034207703 | AW36: =IF($B36="n/a","n/a",IF(AW$3>($B36+$E36),$C36-SUM($F36:AV36),($C36/$B36))) -> 0.007034207703 | AX36: =IF($B36="n/a","n/a",IF(AX$3>($B36+$E36),$C36-SUM($F36:AW36),($C36/$B36))) -> 0.007034207703 | AY36: =IF($B36="n/a","n/a",IF(AY$3>($B36+$E36),$C36-SUM($F36:AX36),($C36/$B36))) -> 0.007034207703 | AZ36: =IF($B36="n/a","n/a",IF(AZ$3>($B36+$E36),$C36-SUM($F36:AY36),($C36/$B36))) -> 0.007034207703 | BA36: =IF($B36="n/a","n/a",IF(BA$3>($B36+$E36),$C36-SUM($F36:AZ36),($C36/$B36))) -> 0.007034207703 | BB36: =IF($B36="n/a","n/a",IF(BB$3>($B36+$E36),$C36-SUM($F36:BA36),($C36/$B36))) -> 0.007034207703 | BC36: =IF($B36="n/a","n/a",IF(BC$3>($B36+$E36),$C36-SUM($F36:BB36),($C36/$B36))) -> 0.007034207703 | BD36: =IF($B36="n/a","n/a",IF(BD$3>($B36+$E36),$C36-SUM($F36:BC36),($C36/$B36))) -> 0.007034207703 | BE36: =IF($B36="n/a","n/a",IF(BE$3>($B36+$E36),$C36-SUM($F36:BD36),($C36/$B36))) -> 0.007034207703 | BF36: =IF($B36="n/a","n/a",IF(BF$3>($B36+$E36),$C36-SUM($F36:BE36),($C36/$B36))) -> 0.007034207703 | BG36: =IF($B36="n/a","n/a",IF(BG$3>($B36+$E36),$C36-SUM($F36:BF36),($C36/$B36))) -> 0.007034207703 | BH36: =IF($B36="n/a","n/a",IF(BH$3>($B36+$E36),$C36-SUM($F36:BG36),($C36/$B36))) -> 0.007034207703 | BI36: =IF($B36="n/a","n/a",IF(BI$3>($B36+$E36),$C36-SUM($F36:BH36),($C36/$B36))) -> 0.007034207703 | BJ36: =IF($B36="n/a","n/a",IF(BJ$3>($B36+$E36),$C36-SUM($F36:BI36),($C36/$B36))) -> -5.551115123e-16 | BK36: =IF($B36="n/a","n/a",IF(BK$3>($B36+$E36),$C36-SUM($F36:BJ36),($C36/$B36))) -> 0 | BL36: =IF($B36="n/a","n/a",IF(BL$3>($B36+$E36),$C36-SUM($F36:BK36),($C36/$B36))) -> 0 | BM36: =IF($B36="n/a","n/a",IF(BM$3>($B36+$E36),$C36-SUM($F36:BL36),($C36/$B36))) -> 0 | BN36: =IF($B36="n/a","n/a",IF(BN$3>($B36+$E36),$C36-SUM($F36:BM36),($C36/$B36))) -> 0
B37: Rem Life | C37: =OFFSET('I3 CAPEX '!$E$44,$A31,E37) -> 1.77518538 | E37: 2 | H37: =IF($B36="n/a","n/a",IF(H$3>($B36+$E37),$C37-SUM($F37:G37),($C37/$B36))) -> 0.03227609781 | I37: =IF($B36="n/a","n/a",IF(I$3>($B36+$E37),$C37-SUM($F37:H37),($C37/$B36))) -> 0.03227609781 | J37: =IF($B36="n/a","n/a",IF(J$3>($B36+$E37),$C37-SUM($F37:I37),($C37/$B36))) -> 0.03227609781 | K37: =IF($B36="n/a","n/a",IF(K$3>($B36+$E37),$C37-SUM($F37:J37),($C37/$B36))) -> 0.03227609781 | L37: =IF($B36="n/a","n/a",IF(L$3>($B36+$E37),$C37-SUM($F37:K37),($C37/$B36))) -> 0.03227609781 | M37: =IF($B36="n/a","n/a",IF(M$3>($B36+$E37),$C37-SUM($F37:L37),($C37/$B36))) -> 0.03227609781 | N37: =IF($B36="n/a","n/a",IF(N$3>($B36+$E37),$C37-SUM($F37:M37),($C37/$B36))) -> 0.03227609781 | O37: =IF($B36="n/a","n/a",IF(O$3>($B36+$E37),$C37-SUM($F37:N37),($C37/$B36))) -> 0.03227609781 | P37: =IF($B36="n/a","n/a",IF(P$3>($B36+$E37),$C37-SUM($F37:O37),($C37/$B36))) -> 0.03227609781 | Q37: =IF($B36="n/a","n/a",IF(Q$3>($B36+$E37),$C37-SUM($F37:P37),($C37/$B36))) -> 0.03227609781 | R37: =IF($B36="n/a","n/a",IF(R$3>($B36+$E37),$C37-SUM($F37:Q37),($C37/$B36))) -> 0.03227609781 | S37: =IF($B36="n/a","n/a",IF(S$3>($B36+$E37),$C37-SUM($F37:R37),($C37/$B36))) -> 0.03227609781 | T37: =IF($B36="n/a","n/a",IF(T$3>($B36+$E37),$C37-SUM($F37:S37),($C37/$B36))) -> 0.03227609781 | U37: =IF($B36="n/a","n/a",IF(U$3>($B36+$E37),$C37-SUM($F37:T37),($C37/$B36))) -> 0.03227609781 | V37: =IF($B36="n/a","n/a",IF(V$3>($B36+$E37),$C37-SUM($F37:U37),($C37/$B36))) -> 0.03227609781 | W37: =IF($B36="n/a","n/a",IF(W$3>($B36+$E37),$C37-SUM($F37:V37),($C37/$B36))) -> 0.03227609781 | X37: =IF($B36="n/a","n/a",IF(X$3>($B36+$E37),$C37-SUM($F37:W37),($C37/$B36))) -> 0.03227609781 | Y37: =IF($B36="n/a","n/a",IF(Y$3>($B36+$E37),$C37-SUM($F37:X37),($C37/$B36))) -> 0.03227609781 | Z37: =IF($B36="n/a","n/a",IF(Z$3>($B36+$E37),$C37-SUM($F37:Y37),($C37/$B36))) -> 0.03227609781 | AA37: =IF($B36="n/a","n/a",IF(AA$3>($B36+$E37),$C37-SUM($F37:Z37),($C37/$B36))) -> 0.03227609781 | AB37: =IF($B36="n/a","n/a",IF(AB$3>($B36+$E37),$C37-SUM($F37:AA37),($C37/$B36))) -> 0.03227609781 | AC37: =IF($B36="n/a","n/a",IF(AC$3>($B36+$E37),$C37-SUM($F37:AB37),($C37/$B36))) -> 0.03227609781 | AD37: =IF($B36="n/a","n/a",IF(AD$3>($B36+$E37),$C37-SUM($F37:AC37),($C37/$B36))) -> 0.03227609781 | AE37: =IF($B36="n/a","n/a",IF(AE$3>($B36+$E37),$C37-SUM($F37:AD37),($C37/$B36))) -> 0.03227609781 | AF37: =IF($B36="n/a","n/a",IF(AF$3>($B36+$E37),$C37-SUM($F37:AE37),($C37/$B36))) -> 0.03227609781 | AG37: =IF($B36="n/a","n/a",IF(AG$3>($B36+$E37),$C37-SUM($F37:AF37),($C37/$B36))) -> 0.03227609781 | AH37: =IF($B36="n/a","n/a",IF(AH$3>($B36+$E37),$C37-SUM($F37:AG37),($C37/$B36))) -> 0.03227609781 | AI37: =IF($B36="n/a","n/a",IF(AI$3>($B36+$E37),$C37-SUM($F37:AH37),($C37/$B36))) -> 0.03227609781 | AJ37: =IF($B36="n/a","n/a",IF(AJ$3>($B36+$E37),$C37-SUM($F37:AI37),($C37/$B36))) -> 0.03227609781 | AK37: =IF($B36="n/a","n/a",IF(AK$3>($B36+$E37),$C37-SUM($F37:AJ37),($C37/$B36))) -> 0.03227609781 | AL37: =IF($B36="n/a","n/a",IF(AL$3>($B36+$E37),$C37-SUM($F37:AK37),($C37/$B36))) -> 0.03227609781 | AM37: =IF($B36="n/a","n/a",IF(AM$3>($B36+$E37),$C37-SUM($F37:AL37),($C37/$B36))) -> 0.03227609781 | AN37: =IF($B36="n/a","n/a",IF(AN$3>($B36+$E37),$C37-SUM($F37:AM37),($C37/$B36))) -> 0.03227609781 | AO37: =IF($B36="n/a","n/a",IF(AO$3>($B36+$E37),$C37-SUM($F37:AN37),($C37/$B36))) -> 0.03227609781 | AP37: =IF($B36="n/a","n/a",IF(AP$3>($B36+$E37),$C37-SUM($F37:AO37),($C37/$B36))) -> 0.03227609781 | AQ37: =IF($B36="n/a","n/a",IF(AQ$3>($B36+$E37),$C37-SUM($F37:AP37),($C37/$B36))) -> 0.03227609781 | AR37: =IF($B36="n/a","n/a",IF(AR$3>($B36+$E37),$C37-SUM($F37:AQ37),($C37/$B36))) -> 0.03227609781 | AS37: =IF($B36="n/a","n/a",IF(AS$3>($B36+$E37),$C37-SUM($F37:AR37),($C37/$B36))) -> 0.03227609781 | AT37: =IF($B36="n/a","n/a",IF(AT$3>($B36+$E37),$C37-SUM($F37:AS37),($C37/$B36))) -> 0.03227609781 | AU37: =IF($B36="n/a","n/a",IF(AU$3>($B36+$E37),$C37-SUM($F37:AT37),($C37/$B36))) -> 0.03227609781 | AV37: =IF($B36="n/a","n/a",IF(AV$3>($B36+$E37),$C37-SUM($F37:AU37),($C37/$B36))) -> 0.03227609781 | AW37: =IF($B36="n/a","n/a",IF(AW$3>($B36+$E37),$C37-SUM($F37:AV37),($C37/$B36))) -> 0.03227609781 | AX37: =IF($B36="n/a","n/a",IF(AX$3>($B36+$E37),$C37-SUM($F37:AW37),($C37/$B36))) -> 0.03227609781 | AY37: =IF($B36="n/a","n/a",IF(AY$3>($B36+$E37),$C37-SUM($F37:AX37),($C37/$B36))) -> 0.03227609781 | AZ37: =IF($B36="n/a","n/a",IF(AZ$3>($B36+$E37),$C37-SUM($F37:AY37),($C37/$B36))) -> 0.03227609781 | BA37: =IF($B36="n/a","n/a",IF(BA$3>($B36+$E37),$C37-SUM($F37:AZ37),($C37/$B36))) -> 0.03227609781 | BB37: =IF($B36="n/a","n/a",IF(BB$3>($B36+$E37),$C37-SUM($F37:BA37),($C37/$B36))) -> 0.03227609781 | BC37: =IF($B36="n/a","n/a",IF(BC$3>($B36+$E37),$C37-SUM($F37:BB37),($C37/$B36))) -> 0.03227609781 | BD37: =IF($B36="n/a","n/a",IF(BD$3>($B36+$E37),$C37-SUM($F37:BC37),($C37/$B36))) -> 0.03227609781 | BE37: =IF($B36="n/a","n/a",IF(BE$3>($B36+$E37),$C37-SUM($F37:BD37),($C37/$B36))) -> 0.03227609781 | BF37: =IF($B36="n/a","n/a",IF(BF$3>($B36+$E37),$C37-SUM($F37:BE37),($C37/$B36))) -> 0.03227609781 | BG37: =IF($B36="n/a","n/a",IF(BG$3>($B36+$E37),$C37-SUM($F37:BF37),($C37/$B36))) -> 0.03227609781 | BH37: =IF($B36="n/a","n/a",IF(BH$3>($B36+$E37),$C37-SUM($F37:BG37),($C37/$B36))) -> 0.03227609781 | BI37: =IF($B36="n/a","n/a",IF(BI$3>($B36+$E37),$C37-SUM($F37:BH37),($C37/$B36))) -> 0.03227609781 | BJ37: =IF($B36="n/a","n/a",IF(BJ$3>($B36+$E37),$C37-SUM($F37:BI37),($C37/$B36))) -> 0.03227609781 | BK37: =IF($B36="n/a","n/a",IF(BK$3>($B36+$E37),$C37-SUM($F37:BJ37),($C37/$B36))) -> 1.33226763e-15 | BL37: =IF($B36="n/a","n/a",IF(BL$3>($B36+$E37),$C37-SUM($F37:BK37),($C37/$B36))) -> 0 | BM37: =IF($B36="n/a","n/a",IF(BM$3>($B36+$E37),$C37-SUM($F37:BL37),($C37/$B36))) -> 0 | BN37: =IF($B36="n/a","n/a",IF(BN$3>($B36+$E37),$C37-SUM($F37:BM37),($C37/$B36))) -> 0
B38: =INDEX('I2 RAB '!$E$9:$E$38,A31) -> 44.71344089 | C38: =OFFSET('I3 CAPEX '!$E$44,$A31,E38) -> 5.685898937 | E38: 3 | I38: =IF($B36="n/a","n/a",IF(I$3>($B36+$E38),$C38-SUM($F38:H38),($C38/$B36))) -> 0.1033799807 | J38: =IF($B36="n/a","n/a",IF(J$3>($B36+$E38),$C38-SUM($F38:I38),($C38/$B36))) -> 0.1033799807 | K38: =IF($B36="n/a","n/a",IF(K$3>($B36+$E38),$C38-SUM($F38:J38),($C38/$B36))) -> 0.1033799807 | L38: =IF($B36="n/a","n/a",IF(L$3>($B36+$E38),$C38-SUM($F38:K38),($C38/$B36))) -> 0.1033799807 | M38: =IF($B36="n/a","n/a",IF(M$3>($B36+$E38),$C38-SUM($F38:L38),($C38/$B36))) -> 0.1033799807 | N38: =IF($B36="n/a","n/a",IF(N$3>($B36+$E38),$C38-SUM($F38:M38),($C38/$B36))) -> 0.1033799807 | O38: =IF($B36="n/a","n/a",IF(O$3>($B36+$E38),$C38-SUM($F38:N38),($C38/$B36))) -> 0.1033799807 | P38: =IF($B36="n/a","n/a",IF(P$3>($B36+$E38),$C38-SUM($F38:O38),($C38/$B36))) -> 0.1033799807 | Q38: =IF($B36="n/a","n/a",IF(Q$3>($B36+$E38),$C38-SUM($F38:P38),($C38/$B36))) -> 0.1033799807 | R38: =IF($B36="n/a","n/a",IF(R$3>($B36+$E38),$C38-SUM($F38:Q38),($C38/$B36))) -> 0.1033799807 | S38: =IF($B36="n/a","n/a",IF(S$3>($B36+$E38),$C38-SUM($F38:R38),($C38/$B36))) -> 0.1033799807 | T38: =IF($B36="n/a","n/a",IF(T$3>($B36+$E38),$C38-SUM($F38:S38),($C38/$B36))) -> 0.1033799807 | U38: =IF($B36="n/a","n/a",IF(U$3>($B36+$E38),$C38-SUM($F38:T38),($C38/$B36))) -> 0.1033799807 | V38: =IF($B36="n/a","n/a",IF(V$3>($B36+$E38),$C38-SUM($F38:U38),($C38/$B36))) -> 0.1033799807 | W38: =IF($B36="n/a","n/a",IF(W$3>($B36+$E38),$C38-SUM($F38:V38),($C38/$B36))) -> 0.1033799807 | X38: =IF($B36="n/a","n/a",IF(X$3>($B36+$E38),$C38-SUM($F38:W38),($C38/$B36))) -> 0.1033799807 | Y38: =IF($B36="n/a","n/a",IF(Y$3>($B36+$E38),$C38-SUM($F38:X38),($C38/$B36))) -> 0.1033799807 | Z38: =IF($B36="n/a","n/a",IF(Z$3>($B36+$E38),$C38-SUM($F38:Y38),($C38/$B36))) -> 0.1033799807 | AA38: =IF($B36="n/a","n/a",IF(AA$3>($B36+$E38),$C38-SUM($F38:Z38),($C38/$B36))) -> 0.1033799807 | AB38: =IF($B36="n/a","n/a",IF(AB$3>($B36+$E38),$C38-SUM($F38:AA38),($C38/$B36))) -> 0.1033799807 | AC38: =IF($B36="n/a","n/a",IF(AC$3>($B36+$E38),$C38-SUM($F38:AB38),($C38/$B36))) -> 0.1033799807 | AD38: =IF($B36="n/a","n/a",IF(AD$3>($B36+$E38),$C38-SUM($F38:AC38),($C38/$B36))) -> 0.1033799807 | AE38: =IF($B36="n/a","n/a",IF(AE$3>($B36+$E38),$C38-SUM($F38:AD38),($C38/$B36))) -> 0.1033799807 | AF38: =IF($B36="n/a","n/a",IF(AF$3>($B36+$E38),$C38-SUM($F38:AE38),($C38/$B36))) -> 0.1033799807 | AG38: =IF($B36="n/a","n/a",IF(AG$3>($B36+$E38),$C38-SUM($F38:AF38),($C38/$B36))) -> 0.1033799807 | AH38: =IF($B36="n/a","n/a",IF(AH$3>($B36+$E38),$C38-SUM($F38:AG38),($C38/$B36))) -> 0.1033799807 | AI38: =IF($B36="n/a","n/a",IF(AI$3>($B36+$E38),$C38-SUM($F38:AH38),($C38/$B36))) -> 0.1033799807 | AJ38: =IF($B36="n/a","n/a",IF(AJ$3>($B36+$E38),$C38-SUM($F38:AI38),($C38/$B36))) -> 0.1033799807 | AK38: =IF($B36="n/a","n/a",IF(AK$3>($B36+$E38),$C38-SUM($F38:AJ38),($C38/$B36))) -> 0.1033799807 | AL38: =IF($B36="n/a","n/a",IF(AL$3>($B36+$E38),$C38-SUM($F38:AK38),($C38/$B36))) -> 0.1033799807 | AM38: =IF($B36="n/a","n/a",IF(AM$3>($B36+$E38),$C38-SUM($F38:AL38),($C38/$B36))) -> 0.1033799807 | AN38: =IF($B36="n/a","n/a",IF(AN$3>($B36+$E38),$C38-SUM($F38:AM38),($C38/$B36))) -> 0.1033799807 | AO38: =IF($B36="n/a","n/a",IF(AO$3>($B36+$E38),$C38-SUM($F38:AN38),($C38/$B36))) -> 0.1033799807 | AP38: =IF($B36="n/a","n/a",IF(AP$3>($B36+$E38),$C38-SUM($F38:AO38),($C38/$B36))) -> 0.1033799807 | AQ38: =IF($B36="n/a","n/a",IF(AQ$3>($B36+$E38),$C38-SUM($F38:AP38),($C38/$B36))) -> 0.1033799807 | AR38: =IF($B36="n/a","n/a",IF(AR$3>($B36+$E38),$C38-SUM($F38:AQ38),($C38/$B36))) -> 0.1033799807 | AS38: =IF($B36="n/a","n/a",IF(AS$3>($B36+$E38),$C38-SUM($F38:AR38),($C38/$B36))) -> 0.1033799807 | AT38: =IF($B36="n/a","n/a",IF(AT$3>($B36+$E38),$C38-SUM($F38:AS38),($C38/$B36))) -> 0.1033799807 | AU38: =IF($B36="n/a","n/a",IF(AU$3>($B36+$E38),$C38-SUM($F38:AT38),($C38/$B36))) -> 0.1033799807 | AV38: =IF($B36="n/a","n/a",IF(AV$3>($B36+$E38),$C38-SUM($F38:AU38),($C38/$B36))) -> 0.1033799807 | AW38: =IF($B36="n/a","n/a",IF(AW$3>($B36+$E38),$C38-SUM($F38:AV38),($C38/$B36))) -> 0.1033799807 | AX38: =IF($B36="n/a","n/a",IF(AX$3>($B36+$E38),$C38-SUM($F38:AW38),($C38/$B36))) -> 0.1033799807 | AY38: =IF($B36="n/a","n/a",IF(AY$3>($B36+$E38),$C38-SUM($F38:AX38),($C38/$B36))) -> 0.1033799807 | AZ38: =IF($B36="n/a","n/a",IF(AZ$3>($B36+$E38),$C38-SUM($F38:AY38),($C38/$B36))) -> 0.1033799807 | BA38: =IF($B36="n/a","n/a",IF(BA$3>($B36+$E38),$C38-SUM($F38:AZ38),($C38/$B36))) -> 0.1033799807 | BB38: =IF($B36="n/a","n/a",IF(BB$3>($B36+$E38),$C38-SUM($F38:BA38),($C38/$B36))) -> 0.1033799807 | BC38: =IF($B36="n/a","n/a",IF(BC$3>($B36+$E38),$C38-SUM($F38:BB38),($C38/$B36))) -> 0.1033799807 | BD38: =IF($B36="n/a","n/a",IF(BD$3>($B36+$E38),$C38-SUM($F38:BC38),($C38/$B36))) -> 0.1033799807 | BE38: =IF($B36="n/a","n/a",IF(BE$3>($B36+$E38),$C38-SUM($F38:BD38),($C38/$B36))) -> 0.1033799807 | BF38: =IF($B36="n/a","n/a",IF(BF$3>($B36+$E38),$C38-SUM($F38:BE38),($C38/$B36))) -> 0.1033799807 | BG38: =IF($B36="n/a","n/a",IF(BG$3>($B36+$E38),$C38-SUM($F38:BF38),($C38/$B36))) -> 0.1033799807 | BH38: =IF($B36="n/a","n/a",IF(BH$3>($B36+$E38),$C38-SUM($F38:BG38),($C38/$B36))) -> 0.1033799807 | BI38: =IF($B36="n/a","n/a",IF(BI$3>($B36+$E38),$C38-SUM($F38:BH38),($C38/$B36))) -> 0.1033799807 | BJ38: =IF($B36="n/a","n/a",IF(BJ$3>($B36+$E38),$C38-SUM($F38:BI38),($C38/$B36))) -> 0.1033799807 | BK38: =IF($B36="n/a","n/a",IF(BK$3>($B36+$E38),$C38-SUM($F38:BJ38),($C38/$B36))) -> 0.1033799807 | BL38: =IF($B36="n/a","n/a",IF(BL$3>($B36+$E38),$C38-SUM($F38:BK38),($C38/$B36))) -> 1.776356839e-15 | BM38: =IF($B36="n/a","n/a",IF(BM$3>($B36+$E38),$C38-SUM($F38:BL38),($C38/$B36))) -> 0 | BN38: =IF($B36="n/a","n/a",IF(BN$3>($B36+$E38),$C38-SUM($F38:BM38),($C38/$B36))) -> 0
B39: Op Bal | C39: =OFFSET('I3 CAPEX '!$E$44,$A31,E39) -> 2.817964743 | E39: 4 | J39: =IF($B36="n/a","n/a",IF(J$3>($B36+$E39),$C39-SUM($F39:I39),($C39/$B36))) -> 0.05123572259 | K39: =IF($B36="n/a","n/a",IF(K$3>($B36+$E39),$C39-SUM($F39:J39),($C39/$B36))) -> 0.05123572259 | L39: =IF($B36="n/a","n/a",IF(L$3>($B36+$E39),$C39-SUM($F39:K39),($C39/$B36))) -> 0.05123572259 | M39: =IF($B36="n/a","n/a",IF(M$3>($B36+$E39),$C39-SUM($F39:L39),($C39/$B36))) -> 0.05123572259 | N39: =IF($B36="n/a","n/a",IF(N$3>($B36+$E39),$C39-SUM($F39:M39),($C39/$B36))) -> 0.05123572259 | O39: =IF($B36="n/a","n/a",IF(O$3>($B36+$E39),$C39-SUM($F39:N39),($C39/$B36))) -> 0.05123572259 | P39: =IF($B36="n/a","n/a",IF(P$3>($B36+$E39),$C39-SUM($F39:O39),($C39/$B36))) -> 0.05123572259 | Q39: =IF($B36="n/a","n/a",IF(Q$3>($B36+$E39),$C39-SUM($F39:P39),($C39/$B36))) -> 0.05123572259 | R39: =IF($B36="n/a","n/a",IF(R$3>($B36+$E39),$C39-SUM($F39:Q39),($C39/$B36))) -> 0.05123572259 | S39: =IF($B36="n/a","n/a",IF(S$3>($B36+$E39),$C39-SUM($F39:R39),($C39/$B36))) -> 0.05123572259 | T39: =IF($B36="n/a","n/a",IF(T$3>($B36+$E39),$C39-SUM($F39:S39),($C39/$B36))) -> 0.05123572259 | U39: =IF($B36="n/a","n/a",IF(U$3>($B36+$E39),$C39-SUM($F39:T39),($C39/$B36))) -> 0.05123572259 | V39: =IF($B36="n/a","n/a",IF(V$3>($B36+$E39),$C39-SUM($F39:U39),($C39/$B36))) -> 0.05123572259 | W39: =IF($B36="n/a","n/a",IF(W$3>($B36+$E39),$C39-SUM($F39:V39),($C39/$B36))) -> 0.05123572259 | X39: =IF($B36="n/a","n/a",IF(X$3>($B36+$E39),$C39-SUM($F39:W39),($C39/$B36))) -> 0.05123572259 | Y39: =IF($B36="n/a","n/a",IF(Y$3>($B36+$E39),$C39-SUM($F39:X39),($C39/$B36))) -> 0.05123572259 | Z39: =IF($B36="n/a","n/a",IF(Z$3>($B36+$E39),$C39-SUM($F39:Y39),($C39/$B36))) -> 0.05123572259 | AA39: =IF($B36="n/a","n/a",IF(AA$3>($B36+$E39),$C39-SUM($F39:Z39),($C39/$B36))) -> 0.05123572259 | AB39: =IF($B36="n/a","n/a",IF(AB$3>($B36+$E39),$C39-SUM($F39:AA39),($C39/$B36))) -> 0.05123572259 | AC39: =IF($B36="n/a","n/a",IF(AC$3>($B36+$E39),$C39-SUM($F39:AB39),($C39/$B36))) -> 0.05123572259 | AD39: =IF($B36="n/a","n/a",IF(AD$3>($B36+$E39),$C39-SUM($F39:AC39),($C39/$B36))) -> 0.05123572259 | AE39: =IF($B36="n/a","n/a",IF(AE$3>($B36+$E39),$C39-SUM($F39:AD39),($C39/$B36))) -> 0.05123572259 | AF39: =IF($B36="n/a","n/a",IF(AF$3>($B36+$E39),$C39-SUM($F39:AE39),($C39/$B36))) -> 0.05123572259 | AG39: =IF($B36="n/a","n/a",IF(AG$3>($B36+$E39),$C39-SUM($F39:AF39),($C39/$B36))) -> 0.05123572259 | AH39: =IF($B36="n/a","n/a",IF(AH$3>($B36+$E39),$C39-SUM($F39:AG39),($C39/$B36))) -> 0.05123572259 | AI39: =IF($B36="n/a","n/a",IF(AI$3>($B36+$E39),$C39-SUM($F39:AH39),($C39/$B36))) -> 0.05123572259 | AJ39: =IF($B36="n/a","n/a",IF(AJ$3>($B36+$E39),$C39-SUM($F39:AI39),($C39/$B36))) -> 0.05123572259 | AK39: =IF($B36="n/a","n/a",IF(AK$3>($B36+$E39),$C39-SUM($F39:AJ39),($C39/$B36))) -> 0.05123572259 | AL39: =IF($B36="n/a","n/a",IF(AL$3>($B36+$E39),$C39-SUM($F39:AK39),($C39/$B36))) -> 0.05123572259 | AM39: =IF($B36="n/a","n/a",IF(AM$3>($B36+$E39),$C39-SUM($F39:AL39),($C39/$B36))) -> 0.05123572259 | AN39: =IF($B36="n/a","n/a",IF(AN$3>($B36+$E39),$C39-SUM($F39:AM39),($C39/$B36))) -> 0.05123572259 | AO39: =IF($B36="n/a","n/a",IF(AO$3>($B36+$E39),$C39-SUM($F39:AN39),($C39/$B36))) -> 0.05123572259 | AP39: =IF($B36="n/a","n/a",IF(AP$3>($B36+$E39),$C39-SUM($F39:AO39),($C39/$B36))) -> 0.05123572259 | AQ39: =IF($B36="n/a","n/a",IF(AQ$3>($B36+$E39),$C39-SUM($F39:AP39),($C39/$B36))) -> 0.05123572259 | AR39: =IF($B36="n/a","n/a",IF(AR$3>($B36+$E39),$C39-SUM($F39:AQ39),($C39/$B36))) -> 0.05123572259 | AS39: =IF($B36="n/a","n/a",IF(AS$3>($B36+$E39),$C39-SUM($F39:AR39),($C39/$B36))) -> 0.05123572259 | AT39: =IF($B36="n/a","n/a",IF(AT$3>($B36+$E39),$C39-SUM($F39:AS39),($C39/$B36))) -> 0.05123572259 | AU39: =IF($B36="n/a","n/a",IF(AU$3>($B36+$E39),$C39-SUM($F39:AT39),($C39/$B36))) -> 0.05123572259 | AV39: =IF($B36="n/a","n/a",IF(AV$3>($B36+$E39),$C39-SUM($F39:AU39),($C39/$B36))) -> 0.05123572259 | AW39: =IF($B36="n/a","n/a",IF(AW$3>($B36+$E39),$C39-SUM($F39:AV39),($C39/$B36))) -> 0.05123572259 | AX39: =IF($B36="n/a","n/a",IF(AX$3>($B36+$E39),$C39-SUM($F39:AW39),($C39/$B36))) -> 0.05123572259 | AY39: =IF($B36="n/a","n/a",IF(AY$3>($B36+$E39),$C39-SUM($F39:AX39),($C39/$B36))) -> 0.05123572259 | AZ39: =IF($B36="n/a","n/a",IF(AZ$3>($B36+$E39),$C39-SUM($F39:AY39),($C39/$B36))) -> 0.05123572259 | BA39: =IF($B36="n/a","n/a",IF(BA$3>($B36+$E39),$C39-SUM($F39:AZ39),($C39/$B36))) -> 0.05123572259 | BB39: =IF($B36="n/a","n/a",IF(BB$3>($B36+$E39),$C39-SUM($F39:BA39),($C39/$B36))) -> 0.05123572259 | BC39: =IF($B36="n/a","n/a",IF(BC$3>($B36+$E39),$C39-SUM($F39:BB39),($C39/$B36))) -> 0.05123572259 | BD39: =IF($B36="n/a","n/a",IF(BD$3>($B36+$E39),$C39-SUM($F39:BC39),($C39/$B36))) -> 0.05123572259 | BE39: =IF($B36="n/a","n/a",IF(BE$3>($B36+$E39),$C39-SUM($F39:BD39),($C39/$B36))) -> 0.05123572259 | BF39: =IF($B36="n/a","n/a",IF(BF$3>($B36+$E39),$C39-SUM($F39:BE39),($C39/$B36))) -> 0.05123572259 | BG39: =IF($B36="n/a","n/a",IF(BG$3>($B36+$E39),$C39-SUM($F39:BF39),($C39/$B36))) -> 0.05123572259 | BH39: =IF($B36="n/a","n/a",IF(BH$3>($B36+$E39),$C39-SUM($F39:BG39),($C39/$B36))) -> 0.05123572259 | BI39: =IF($B36="n/a","n/a",IF(BI$3>($B36+$E39),$C39-SUM($F39:BH39),($C39/$B36))) -> 0.05123572259 | BJ39: =IF($B36="n/a","n/a",IF(BJ$3>($B36+$E39),$C39-SUM($F39:BI39),($C39/$B36))) -> 0.05123572259 | BK39: =IF($B36="n/a","n/a",IF(BK$3>($B36+$E39),$C39-SUM($F39:BJ39),($C39/$B36))) -> 0.05123572259 | BL39: =IF($B36="n/a","n/a",IF(BL$3>($B36+$E39),$C39-SUM($F39:BK39),($C39/$B36))) -> 0.05123572259 | BM39: =IF($B36="n/a","n/a",IF(BM$3>($B36+$E39),$C39-SUM($F39:BL39),($C39/$B36))) -> -3.996802889e-15 | BN39: =IF($B36="n/a","n/a",IF(BN$3>($B36+$E39),$C39-SUM($F39:BM39),($C39/$B36))) -> 0
B40: =INDEX('I2 RAB '!$D$9:$D$38,A31) -> 7.698910695 | C40: =OFFSET('I3 CAPEX '!$E$44,$A31,E40)+OFFSET('I3 CAPEX '!$E$79,$A31,E40) -> 1.744329392 | E40: 5 | K40: =IF($B36="n/a","n/a",IF(K$3>($B36+$E40),$C40-SUM($F40:J40),($C40/$B36))) -> 0.03171507985 | L40: =IF($B36="n/a","n/a",IF(L$3>($B36+$E40),$C40-SUM($F40:K40),($C40/$B36))) -> 0.03171507985 | M40: =IF($B36="n/a","n/a",IF(M$3>($B36+$E40),$C40-SUM($F40:L40),($C40/$B36))) -> 0.03171507985 | N40: =IF($B36="n/a","n/a",IF(N$3>($B36+$E40),$C40-SUM($F40:M40),($C40/$B36))) -> 0.03171507985 | O40: =IF($B36="n/a","n/a",IF(O$3>($B36+$E40),$C40-SUM($F40:N40),($C40/$B36))) -> 0.03171507985 | P40: =IF($B36="n/a","n/a",IF(P$3>($B36+$E40),$C40-SUM($F40:O40),($C40/$B36))) -> 0.03171507985 | Q40: =IF($B36="n/a","n/a",IF(Q$3>($B36+$E40),$C40-SUM($F40:P40),($C40/$B36))) -> 0.03171507985 | R40: =IF($B36="n/a","n/a",IF(R$3>($B36+$E40),$C40-SUM($F40:Q40),($C40/$B36))) -> 0.03171507985 | S40: =IF($B36="n/a","n/a",IF(S$3>($B36+$E40),$C40-SUM($F40:R40),($C40/$B36))) -> 0.03171507985 | T40: =IF($B36="n/a","n/a",IF(T$3>($B36+$E40),$C40-SUM($F40:S40),($C40/$B36))) -> 0.03171507985 | U40: =IF($B36="n/a","n/a",IF(U$3>($B36+$E40),$C40-SUM($F40:T40),($C40/$B36))) -> 0.03171507985 | V40: =IF($B36="n/a","n/a",IF(V$3>($B36+$E40),$C40-SUM($F40:U40),($C40/$B36))) -> 0.03171507985 | W40: =IF($B36="n/a","n/a",IF(W$3>($B36+$E40),$C40-SUM($F40:V40),($C40/$B36))) -> 0.03171507985 | X40: =IF($B36="n/a","n/a",IF(X$3>($B36+$E40),$C40-SUM($F40:W40),($C40/$B36))) -> 0.03171507985 | Y40: =IF($B36="n/a","n/a",IF(Y$3>($B36+$E40),$C40-SUM($F40:X40),($C40/$B36))) -> 0.03171507985 | Z40: =IF($B36="n/a","n/a",IF(Z$3>($B36+$E40),$C40-SUM($F40:Y40),($C40/$B36))) -> 0.03171507985 | AA40: =IF($B36="n/a","n/a",IF(AA$3>($B36+$E40),$C40-SUM($F40:Z40),($C40/$B36))) -> 0.03171507985 | AB40: =IF($B36="n/a","n/a",IF(AB$3>($B36+$E40),$C40-SUM($F40:AA40),($C40/$B36))) -> 0.03171507985 | AC40: =IF($B36="n/a","n/a",IF(AC$3>($B36+$E40),$C40-SUM($F40:AB40),($C40/$B36))) -> 0.03171507985 | AD40: =IF($B36="n/a","n/a",IF(AD$3>($B36+$E40),$C40-SUM($F40:AC40),($C40/$B36))) -> 0.03171507985 | AE40: =IF($B36="n/a","n/a",IF(AE$3>($B36+$E40),$C40-SUM($F40:AD40),($C40/$B36))) -> 0.03171507985 | AF40: =IF($B36="n/a","n/a",IF(AF$3>($B36+$E40),$C40-SUM($F40:AE40),($C40/$B36))) -> 0.03171507985 | AG40: =IF($B36="n/a","n/a",IF(AG$3>($B36+$E40),$C40-SUM($F40:AF40),($C40/$B36))) -> 0.03171507985 | AH40: =IF($B36="n/a","n/a",IF(AH$3>($B36+$E40),$C40-SUM($F40:AG40),($C40/$B36))) -> 0.03171507985 | AI40: =IF($B36="n/a","n/a",IF(AI$3>($B36+$E40),$C40-SUM($F40:AH40),($C40/$B36))) -> 0.03171507985 | AJ40: =IF($B36="n/a","n/a",IF(AJ$3>($B36+$E40),$C40-SUM($F40:AI40),($C40/$B36))) -> 0.03171507985 | AK40: =IF($B36="n/a","n/a",IF(AK$3>($B36+$E40),$C40-SUM($F40:AJ40),($C40/$B36))) -> 0.03171507985 | AL40: =IF($B36="n/a","n/a",IF(AL$3>($B36+$E40),$C40-SUM($F40:AK40),($C40/$B36))) -> 0.03171507985 | AM40: =IF($B36="n/a","n/a",IF(AM$3>($B36+$E40),$C40-SUM($F40:AL40),($C40/$B36))) -> 0.03171507985 | AN40: =IF($B36="n/a","n/a",IF(AN$3>($B36+$E40),$C40-SUM($F40:AM40),($C40/$B36))) -> 0.03171507985 | AO40: =IF($B36="n/a","n/a",IF(AO$3>($B36+$E40),$C40-SUM($F40:AN40),($C40/$B36))) -> 0.03171507985 | AP40: =IF($B36="n/a","n/a",IF(AP$3>($B36+$E40),$C40-SUM($F40:AO40),($C40/$B36))) -> 0.03171507985 | AQ40: =IF($B36="n/a","n/a",IF(AQ$3>($B36+$E40),$C40-SUM($F40:AP40),($C40/$B36))) -> 0.03171507985 | AR40: =IF($B36="n/a","n/a",IF(AR$3>($B36+$E40),$C40-SUM($F40:AQ40),($C40/$B36))) -> 0.03171507985 | AS40: =IF($B36="n/a","n/a",IF(AS$3>($B36+$E40),$C40-SUM($F40:AR40),($C40/$B36))) -> 0.03171507985 | AT40: =IF($B36="n/a","n/a",IF(AT$3>($B36+$E40),$C40-SUM($F40:AS40),($C40/$B36))) -> 0.03171507985 | AU40: =IF($B36="n/a","n/a",IF(AU$3>($B36+$E40),$C40-SUM($F40:AT40),($C40/$B36))) -> 0.03171507985 | AV40: =IF($B36="n/a","n/a",IF(AV$3>($B36+$E40),$C40-SUM($F40:AU40),($C40/$B36))) -> 0.03171507985 | AW40: =IF($B36="n/a","n/a",IF(AW$3>($B36+$E40),$C40-SUM($F40:AV40),($C40/$B36))) -> 0.03171507985 | AX40: =IF($B36="n/a","n/a",IF(AX$3>($B36+$E40),$C40-SUM($F40:AW40),($C40/$B36))) -> 0.03171507985 | AY40: =IF($B36="n/a","n/a",IF(AY$3>($B36+$E40),$C40-SUM($F40:AX40),($C40/$B36))) -> 0.03171507985 | AZ40: =IF($B36="n/a","n/a",IF(AZ$3>($B36+$E40),$C40-SUM($F40:AY40),($C40/$B36))) -> 0.03171507985 | BA40: =IF($B36="n/a","n/a",IF(BA$3>($B36+$E40),$C40-SUM($F40:AZ40),($C40/$B36))) -> 0.03171507985 | BB40: =IF($B36="n/a","n/a",IF(BB$3>($B36+$E40),$C40-SUM($F40:BA40),($C40/$B36))) -> 0.03171507985 | BC40: =IF($B36="n/a","n/a",IF(BC$3>($B36+$E40),$C40-SUM($F40:BB40),($C40/$B36))) -> 0.03171507985 | BD40: =IF($B36="n/a","n/a",IF(BD$3>($B36+$E40),$C40-SUM($F40:BC40),($C40/$B36))) -> 0.03171507985 | BE40: =IF($B36="n/a","n/a",IF(BE$3>($B36+$E40),$C40-SUM($F40:BD40),($C40/$B36))) -> 0.03171507985 | BF40: =IF($B36="n/a","n/a",IF(BF$3>($B36+$E40),$C40-SUM($F40:BE40),($C40/$B36))) -> 0.03171507985 | BG40: =IF($B36="n/a","n/a",IF(BG$3>($B36+$E40),$C40-SUM($F40:BF40),($C40/$B36))) -> 0.03171507985 | BH40: =IF($B36="n/a","n/a",IF(BH$3>($B36+$E40),$C40-SUM($F40:BG40),($C40/$B36))) -> 0.03171507985 | BI40: =IF($B36="n/a","n/a",IF(BI$3>($B36+$E40),$C40-SUM($F40:BH40),($C40/$B36))) -> 0.03171507985 | BJ40: =IF($B36="n/a","n/a",IF(BJ$3>($B36+$E40),$C40-SUM($F40:BI40),($C40/$B36))) -> 0.03171507985 | BK40: =IF($B36="n/a","n/a",IF(BK$3>($B36+$E40),$C40-SUM($F40:BJ40),($C40/$B36))) -> 0.03171507985 | BL40: =IF($B36="n/a","n/a",IF(BL$3>($B36+$E40),$C40-SUM($F40:BK40),($C40/$B36))) -> 0.03171507985 | BM40: =IF($B36="n/a","n/a",IF(BM$3>($B36+$E40),$C40-SUM($F40:BL40),($C40/$B36))) -> 0.03171507985 | BN40: =IF($B36="n/a","n/a",IF(BN$3>($B36+$E40),$C40-SUM($F40:BM40),($C40/$B36))) -> -1.554312234e-15
B41: 2012-13 Capex True up adj | C41: =OFFSET('I3 CAPEX '!$E$44,$A31,E41)+OFFSET('I3 CAPEX '!$E$79,$A31,E41) -> 0 | E41: 6 | L41: =IF($B36="n/a","n/a",IF(L$3>($B36+$E41),$C41-SUM($F41:K41),($C41/$B36))) -> 0 | M41: =IF($B36="n/a","n/a",IF(M$3>($B36+$E41),$C41-SUM($F41:L41),($C41/$B36))) -> 0 | N41: =IF($B36="n/a","n/a",IF(N$3>($B36+$E41),$C41-SUM($F41:M41),($C41/$B36))) -> 0 | O41: =IF($B36="n/a","n/a",IF(O$3>($B36+$E41),$C41-SUM($F41:N41),($C41/$B36))) -> 0 | P41: =IF($B36="n/a","n/a",IF(P$3>($B36+$E41),$C41-SUM($F41:O41),($C41/$B36))) -> 0 | Q41: =IF($B36="n/a","n/a",IF(Q$3>($B36+$E41),$C41-SUM($F41:P41),($C41/$B36))) -> 0 | R41: =IF($B36="n/a","n/a",IF(R$3>($B36+$E41),$C41-SUM($F41:Q41),($C41/$B36))) -> 0 | S41: =IF($B36="n/a","n/a",IF(S$3>($B36+$E41),$C41-SUM($F41:R41),($C41/$B36))) -> 0 | T41: =IF($B36="n/a","n/a",IF(T$3>($B36+$E41),$C41-SUM($F41:S41),($C41/$B36))) -> 0 | U41: =IF($B36="n/a","n/a",IF(U$3>($B36+$E41),$C41-SUM($F41:T41),($C41/$B36))) -> 0 | V41: =IF($B36="n/a","n/a",IF(V$3>($B36+$E41),$C41-SUM($F41:U41),($C41/$B36))) -> 0 | W41: =IF($B36="n/a","n/a",IF(W$3>($B36+$E41),$C41-SUM($F41:V41),($C41/$B36))) -> 0 | X41: =IF($B36="n/a","n/a",IF(X$3>($B36+$E41),$C41-SUM($F41:W41),($C41/$B36))) -> 0 | Y41: =IF($B36="n/a","n/a",IF(Y$3>($B36+$E41),$C41-SUM($F41:X41),($C41/$B36))) -> 0 | Z41: =IF($B36="n/a","n/a",IF(Z$3>($B36+$E41),$C41-SUM($F41:Y41),($C41/$B36))) -> 0 | AA41: =IF($B36="n/a","n/a",IF(AA$3>($B36+$E41),$C41-SUM($F41:Z41),($C41/$B36))) -> 0 | AB41: =IF($B36="n/a","n/a",IF(AB$3>($B36+$E41),$C41-SUM($F41:AA41),($C41/$B36))) -> 0 | AC41: =IF($B36="n/a","n/a",IF(AC$3>($B36+$E41),$C41-SUM($F41:AB41),($C41/$B36))) -> 0 | AD41: =IF($B36="n/a","n/a",IF(AD$3>($B36+$E41),$C41-SUM($F41:AC41),($C41/$B36))) -> 0 | AE41: =IF($B36="n/a","n/a",IF(AE$3>($B36+$E41),$C41-SUM($F41:AD41),($C41/$B36))) -> 0 | AF41: =IF($B36="n/a","n/a",IF(AF$3>($B36+$E41),$C41-SUM($F41:AE41),($C41/$B36))) -> 0 | AG41: =IF($B36="n/a","n/a",IF(AG$3>($B36+$E41),$C41-SUM($F41:AF41),($C41/$B36))) -> 0 | AH41: =IF($B36="n/a","n/a",IF(AH$3>($B36+$E41),$C41-SUM($F41:AG41),($C41/$B36))) -> 0 | AI41: =IF($B36="n/a","n/a",IF(AI$3>($B36+$E41),$C41-SUM($F41:AH41),($C41/$B36))) -> 0 | AJ41: =IF($B36="n/a","n/a",IF(AJ$3>($B36+$E41),$C41-SUM($F41:AI41),($C41/$B36))) -> 0 | AK41: =IF($B36="n/a","n/a",IF(AK$3>($B36+$E41),$C41-SUM($F41:AJ41),($C41/$B36))) -> 0 | AL41: =IF($B36="n/a","n/a",IF(AL$3>($B36+$E41),$C41-SUM($F41:AK41),($C41/$B36))) -> 0 | AM41: =IF($B36="n/a","n/a",IF(AM$3>($B36+$E41),$C41-SUM($F41:AL41),($C41/$B36))) -> 0 | AN41: =IF($B36="n/a","n/a",IF(AN$3>($B36+$E41),$C41-SUM($F41:AM41),($C41/$B36))) -> 0 | AO41: =IF($B36="n/a","n/a",IF(AO$3>($B36+$E41),$C41-SUM($F41:AN41),($C41/$B36))) -> 0 | AP41: =IF($B36="n/a","n/a",IF(AP$3>($B36+$E41),$C41-SUM($F41:AO41),($C41/$B36))) -> 0 | AQ41: =IF($B36="n/a","n/a",IF(AQ$3>($B36+$E41),$C41-SUM($F41:AP41),($C41/$B36))) -> 0 | AR41: =IF($B36="n/a","n/a",IF(AR$3>($B36+$E41),$C41-SUM($F41:AQ41),($C41/$B36))) -> 0 | AS41: =IF($B36="n/a","n/a",IF(AS$3>($B36+$E41),$C41-SUM($F41:AR41),($C41/$B36))) -> 0 | AT41: =IF($B36="n/a","n/a",IF(AT$3>($B36+$E41),$C41-SUM($F41:AS41),($C41/$B36))) -> 0 | AU41: =IF($B36="n/a","n/a",IF(AU$3>($B36+$E41),$C41-SUM($F41:AT41),($C41/$B36))) -> 0 | AV41: =IF($B36="n/a","n/a",IF(AV$3>($B36+$E41),$C41-SUM($F41:AU41),($C41/$B36))) -> 0 | AW41: =IF($B36="n/a","n/a",IF(AW$3>($B36+$E41),$C41-SUM($F41:AV41),($C41/$B36))) -> 0 | AX41: =IF($B36="n/a","n/a",IF(AX$3>($B36+$E41),$C41-SUM($F41:AW41),($C41/$B36))) -> 0 | AY41: =IF($B36="n/a","n/a",IF(AY$3>($B36+$E41),$C41-SUM($F41:AX41),($C41/$B36))) -> 0 | AZ41: =IF($B36="n/a","n/a",IF(AZ$3>($B36+$E41),$C41-SUM($F41:AY41),($C41/$B36))) -> 0 | BA41: =IF($B36="n/a","n/a",IF(BA$3>($B36+$E41),$C41-SUM($F41:AZ41),($C41/$B36))) -> 0 | BB41: =IF($B36="n/a","n/a",IF(BB$3>($B36+$E41),$C41-SUM($F41:BA41),($C41/$B36))) -> 0 | BC41: =IF($B36="n/a","n/a",IF(BC$3>($B36+$E41),$C41-SUM($F41:BB41),($C41/$B36))) -> 0 | BD41: =IF($B36="n/a","n/a",IF(BD$3>($B36+$E41),$C41-SUM($F41:BC41),($C41/$B36))) -> 0 | BE41: =IF($B36="n/a","n/a",IF(BE$3>($B36+$E41),$C41-SUM($F41:BD41),($C41/$B36))) -> 0 | BF41: =IF($B36="n/a","n/a",IF(BF$3>($B36+$E41),$C41-SUM($F41:BE41),($C41/$B36))) -> 0 | BG41: =IF($B36="n/a","n/a",IF(BG$3>($B36+$E41),$C41-SUM($F41:BF41),($C41/$B36))) -> 0 | BH41: =IF($B36="n/a","n/a",IF(BH$3>($B36+$E41),$C41-SUM($F41:BG41),($C41/$B36))) -> 0 | BI41: =IF($B36="n/a","n/a",IF(BI$3>($B36+$E41),$C41-SUM($F41:BH41),($C41/$B36))) -> 0 | BJ41: =IF($B36="n/a","n/a",IF(BJ$3>($B36+$E41),$C41-SUM($F41:BI41),($C41/$B36))) -> 0 | BK41: =IF($B36="n/a","n/a",IF(BK$3>($B36+$E41),$C41-SUM($F41:BJ41),($C41/$B36))) -> 0 | BL41: =IF($B36="n/a","n/a",IF(BL$3>($B36+$E41),$C41-SUM($F41:BK41),($C41/$B36))) -> 0 | BM41: =IF($B36="n/a","n/a",IF(BM$3>($B36+$E41),$C41-SUM($F41:BL41),($C41/$B36))) -> 0 | BN41: =IF($B36="n/a","n/a",IF(BN$3>($B36+$E41),$C41-SUM($F41:BM41),($C41/$B36))) -> 0
B42: =+OFFSET('I3 CAPEX '!$E$79,$A31,E39) -> 1.574340266 | C42: =OFFSET('I3 CAPEX '!$E$44,$A31,E42)+OFFSET('I3 CAPEX '!$E$79,$A31,E42) -> 0 | E42: 7 | M42: =IF($B36="n/a","n/a",IF(M$3>($B36+$E42),$C42-SUM($F42:L42),($C42/$B36))) -> 0 | N42: =IF($B36="n/a","n/a",IF(N$3>($B36+$E42),$C42-SUM($F42:M42),($C42/$B36))) -> 0 | O42: =IF($B36="n/a","n/a",IF(O$3>($B36+$E42),$C42-SUM($F42:N42),($C42/$B36))) -> 0 | P42: =IF($B36="n/a","n/a",IF(P$3>($B36+$E42),$C42-SUM($F42:O42),($C42/$B36))) -> 0 | Q42: =IF($B36="n/a","n/a",IF(Q$3>($B36+$E42),$C42-SUM($F42:P42),($C42/$B36))) -> 0 | R42: =IF($B36="n/a","n/a",IF(R$3>($B36+$E42),$C42-SUM($F42:Q42),($C42/$B36))) -> 0 | S42: =IF($B36="n/a","n/a",IF(S$3>($B36+$E42),$C42-SUM($F42:R42),($C42/$B36))) -> 0 | T42: =IF($B36="n/a","n/a",IF(T$3>($B36+$E42),$C42-SUM($F42:S42),($C42/$B36))) -> 0 | U42: =IF($B36="n/a","n/a",IF(U$3>($B36+$E42),$C42-SUM($F42:T42),($C42/$B36))) -> 0 | V42: =IF($B36="n/a","n/a",IF(V$3>($B36+$E42),$C42-SUM($F42:U42),($C42/$B36))) -> 0 | W42: =IF($B36="n/a","n/a",IF(W$3>($B36+$E42),$C42-SUM($F42:V42),($C42/$B36))) -> 0 | X42: =IF($B36="n/a","n/a",IF(X$3>($B36+$E42),$C42-SUM($F42:W42),($C42/$B36))) -> 0 | Y42: =IF($B36="n/a","n/a",IF(Y$3>($B36+$E42),$C42-SUM($F42:X42),($C42/$B36))) -> 0 | Z42: =IF($B36="n/a","n/a",IF(Z$3>($B36+$E42),$C42-SUM($F42:Y42),($C42/$B36))) -> 0 | AA42: =IF($B36="n/a","n/a",IF(AA$3>($B36+$E42),$C42-SUM($F42:Z42),($C42/$B36))) -> 0 | AB42: =IF($B36="n/a","n/a",IF(AB$3>($B36+$E42),$C42-SUM($F42:AA42),($C42/$B36))) -> 0 | AC42: =IF($B36="n/a","n/a",IF(AC$3>($B36+$E42),$C42-SUM($F42:AB42),($C42/$B36))) -> 0 | AD42: =IF($B36="n/a","n/a",IF(AD$3>($B36+$E42),$C42-SUM($F42:AC42),($C42/$B36))) -> 0 | AE42: =IF($B36="n/a","n/a",IF(AE$3>($B36+$E42),$C42-SUM($F42:AD42),($C42/$B36))) -> 0 | AF42: =IF($B36="n/a","n/a",IF(AF$3>($B36+$E42),$C42-SUM($F42:AE42),($C42/$B36))) -> 0 | AG42: =IF($B36="n/a","n/a",IF(AG$3>($B36+$E42),$C42-SUM($F42:AF42),($C42/$B36))) -> 0 | AH42: =IF($B36="n/a","n/a",IF(AH$3>($B36+$E42),$C42-SUM($F42:AG42),($C42/$B36))) -> 0 | AI42: =IF($B36="n/a","n/a",IF(AI$3>($B36+$E42),$C42-SUM($F42:AH42),($C42/$B36))) -> 0 | AJ42: =IF($B36="n/a","n/a",IF(AJ$3>($B36+$E42),$C42-SUM($F42:AI42),($C42/$B36))) -> 0 | AK42: =IF($B36="n/a","n/a",IF(AK$3>($B36+$E42),$C42-SUM($F42:AJ42),($C42/$B36))) -> 0 | AL42: =IF($B36="n/a","n/a",IF(AL$3>($B36+$E42),$C42-SUM($F42:AK42),($C42/$B36))) -> 0 | AM42: =IF($B36="n/a","n/a",IF(AM$3>($B36+$E42),$C42-SUM($F42:AL42),($C42/$B36))) -> 0 | AN42: =IF($B36="n/a","n/a",IF(AN$3>($B36+$E42),$C42-SUM($F42:AM42),($C42/$B36))) -> 0 | AO42: =IF($B36="n/a","n/a",IF(AO$3>($B36+$E42),$C42-SUM($F42:AN42),($C42/$B36))) -> 0 | AP42: =IF($B36="n/a","n/a",IF(AP$3>($B36+$E42),$C42-SUM($F42:AO42),($C42/$B36))) -> 0 | AQ42: =IF($B36="n/a","n/a",IF(AQ$3>($B36+$E42),$C42-SUM($F42:AP42),($C42/$B36))) -> 0 | AR42: =IF($B36="n/a","n/a",IF(AR$3>($B36+$E42),$C42-SUM($F42:AQ42),($C42/$B36))) -> 0 | AS42: =IF($B36="n/a","n/a",IF(AS$3>($B36+$E42),$C42-SUM($F42:AR42),($C42/$B36))) -> 0 | AT42: =IF($B36="n/a","n/a",IF(AT$3>($B36+$E42),$C42-SUM($F42:AS42),($C42/$B36))) -> 0 | AU42: =IF($B36="n/a","n/a",IF(AU$3>($B36+$E42),$C42-SUM($F42:AT42),($C42/$B36))) -> 0 | AV42: =IF($B36="n/a","n/a",IF(AV$3>($B36+$E42),$C42-SUM($F42:AU42),($C42/$B36))) -> 0 | AW42: =IF($B36="n/a","n/a",IF(AW$3>($B36+$E42),$C42-SUM($F42:AV42),($C42/$B36))) -> 0 | AX42: =IF($B36="n/a","n/a",IF(AX$3>($B36+$E42),$C42-SUM($F42:AW42),($C42/$B36))) -> 0 | AY42: =IF($B36="n/a","n/a",IF(AY$3>($B36+$E42),$C42-SUM($F42:AX42),($C42/$B36))) -> 0 | AZ42: =IF($B36="n/a","n/a",IF(AZ$3>($B36+$E42),$C42-SUM($F42:AY42),($C42/$B36))) -> 0 | BA42: =IF($B36="n/a","n/a",IF(BA$3>($B36+$E42),$C42-SUM($F42:AZ42),($C42/$B36))) -> 0 | BB42: =IF($B36="n/a","n/a",IF(BB$3>($B36+$E42),$C42-SUM($F42:BA42),($C42/$B36))) -> 0 | BC42: =IF($B36="n/a","n/a",IF(BC$3>($B36+$E42),$C42-SUM($F42:BB42),($C42/$B36))) -> 0 | BD42: =IF($B36="n/a","n/a",IF(BD$3>($B36+$E42),$C42-SUM($F42:BC42),($C42/$B36))) -> 0 | BE42: =IF($B36="n/a","n/a",IF(BE$3>($B36+$E42),$C42-SUM($F42:BD42),($C42/$B36))) -> 0 | BF42: =IF($B36="n/a","n/a",IF(BF$3>($B36+$E42),$C42-SUM($F42:BE42),($C42/$B36))) -> 0 | BG42: =IF($B36="n/a","n/a",IF(BG$3>($B36+$E42),$C42-SUM($F42:BF42),($C42/$B36))) -> 0 | BH42: =IF($B36="n/a","n/a",IF(BH$3>($B36+$E42),$C42-SUM($F42:BG42),($C42/$B36))) -> 0 | BI42: =IF($B36="n/a","n/a",IF(BI$3>($B36+$E42),$C42-SUM($F42:BH42),($C42/$B36))) -> 0 | BJ42: =IF($B36="n/a","n/a",IF(BJ$3>($B36+$E42),$C42-SUM($F42:BI42),($C42/$B36))) -> 0 | BK42: =IF($B36="n/a","n/a",IF(BK$3>($B36+$E42),$C42-SUM($F42:BJ42),($C42/$B36))) -> 0 | BL42: =IF($B36="n/a","n/a",IF(BL$3>($B36+$E42),$C42-SUM($F42:BK42),($C42/$B36))) -> 0 | BM42: =IF($B36="n/a","n/a",IF(BM$3>($B36+$E42),$C42-SUM($F42:BL42),($C42/$B36))) -> 0 | BN42: =IF($B36="n/a","n/a",IF(BN$3>($B36+$E42),$C42-SUM($F42:BM42),($C42/$B36))) -> 0
B43: Accel Dep adj | C43: =OFFSET('I3 CAPEX '!$E$44,$A31,E43)+OFFSET('I3 CAPEX '!$E$79,$A31,E43) -> 0 | E43: 8 | N43: =IF($B36="n/a","n/a",IF(N$3>($B36+$E43),$C43-SUM($F43:M43),($C43/$B36))) -> 0 | O43: =IF($B36="n/a","n/a",IF(O$3>($B36+$E43),$C43-SUM($F43:N43),($C43/$B36))) -> 0 | P43: =IF($B36="n/a","n/a",IF(P$3>($B36+$E43),$C43-SUM($F43:O43),($C43/$B36))) -> 0 | Q43: =IF($B36="n/a","n/a",IF(Q$3>($B36+$E43),$C43-SUM($F43:P43),($C43/$B36))) -> 0 | R43: =IF($B36="n/a","n/a",IF(R$3>($B36+$E43),$C43-SUM($F43:Q43),($C43/$B36))) -> 0 | S43: =IF($B36="n/a","n/a",IF(S$3>($B36+$E43),$C43-SUM($F43:R43),($C43/$B36))) -> 0 | T43: =IF($B36="n/a","n/a",IF(T$3>($B36+$E43),$C43-SUM($F43:S43),($C43/$B36))) -> 0 | U43: =IF($B36="n/a","n/a",IF(U$3>($B36+$E43),$C43-SUM($F43:T43),($C43/$B36))) -> 0 | V43: =IF($B36="n/a","n/a",IF(V$3>($B36+$E43),$C43-SUM($F43:U43),($C43/$B36))) -> 0 | W43: =IF($B36="n/a","n/a",IF(W$3>($B36+$E43),$C43-SUM($F43:V43),($C43/$B36))) -> 0 | X43: =IF($B36="n/a","n/a",IF(X$3>($B36+$E43),$C43-SUM($F43:W43),($C43/$B36))) -> 0 | Y43: =IF($B36="n/a","n/a",IF(Y$3>($B36+$E43),$C43-SUM($F43:X43),($C43/$B36))) -> 0 | Z43: =IF($B36="n/a","n/a",IF(Z$3>($B36+$E43),$C43-SUM($F43:Y43),($C43/$B36))) -> 0 | AA43: =IF($B36="n/a","n/a",IF(AA$3>($B36+$E43),$C43-SUM($F43:Z43),($C43/$B36))) -> 0 | AB43: =IF($B36="n/a","n/a",IF(AB$3>($B36+$E43),$C43-SUM($F43:AA43),($C43/$B36))) -> 0 | AC43: =IF($B36="n/a","n/a",IF(AC$3>($B36+$E43),$C43-SUM($F43:AB43),($C43/$B36))) -> 0 | AD43: =IF($B36="n/a","n/a",IF(AD$3>($B36+$E43),$C43-SUM($F43:AC43),($C43/$B36))) -> 0 | AE43: =IF($B36="n/a","n/a",IF(AE$3>($B36+$E43),$C43-SUM($F43:AD43),($C43/$B36))) -> 0 | AF43: =IF($B36="n/a","n/a",IF(AF$3>($B36+$E43),$C43-SUM($F43:AE43),($C43/$B36))) -> 0 | AG43: =IF($B36="n/a","n/a",IF(AG$3>($B36+$E43),$C43-SUM($F43:AF43),($C43/$B36))) -> 0 | AH43: =IF($B36="n/a","n/a",IF(AH$3>($B36+$E43),$C43-SUM($F43:AG43),($C43/$B36))) -> 0 | AI43: =IF($B36="n/a","n/a",IF(AI$3>($B36+$E43),$C43-SUM($F43:AH43),($C43/$B36))) -> 0 | AJ43: =IF($B36="n/a","n/a",IF(AJ$3>($B36+$E43),$C43-SUM($F43:AI43),($C43/$B36))) -> 0 | AK43: =IF($B36="n/a","n/a",IF(AK$3>($B36+$E43),$C43-SUM($F43:AJ43),($C43/$B36))) -> 0 | AL43: =IF($B36="n/a","n/a",IF(AL$3>($B36+$E43),$C43-SUM($F43:AK43),($C43/$B36))) -> 0 | AM43: =IF($B36="n/a","n/a",IF(AM$3>($B36+$E43),$C43-SUM($F43:AL43),($C43/$B36))) -> 0 | AN43: =IF($B36="n/a","n/a",IF(AN$3>($B36+$E43),$C43-SUM($F43:AM43),($C43/$B36))) -> 0 | AO43: =IF($B36="n/a","n/a",IF(AO$3>($B36+$E43),$C43-SUM($F43:AN43),($C43/$B36))) -> 0 | AP43: =IF($B36="n/a","n/a",IF(AP$3>($B36+$E43),$C43-SUM($F43:AO43),($C43/$B36))) -> 0 | AQ43: =IF($B36="n/a","n/a",IF(AQ$3>($B36+$E43),$C43-SUM($F43:AP43),($C43/$B36))) -> 0 | AR43: =IF($B36="n/a","n/a",IF(AR$3>($B36+$E43),$C43-SUM($F43:AQ43),($C43/$B36))) -> 0 | AS43: =IF($B36="n/a","n/a",IF(AS$3>($B36+$E43),$C43-SUM($F43:AR43),($C43/$B36))) -> 0 | AT43: =IF($B36="n/a","n/a",IF(AT$3>($B36+$E43),$C43-SUM($F43:AS43),($C43/$B36))) -> 0 | AU43: =IF($B36="n/a","n/a",IF(AU$3>($B36+$E43),$C43-SUM($F43:AT43),($C43/$B36))) -> 0 | AV43: =IF($B36="n/a","n/a",IF(AV$3>($B36+$E43),$C43-SUM($F43:AU43),($C43/$B36))) -> 0 | AW43: =IF($B36="n/a","n/a",IF(AW$3>($B36+$E43),$C43-SUM($F43:AV43),($C43/$B36))) -> 0 | AX43: =IF($B36="n/a","n/a",IF(AX$3>($B36+$E43),$C43-SUM($F43:AW43),($C43/$B36))) -> 0 | AY43: =IF($B36="n/a","n/a",IF(AY$3>($B36+$E43),$C43-SUM($F43:AX43),($C43/$B36))) -> 0 | AZ43: =IF($B36="n/a","n/a",IF(AZ$3>($B36+$E43),$C43-SUM($F43:AY43),($C43/$B36))) -> 0 | BA43: =IF($B36="n/a","n/a",IF(BA$3>($B36+$E43),$C43-SUM($F43:AZ43),($C43/$B36))) -> 0 | BB43: =IF($B36="n/a","n/a",IF(BB$3>($B36+$E43),$C43-SUM($F43:BA43),($C43/$B36))) -> 0 | BC43: =IF($B36="n/a","n/a",IF(BC$3>($B36+$E43),$C43-SUM($F43:BB43),($C43/$B36))) -> 0 | BD43: =IF($B36="n/a","n/a",IF(BD$3>($B36+$E43),$C43-SUM($F43:BC43),($C43/$B36))) -> 0 | BE43: =IF($B36="n/a","n/a",IF(BE$3>($B36+$E43),$C43-SUM($F43:BD43),($C43/$B36))) -> 0 | BF43: =IF($B36="n/a","n/a",IF(BF$3>($B36+$E43),$C43-SUM($F43:BE43),($C43/$B36))) -> 0 | BG43: =IF($B36="n/a","n/a",IF(BG$3>($B36+$E43),$C43-SUM($F43:BF43),($C43/$B36))) -> 0 | BH43: =IF($B36="n/a","n/a",IF(BH$3>($B36+$E43),$C43-SUM($F43:BG43),($C43/$B36))) -> 0 | BI43: =IF($B36="n/a","n/a",IF(BI$3>($B36+$E43),$C43-SUM($F43:BH43),($C43/$B36))) -> 0 | BJ43: =IF($B36="n/a","n/a",IF(BJ$3>($B36+$E43),$C43-SUM($F43:BI43),($C43/$B36))) -> 0 | BK43: =IF($B36="n/a","n/a",IF(BK$3>($B36+$E43),$C43-SUM($F43:BJ43),($C43/$B36))) -> 0 | BL43: =IF($B36="n/a","n/a",IF(BL$3>($B36+$E43),$C43-SUM($F43:BK43),($C43/$B36))) -> 0 | BM43: =IF($B36="n/a","n/a",IF(BM$3>($B36+$E43),$C43-SUM($F43:BL43),($C43/$B36))) -> 0 | BN43: =IF($B36="n/a","n/a",IF(BN$3>($B36+$E43),$C43-SUM($F43:BM43),($C43/$B36))) -> 0
B44: =INDEX('I3 CAPEX '!$AF$80:$AF$109,A31) -> -0.9087052036 | C44: =OFFSET('I3 CAPEX '!$E$44,$A31,E44)+OFFSET('I3 CAPEX '!$E$79,$A31,E44) -> 0 | E44: 9 | O44: =IF($B36="n/a","n/a",IF(O$3>($B36+$E44),$C44-SUM($F44:N44),($C44/$B36))) -> 0 | P44: =IF($B36="n/a","n/a",IF(P$3>($B36+$E44),$C44-SUM($F44:O44),($C44/$B36))) -> 0 | Q44: =IF($B36="n/a","n/a",IF(Q$3>($B36+$E44),$C44-SUM($F44:P44),($C44/$B36))) -> 0 | R44: =IF($B36="n/a","n/a",IF(R$3>($B36+$E44),$C44-SUM($F44:Q44),($C44/$B36))) -> 0 | S44: =IF($B36="n/a","n/a",IF(S$3>($B36+$E44),$C44-SUM($F44:R44),($C44/$B36))) -> 0 | T44: =IF($B36="n/a","n/a",IF(T$3>($B36+$E44),$C44-SUM($F44:S44),($C44/$B36))) -> 0 | U44: =IF($B36="n/a","n/a",IF(U$3>($B36+$E44),$C44-SUM($F44:T44),($C44/$B36))) -> 0 | V44: =IF($B36="n/a","n/a",IF(V$3>($B36+$E44),$C44-SUM($F44:U44),($C44/$B36))) -> 0 | W44: =IF($B36="n/a","n/a",IF(W$3>($B36+$E44),$C44-SUM($F44:V44),($C44/$B36))) -> 0 | X44: =IF($B36="n/a","n/a",IF(X$3>($B36+$E44),$C44-SUM($F44:W44),($C44/$B36))) -> 0 | Y44: =IF($B36="n/a","n/a",IF(Y$3>($B36+$E44),$C44-SUM($F44:X44),($C44/$B36))) -> 0 | Z44: =IF($B36="n/a","n/a",IF(Z$3>($B36+$E44),$C44-SUM($F44:Y44),($C44/$B36))) -> 0 | AA44: =IF($B36="n/a","n/a",IF(AA$3>($B36+$E44),$C44-SUM($F44:Z44),($C44/$B36))) -> 0 | AB44: =IF($B36="n/a","n/a",IF(AB$3>($B36+$E44),$C44-SUM($F44:AA44),($C44/$B36))) -> 0 | AC44: =IF($B36="n/a","n/a",IF(AC$3>($B36+$E44),$C44-SUM($F44:AB44),($C44/$B36))) -> 0 | AD44: =IF($B36="n/a","n/a",IF(AD$3>($B36+$E44),$C44-SUM($F44:AC44),($C44/$B36))) -> 0 | AE44: =IF($B36="n/a","n/a",IF(AE$3>($B36+$E44),$C44-SUM($F44:AD44),($C44/$B36))) -> 0 | AF44: =IF($B36="n/a","n/a",IF(AF$3>($B36+$E44),$C44-SUM($F44:AE44),($C44/$B36))) -> 0 | AG44: =IF($B36="n/a","n/a",IF(AG$3>($B36+$E44),$C44-SUM($F44:AF44),($C44/$B36))) -> 0 | AH44: =IF($B36="n/a","n/a",IF(AH$3>($B36+$E44),$C44-SUM($F44:AG44),($C44/$B36))) -> 0 | AI44: =IF($B36="n/a","n/a",IF(AI$3>($B36+$E44),$C44-SUM($F44:AH44),($C44/$B36))) -> 0 | AJ44: =IF($B36="n/a","n/a",IF(AJ$3>($B36+$E44),$C44-SUM($F44:AI44),($C44/$B36))) -> 0 | AK44: =IF($B36="n/a","n/a",IF(AK$3>($B36+$E44),$C44-SUM($F44:AJ44),($C44/$B36))) -> 0 | AL44: =IF($B36="n/a","n/a",IF(AL$3>($B36+$E44),$C44-SUM($F44:AK44),($C44/$B36))) -> 0 | AM44: =IF($B36="n/a","n/a",IF(AM$3>($B36+$E44),$C44-SUM($F44:AL44),($C44/$B36))) -> 0 | AN44: =IF($B36="n/a","n/a",IF(AN$3>($B36+$E44),$C44-SUM($F44:AM44),($C44/$B36))) -> 0 | AO44: =IF($B36="n/a","n/a",IF(AO$3>($B36+$E44),$C44-SUM($F44:AN44),($C44/$B36))) -> 0 | AP44: =IF($B36="n/a","n/a",IF(AP$3>($B36+$E44),$C44-SUM($F44:AO44),($C44/$B36))) -> 0 | AQ44: =IF($B36="n/a","n/a",IF(AQ$3>($B36+$E44),$C44-SUM($F44:AP44),($C44/$B36))) -> 0 | AR44: =IF($B36="n/a","n/a",IF(AR$3>($B36+$E44),$C44-SUM($F44:AQ44),($C44/$B36))) -> 0 | AS44: =IF($B36="n/a","n/a",IF(AS$3>($B36+$E44),$C44-SUM($F44:AR44),($C44/$B36))) -> 0 | AT44: =IF($B36="n/a","n/a",IF(AT$3>($B36+$E44),$C44-SUM($F44:AS44),($C44/$B36))) -> 0 | AU44: =IF($B36="n/a","n/a",IF(AU$3>($B36+$E44),$C44-SUM($F44:AT44),($C44/$B36))) -> 0 | AV44: =IF($B36="n/a","n/a",IF(AV$3>($B36+$E44),$C44-SUM($F44:AU44),($C44/$B36))) -> 0 | AW44: =IF($B36="n/a","n/a",IF(AW$3>($B36+$E44),$C44-SUM($F44:AV44),($C44/$B36))) -> 0 | AX44: =IF($B36="n/a","n/a",IF(AX$3>($B36+$E44),$C44-SUM($F44:AW44),($C44/$B36))) -> 0 | AY44: =IF($B36="n/a","n/a",IF(AY$3>($B36+$E44),$C44-SUM($F44:AX44),($C44/$B36))) -> 0 | AZ44: =IF($B36="n/a","n/a",IF(AZ$3>($B36+$E44),$C44-SUM($F44:AY44),($C44/$B36))) -> 0 | BA44: =IF($B36="n/a","n/a",IF(BA$3>($B36+$E44),$C44-SUM($F44:AZ44),($C44/$B36))) -> 0 | BB44: =IF($B36="n/a","n/a",IF(BB$3>($B36+$E44),$C44-SUM($F44:BA44),($C44/$B36))) -> 0 | BC44: =IF($B36="n/a","n/a",IF(BC$3>($B36+$E44),$C44-SUM($F44:BB44),($C44/$B36))) -> 0 | BD44: =IF($B36="n/a","n/a",IF(BD$3>($B36+$E44),$C44-SUM($F44:BC44),($C44/$B36))) -> 0 | BE44: =IF($B36="n/a","n/a",IF(BE$3>($B36+$E44),$C44-SUM($F44:BD44),($C44/$B36))) -> 0 | BF44: =IF($B36="n/a","n/a",IF(BF$3>($B36+$E44),$C44-SUM($F44:BE44),($C44/$B36))) -> 0 | BG44: =IF($B36="n/a","n/a",IF(BG$3>($B36+$E44),$C44-SUM($F44:BF44),($C44/$B36))) -> 0 | BH44: =IF($B36="n/a","n/a",IF(BH$3>($B36+$E44),$C44-SUM($F44:BG44),($C44/$B36))) -> 0 | BI44: =IF($B36="n/a","n/a",IF(BI$3>($B36+$E44),$C44-SUM($F44:BH44),($C44/$B36))) -> 0 | BJ44: =IF($B36="n/a","n/a",IF(BJ$3>($B36+$E44),$C44-SUM($F44:BI44),($C44/$B36))) -> 0 | BK44: =IF($B36="n/a","n/a",IF(BK$3>($B36+$E44),$C44-SUM($F44:BJ44),($C44/$B36))) -> 0 | BL44: =IF($B36="n/a","n/a",IF(BL$3>($B36+$E44),$C44-SUM($F44:BK44),($C44/$B36))) -> 0 | BM44: =IF($B36="n/a","n/a",IF(BM$3>($B36+$E44),$C44-SUM($F44:BL44),($C44/$B36))) -> 0 | BN44: =IF($B36="n/a","n/a",IF(BN$3>($B36+$E44),$C44-SUM($F44:BM44),($C44/$B36))) -> 0
C45: =OFFSET('I3 CAPEX '!$E$44,$A31,E45)+OFFSET('I3 CAPEX '!$E$79,$A31,E45) -> 0 | E45: 10 | P45: =IF($B36="n/a","n/a",IF(P$3>($B36+$E45),$C45-SUM($F45:O45),($C45/$B36))) -> 0 | Q45: =IF($B36="n/a","n/a",IF(Q$3>($B36+$E45),$C45-SUM($F45:P45),($C45/$B36))) -> 0 | R45: =IF($B36="n/a","n/a",IF(R$3>($B36+$E45),$C45-SUM($F45:Q45),($C45/$B36))) -> 0 | S45: =IF($B36="n/a","n/a",IF(S$3>($B36+$E45),$C45-SUM($F45:R45),($C45/$B36))) -> 0 | T45: =IF($B36="n/a","n/a",IF(T$3>($B36+$E45),$C45-SUM($F45:S45),($C45/$B36))) -> 0 | U45: =IF($B36="n/a","n/a",IF(U$3>($B36+$E45),$C45-SUM($F45:T45),($C45/$B36))) -> 0 | V45: =IF($B36="n/a","n/a",IF(V$3>($B36+$E45),$C45-SUM($F45:U45),($C45/$B36))) -> 0 | W45: =IF($B36="n/a","n/a",IF(W$3>($B36+$E45),$C45-SUM($F45:V45),($C45/$B36))) -> 0 | X45: =IF($B36="n/a","n/a",IF(X$3>($B36+$E45),$C45-SUM($F45:W45),($C45/$B36))) -> 0 | Y45: =IF($B36="n/a","n/a",IF(Y$3>($B36+$E45),$C45-SUM($F45:X45),($C45/$B36))) -> 0 | Z45: =IF($B36="n/a","n/a",IF(Z$3>($B36+$E45),$C45-SUM($F45:Y45),($C45/$B36))) -> 0 | AA45: =IF($B36="n/a","n/a",IF(AA$3>($B36+$E45),$C45-SUM($F45:Z45),($C45/$B36))) -> 0 | AB45: =IF($B36="n/a","n/a",IF(AB$3>($B36+$E45),$C45-SUM($F45:AA45),($C45/$B36))) -> 0 | AC45: =IF($B36="n/a","n/a",IF(AC$3>($B36+$E45),$C45-SUM($F45:AB45),($C45/$B36))) -> 0 | AD45: =IF($B36="n/a","n/a",IF(AD$3>($B36+$E45),$C45-SUM($F45:AC45),($C45/$B36))) -> 0 | AE45: =IF($B36="n/a","n/a",IF(AE$3>($B36+$E45),$C45-SUM($F45:AD45),($C45/$B36))) -> 0 | AF45: =IF($B36="n/a","n/a",IF(AF$3>($B36+$E45),$C45-SUM($F45:AE45),($C45/$B36))) -> 0 | AG45: =IF($B36="n/a","n/a",IF(AG$3>($B36+$E45),$C45-SUM($F45:AF45),($C45/$B36))) -> 0 | AH45: =IF($B36="n/a","n/a",IF(AH$3>($B36+$E45),$C45-SUM($F45:AG45),($C45/$B36))) -> 0 | AI45: =IF($B36="n/a","n/a",IF(AI$3>($B36+$E45),$C45-SUM($F45:AH45),($C45/$B36))) -> 0 | AJ45: =IF($B36="n/a","n/a",IF(AJ$3>($B36+$E45),$C45-SUM($F45:AI45),($C45/$B36))) -> 0 | AK45: =IF($B36="n/a","n/a",IF(AK$3>($B36+$E45),$C45-SUM($F45:AJ45),($C45/$B36))) -> 0 | AL45: =IF($B36="n/a","n/a",IF(AL$3>($B36+$E45),$C45-SUM($F45:AK45),($C45/$B36))) -> 0 | AM45: =IF($B36="n/a","n/a",IF(AM$3>($B36+$E45),$C45-SUM($F45:AL45),($C45/$B36))) -> 0 | AN45: =IF($B36="n/a","n/a",IF(AN$3>($B36+$E45),$C45-SUM($F45:AM45),($C45/$B36))) -> 0 | AO45: =IF($B36="n/a","n/a",IF(AO$3>($B36+$E45),$C45-SUM($F45:AN45),($C45/$B36))) -> 0 | AP45: =IF($B36="n/a","n/a",IF(AP$3>($B36+$E45),$C45-SUM($F45:AO45),($C45/$B36))) -> 0 | AQ45: =IF($B36="n/a","n/a",IF(AQ$3>($B36+$E45),$C45-SUM($F45:AP45),($C45/$B36))) -> 0 | AR45: =IF($B36="n/a","n/a",IF(AR$3>($B36+$E45),$C45-SUM($F45:AQ45),($C45/$B36))) -> 0 | AS45: =IF($B36="n/a","n/a",IF(AS$3>($B36+$E45),$C45-SUM($F45:AR45),($C45/$B36))) -> 0 | AT45: =IF($B36="n/a","n/a",IF(AT$3>($B36+$E45),$C45-SUM($F45:AS45),($C45/$B36))) -> 0 | AU45: =IF($B36="n/a","n/a",IF(AU$3>($B36+$E45),$C45-SUM($F45:AT45),($C45/$B36))) -> 0 | AV45: =IF($B36="n/a","n/a",IF(AV$3>($B36+$E45),$C45-SUM($F45:AU45),($C45/$B36))) -> 0 | AW45: =IF($B36="n/a","n/a",IF(AW$3>($B36+$E45),$C45-SUM($F45:AV45),($C45/$B36))) -> 0 | AX45: =IF($B36="n/a","n/a",IF(AX$3>($B36+$E45),$C45-SUM($F45:AW45),($C45/$B36))) -> 0 | AY45: =IF($B36="n/a","n/a",IF(AY$3>($B36+$E45),$C45-SUM($F45:AX45),($C45/$B36))) -> 0 | AZ45: =IF($B36="n/a","n/a",IF(AZ$3>($B36+$E45),$C45-SUM($F45:AY45),($C45/$B36))) -> 0 | BA45: =IF($B36="n/a","n/a",IF(BA$3>($B36+$E45),$C45-SUM($F45:AZ45),($C45/$B36))) -> 0 | BB45: =IF($B36="n/a","n/a",IF(BB$3>($B36+$E45),$C45-SUM($F45:BA45),($C45/$B36))) -> 0 | BC45: =IF($B36="n/a","n/a",IF(BC$3>($B36+$E45),$C45-SUM($F45:BB45),($C45/$B36))) -> 0 | BD45: =IF($B36="n/a","n/a",IF(BD$3>($B36+$E45),$C45-SUM($F45:BC45),($C45/$B36))) -> 0 | BE45: =IF($B36="n/a","n/a",IF(BE$3>($B36+$E45),$C45-SUM($F45:BD45),($C45/$B36))) -> 0 | BF45: =IF($B36="n/a","n/a",IF(BF$3>($B36+$E45),$C45-SUM($F45:BE45),($C45/$B36))) -> 0 | BG45: =IF($B36="n/a","n/a",IF(BG$3>($B36+$E45),$C45-SUM($F45:BF45),($C45/$B36))) -> 0 | BH45: =IF($B36="n/a","n/a",IF(BH$3>($B36+$E45),$C45-SUM($F45:BG45),($C45/$B36))) -> 0 | BI45: =IF($B36="n/a","n/a",IF(BI$3>($B36+$E45),$C45-SUM($F45:BH45),($C45/$B36))) -> 0 | BJ45: =IF($B36="n/a","n/a",IF(BJ$3>($B36+$E45),$C45-SUM($F45:BI45),($C45/$B36))) -> 0 | BK45: =IF($B36="n/a","n/a",IF(BK$3>($B36+$E45),$C45-SUM($F45:BJ45),($C45/$B36))) -> 0 | BL45: =IF($B36="n/a","n/a",IF(BL$3>($B36+$E45),$C45-SUM($F45:BK45),($C45/$B36))) -> 0 | BM45: =IF($B36="n/a","n/a",IF(BM$3>($B36+$E45),$C45-SUM($F45:BL45),($C45/$B36))) -> 0 | BN45: =IF($B36="n/a","n/a",IF(BN$3>($B36+$E45),$C45-SUM($F45:BM45),($C45/$B36))) -> 0
E46: 11
E47: 12
E48: 13
E49: 14
E50: 15
C51: =B31 -> Communications - Civil | E51: Total | F51: =SUBTOTAL(9,F32:F50) -> 0.1721833646 | G51: 0.1792175723 | H51: 0.2114936701 | I51: 0.3148736508 | J51: 0.3661093734 | K51: =SUBTOTAL(9,K32,K35:K50) -> 0.4064297055 | L51: =SUBTOTAL(9,L32,L35:L50) -> 0.4064297055 | M51: =SUBTOTAL(9,M32,M35:M50) -> 0.4064297055 | N51: =SUBTOTAL(9,N32,N35:N50) -> 0.4064297055 | O51: =SUBTOTAL(9,O32,O35:O50) -> 0.4064297055 | P51: =SUBTOTAL(9,P32,P35:P50) -> 0.4064297055 | Q51: =SUBTOTAL(9,Q32,Q35:Q50) -> 0.4064297055 | R51: =SUBTOTAL(9,R32,R35:R50) -> 0.4064297055 | S51: =SUBTOTAL(9,S32,S35:S50) -> 0.4064297055 | T51: =SUBTOTAL(9,T32,T35:T50) -> 0.4064297055 | U51: =SUBTOTAL(9,U32,U35:U50) -> 0.4064297055 | V51: =SUBTOTAL(9,V32,V35:V50) -> 0.4064297055 | W51: =SUBTOTAL(9,W32,W35:W50) -> 0.4064297055 | X51: =SUBTOTAL(9,X32,X35:X50) -> 0.4064297055 | Y51: =SUBTOTAL(9,Y32,Y35:Y50) -> 0.4064297055 | Z51: =SUBTOTAL(9,Z32,Z35:Z50) -> 0.4064297055 | AA51: =SUBTOTAL(9,AA32,AA35:AA50) -> 0.4064297055 | AB51: =SUBTOTAL(9,AB32,AB35:AB50) -> 0.4064297055 | AC51: =SUBTOTAL(9,AC32,AC35:AC50) -> 0.4064297055 | AD51: =SUBTOTAL(9,AD32,AD35:AD50) -> 0.4064297055 | AE51: =SUBTOTAL(9,AE32,AE35:AE50) -> 0.4064297055 | AF51: =SUBTOTAL(9,AF32,AF35:AF50) -> 0.4064297055 | AG51: =SUBTOTAL(9,AG32,AG35:AG50) -> 0.4064297055 | AH51: =SUBTOTAL(9,AH32,AH35:AH50) -> 0.4064297055 | AI51: =SUBTOTAL(9,AI32,AI35:AI50) -> 0.4064297055 | AJ51: =SUBTOTAL(9,AJ32,AJ35:AJ50) -> 0.4064297055 | AK51: =SUBTOTAL(9,AK32,AK35:AK50) -> 0.4064297055 | AL51: =SUBTOTAL(9,AL32,AL35:AL50) -> 0.4064297055 | AM51: =SUBTOTAL(9,AM32,AM35:AM50) -> 0.4064297055 | AN51: =SUBTOTAL(9,AN32,AN35:AN50) -> 0.4064297055 | AO51: =SUBTOTAL(9,AO32,AO35:AO50) -> 0.4064297055 | AP51: =SUBTOTAL(9,AP32,AP35:AP50) -> 0.4064297055 | AQ51: =SUBTOTAL(9,AQ32,AQ35:AQ50) -> 0.4064297055 | AR51: =SUBTOTAL(9,AR32,AR35:AR50) -> 0.4064297055 | AS51: =SUBTOTAL(9,AS32,AS35:AS50) -> 0.4064297055 | AT51: =SUBTOTAL(9,AT32,AT35:AT50) -> 0.4064297055 | AU51: =SUBTOTAL(9,AU32,AU35:AU50) -> 0.4064297055 | AV51: =SUBTOTAL(9,AV32,AV35:AV50) -> 0.4064297055 | AW51: =SUBTOTAL(9,AW32,AW35:AW50) -> 0.4064297055 | AX51: =SUBTOTAL(9,AX32,AX35:AX50) -> 0.3636459114 | AY51: =SUBTOTAL(9,AY32,AY35:AY50) -> 0.257127894 | AZ51: =SUBTOTAL(9,AZ32,AZ35:AZ50) -> 0.257127894 | BA51: =SUBTOTAL(9,BA32,BA35:BA50) -> 0.257127894 | BB51: =SUBTOTAL(9,BB32,BB35:BB50) -> 0.257127894 | BC51: =SUBTOTAL(9,BC32,BC35:BC50) -> 0.257127894 | BD51: =SUBTOTAL(9,BD32,BD35:BD50) -> 0.257127894 | BE51: =SUBTOTAL(9,BE32,BE35:BE50) -> 0.257127894 | BF51: =SUBTOTAL(9,BF32,BF35:BF50) -> 0.257127894 | BG51: =SUBTOTAL(9,BG32,BG35:BG50) -> 0.257127894 | BH51: =SUBTOTAL(9,BH32,BH35:BH50) -> 0.257127894 | BI51: =SUBTOTAL(9,BI32,BI35:BI50) -> 0.2256410886 | BJ51: =SUBTOTAL(9,BJ32,BJ35:BJ50) -> 0.2186068809 | BK51: =SUBTOTAL(9,BK32,BK35:BK50) -> 0.1863307831 | BL51: =SUBTOTAL(9,BL32,BL35:BL50) -> 0.08295080244 | BM51: =SUBTOTAL(9,BM32,BM35:BM50) -> 0.03171507985 | BN51: =SUBTOTAL(9,BN32,BN35:BN50) -> -1.554312234e-15
A52: =+A31+1 -> 3 | B52: =INDIRECT(CONCATENATE("Asset",A52)) -> Communications - Other
E53: Initial Asset Base | F53: =IF($B59="n/a","n/a",IF(F$3>$B59,+$B61,+$B61/$B59)) -> 6.603416444 | G53: =IF($B59="n/a","n/a",IF(G$3>$B59,+$B61-SUM($F53:F53),+$B61/$B59)) -> 6.603416444 | H53: =IF($B59="n/a","n/a",IF(H$3>$B59,+$B61-SUM($F53:G53),+$B61/$B59)) -> 6.603416444 | I53: =IF($B59="n/a","n/a",IF(I$3>$B59,+$B61-SUM($F53:H53),+$B61/$B59)) -> 6.603416444 | J53: =IF($B59="n/a","n/a",IF(J$3>$B59,+$B61-SUM($F53:I53),+$B61/$B59)) -> 6.603416444 | K53: =IF($B59="n/a","n/a",IF(K$3>$B59,+$B61-SUM($F53:J53),+$B61/$B59)) -> 6.603416444 | L53: =IF($B59="n/a","n/a",IF(L$3>$B59,+$B61-SUM($F53:K53),+$B61/$B59)) -> 6.603416444 | M53: =IF($B59="n/a","n/a",IF(M$3>$B59,+$B61-SUM($F53:L53),+$B61/$B59)) -> 6.603416444 | N53: =IF($B59="n/a","n/a",IF(N$3>$B59,+$B61-SUM($F53:M53),+$B61/$B59)) -> 6.603416444 | O53: =IF($B59="n/a","n/a",IF(O$3>$B59,+$B61-SUM($F53:N53),+$B61/$B59)) -> 6.603416444 | P53: =IF($B59="n/a","n/a",IF(P$3>$B59,+$B61-SUM($F53:O53),+$B61/$B59)) -> 6.603416444 | Q53: =IF($B59="n/a","n/a",IF(Q$3>$B59,+$B61-SUM($F53:P53),+$B61/$B59)) -> 4.418045405 | R53: =IF($B59="n/a","n/a",IF(R$3>$B59,+$B61-SUM($F53:Q53),+$B61/$B59)) -> 0 | S53: =IF($B59="n/a","n/a",IF(S$3>$B59,+$B61-SUM($F53:R53),+$B61/$B59)) -> 0 | T53: =IF($B59="n/a","n/a",IF(T$3>$B59,+$B61-SUM($F53:S53),+$B61/$B59)) -> 0 | U53: =IF($B59="n/a","n/a",IF(U$3>$B59,+$B61-SUM($F53:T53),+$B61/$B59)) -> 0 | V53: =IF($B59="n/a","n/a",IF(V$3>$B59,+$B61-SUM($F53:U53),+$B61/$B59)) -> 0 | W53: =IF($B59="n/a","n/a",IF(W$3>$B59,+$B61-SUM($F53:V53),+$B61/$B59)) -> 0 | X53: =IF($B59="n/a","n/a",IF(X$3>$B59,+$B61-SUM($F53:W53),+$B61/$B59)) -> 0 | Y53: =IF($B59="n/a","n/a",IF(Y$3>$B59,+$B61-SUM($F53:X53),+$B61/$B59)) -> 0 | Z53: =IF($B59="n/a","n/a",IF(Z$3>$B59,+$B61-SUM($F53:Y53),+$B61/$B59)) -> 0 | AA53: =IF($B59="n/a","n/a",IF(AA$3>$B59,+$B61-SUM($F53:Z53),+$B61/$B59)) -> 0 | AB53: =IF($B59="n/a","n/a",IF(AB$3>$B59,+$B61-SUM($F53:AA53),+$B61/$B59)) -> 0 | AC53: =IF($B59="n/a","n/a",IF(AC$3>$B59,+$B61-SUM($F53:AB53),+$B61/$B59)) -> 0 | AD53: =IF($B59="n/a","n/a",IF(AD$3>$B59,+$B61-SUM($F53:AC53),+$B61/$B59)) -> 0 | AE53: =IF($B59="n/a","n/a",IF(AE$3>$B59,+$B61-SUM($F53:AD53),+$B61/$B59)) -> 0 | AF53: =IF($B59="n/a","n/a",IF(AF$3>$B59,+$B61-SUM($F53:AE53),+$B61/$B59)) -> 0 | AG53: =IF($B59="n/a","n/a",IF(AG$3>$B59,+$B61-SUM($F53:AF53),+$B61/$B59)) -> 0 | AH53: =IF($B59="n/a","n/a",IF(AH$3>$B59,+$B61-SUM($F53:AG53),+$B61/$B59)) -> 0 | AI53: =IF($B59="n/a","n/a",IF(AI$3>$B59,+$B61-SUM($F53:AH53),+$B61/$B59)) -> 0 | AJ53: =IF($B59="n/a","n/a",IF(AJ$3>$B59,+$B61-SUM($F53:AI53),+$B61/$B59)) -> 0 | AK53: =IF($B59="n/a","n/a",IF(AK$3>$B59,+$B61-SUM($F53:AJ53),+$B61/$B59)) -> 0 | AL53: =IF($B59="n/a","n/a",IF(AL$3>$B59,+$B61-SUM($F53:AK53),+$B61/$B59)) -> 0 | AM53: =IF($B59="n/a","n/a",IF(AM$3>$B59,+$B61-SUM($F53:AL53),+$B61/$B59)) -> 0 | AN53: =IF($B59="n/a","n/a",IF(AN$3>$B59,+$B61-SUM($F53:AM53),+$B61/$B59)) -> 0 | AO53: =IF($B59="n/a","n/a",IF(AO$3>$B59,+$B61-SUM($F53:AN53),+$B61/$B59)) -> 0 | AP53: =IF($B59="n/a","n/a",IF(AP$3>$B59,+$B61-SUM($F53:AO53),+$B61/$B59)) -> 0 | AQ53: =IF($B59="n/a","n/a",IF(AQ$3>$B59,+$B61-SUM($F53:AP53),+$B61/$B59)) -> 0 | AR53: =IF($B59="n/a","n/a",IF(AR$3>$B59,+$B61-SUM($F53:AQ53),+$B61/$B59)) -> 0 | AS53: =IF($B59="n/a","n/a",IF(AS$3>$B59,+$B61-SUM($F53:AR53),+$B61/$B59)) -> 0 | AT53: =IF($B59="n/a","n/a",IF(AT$3>$B59,+$B61-SUM($F53:AS53),+$B61/$B59)) -> 0 | AU53: =IF($B59="n/a","n/a",IF(AU$3>$B59,+$B61-SUM($F53:AT53),+$B61/$B59)) -> 0 | AV53: =IF($B59="n/a","n/a",IF(AV$3>$B59,+$B61-SUM($F53:AU53),+$B61/$B59)) -> 0 | AW53: =IF($B59="n/a","n/a",IF(AW$3>$B59,+$B61-SUM($F53:AV53),+$B61/$B59)) -> 0 | AX53: =IF($B59="n/a","n/a",IF(AX$3>$B59,+$B61-SUM($F53:AW53),+$B61/$B59)) -> 0 | AY53: =IF($B59="n/a","n/a",IF(AY$3>$B59,+$B61-SUM($F53:AX53),+$B61/$B59)) -> 0 | AZ53: =IF($B59="n/a","n/a",IF(AZ$3>$B59,+$B61-SUM($F53:AY53),+$B61/$B59)) -> 0 | BA53: =IF($B59="n/a","n/a",IF(BA$3>$B59,+$B61-SUM($F53:AZ53),+$B61/$B59)) -> 0 | BB53: =IF($B59="n/a","n/a",IF(BB$3>$B59,+$B61-SUM($F53:BA53),+$B61/$B59)) -> 0 | BC53: =IF($B59="n/a","n/a",IF(BC$3>$B59,+$B61-SUM($F53:BB53),+$B61/$B59)) -> 0 | BD53: =IF($B59="n/a","n/a",IF(BD$3>$B59,+$B61-SUM($F53:BC53),+$B61/$B59)) -> 0 | BE53: =IF($B59="n/a","n/a",IF(BE$3>$B59,+$B61-SUM($F53:BD53),+$B61/$B59)) -> 0 | BF53: =IF($B59="n/a","n/a",IF(BF$3>$B59,+$B61-SUM($F53:BE53),+$B61/$B59)) -> 0 | BG53: =IF($B59="n/a","n/a",IF(BG$3>$B59,+$B61-SUM($F53:BF53),+$B61/$B59)) -> 0 | BH53: =IF($B59="n/a","n/a",IF(BH$3>$B59,+$B61-SUM($F53:BG53),+$B61/$B59)) -> 0 | BI53: =IF($B59="n/a","n/a",IF(BI$3>$B59,+$B61-SUM($F53:BH53),+$B61/$B59)) -> 0 | BJ53: =IF($B59="n/a","n/a",IF(BJ$3>$B59,+$B61-SUM($F53:BI53),+$B61/$B59)) -> 0 | BK53: =IF($B59="n/a","n/a",IF(BK$3>$B59,+$B61-SUM($F53:BJ53),+$B61/$B59)) -> 0 | BL53: =IF($B59="n/a","n/a",IF(BL$3>$B59,+$B61-SUM($F53:BK53),+$B61/$B59)) -> 0 | BM53: =IF($B59="n/a","n/a",IF(BM$3>$B59,+$B61-SUM($F53:BL53),+$B61/$B59)) -> 0 | BN53: =IF($B59="n/a","n/a",IF(BN$3>$B59,+$B61-SUM($F53:BM53),+$B61/$B59)) -> 0
J54: 2012-13 Capex True up adj | K54: =IF($B57="n/a","n/a",IF(K$3>$B57,+$B63-SUM($F54:J54),+$B63/($B57-$E61))) -> -1.207698474 | L54: =IF($B57="n/a","n/a",IF(L$3>$B57,+$B63-SUM($F54:K54),+$B63/($B57-$E61))) -> -1.207698474 | M54: =IF($B57="n/a","n/a",IF(M$3>$B57,+$B63-SUM($F54:L54),+$B63/($B57-$E61))) -> -1.207698474 | N54: =IF($B57="n/a","n/a",IF(N$3>$B57,+$B63-SUM($F54:M54),+$B63/($B57-$E61))) -> -1.207698474 | O54: =IF($B57="n/a","n/a",IF(O$3>$B57,+$B63-SUM($F54:N54),+$B63/($B57-$E61))) -> -1.207698474 | P54: =IF($B57="n/a","n/a",IF(P$3>$B57,+$B63-SUM($F54:O54),+$B63/($B57-$E61))) -> -1.207698474 | Q54: =IF($B57="n/a","n/a",IF(Q$3>$B57,+$B63-SUM($F54:P54),+$B63/($B57-$E61))) -> -1.207698474 | R54: =IF($B57="n/a","n/a",IF(R$3>$B57,+$B63-SUM($F54:Q54),+$B63/($B57-$E61))) -> -1.207698474 | S54: =IF($B57="n/a","n/a",IF(S$3>$B57,+$B63-SUM($F54:R54),+$B63/($B57-$E61))) -> -1.207698474 | T54: =IF($B57="n/a","n/a",IF(T$3>$B57,+$B63-SUM($F54:S54),+$B63/($B57-$E61))) -> -1.207698474 | U54: =IF($B57="n/a","n/a",IF(U$3>$B57,+$B63-SUM($F54:T54),+$B63/($B57-$E61))) -> -1.776356839e-15 | V54: =IF($B57="n/a","n/a",IF(V$3>$B57,+$B63-SUM($F54:U54),+$B63/($B57-$E61))) -> 0 | W54: =IF($B57="n/a","n/a",IF(W$3>$B57,+$B63-SUM($F54:V54),+$B63/($B57-$E61))) -> 0 | X54: =IF($B57="n/a","n/a",IF(X$3>$B57,+$B63-SUM($F54:W54),+$B63/($B57-$E61))) -> 0 | Y54: =IF($B57="n/a","n/a",IF(Y$3>$B57,+$B63-SUM($F54:X54),+$B63/($B57-$E61))) -> 0 | Z54: =IF($B57="n/a","n/a",IF(Z$3>$B57,+$B63-SUM($F54:Y54),+$B63/($B57-$E61))) -> 0 | AA54: =IF($B57="n/a","n/a",IF(AA$3>$B57,+$B63-SUM($F54:Z54),+$B63/($B57-$E61))) -> 0 | AB54: =IF($B57="n/a","n/a",IF(AB$3>$B57,+$B63-SUM($F54:AA54),+$B63/($B57-$E61))) -> 0 | AC54: =IF($B57="n/a","n/a",IF(AC$3>$B57,+$B63-SUM($F54:AB54),+$B63/($B57-$E61))) -> 0 | AD54: =IF($B57="n/a","n/a",IF(AD$3>$B57,+$B63-SUM($F54:AC54),+$B63/($B57-$E61))) -> 0 | AE54: =IF($B57="n/a","n/a",IF(AE$3>$B57,+$B63-SUM($F54:AD54),+$B63/($B57-$E61))) -> 0 | AF54: =IF($B57="n/a","n/a",IF(AF$3>$B57,+$B63-SUM($F54:AE54),+$B63/($B57-$E61))) -> 0 | AG54: =IF($B57="n/a","n/a",IF(AG$3>$B57,+$B63-SUM($F54:AF54),+$B63/($B57-$E61))) -> 0 | AH54: =IF($B57="n/a","n/a",IF(AH$3>$B57,+$B63-SUM($F54:AG54),+$B63/($B57-$E61))) -> 0 | AI54: =IF($B57="n/a","n/a",IF(AI$3>$B57,+$B63-SUM($F54:AH54),+$B63/($B57-$E61))) -> 0 | AJ54: =IF($B57="n/a","n/a",IF(AJ$3>$B57,+$B63-SUM($F54:AI54),+$B63/($B57-$E61))) -> 0 | AK54: =IF($B57="n/a","n/a",IF(AK$3>$B57,+$B63-SUM($F54:AJ54),+$B63/($B57-$E61))) -> 0 | AL54: =IF($B57="n/a","n/a",IF(AL$3>$B57,+$B63-SUM($F54:AK54),+$B63/($B57-$E61))) -> 0 | AM54: =IF($B57="n/a","n/a",IF(AM$3>$B57,+$B63-SUM($F54:AL54),+$B63/($B57-$E61))) -> 0 | AN54: =IF($B57="n/a","n/a",IF(AN$3>$B57,+$B63-SUM($F54:AM54),+$B63/($B57-$E61))) -> 0 | AO54: =IF($B57="n/a","n/a",IF(AO$3>$B57,+$B63-SUM($F54:AN54),+$B63/($B57-$E61))) -> 0 | AP54: =IF($B57="n/a","n/a",IF(AP$3>$B57,+$B63-SUM($F54:AO54),+$B63/($B57-$E61))) -> 0 | AQ54: =IF($B57="n/a","n/a",IF(AQ$3>$B57,+$B63-SUM($F54:AP54),+$B63/($B57-$E61))) -> 0 | AR54: =IF($B57="n/a","n/a",IF(AR$3>$B57,+$B63-SUM($F54:AQ54),+$B63/($B57-$E61))) -> 0 | AS54: =IF($B57="n/a","n/a",IF(AS$3>$B57,+$B63-SUM($F54:AR54),+$B63/($B57-$E61))) -> 0 | AT54: =IF($B57="n/a","n/a",IF(AT$3>$B57,+$B63-SUM($F54:AS54),+$B63/($B57-$E61))) -> 0 | AU54: =IF($B57="n/a","n/a",IF(AU$3>$B57,+$B63-SUM($F54:AT54),+$B63/($B57-$E61))) -> 0 | AV54: =IF($B57="n/a","n/a",IF(AV$3>$B57,+$B63-SUM($F54:AU54),+$B63/($B57-$E61))) -> 0 | AW54: =IF($B57="n/a","n/a",IF(AW$3>$B57,+$B63-SUM($F54:AV54),+$B63/($B57-$E61))) -> 0 | AX54: =IF($B57="n/a","n/a",IF(AX$3>$B57,+$B63-SUM($F54:AW54),+$B63/($B57-$E61))) -> 0 | AY54: =IF($B57="n/a","n/a",IF(AY$3>$B57,+$B63-SUM($F54:AX54),+$B63/($B57-$E61))) -> 0 | AZ54: =IF($B57="n/a","n/a",IF(AZ$3>$B57,+$B63-SUM($F54:AY54),+$B63/($B57-$E61))) -> 0 | BA54: =IF($B57="n/a","n/a",IF(BA$3>$B57,+$B63-SUM($F54:AZ54),+$B63/($B57-$E61))) -> 0 | BB54: =IF($B57="n/a","n/a",IF(BB$3>$B57,+$B63-SUM($F54:BA54),+$B63/($B57-$E61))) -> 0 | BC54: =IF($B57="n/a","n/a",IF(BC$3>$B57,+$B63-SUM($F54:BB54),+$B63/($B57-$E61))) -> 0 | BD54: =IF($B57="n/a","n/a",IF(BD$3>$B57,+$B63-SUM($F54:BC54),+$B63/($B57-$E61))) -> 0 | BE54: =IF($B57="n/a","n/a",IF(BE$3>$B57,+$B63-SUM($F54:BD54),+$B63/($B57-$E61))) -> 0 | BF54: =IF($B57="n/a","n/a",IF(BF$3>$B57,+$B63-SUM($F54:BE54),+$B63/($B57-$E61))) -> 0 | BG54: =IF($B57="n/a","n/a",IF(BG$3>$B57,+$B63-SUM($F54:BF54),+$B63/($B57-$E61))) -> 0 | BH54: =IF($B57="n/a","n/a",IF(BH$3>$B57,+$B63-SUM($F54:BG54),+$B63/($B57-$E61))) -> 0 | BI54: =IF($B57="n/a","n/a",IF(BI$3>$B57,+$B63-SUM($F54:BH54),+$B63/($B57-$E61))) -> 0 | BJ54: =IF($B57="n/a","n/a",IF(BJ$3>$B57,+$B63-SUM($F54:BI54),+$B63/($B57-$E61))) -> 0 | BK54: =IF($B57="n/a","n/a",IF(BK$3>$B57,+$B63-SUM($F54:BJ54),+$B63/($B57-$E61))) -> 0 | BL54: =IF($B57="n/a","n/a",IF(BL$3>$B57,+$B63-SUM($F54:BK54),+$B63/($B57-$E61))) -> 0 | BM54: =IF($B57="n/a","n/a",IF(BM$3>$B57,+$B63-SUM($F54:BL54),+$B63/($B57-$E61))) -> 0 | BN54: =IF($B57="n/a","n/a",IF(BN$3>$B57,+$B63-SUM($F54:BM54),+$B63/($B57-$E61))) -> 0
J55: Accel Dep adj | K55: =IF($B59="n/a","n/a",IF(K$3>$B59,+$B65-SUM($F55:J55),+$B65/($B59-$E61))) -> -0.70732522 | L55: =IF($B59="n/a","n/a",IF(L$3>$B59,+$B65-SUM($F55:K55),+$B65/($B59-$E61))) -> -0.70732522 | M55: =IF($B59="n/a","n/a",IF(M$3>$B59,+$B65-SUM($F55:L55),+$B65/($B59-$E61))) -> -0.70732522 | N55: =IF($B59="n/a","n/a",IF(N$3>$B59,+$B65-SUM($F55:M55),+$B65/($B59-$E61))) -> -0.70732522 | O55: =IF($B59="n/a","n/a",IF(O$3>$B59,+$B65-SUM($F55:N55),+$B65/($B59-$E61))) -> -0.70732522 | P55: =IF($B59="n/a","n/a",IF(P$3>$B59,+$B65-SUM($F55:O55),+$B65/($B59-$E61))) -> -0.70732522 | Q55: =IF($B59="n/a","n/a",IF(Q$3>$B59,+$B65-SUM($F55:P55),+$B65/($B59-$E61))) -> -0.4732391127 | R55: =IF($B59="n/a","n/a",IF(R$3>$B59,+$B65-SUM($F55:Q55),+$B65/($B59-$E61))) -> 0 | S55: =IF($B59="n/a","n/a",IF(S$3>$B59,+$B65-SUM($F55:R55),+$B65/($B59-$E61))) -> 0 | T55: =IF($B59="n/a","n/a",IF(T$3>$B59,+$B65-SUM($F55:S55),+$B65/($B59-$E61))) -> 0 | U55: =IF($B59="n/a","n/a",IF(U$3>$B59,+$B65-SUM($F55:T55),+$B65/($B59-$E61))) -> 0 | V55: =IF($B59="n/a","n/a",IF(V$3>$B59,+$B65-SUM($F55:U55),+$B65/($B59-$E61))) -> 0 | W55: =IF($B59="n/a","n/a",IF(W$3>$B59,+$B65-SUM($F55:V55),+$B65/($B59-$E61))) -> 0 | X55: =IF($B59="n/a","n/a",IF(X$3>$B59,+$B65-SUM($F55:W55),+$B65/($B59-$E61))) -> 0 | Y55: =IF($B59="n/a","n/a",IF(Y$3>$B59,+$B65-SUM($F55:X55),+$B65/($B59-$E61))) -> 0 | Z55: =IF($B59="n/a","n/a",IF(Z$3>$B59,+$B65-SUM($F55:Y55),+$B65/($B59-$E61))) -> 0 | AA55: =IF($B59="n/a","n/a",IF(AA$3>$B59,+$B65-SUM($F55:Z55),+$B65/($B59-$E61))) -> 0 | AB55: =IF($B59="n/a","n/a",IF(AB$3>$B59,+$B65-SUM($F55:AA55),+$B65/($B59-$E61))) -> 0 | AC55: =IF($B59="n/a","n/a",IF(AC$3>$B59,+$B65-SUM($F55:AB55),+$B65/($B59-$E61))) -> 0 | AD55: =IF($B59="n/a","n/a",IF(AD$3>$B59,+$B65-SUM($F55:AC55),+$B65/($B59-$E61))) -> 0 | AE55: =IF($B59="n/a","n/a",IF(AE$3>$B59,+$B65-SUM($F55:AD55),+$B65/($B59-$E61))) -> 0 | AF55: =IF($B59="n/a","n/a",IF(AF$3>$B59,+$B65-SUM($F55:AE55),+$B65/($B59-$E61))) -> 0 | AG55: =IF($B59="n/a","n/a",IF(AG$3>$B59,+$B65-SUM($F55:AF55),+$B65/($B59-$E61))) -> 0 | AH55: =IF($B59="n/a","n/a",IF(AH$3>$B59,+$B65-SUM($F55:AG55),+$B65/($B59-$E61))) -> 0 | AI55: =IF($B59="n/a","n/a",IF(AI$3>$B59,+$B65-SUM($F55:AH55),+$B65/($B59-$E61))) -> 0 | AJ55: =IF($B59="n/a","n/a",IF(AJ$3>$B59,+$B65-SUM($F55:AI55),+$B65/($B59-$E61))) -> 0 | AK55: =IF($B59="n/a","n/a",IF(AK$3>$B59,+$B65-SUM($F55:AJ55),+$B65/($B59-$E61))) -> 0 | AL55: =IF($B59="n/a","n/a",IF(AL$3>$B59,+$B65-SUM($F55:AK55),+$B65/($B59-$E61))) -> 0 | AM55: =IF($B59="n/a","n/a",IF(AM$3>$B59,+$B65-SUM($F55:AL55),+$B65/($B59-$E61))) -> 0 | AN55: =IF($B59="n/a","n/a",IF(AN$3>$B59,+$B65-SUM($F55:AM55),+$B65/($B59-$E61))) -> 0 | AO55: =IF($B59="n/a","n/a",IF(AO$3>$B59,+$B65-SUM($F55:AN55),+$B65/($B59-$E61))) -> 0 | AP55: =IF($B59="n/a","n/a",IF(AP$3>$B59,+$B65-SUM($F55:AO55),+$B65/($B59-$E61))) -> 0 | AQ55: =IF($B59="n/a","n/a",IF(AQ$3>$B59,+$B65-SUM($F55:AP55),+$B65/($B59-$E61))) -> 0 | AR55: =IF($B59="n/a","n/a",IF(AR$3>$B59,+$B65-SUM($F55:AQ55),+$B65/($B59-$E61))) -> 0 | AS55: =IF($B59="n/a","n/a",IF(AS$3>$B59,+$B65-SUM($F55:AR55),+$B65/($B59-$E61))) -> 0 | AT55: =IF($B59="n/a","n/a",IF(AT$3>$B59,+$B65-SUM($F55:AS55),+$B65/($B59-$E61))) -> 0 | AU55: =IF($B59="n/a","n/a",IF(AU$3>$B59,+$B65-SUM($F55:AT55),+$B65/($B59-$E61))) -> 0 | AV55: =IF($B59="n/a","n/a",IF(AV$3>$B59,+$B65-SUM($F55:AU55),+$B65/($B59-$E61))) -> 0 | AW55: =IF($B59="n/a","n/a",IF(AW$3>$B59,+$B65-SUM($F55:AV55),+$B65/($B59-$E61))) -> 0 | AX55: =IF($B59="n/a","n/a",IF(AX$3>$B59,+$B65-SUM($F55:AW55),+$B65/($B59-$E61))) -> 0 | AY55: =IF($B59="n/a","n/a",IF(AY$3>$B59,+$B65-SUM($F55:AX55),+$B65/($B59-$E61))) -> 0 | AZ55: =IF($B59="n/a","n/a",IF(AZ$3>$B59,+$B65-SUM($F55:AY55),+$B65/($B59-$E61))) -> 0 | BA55: =IF($B59="n/a","n/a",IF(BA$3>$B59,+$B65-SUM($F55:AZ55),+$B65/($B59-$E61))) -> 0 | BB55: =IF($B59="n/a","n/a",IF(BB$3>$B59,+$B65-SUM($F55:BA55),+$B65/($B59-$E61))) -> 0 | BC55: =IF($B59="n/a","n/a",IF(BC$3>$B59,+$B65-SUM($F55:BB55),+$B65/($B59-$E61))) -> 0 | BD55: =IF($B59="n/a","n/a",IF(BD$3>$B59,+$B65-SUM($F55:BC55),+$B65/($B59-$E61))) -> 0 | BE55: =IF($B59="n/a","n/a",IF(BE$3>$B59,+$B65-SUM($F55:BD55),+$B65/($B59-$E61))) -> 0 | BF55: =IF($B59="n/a","n/a",IF(BF$3>$B59,+$B65-SUM($F55:BE55),+$B65/($B59-$E61))) -> 0 | BG55: =IF($B59="n/a","n/a",IF(BG$3>$B59,+$B65-SUM($F55:BF55),+$B65/($B59-$E61))) -> 0 | BH55: =IF($B59="n/a","n/a",IF(BH$3>$B59,+$B65-SUM($F55:BG55),+$B65/($B59-$E61))) -> 0 | BI55: =IF($B59="n/a","n/a",IF(BI$3>$B59,+$B65-SUM($F55:BH55),+$B65/($B59-$E61))) -> 0 | BJ55: =IF($B59="n/a","n/a",IF(BJ$3>$B59,+$B65-SUM($F55:BI55),+$B65/($B59-$E61))) -> 0 | BK55: =IF($B59="n/a","n/a",IF(BK$3>$B59,+$B65-SUM($F55:BJ55),+$B65/($B59-$E61))) -> 0 | BL55: =IF($B59="n/a","n/a",IF(BL$3>$B59,+$B65-SUM($F55:BK55),+$B65/($B59-$E61))) -> 0 | BM55: =IF($B59="n/a","n/a",IF(BM$3>$B59,+$B65-SUM($F55:BL55),+$B65/($B59-$E61))) -> 0 | BN55: =IF($B59="n/a","n/a",IF(BN$3>$B59,+$B65-SUM($F55:BM55),+$B65/($B59-$E61))) -> 0
B56: Std Life | C56: Capex: | E56: 0 | J56: Initial Asset Base Adjustment | K56: =IF(AND(K54="n/a",K55="n/a")=TRUE,"n/a",SUM(IF(K54="n/a",0,K54),IF(K55="n/a",0,K55))) -> -1.915023694 | L56: =IF(AND(L54="n/a",L55="n/a")=TRUE,"n/a",SUM(IF(L54="n/a",0,L54),IF(L55="n/a",0,L55))) -> -1.915023694 | M56: =IF(AND(M54="n/a",M55="n/a")=TRUE,"n/a",SUM(IF(M54="n/a",0,M54),IF(M55="n/a",0,M55))) -> -1.915023694 | N56: =IF(AND(N54="n/a",N55="n/a")=TRUE,"n/a",SUM(IF(N54="n/a",0,N54),IF(N55="n/a",0,N55))) -> -1.915023694 | O56: =IF(AND(O54="n/a",O55="n/a")=TRUE,"n/a",SUM(IF(O54="n/a",0,O54),IF(O55="n/a",0,O55))) -> -1.915023694 | P56: =IF(AND(P54="n/a",P55="n/a")=TRUE,"n/a",SUM(IF(P54="n/a",0,P54),IF(P55="n/a",0,P55))) -> -1.915023694 | Q56: =IF(AND(Q54="n/a",Q55="n/a")=TRUE,"n/a",SUM(IF(Q54="n/a",0,Q54),IF(Q55="n/a",0,Q55))) -> -1.680937587 | R56: =IF(AND(R54="n/a",R55="n/a")=TRUE,"n/a",SUM(IF(R54="n/a",0,R54),IF(R55="n/a",0,R55))) -> -1.207698474 | S56: =IF(AND(S54="n/a",S55="n/a")=TRUE,"n/a",SUM(IF(S54="n/a",0,S54),IF(S55="n/a",0,S55))) -> -1.207698474 | T56: =IF(AND(T54="n/a",T55="n/a")=TRUE,"n/a",SUM(IF(T54="n/a",0,T54),IF(T55="n/a",0,T55))) -> -1.207698474 | U56: =IF(AND(U54="n/a",U55="n/a")=TRUE,"n/a",SUM(IF(U54="n/a",0,U54),IF(U55="n/a",0,U55))) -> -1.776356839e-15 | V56: =IF(AND(V54="n/a",V55="n/a")=TRUE,"n/a",SUM(IF(V54="n/a",0,V54),IF(V55="n/a",0,V55))) -> 0 | W56: =IF(AND(W54="n/a",W55="n/a")=TRUE,"n/a",SUM(IF(W54="n/a",0,W54),IF(W55="n/a",0,W55))) -> 0 | X56: =IF(AND(X54="n/a",X55="n/a")=TRUE,"n/a",SUM(IF(X54="n/a",0,X54),IF(X55="n/a",0,X55))) -> 0 | Y56: =IF(AND(Y54="n/a",Y55="n/a")=TRUE,"n/a",SUM(IF(Y54="n/a",0,Y54),IF(Y55="n/a",0,Y55))) -> 0 | Z56: =IF(AND(Z54="n/a",Z55="n/a")=TRUE,"n/a",SUM(IF(Z54="n/a",0,Z54),IF(Z55="n/a",0,Z55))) -> 0 | AA56: =IF(AND(AA54="n/a",AA55="n/a")=TRUE,"n/a",SUM(IF(AA54="n/a",0,AA54),IF(AA55="n/a",0,AA55))) -> 0 | AB56: =IF(AND(AB54="n/a",AB55="n/a")=TRUE,"n/a",SUM(IF(AB54="n/a",0,AB54),IF(AB55="n/a",0,AB55))) -> 0 | AC56: =IF(AND(AC54="n/a",AC55="n/a")=TRUE,"n/a",SUM(IF(AC54="n/a",0,AC54),IF(AC55="n/a",0,AC55))) -> 0 | AD56: =IF(AND(AD54="n/a",AD55="n/a")=TRUE,"n/a",SUM(IF(AD54="n/a",0,AD54),IF(AD55="n/a",0,AD55))) -> 0 | AE56: =IF(AND(AE54="n/a",AE55="n/a")=TRUE,"n/a",SUM(IF(AE54="n/a",0,AE54),IF(AE55="n/a",0,AE55))) -> 0 | AF56: =IF(AND(AF54="n/a",AF55="n/a")=TRUE,"n/a",SUM(IF(AF54="n/a",0,AF54),IF(AF55="n/a",0,AF55))) -> 0 | AG56: =IF(AND(AG54="n/a",AG55="n/a")=TRUE,"n/a",SUM(IF(AG54="n/a",0,AG54),IF(AG55="n/a",0,AG55))) -> 0 | AH56: =IF(AND(AH54="n/a",AH55="n/a")=TRUE,"n/a",SUM(IF(AH54="n/a",0,AH54),IF(AH55="n/a",0,AH55))) -> 0 | AI56: =IF(AND(AI54="n/a",AI55="n/a")=TRUE,"n/a",SUM(IF(AI54="n/a",0,AI54),IF(AI55="n/a",0,AI55))) -> 0 | AJ56: =IF(AND(AJ54="n/a",AJ55="n/a")=TRUE,"n/a",SUM(IF(AJ54="n/a",0,AJ54),IF(AJ55="n/a",0,AJ55))) -> 0 | AK56: =IF(AND(AK54="n/a",AK55="n/a")=TRUE,"n/a",SUM(IF(AK54="n/a",0,AK54),IF(AK55="n/a",0,AK55))) -> 0 | AL56: =IF(AND(AL54="n/a",AL55="n/a")=TRUE,"n/a",SUM(IF(AL54="n/a",0,AL54),IF(AL55="n/a",0,AL55))) -> 0 | AM56: =IF(AND(AM54="n/a",AM55="n/a")=TRUE,"n/a",SUM(IF(AM54="n/a",0,AM54),IF(AM55="n/a",0,AM55))) -> 0 | AN56: =IF(AND(AN54="n/a",AN55="n/a")=TRUE,"n/a",SUM(IF(AN54="n/a",0,AN54),IF(AN55="n/a",0,AN55))) -> 0 | AO56: =IF(AND(AO54="n/a",AO55="n/a")=TRUE,"n/a",SUM(IF(AO54="n/a",0,AO54),IF(AO55="n/a",0,AO55))) -> 0 | AP56: =IF(AND(AP54="n/a",AP55="n/a")=TRUE,"n/a",SUM(IF(AP54="n/a",0,AP54),IF(AP55="n/a",0,AP55))) -> 0 | AQ56: =IF(AND(AQ54="n/a",AQ55="n/a")=TRUE,"n/a",SUM(IF(AQ54="n/a",0,AQ54),IF(AQ55="n/a",0,AQ55))) -> 0 | AR56: =IF(AND(AR54="n/a",AR55="n/a")=TRUE,"n/a",SUM(IF(AR54="n/a",0,AR54),IF(AR55="n/a",0,AR55))) -> 0 | AS56: =IF(AND(AS54="n/a",AS55="n/a")=TRUE,"n/a",SUM(IF(AS54="n/a",0,AS54),IF(AS55="n/a",0,AS55))) -> 0 | AT56: =IF(AND(AT54="n/a",AT55="n/a")=TRUE,"n/a",SUM(IF(AT54="n/a",0,AT54),IF(AT55="n/a",0,AT55))) -> 0 | AU56: =IF(AND(AU54="n/a",AU55="n/a")=TRUE,"n/a",SUM(IF(AU54="n/a",0,AU54),IF(AU55="n/a",0,AU55))) -> 0 | AV56: =IF(AND(AV54="n/a",AV55="n/a")=TRUE,"n/a",SUM(IF(AV54="n/a",0,AV54),IF(AV55="n/a",0,AV55))) -> 0 | AW56: =IF(AND(AW54="n/a",AW55="n/a")=TRUE,"n/a",SUM(IF(AW54="n/a",0,AW54),IF(AW55="n/a",0,AW55))) -> 0 | AX56: =IF(AND(AX54="n/a",AX55="n/a")=TRUE,"n/a",SUM(IF(AX54="n/a",0,AX54),IF(AX55="n/a",0,AX55))) -> 0 | AY56: =IF(AND(AY54="n/a",AY55="n/a")=TRUE,"n/a",SUM(IF(AY54="n/a",0,AY54),IF(AY55="n/a",0,AY55))) -> 0 | AZ56: =IF(AND(AZ54="n/a",AZ55="n/a")=TRUE,"n/a",SUM(IF(AZ54="n/a",0,AZ54),IF(AZ55="n/a",0,AZ55))) -> 0 | BA56: =IF(AND(BA54="n/a",BA55="n/a")=TRUE,"n/a",SUM(IF(BA54="n/a",0,BA54),IF(BA55="n/a",0,BA55))) -> 0 | BB56: =IF(AND(BB54="n/a",BB55="n/a")=TRUE,"n/a",SUM(IF(BB54="n/a",0,BB54),IF(BB55="n/a",0,BB55))) -> 0 | BC56: =IF(AND(BC54="n/a",BC55="n/a")=TRUE,"n/a",SUM(IF(BC54="n/a",0,BC54),IF(BC55="n/a",0,BC55))) -> 0 | BD56: =IF(AND(BD54="n/a",BD55="n/a")=TRUE,"n/a",SUM(IF(BD54="n/a",0,BD54),IF(BD55="n/a",0,BD55))) -> 0 | BE56: =IF(AND(BE54="n/a",BE55="n/a")=TRUE,"n/a",SUM(IF(BE54="n/a",0,BE54),IF(BE55="n/a",0,BE55))) -> 0 | BF56: =IF(AND(BF54="n/a",BF55="n/a")=TRUE,"n/a",SUM(IF(BF54="n/a",0,BF54),IF(BF55="n/a",0,BF55))) -> 0 | BG56: =IF(AND(BG54="n/a",BG55="n/a")=TRUE,"n/a",SUM(IF(BG54="n/a",0,BG54),IF(BG55="n/a",0,BG55))) -> 0 | BH56: =IF(AND(BH54="n/a",BH55="n/a")=TRUE,"n/a",SUM(IF(BH54="n/a",0,BH54),IF(BH55="n/a",0,BH55))) -> 0 | BI56: =IF(AND(BI54="n/a",BI55="n/a")=TRUE,"n/a",SUM(IF(BI54="n/a",0,BI54),IF(BI55="n/a",0,BI55))) -> 0 | BJ56: =IF(AND(BJ54="n/a",BJ55="n/a")=TRUE,"n/a",SUM(IF(BJ54="n/a",0,BJ54),IF(BJ55="n/a",0,BJ55))) -> 0 | BK56: =IF(AND(BK54="n/a",BK55="n/a")=TRUE,"n/a",SUM(IF(BK54="n/a",0,BK54),IF(BK55="n/a",0,BK55))) -> 0 | BL56: =IF(AND(BL54="n/a",BL55="n/a")=TRUE,"n/a",SUM(IF(BL54="n/a",0,BL54),IF(BL55="n/a",0,BL55))) -> 0 | BM56: =IF(AND(BM54="n/a",BM55="n/a")=TRUE,"n/a",SUM(IF(BM54="n/a",0,BM54),IF(BM55="n/a",0,BM55))) -> 0 | BN56: =IF(AND(BN54="n/a",BN55="n/a")=TRUE,"n/a",SUM(IF(BN54="n/a",0,BN54),IF(BN55="n/a",0,BN55))) -> 0
B57: =INDEX('I1 '!$C$7:$C$36,A52) -> 15 | C57: =OFFSET('I3 CAPEX '!$E$44,$A52,E57) -> 13.41372405 | E57: 1 | G57: =IF($B57="n/a","n/a",IF(G$3>($B57+$E57),$C57-SUM($F57:F57),($C57/$B57))) -> 0.8942482702 | H57: =IF($B57="n/a","n/a",IF(H$3>($B57+$E57),$C57-SUM($F57:G57),($C57/$B57))) -> 0.8942482702 | I57: =IF($B57="n/a","n/a",IF(I$3>($B57+$E57),$C57-SUM($F57:H57),($C57/$B57))) -> 0.8942482702 | J57: =IF($B57="n/a","n/a",IF(J$3>($B57+$E57),$C57-SUM($F57:I57),($C57/$B57))) -> 0.8942482702 | K57: =IF($B57="n/a","n/a",IF(K$3>($B57+$E57),$C57-SUM($F57:J57),($C57/$B57))) -> 0.8942482702 | L57: =IF($B57="n/a","n/a",IF(L$3>($B57+$E57),$C57-SUM($F57:K57),($C57/$B57))) -> 0.8942482702 | M57: =IF($B57="n/a","n/a",IF(M$3>($B57+$E57),$C57-SUM($F57:L57),($C57/$B57))) -> 0.8942482702 | N57: =IF($B57="n/a","n/a",IF(N$3>($B57+$E57),$C57-SUM($F57:M57),($C57/$B57))) -> 0.8942482702 | O57: =IF($B57="n/a","n/a",IF(O$3>($B57+$E57),$C57-SUM($F57:N57),($C57/$B57))) -> 0.8942482702 | P57: =IF($B57="n/a","n/a",IF(P$3>($B57+$E57),$C57-SUM($F57:O57),($C57/$B57))) -> 0.8942482702 | Q57: =IF($B57="n/a","n/a",IF(Q$3>($B57+$E57),$C57-SUM($F57:P57),($C57/$B57))) -> 0.8942482702 | R57: =IF($B57="n/a","n/a",IF(R$3>($B57+$E57),$C57-SUM($F57:Q57),($C57/$B57))) -> 0.8942482702 | S57: =IF($B57="n/a","n/a",IF(S$3>($B57+$E57),$C57-SUM($F57:R57),($C57/$B57))) -> 0.8942482702 | T57: =IF($B57="n/a","n/a",IF(T$3>($B57+$E57),$C57-SUM($F57:S57),($C57/$B57))) -> 0.8942482702 | U57: =IF($B57="n/a","n/a",IF(U$3>($B57+$E57),$C57-SUM($F57:T57),($C57/$B57))) -> 0.8942482702 | V57: =IF($B57="n/a","n/a",IF(V$3>($B57+$E57),$C57-SUM($F57:U57),($C57/$B57))) -> -1.776356839e-15 | W57: =IF($B57="n/a","n/a",IF(W$3>($B57+$E57),$C57-SUM($F57:V57),($C57/$B57))) -> 0 | X57: =IF($B57="n/a","n/a",IF(X$3>($B57+$E57),$C57-SUM($F57:W57),($C57/$B57))) -> 0 | Y57: =IF($B57="n/a","n/a",IF(Y$3>($B57+$E57),$C57-SUM($F57:X57),($C57/$B57))) -> 0 | Z57: =IF($B57="n/a","n/a",IF(Z$3>($B57+$E57),$C57-SUM($F57:Y57),($C57/$B57))) -> 0 | AA57: =IF($B57="n/a","n/a",IF(AA$3>($B57+$E57),$C57-SUM($F57:Z57),($C57/$B57))) -> 0 | AB57: =IF($B57="n/a","n/a",IF(AB$3>($B57+$E57),$C57-SUM($F57:AA57),($C57/$B57))) -> 0 | AC57: =IF($B57="n/a","n/a",IF(AC$3>($B57+$E57),$C57-SUM($F57:AB57),($C57/$B57))) -> 0 | AD57: =IF($B57="n/a","n/a",IF(AD$3>($B57+$E57),$C57-SUM($F57:AC57),($C57/$B57))) -> 0 | AE57: =IF($B57="n/a","n/a",IF(AE$3>($B57+$E57),$C57-SUM($F57:AD57),($C57/$B57))) -> 0 | AF57: =IF($B57="n/a","n/a",IF(AF$3>($B57+$E57),$C57-SUM($F57:AE57),($C57/$B57))) -> 0 | AG57: =IF($B57="n/a","n/a",IF(AG$3>($B57+$E57),$C57-SUM($F57:AF57),($C57/$B57))) -> 0 | AH57: =IF($B57="n/a","n/a",IF(AH$3>($B57+$E57),$C57-SUM($F57:AG57),($C57/$B57))) -> 0 | AI57: =IF($B57="n/a","n/a",IF(AI$3>($B57+$E57),$C57-SUM($F57:AH57),($C57/$B57))) -> 0 | AJ57: =IF($B57="n/a","n/a",IF(AJ$3>($B57+$E57),$C57-SUM($F57:AI57),($C57/$B57))) -> 0 | AK57: =IF($B57="n/a","n/a",IF(AK$3>($B57+$E57),$C57-SUM($F57:AJ57),($C57/$B57))) -> 0 | AL57: =IF($B57="n/a","n/a",IF(AL$3>($B57+$E57),$C57-SUM($F57:AK57),($C57/$B57))) -> 0 | AM57: =IF($B57="n/a","n/a",IF(AM$3>($B57+$E57),$C57-SUM($F57:AL57),($C57/$B57))) -> 0 | AN57: =IF($B57="n/a","n/a",IF(AN$3>($B57+$E57),$C57-SUM($F57:AM57),($C57/$B57))) -> 0 | AO57: =IF($B57="n/a","n/a",IF(AO$3>($B57+$E57),$C57-SUM($F57:AN57),($C57/$B57))) -> 0 | AP57: =IF($B57="n/a","n/a",IF(AP$3>($B57+$E57),$C57-SUM($F57:AO57),($C57/$B57))) -> 0 | AQ57: =IF($B57="n/a","n/a",IF(AQ$3>($B57+$E57),$C57-SUM($F57:AP57),($C57/$B57))) -> 0 | AR57: =IF($B57="n/a","n/a",IF(AR$3>($B57+$E57),$C57-SUM($F57:AQ57),($C57/$B57))) -> 0 | AS57: =IF($B57="n/a","n/a",IF(AS$3>($B57+$E57),$C57-SUM($F57:AR57),($C57/$B57))) -> 0 | AT57: =IF($B57="n/a","n/a",IF(AT$3>($B57+$E57),$C57-SUM($F57:AS57),($C57/$B57))) -> 0 | AU57: =IF($B57="n/a","n/a",IF(AU$3>($B57+$E57),$C57-SUM($F57:AT57),($C57/$B57))) -> 0 | AV57: =IF($B57="n/a","n/a",IF(AV$3>($B57+$E57),$C57-SUM($F57:AU57),($C57/$B57))) -> 0 | AW57: =IF($B57="n/a","n/a",IF(AW$3>($B57+$E57),$C57-SUM($F57:AV57),($C57/$B57))) -> 0 | AX57: =IF($B57="n/a","n/a",IF(AX$3>($B57+$E57),$C57-SUM($F57:AW57),($C57/$B57))) -> 0 | AY57: =IF($B57="n/a","n/a",IF(AY$3>($B57+$E57),$C57-SUM($F57:AX57),($C57/$B57))) -> 0 | AZ57: =IF($B57="n/a","n/a",IF(AZ$3>($B57+$E57),$C57-SUM($F57:AY57),($C57/$B57))) -> 0 | BA57: =IF($B57="n/a","n/a",IF(BA$3>($B57+$E57),$C57-SUM($F57:AZ57),($C57/$B57))) -> 0 | BB57: =IF($B57="n/a","n/a",IF(BB$3>($B57+$E57),$C57-SUM($F57:BA57),($C57/$B57))) -> 0 | BC57: =IF($B57="n/a","n/a",IF(BC$3>($B57+$E57),$C57-SUM($F57:BB57),($C57/$B57))) -> 0 | BD57: =IF($B57="n/a","n/a",IF(BD$3>($B57+$E57),$C57-SUM($F57:BC57),($C57/$B57))) -> 0 | BE57: =IF($B57="n/a","n/a",IF(BE$3>($B57+$E57),$C57-SUM($F57:BD57),($C57/$B57))) -> 0 | BF57: =IF($B57="n/a","n/a",IF(BF$3>($B57+$E57),$C57-SUM($F57:BE57),($C57/$B57))) -> 0 | BG57: =IF($B57="n/a","n/a",IF(BG$3>($B57+$E57),$C57-SUM($F57:BF57),($C57/$B57))) -> 0 | BH57: =IF($B57="n/a","n/a",IF(BH$3>($B57+$E57),$C57-SUM($F57:BG57),($C57/$B57))) -> 0 | BI57: =IF($B57="n/a","n/a",IF(BI$3>($B57+$E57),$C57-SUM($F57:BH57),($C57/$B57))) -> 0 | BJ57: =IF($B57="n/a","n/a",IF(BJ$3>($B57+$E57),$C57-SUM($F57:BI57),($C57/$B57))) -> 0 | BK57: =IF($B57="n/a","n/a",IF(BK$3>($B57+$E57),$C57-SUM($F57:BJ57),($C57/$B57))) -> 0 | BL57: =IF($B57="n/a","n/a",IF(BL$3>($B57+$E57),$C57-SUM($F57:BK57),($C57/$B57))) -> 0 | BM57: =IF($B57="n/a","n/a",IF(BM$3>($B57+$E57),$C57-SUM($F57:BL57),($C57/$B57))) -> 0 | BN57: =IF($B57="n/a","n/a",IF(BN$3>($B57+$E57),$C57-SUM($F57:BM57),($C57/$B57))) -> 0
B58: Rem Life | C58: =OFFSET('I3 CAPEX '!$E$44,$A52,E58) -> 10.24063613 | E58: 2 | H58: =IF($B57="n/a","n/a",IF(H$3>($B57+$E58),$C58-SUM($F58:G58),($C58/$B57))) -> 0.6827090755 | I58: =IF($B57="n/a","n/a",IF(I$3>($B57+$E58),$C58-SUM($F58:H58),($C58/$B57))) -> 0.6827090755 | J58: =IF($B57="n/a","n/a",IF(J$3>($B57+$E58),$C58-SUM($F58:I58),($C58/$B57))) -> 0.6827090755 | K58: =IF($B57="n/a","n/a",IF(K$3>($B57+$E58),$C58-SUM($F58:J58),($C58/$B57))) -> 0.6827090755 | L58: =IF($B57="n/a","n/a",IF(L$3>($B57+$E58),$C58-SUM($F58:K58),($C58/$B57))) -> 0.6827090755 | M58: =IF($B57="n/a","n/a",IF(M$3>($B57+$E58),$C58-SUM($F58:L58),($C58/$B57))) -> 0.6827090755 | N58: =IF($B57="n/a","n/a",IF(N$3>($B57+$E58),$C58-SUM($F58:M58),($C58/$B57))) -> 0.6827090755 | O58: =IF($B57="n/a","n/a",IF(O$3>($B57+$E58),$C58-SUM($F58:N58),($C58/$B57))) -> 0.6827090755 | P58: =IF($B57="n/a","n/a",IF(P$3>($B57+$E58),$C58-SUM($F58:O58),($C58/$B57))) -> 0.6827090755 | Q58: =IF($B57="n/a","n/a",IF(Q$3>($B57+$E58),$C58-SUM($F58:P58),($C58/$B57))) -> 0.6827090755 | R58: =IF($B57="n/a","n/a",IF(R$3>($B57+$E58),$C58-SUM($F58:Q58),($C58/$B57))) -> 0.6827090755 | S58: =IF($B57="n/a","n/a",IF(S$3>($B57+$E58),$C58-SUM($F58:R58),($C58/$B57))) -> 0.6827090755 | T58: =IF($B57="n/a","n/a",IF(T$3>($B57+$E58),$C58-SUM($F58:S58),($C58/$B57))) -> 0.6827090755 | U58: =IF($B57="n/a","n/a",IF(U$3>($B57+$E58),$C58-SUM($F58:T58),($C58/$B57))) -> 0.6827090755 | V58: =IF($B57="n/a","n/a",IF(V$3>($B57+$E58),$C58-SUM($F58:U58),($C58/$B57))) -> 0.6827090755 | W58: =IF($B57="n/a","n/a",IF(W$3>($B57+$E58),$C58-SUM($F58:V58),($C58/$B57))) -> 3.552713679e-15 | X58: =IF($B57="n/a","n/a",IF(X$3>($B57+$E58),$C58-SUM($F58:W58),($C58/$B57))) -> 0 | Y58: =IF($B57="n/a","n/a",IF(Y$3>($B57+$E58),$C58-SUM($F58:X58),($C58/$B57))) -> 0 | Z58: =IF($B57="n/a","n/a",IF(Z$3>($B57+$E58),$C58-SUM($F58:Y58),($C58/$B57))) -> 0 | AA58: =IF($B57="n/a","n/a",IF(AA$3>($B57+$E58),$C58-SUM($F58:Z58),($C58/$B57))) -> 0 | AB58: =IF($B57="n/a","n/a",IF(AB$3>($B57+$E58),$C58-SUM($F58:AA58),($C58/$B57))) -> 0 | AC58: =IF($B57="n/a","n/a",IF(AC$3>($B57+$E58),$C58-SUM($F58:AB58),($C58/$B57))) -> 0 | AD58: =IF($B57="n/a","n/a",IF(AD$3>($B57+$E58),$C58-SUM($F58:AC58),($C58/$B57))) -> 0 | AE58: =IF($B57="n/a","n/a",IF(AE$3>($B57+$E58),$C58-SUM($F58:AD58),($C58/$B57))) -> 0 | AF58: =IF($B57="n/a","n/a",IF(AF$3>($B57+$E58),$C58-SUM($F58:AE58),($C58/$B57))) -> 0 | AG58: =IF($B57="n/a","n/a",IF(AG$3>($B57+$E58),$C58-SUM($F58:AF58),($C58/$B57))) -> 0 | AH58: =IF($B57="n/a","n/a",IF(AH$3>($B57+$E58),$C58-SUM($F58:AG58),($C58/$B57))) -> 0 | AI58: =IF($B57="n/a","n/a",IF(AI$3>($B57+$E58),$C58-SUM($F58:AH58),($C58/$B57))) -> 0 | AJ58: =IF($B57="n/a","n/a",IF(AJ$3>($B57+$E58),$C58-SUM($F58:AI58),($C58/$B57))) -> 0 | AK58: =IF($B57="n/a","n/a",IF(AK$3>($B57+$E58),$C58-SUM($F58:AJ58),($C58/$B57))) -> 0 | AL58: =IF($B57="n/a","n/a",IF(AL$3>($B57+$E58),$C58-SUM($F58:AK58),($C58/$B57))) -> 0 | AM58: =IF($B57="n/a","n/a",IF(AM$3>($B57+$E58),$C58-SUM($F58:AL58),($C58/$B57))) -> 0 | AN58: =IF($B57="n/a","n/a",IF(AN$3>($B57+$E58),$C58-SUM($F58:AM58),($C58/$B57))) -> 0 | AO58: =IF($B57="n/a","n/a",IF(AO$3>($B57+$E58),$C58-SUM($F58:AN58),($C58/$B57))) -> 0 | AP58: =IF($B57="n/a","n/a",IF(AP$3>($B57+$E58),$C58-SUM($F58:AO58),($C58/$B57))) -> 0 | AQ58: =IF($B57="n/a","n/a",IF(AQ$3>($B57+$E58),$C58-SUM($F58:AP58),($C58/$B57))) -> 0 | AR58: =IF($B57="n/a","n/a",IF(AR$3>($B57+$E58),$C58-SUM($F58:AQ58),($C58/$B57))) -> 0 | AS58: =IF($B57="n/a","n/a",IF(AS$3>($B57+$E58),$C58-SUM($F58:AR58),($C58/$B57))) -> 0 | AT58: =IF($B57="n/a","n/a",IF(AT$3>($B57+$E58),$C58-SUM($F58:AS58),($C58/$B57))) -> 0 | AU58: =IF($B57="n/a","n/a",IF(AU$3>($B57+$E58),$C58-SUM($F58:AT58),($C58/$B57))) -> 0 | AV58: =IF($B57="n/a","n/a",IF(AV$3>($B57+$E58),$C58-SUM($F58:AU58),($C58/$B57))) -> 0 | AW58: =IF($B57="n/a","n/a",IF(AW$3>($B57+$E58),$C58-SUM($F58:AV58),($C58/$B57))) -> 0 | AX58: =IF($B57="n/a","n/a",IF(AX$3>($B57+$E58),$C58-SUM($F58:AW58),($C58/$B57))) -> 0 | AY58: =IF($B57="n/a","n/a",IF(AY$3>($B57+$E58),$C58-SUM($F58:AX58),($C58/$B57))) -> 0 | AZ58: =IF($B57="n/a","n/a",IF(AZ$3>($B57+$E58),$C58-SUM($F58:AY58),($C58/$B57))) -> 0 | BA58: =IF($B57="n/a","n/a",IF(BA$3>($B57+$E58),$C58-SUM($F58:AZ58),($C58/$B57))) -> 0 | BB58: =IF($B57="n/a","n/a",IF(BB$3>($B57+$E58),$C58-SUM($F58:BA58),($C58/$B57))) -> 0 | BC58: =IF($B57="n/a","n/a",IF(BC$3>($B57+$E58),$C58-SUM($F58:BB58),($C58/$B57))) -> 0 | BD58: =IF($B57="n/a","n/a",IF(BD$3>($B57+$E58),$C58-SUM($F58:BC58),($C58/$B57))) -> 0 | BE58: =IF($B57="n/a","n/a",IF(BE$3>($B57+$E58),$C58-SUM($F58:BD58),($C58/$B57))) -> 0 | BF58: =IF($B57="n/a","n/a",IF(BF$3>($B57+$E58),$C58-SUM($F58:BE58),($C58/$B57))) -> 0 | BG58: =IF($B57="n/a","n/a",IF(BG$3>($B57+$E58),$C58-SUM($F58:BF58),($C58/$B57))) -> 0 | BH58: =IF($B57="n/a","n/a",IF(BH$3>($B57+$E58),$C58-SUM($F58:BG58),($C58/$B57))) -> 0 | BI58: =IF($B57="n/a","n/a",IF(BI$3>($B57+$E58),$C58-SUM($F58:BH58),($C58/$B57))) -> 0 | BJ58: =IF($B57="n/a","n/a",IF(BJ$3>($B57+$E58),$C58-SUM($F58:BI58),($C58/$B57))) -> 0 | BK58: =IF($B57="n/a","n/a",IF(BK$3>($B57+$E58),$C58-SUM($F58:BJ58),($C58/$B57))) -> 0 | BL58: =IF($B57="n/a","n/a",IF(BL$3>($B57+$E58),$C58-SUM($F58:BK58),($C58/$B57))) -> 0 | BM58: =IF($B57="n/a","n/a",IF(BM$3>($B57+$E58),$C58-SUM($F58:BL58),($C58/$B57))) -> 0 | BN58: =IF($B57="n/a","n/a",IF(BN$3>($B57+$E58),$C58-SUM($F58:BM58),($C58/$B57))) -> 0
B59: =INDEX('I2 RAB '!$E$9:$E$38,A52) -> 11.66905449 | C59: =OFFSET('I3 CAPEX '!$E$44,$A52,E59) -> 9.13835273 | E59: 3 | I59: =IF($B57="n/a","n/a",IF(I$3>($B57+$E59),$C59-SUM($F59:H59),($C59/$B57))) -> 0.6092235153 | J59: =IF($B57="n/a","n/a",IF(J$3>($B57+$E59),$C59-SUM($F59:I59),($C59/$B57))) -> 0.6092235153 | K59: =IF($B57="n/a","n/a",IF(K$3>($B57+$E59),$C59-SUM($F59:J59),($C59/$B57))) -> 0.6092235153 | L59: =IF($B57="n/a","n/a",IF(L$3>($B57+$E59),$C59-SUM($F59:K59),($C59/$B57))) -> 0.6092235153 | M59: =IF($B57="n/a","n/a",IF(M$3>($B57+$E59),$C59-SUM($F59:L59),($C59/$B57))) -> 0.6092235153 | N59: =IF($B57="n/a","n/a",IF(N$3>($B57+$E59),$C59-SUM($F59:M59),($C59/$B57))) -> 0.6092235153 | O59: =IF($B57="n/a","n/a",IF(O$3>($B57+$E59),$C59-SUM($F59:N59),($C59/$B57))) -> 0.6092235153 | P59: =IF($B57="n/a","n/a",IF(P$3>($B57+$E59),$C59-SUM($F59:O59),($C59/$B57))) -> 0.6092235153 | Q59: =IF($B57="n/a","n/a",IF(Q$3>($B57+$E59),$C59-SUM($F59:P59),($C59/$B57))) -> 0.6092235153 | R59: =IF($B57="n/a","n/a",IF(R$3>($B57+$E59),$C59-SUM($F59:Q59),($C59/$B57))) -> 0.6092235153 | S59: =IF($B57="n/a","n/a",IF(S$3>($B57+$E59),$C59-SUM($F59:R59),($C59/$B57))) -> 0.6092235153 | T59: =IF($B57="n/a","n/a",IF(T$3>($B57+$E59),$C59-SUM($F59:S59),($C59/$B57))) -> 0.6092235153 | U59: =IF($B57="n/a","n/a",IF(U$3>($B57+$E59),$C59-SUM($F59:T59),($C59/$B57))) -> 0.6092235153 | V59: =IF($B57="n/a","n/a",IF(V$3>($B57+$E59),$C59-SUM($F59:U59),($C59/$B57))) -> 0.6092235153 | W59: =IF($B57="n/a","n/a",IF(W$3>($B57+$E59),$C59-SUM($F59:V59),($C59/$B57))) -> 0.6092235153 | X59: =IF($B57="n/a","n/a",IF(X$3>($B57+$E59),$C59-SUM($F59:W59),($C59/$B57))) -> 1.776356839e-15 | Y59: =IF($B57="n/a","n/a",IF(Y$3>($B57+$E59),$C59-SUM($F59:X59),($C59/$B57))) -> 0 | Z59: =IF($B57="n/a","n/a",IF(Z$3>($B57+$E59),$C59-SUM($F59:Y59),($C59/$B57))) -> 0 | AA59: =IF($B57="n/a","n/a",IF(AA$3>($B57+$E59),$C59-SUM($F59:Z59),($C59/$B57))) -> 0 | AB59: =IF($B57="n/a","n/a",IF(AB$3>($B57+$E59),$C59-SUM($F59:AA59),($C59/$B57))) -> 0 | AC59: =IF($B57="n/a","n/a",IF(AC$3>($B57+$E59),$C59-SUM($F59:AB59),($C59/$B57))) -> 0 | AD59: =IF($B57="n/a","n/a",IF(AD$3>($B57+$E59),$C59-SUM($F59:AC59),($C59/$B57))) -> 0 | AE59: =IF($B57="n/a","n/a",IF(AE$3>($B57+$E59),$C59-SUM($F59:AD59),($C59/$B57))) -> 0 | AF59: =IF($B57="n/a","n/a",IF(AF$3>($B57+$E59),$C59-SUM($F59:AE59),($C59/$B57))) -> 0 | AG59: =IF($B57="n/a","n/a",IF(AG$3>($B57+$E59),$C59-SUM($F59:AF59),($C59/$B57))) -> 0 | AH59: =IF($B57="n/a","n/a",IF(AH$3>($B57+$E59),$C59-SUM($F59:AG59),($C59/$B57))) -> 0 | AI59: =IF($B57="n/a","n/a",IF(AI$3>($B57+$E59),$C59-SUM($F59:AH59),($C59/$B57))) -> 0 | AJ59: =IF($B57="n/a","n/a",IF(AJ$3>($B57+$E59),$C59-SUM($F59:AI59),($C59/$B57))) -> 0 | AK59: =IF($B57="n/a","n/a",IF(AK$3>($B57+$E59),$C59-SUM($F59:AJ59),($C59/$B57))) -> 0 | AL59: =IF($B57="n/a","n/a",IF(AL$3>($B57+$E59),$C59-SUM($F59:AK59),($C59/$B57))) -> 0 | AM59: =IF($B57="n/a","n/a",IF(AM$3>($B57+$E59),$C59-SUM($F59:AL59),($C59/$B57))) -> 0 | AN59: =IF($B57="n/a","n/a",IF(AN$3>($B57+$E59),$C59-SUM($F59:AM59),($C59/$B57))) -> 0 | AO59: =IF($B57="n/a","n/a",IF(AO$3>($B57+$E59),$C59-SUM($F59:AN59),($C59/$B57))) -> 0 | AP59: =IF($B57="n/a","n/a",IF(AP$3>($B57+$E59),$C59-SUM($F59:AO59),($C59/$B57))) -> 0 | AQ59: =IF($B57="n/a","n/a",IF(AQ$3>($B57+$E59),$C59-SUM($F59:AP59),($C59/$B57))) -> 0 | AR59: =IF($B57="n/a","n/a",IF(AR$3>($B57+$E59),$C59-SUM($F59:AQ59),($C59/$B57))) -> 0 | AS59: =IF($B57="n/a","n/a",IF(AS$3>($B57+$E59),$C59-SUM($F59:AR59),($C59/$B57))) -> 0 | AT59: =IF($B57="n/a","n/a",IF(AT$3>($B57+$E59),$C59-SUM($F59:AS59),($C59/$B57))) -> 0 | AU59: =IF($B57="n/a","n/a",IF(AU$3>($B57+$E59),$C59-SUM($F59:AT59),($C59/$B57))) -> 0 | AV59: =IF($B57="n/a","n/a",IF(AV$3>($B57+$E59),$C59-SUM($F59:AU59),($C59/$B57))) -> 0 | AW59: =IF($B57="n/a","n/a",IF(AW$3>($B57+$E59),$C59-SUM($F59:AV59),($C59/$B57))) -> 0 | AX59: =IF($B57="n/a","n/a",IF(AX$3>($B57+$E59),$C59-SUM($F59:AW59),($C59/$B57))) -> 0 | AY59: =IF($B57="n/a","n/a",IF(AY$3>($B57+$E59),$C59-SUM($F59:AX59),($C59/$B57))) -> 0 | AZ59: =IF($B57="n/a","n/a",IF(AZ$3>($B57+$E59),$C59-SUM($F59:AY59),($C59/$B57))) -> 0 | BA59: =IF($B57="n/a","n/a",IF(BA$3>($B57+$E59),$C59-SUM($F59:AZ59),($C59/$B57))) -> 0 | BB59: =IF($B57="n/a","n/a",IF(BB$3>($B57+$E59),$C59-SUM($F59:BA59),($C59/$B57))) -> 0 | BC59: =IF($B57="n/a","n/a",IF(BC$3>($B57+$E59),$C59-SUM($F59:BB59),($C59/$B57))) -> 0 | BD59: =IF($B57="n/a","n/a",IF(BD$3>($B57+$E59),$C59-SUM($F59:BC59),($C59/$B57))) -> 0 | BE59: =IF($B57="n/a","n/a",IF(BE$3>($B57+$E59),$C59-SUM($F59:BD59),($C59/$B57))) -> 0 | BF59: =IF($B57="n/a","n/a",IF(BF$3>($B57+$E59),$C59-SUM($F59:BE59),($C59/$B57))) -> 0 | BG59: =IF($B57="n/a","n/a",IF(BG$3>($B57+$E59),$C59-SUM($F59:BF59),($C59/$B57))) -> 0 | BH59: =IF($B57="n/a","n/a",IF(BH$3>($B57+$E59),$C59-SUM($F59:BG59),($C59/$B57))) -> 0 | BI59: =IF($B57="n/a","n/a",IF(BI$3>($B57+$E59),$C59-SUM($F59:BH59),($C59/$B57))) -> 0 | BJ59: =IF($B57="n/a","n/a",IF(BJ$3>($B57+$E59),$C59-SUM($F59:BI59),($C59/$B57))) -> 0 | BK59: =IF($B57="n/a","n/a",IF(BK$3>($B57+$E59),$C59-SUM($F59:BJ59),($C59/$B57))) -> 0 | BL59: =IF($B57="n/a","n/a",IF(BL$3>($B57+$E59),$C59-SUM($F59:BK59),($C59/$B57))) -> 0 | BM59: =IF($B57="n/a","n/a",IF(BM$3>($B57+$E59),$C59-SUM($F59:BL59),($C59/$B57))) -> 0 | BN59: =IF($B57="n/a","n/a",IF(BN$3>($B57+$E59),$C59-SUM($F59:BM59),($C59/$B57))) -> 0
B60: Op Bal | C60: =OFFSET('I3 CAPEX '!$E$44,$A52,E60) -> 10.68248572 | E60: 4 | J60: =IF($B57="n/a","n/a",IF(J$3>($B57+$E60),$C60-SUM($F60:I60),($C60/$B57))) -> 0.7121657147 | K60: =IF($B57="n/a","n/a",IF(K$3>($B57+$E60),$C60-SUM($F60:J60),($C60/$B57))) -> 0.7121657147 | L60: =IF($B57="n/a","n/a",IF(L$3>($B57+$E60),$C60-SUM($F60:K60),($C60/$B57))) -> 0.7121657147 | M60: =IF($B57="n/a","n/a",IF(M$3>($B57+$E60),$C60-SUM($F60:L60),($C60/$B57))) -> 0.7121657147 | N60: =IF($B57="n/a","n/a",IF(N$3>($B57+$E60),$C60-SUM($F60:M60),($C60/$B57))) -> 0.7121657147 | O60: =IF($B57="n/a","n/a",IF(O$3>($B57+$E60),$C60-SUM($F60:N60),($C60/$B57))) -> 0.7121657147 | P60: =IF($B57="n/a","n/a",IF(P$3>($B57+$E60),$C60-SUM($F60:O60),($C60/$B57))) -> 0.7121657147 | Q60: =IF($B57="n/a","n/a",IF(Q$3>($B57+$E60),$C60-SUM($F60:P60),($C60/$B57))) -> 0.7121657147 | R60: =IF($B57="n/a","n/a",IF(R$3>($B57+$E60),$C60-SUM($F60:Q60),($C60/$B57))) -> 0.7121657147 | S60: =IF($B57="n/a","n/a",IF(S$3>($B57+$E60),$C60-SUM($F60:R60),($C60/$B57))) -> 0.7121657147 | T60: =IF($B57="n/a","n/a",IF(T$3>($B57+$E60),$C60-SUM($F60:S60),($C60/$B57))) -> 0.7121657147 | U60: =IF($B57="n/a","n/a",IF(U$3>($B57+$E60),$C60-SUM($F60:T60),($C60/$B57))) -> 0.7121657147 | V60: =IF($B57="n/a","n/a",IF(V$3>($B57+$E60),$C60-SUM($F60:U60),($C60/$B57))) -> 0.7121657147 | W60: =IF($B57="n/a","n/a",IF(W$3>($B57+$E60),$C60-SUM($F60:V60),($C60/$B57))) -> 0.7121657147 | X60: =IF($B57="n/a","n/a",IF(X$3>($B57+$E60),$C60-SUM($F60:W60),($C60/$B57))) -> 0.7121657147 | Y60: =IF($B57="n/a","n/a",IF(Y$3>($B57+$E60),$C60-SUM($F60:X60),($C60/$B57))) -> -1.776356839e-15 | Z60: =IF($B57="n/a","n/a",IF(Z$3>($B57+$E60),$C60-SUM($F60:Y60),($C60/$B57))) -> 0 | AA60: =IF($B57="n/a","n/a",IF(AA$3>($B57+$E60),$C60-SUM($F60:Z60),($C60/$B57))) -> 0 | AB60: =IF($B57="n/a","n/a",IF(AB$3>($B57+$E60),$C60-SUM($F60:AA60),($C60/$B57))) -> 0 | AC60: =IF($B57="n/a","n/a",IF(AC$3>($B57+$E60),$C60-SUM($F60:AB60),($C60/$B57))) -> 0 | AD60: =IF($B57="n/a","n/a",IF(AD$3>($B57+$E60),$C60-SUM($F60:AC60),($C60/$B57))) -> 0 | AE60: =IF($B57="n/a","n/a",IF(AE$3>($B57+$E60),$C60-SUM($F60:AD60),($C60/$B57))) -> 0 | AF60: =IF($B57="n/a","n/a",IF(AF$3>($B57+$E60),$C60-SUM($F60:AE60),($C60/$B57))) -> 0 | AG60: =IF($B57="n/a","n/a",IF(AG$3>($B57+$E60),$C60-SUM($F60:AF60),($C60/$B57))) -> 0 | AH60: =IF($B57="n/a","n/a",IF(AH$3>($B57+$E60),$C60-SUM($F60:AG60),($C60/$B57))) -> 0 | AI60: =IF($B57="n/a","n/a",IF(AI$3>($B57+$E60),$C60-SUM($F60:AH60),($C60/$B57))) -> 0 | AJ60: =IF($B57="n/a","n/a",IF(AJ$3>($B57+$E60),$C60-SUM($F60:AI60),($C60/$B57))) -> 0 | AK60: =IF($B57="n/a","n/a",IF(AK$3>($B57+$E60),$C60-SUM($F60:AJ60),($C60/$B57))) -> 0 | AL60: =IF($B57="n/a","n/a",IF(AL$3>($B57+$E60),$C60-SUM($F60:AK60),($C60/$B57))) -> 0 | AM60: =IF($B57="n/a","n/a",IF(AM$3>($B57+$E60),$C60-SUM($F60:AL60),($C60/$B57))) -> 0 | AN60: =IF($B57="n/a","n/a",IF(AN$3>($B57+$E60),$C60-SUM($F60:AM60),($C60/$B57))) -> 0 | AO60: =IF($B57="n/a","n/a",IF(AO$3>($B57+$E60),$C60-SUM($F60:AN60),($C60/$B57))) -> 0 | AP60: =IF($B57="n/a","n/a",IF(AP$3>($B57+$E60),$C60-SUM($F60:AO60),($C60/$B57))) -> 0 | AQ60: =IF($B57="n/a","n/a",IF(AQ$3>($B57+$E60),$C60-SUM($F60:AP60),($C60/$B57))) -> 0 | AR60: =IF($B57="n/a","n/a",IF(AR$3>($B57+$E60),$C60-SUM($F60:AQ60),($C60/$B57))) -> 0 | AS60: =IF($B57="n/a","n/a",IF(AS$3>($B57+$E60),$C60-SUM($F60:AR60),($C60/$B57))) -> 0 | AT60: =IF($B57="n/a","n/a",IF(AT$3>($B57+$E60),$C60-SUM($F60:AS60),($C60/$B57))) -> 0 | AU60: =IF($B57="n/a","n/a",IF(AU$3>($B57+$E60),$C60-SUM($F60:AT60),($C60/$B57))) -> 0 | AV60: =IF($B57="n/a","n/a",IF(AV$3>($B57+$E60),$C60-SUM($F60:AU60),($C60/$B57))) -> 0 | AW60: =IF($B57="n/a","n/a",IF(AW$3>($B57+$E60),$C60-SUM($F60:AV60),($C60/$B57))) -> 0 | AX60: =IF($B57="n/a","n/a",IF(AX$3>($B57+$E60),$C60-SUM($F60:AW60),($C60/$B57))) -> 0 | AY60: =IF($B57="n/a","n/a",IF(AY$3>($B57+$E60),$C60-SUM($F60:AX60),($C60/$B57))) -> 0 | AZ60: =IF($B57="n/a","n/a",IF(AZ$3>($B57+$E60),$C60-SUM($F60:AY60),($C60/$B57))) -> 0 | BA60: =IF($B57="n/a","n/a",IF(BA$3>($B57+$E60),$C60-SUM($F60:AZ60),($C60/$B57))) -> 0 | BB60: =IF($B57="n/a","n/a",IF(BB$3>($B57+$E60),$C60-SUM($F60:BA60),($C60/$B57))) -> 0 | BC60: =IF($B57="n/a","n/a",IF(BC$3>($B57+$E60),$C60-SUM($F60:BB60),($C60/$B57))) -> 0 | BD60: =IF($B57="n/a","n/a",IF(BD$3>($B57+$E60),$C60-SUM($F60:BC60),($C60/$B57))) -> 0 | BE60: =IF($B57="n/a","n/a",IF(BE$3>($B57+$E60),$C60-SUM($F60:BD60),($C60/$B57))) -> 0 | BF60: =IF($B57="n/a","n/a",IF(BF$3>($B57+$E60),$C60-SUM($F60:BE60),($C60/$B57))) -> 0 | BG60: =IF($B57="n/a","n/a",IF(BG$3>($B57+$E60),$C60-SUM($F60:BF60),($C60/$B57))) -> 0 | BH60: =IF($B57="n/a","n/a",IF(BH$3>($B57+$E60),$C60-SUM($F60:BG60),($C60/$B57))) -> 0 | BI60: =IF($B57="n/a","n/a",IF(BI$3>($B57+$E60),$C60-SUM($F60:BH60),($C60/$B57))) -> 0 | BJ60: =IF($B57="n/a","n/a",IF(BJ$3>($B57+$E60),$C60-SUM($F60:BI60),($C60/$B57))) -> 0 | BK60: =IF($B57="n/a","n/a",IF(BK$3>($B57+$E60),$C60-SUM($F60:BJ60),($C60/$B57))) -> 0 | BL60: =IF($B57="n/a","n/a",IF(BL$3>($B57+$E60),$C60-SUM($F60:BK60),($C60/$B57))) -> 0 | BM60: =IF($B57="n/a","n/a",IF(BM$3>($B57+$E60),$C60-SUM($F60:BL60),($C60/$B57))) -> 0 | BN60: =IF($B57="n/a","n/a",IF(BN$3>($B57+$E60),$C60-SUM($F60:BM60),($C60/$B57))) -> 0
B61: =INDEX('I2 RAB '!$D$9:$D$38,A52) -> 77.05562629 | C61: =OFFSET('I3 CAPEX '!$E$44,$A52,E61)+OFFSET('I3 CAPEX '!$E$79,$A52,E61) -> 9.971145093 | E61: 5 | K61: =IF($B57="n/a","n/a",IF(K$3>($B57+$E61),$C61-SUM($F61:J61),($C61/$B57))) -> 0.6647430062 | L61: =IF($B57="n/a","n/a",IF(L$3>($B57+$E61),$C61-SUM($F61:K61),($C61/$B57))) -> 0.6647430062 | M61: =IF($B57="n/a","n/a",IF(M$3>($B57+$E61),$C61-SUM($F61:L61),($C61/$B57))) -> 0.6647430062 | N61: =IF($B57="n/a","n/a",IF(N$3>($B57+$E61),$C61-SUM($F61:M61),($C61/$B57))) -> 0.6647430062 | O61: =IF($B57="n/a","n/a",IF(O$3>($B57+$E61),$C61-SUM($F61:N61),($C61/$B57))) -> 0.6647430062 | P61: =IF($B57="n/a","n/a",IF(P$3>($B57+$E61),$C61-SUM($F61:O61),($C61/$B57))) -> 0.6647430062 | Q61: =IF($B57="n/a","n/a",IF(Q$3>($B57+$E61),$C61-SUM($F61:P61),($C61/$B57))) -> 0.6647430062 | R61: =IF($B57="n/a","n/a",IF(R$3>($B57+$E61),$C61-SUM($F61:Q61),($C61/$B57))) -> 0.6647430062 | S61: =IF($B57="n/a","n/a",IF(S$3>($B57+$E61),$C61-SUM($F61:R61),($C61/$B57))) -> 0.6647430062 | T61: =IF($B57="n/a","n/a",IF(T$3>($B57+$E61),$C61-SUM($F61:S61),($C61/$B57))) -> 0.6647430062 | U61: =IF($B57="n/a","n/a",IF(U$3>($B57+$E61),$C61-SUM($F61:T61),($C61/$B57))) -> 0.6647430062 | V61: =IF($B57="n/a","n/a",IF(V$3>($B57+$E61),$C61-SUM($F61:U61),($C61/$B57))) -> 0.6647430062 | W61: =IF($B57="n/a","n/a",IF(W$3>($B57+$E61),$C61-SUM($F61:V61),($C61/$B57))) -> 0.6647430062 | X61: =IF($B57="n/a","n/a",IF(X$3>($B57+$E61),$C61-SUM($F61:W61),($C61/$B57))) -> 0.6647430062 | Y61: =IF($B57="n/a","n/a",IF(Y$3>($B57+$E61),$C61-SUM($F61:X61),($C61/$B57))) -> 0.6647430062 | Z61: =IF($B57="n/a","n/a",IF(Z$3>($B57+$E61),$C61-SUM($F61:Y61),($C61/$B57))) -> 0 | AA61: =IF($B57="n/a","n/a",IF(AA$3>($B57+$E61),$C61-SUM($F61:Z61),($C61/$B57))) -> 0 | AB61: =IF($B57="n/a","n/a",IF(AB$3>($B57+$E61),$C61-SUM($F61:AA61),($C61/$B57))) -> 0 | AC61: =IF($B57="n/a","n/a",IF(AC$3>($B57+$E61),$C61-SUM($F61:AB61),($C61/$B57))) -> 0 | AD61: =IF($B57="n/a","n/a",IF(AD$3>($B57+$E61),$C61-SUM($F61:AC61),($C61/$B57))) -> 0 | AE61: =IF($B57="n/a","n/a",IF(AE$3>($B57+$E61),$C61-SUM($F61:AD61),($C61/$B57))) -> 0 | AF61: =IF($B57="n/a","n/a",IF(AF$3>($B57+$E61),$C61-SUM($F61:AE61),($C61/$B57))) -> 0 | AG61: =IF($B57="n/a","n/a",IF(AG$3>($B57+$E61),$C61-SUM($F61:AF61),($C61/$B57))) -> 0 | AH61: =IF($B57="n/a","n/a",IF(AH$3>($B57+$E61),$C61-SUM($F61:AG61),($C61/$B57))) -> 0 | AI61: =IF($B57="n/a","n/a",IF(AI$3>($B57+$E61),$C61-SUM($F61:AH61),($C61/$B57))) -> 0 | AJ61: =IF($B57="n/a","n/a",IF(AJ$3>($B57+$E61),$C61-SUM($F61:AI61),($C61/$B57))) -> 0 | AK61: =IF($B57="n/a","n/a",IF(AK$3>($B57+$E61),$C61-SUM($F61:AJ61),($C61/$B57))) -> 0 | AL61: =IF($B57="n/a","n/a",IF(AL$3>($B57+$E61),$C61-SUM($F61:AK61),($C61/$B57))) -> 0 | AM61: =IF($B57="n/a","n/a",IF(AM$3>($B57+$E61),$C61-SUM($F61:AL61),($C61/$B57))) -> 0 | AN61: =IF($B57="n/a","n/a",IF(AN$3>($B57+$E61),$C61-SUM($F61:AM61),($C61/$B57))) -> 0 | AO61: =IF($B57="n/a","n/a",IF(AO$3>($B57+$E61),$C61-SUM($F61:AN61),($C61/$B57))) -> 0 | AP61: =IF($B57="n/a","n/a",IF(AP$3>($B57+$E61),$C61-SUM($F61:AO61),($C61/$B57))) -> 0 | AQ61: =IF($B57="n/a","n/a",IF(AQ$3>($B57+$E61),$C61-SUM($F61:AP61),($C61/$B57))) -> 0 | AR61: =IF($B57="n/a","n/a",IF(AR$3>($B57+$E61),$C61-SUM($F61:AQ61),($C61/$B57))) -> 0 | AS61: =IF($B57="n/a","n/a",IF(AS$3>($B57+$E61),$C61-SUM($F61:AR61),($C61/$B57))) -> 0 | AT61: =IF($B57="n/a","n/a",IF(AT$3>($B57+$E61),$C61-SUM($F61:AS61),($C61/$B57))) -> 0 | AU61: =IF($B57="n/a","n/a",IF(AU$3>($B57+$E61),$C61-SUM($F61:AT61),($C61/$B57))) -> 0 | AV61: =IF($B57="n/a","n/a",IF(AV$3>($B57+$E61),$C61-SUM($F61:AU61),($C61/$B57))) -> 0 | AW61: =IF($B57="n/a","n/a",IF(AW$3>($B57+$E61),$C61-SUM($F61:AV61),($C61/$B57))) -> 0 | AX61: =IF($B57="n/a","n/a",IF(AX$3>($B57+$E61),$C61-SUM($F61:AW61),($C61/$B57))) -> 0 | AY61: =IF($B57="n/a","n/a",IF(AY$3>($B57+$E61),$C61-SUM($F61:AX61),($C61/$B57))) -> 0 | AZ61: =IF($B57="n/a","n/a",IF(AZ$3>($B57+$E61),$C61-SUM($F61:AY61),($C61/$B57))) -> 0 | BA61: =IF($B57="n/a","n/a",IF(BA$3>($B57+$E61),$C61-SUM($F61:AZ61),($C61/$B57))) -> 0 | BB61: =IF($B57="n/a","n/a",IF(BB$3>($B57+$E61),$C61-SUM($F61:BA61),($C61/$B57))) -> 0 | BC61: =IF($B57="n/a","n/a",IF(BC$3>($B57+$E61),$C61-SUM($F61:BB61),($C61/$B57))) -> 0 | BD61: =IF($B57="n/a","n/a",IF(BD$3>($B57+$E61),$C61-SUM($F61:BC61),($C61/$B57))) -> 0 | BE61: =IF($B57="n/a","n/a",IF(BE$3>($B57+$E61),$C61-SUM($F61:BD61),($C61/$B57))) -> 0 | BF61: =IF($B57="n/a","n/a",IF(BF$3>($B57+$E61),$C61-SUM($F61:BE61),($C61/$B57))) -> 0 | BG61: =IF($B57="n/a","n/a",IF(BG$3>($B57+$E61),$C61-SUM($F61:BF61),($C61/$B57))) -> 0 | BH61: =IF($B57="n/a","n/a",IF(BH$3>($B57+$E61),$C61-SUM($F61:BG61),($C61/$B57))) -> 0 | BI61: =IF($B57="n/a","n/a",IF(BI$3>($B57+$E61),$C61-SUM($F61:BH61),($C61/$B57))) -> 0 | BJ61: =IF($B57="n/a","n/a",IF(BJ$3>($B57+$E61),$C61-SUM($F61:BI61),($C61/$B57))) -> 0 | BK61: =IF($B57="n/a","n/a",IF(BK$3>($B57+$E61),$C61-SUM($F61:BJ61),($C61/$B57))) -> 0 | BL61: =IF($B57="n/a","n/a",IF(BL$3>($B57+$E61),$C61-SUM($F61:BK61),($C61/$B57))) -> 0 | BM61: =IF($B57="n/a","n/a",IF(BM$3>($B57+$E61),$C61-SUM($F61:BL61),($C61/$B57))) -> 0 | BN61: =IF($B57="n/a","n/a",IF(BN$3>($B57+$E61),$C61-SUM($F61:BM61),($C61/$B57))) -> 0
B62: 2012-13 Capex True up adj | C62: =OFFSET('I3 CAPEX '!$E$44,$A52,E62)+OFFSET('I3 CAPEX '!$E$79,$A52,E62) -> 0 | E62: 6 | L62: =IF($B57="n/a","n/a",IF(L$3>($B57+$E62),$C62-SUM($F62:K62),($C62/$B57))) -> 0 | M62: =IF($B57="n/a","n/a",IF(M$3>($B57+$E62),$C62-SUM($F62:L62),($C62/$B57))) -> 0 | N62: =IF($B57="n/a","n/a",IF(N$3>($B57+$E62),$C62-SUM($F62:M62),($C62/$B57))) -> 0 | O62: =IF($B57="n/a","n/a",IF(O$3>($B57+$E62),$C62-SUM($F62:N62),($C62/$B57))) -> 0 | P62: =IF($B57="n/a","n/a",IF(P$3>($B57+$E62),$C62-SUM($F62:O62),($C62/$B57))) -> 0 | Q62: =IF($B57="n/a","n/a",IF(Q$3>($B57+$E62),$C62-SUM($F62:P62),($C62/$B57))) -> 0 | R62: =IF($B57="n/a","n/a",IF(R$3>($B57+$E62),$C62-SUM($F62:Q62),($C62/$B57))) -> 0 | S62: =IF($B57="n/a","n/a",IF(S$3>($B57+$E62),$C62-SUM($F62:R62),($C62/$B57))) -> 0 | T62: =IF($B57="n/a","n/a",IF(T$3>($B57+$E62),$C62-SUM($F62:S62),($C62/$B57))) -> 0 | U62: =IF($B57="n/a","n/a",IF(U$3>($B57+$E62),$C62-SUM($F62:T62),($C62/$B57))) -> 0 | V62: =IF($B57="n/a","n/a",IF(V$3>($B57+$E62),$C62-SUM($F62:U62),($C62/$B57))) -> 0 | W62: =IF($B57="n/a","n/a",IF(W$3>($B57+$E62),$C62-SUM($F62:V62),($C62/$B57))) -> 0 | X62: =IF($B57="n/a","n/a",IF(X$3>($B57+$E62),$C62-SUM($F62:W62),($C62/$B57))) -> 0 | Y62: =IF($B57="n/a","n/a",IF(Y$3>($B57+$E62),$C62-SUM($F62:X62),($C62/$B57))) -> 0 | Z62: =IF($B57="n/a","n/a",IF(Z$3>($B57+$E62),$C62-SUM($F62:Y62),($C62/$B57))) -> 0 | AA62: =IF($B57="n/a","n/a",IF(AA$3>($B57+$E62),$C62-SUM($F62:Z62),($C62/$B57))) -> 0 | AB62: =IF($B57="n/a","n/a",IF(AB$3>($B57+$E62),$C62-SUM($F62:AA62),($C62/$B57))) -> 0 | AC62: =IF($B57="n/a","n/a",IF(AC$3>($B57+$E62),$C62-SUM($F62:AB62),($C62/$B57))) -> 0 | AD62: =IF($B57="n/a","n/a",IF(AD$3>($B57+$E62),$C62-SUM($F62:AC62),($C62/$B57))) -> 0 | AE62: =IF($B57="n/a","n/a",IF(AE$3>($B57+$E62),$C62-SUM($F62:AD62),($C62/$B57))) -> 0 | AF62: =IF($B57="n/a","n/a",IF(AF$3>($B57+$E62),$C62-SUM($F62:AE62),($C62/$B57))) -> 0 | AG62: =IF($B57="n/a","n/a",IF(AG$3>($B57+$E62),$C62-SUM($F62:AF62),($C62/$B57))) -> 0 | AH62: =IF($B57="n/a","n/a",IF(AH$3>($B57+$E62),$C62-SUM($F62:AG62),($C62/$B57))) -> 0 | AI62: =IF($B57="n/a","n/a",IF(AI$3>($B57+$E62),$C62-SUM($F62:AH62),($C62/$B57))) -> 0 | AJ62: =IF($B57="n/a","n/a",IF(AJ$3>($B57+$E62),$C62-SUM($F62:AI62),($C62/$B57))) -> 0 | AK62: =IF($B57="n/a","n/a",IF(AK$3>($B57+$E62),$C62-SUM($F62:AJ62),($C62/$B57))) -> 0 | AL62: =IF($B57="n/a","n/a",IF(AL$3>($B57+$E62),$C62-SUM($F62:AK62),($C62/$B57))) -> 0 | AM62: =IF($B57="n/a","n/a",IF(AM$3>($B57+$E62),$C62-SUM($F62:AL62),($C62/$B57))) -> 0 | AN62: =IF($B57="n/a","n/a",IF(AN$3>($B57+$E62),$C62-SUM($F62:AM62),($C62/$B57))) -> 0 | AO62: =IF($B57="n/a","n/a",IF(AO$3>($B57+$E62),$C62-SUM($F62:AN62),($C62/$B57))) -> 0 | AP62: =IF($B57="n/a","n/a",IF(AP$3>($B57+$E62),$C62-SUM($F62:AO62),($C62/$B57))) -> 0 | AQ62: =IF($B57="n/a","n/a",IF(AQ$3>($B57+$E62),$C62-SUM($F62:AP62),($C62/$B57))) -> 0 | AR62: =IF($B57="n/a","n/a",IF(AR$3>($B57+$E62),$C62-SUM($F62:AQ62),($C62/$B57))) -> 0 | AS62: =IF($B57="n/a","n/a",IF(AS$3>($B57+$E62),$C62-SUM($F62:AR62),($C62/$B57))) -> 0 | AT62: =IF($B57="n/a","n/a",IF(AT$3>($B57+$E62),$C62-SUM($F62:AS62),($C62/$B57))) -> 0 | AU62: =IF($B57="n/a","n/a",IF(AU$3>($B57+$E62),$C62-SUM($F62:AT62),($C62/$B57))) -> 0 | AV62: =IF($B57="n/a","n/a",IF(AV$3>($B57+$E62),$C62-SUM($F62:AU62),($C62/$B57))) -> 0 | AW62: =IF($B57="n/a","n/a",IF(AW$3>($B57+$E62),$C62-SUM($F62:AV62),($C62/$B57))) -> 0 | AX62: =IF($B57="n/a","n/a",IF(AX$3>($B57+$E62),$C62-SUM($F62:AW62),($C62/$B57))) -> 0 | AY62: =IF($B57="n/a","n/a",IF(AY$3>($B57+$E62),$C62-SUM($F62:AX62),($C62/$B57))) -> 0 | AZ62: =IF($B57="n/a","n/a",IF(AZ$3>($B57+$E62),$C62-SUM($F62:AY62),($C62/$B57))) -> 0 | BA62: =IF($B57="n/a","n/a",IF(BA$3>($B57+$E62),$C62-SUM($F62:AZ62),($C62/$B57))) -> 0 | BB62: =IF($B57="n/a","n/a",IF(BB$3>($B57+$E62),$C62-SUM($F62:BA62),($C62/$B57))) -> 0 | BC62: =IF($B57="n/a","n/a",IF(BC$3>($B57+$E62),$C62-SUM($F62:BB62),($C62/$B57))) -> 0 | BD62: =IF($B57="n/a","n/a",IF(BD$3>($B57+$E62),$C62-SUM($F62:BC62),($C62/$B57))) -> 0 | BE62: =IF($B57="n/a","n/a",IF(BE$3>($B57+$E62),$C62-SUM($F62:BD62),($C62/$B57))) -> 0 | BF62: =IF($B57="n/a","n/a",IF(BF$3>($B57+$E62),$C62-SUM($F62:BE62),($C62/$B57))) -> 0 | BG62: =IF($B57="n/a","n/a",IF(BG$3>($B57+$E62),$C62-SUM($F62:BF62),($C62/$B57))) -> 0 | BH62: =IF($B57="n/a","n/a",IF(BH$3>($B57+$E62),$C62-SUM($F62:BG62),($C62/$B57))) -> 0 | BI62: =IF($B57="n/a","n/a",IF(BI$3>($B57+$E62),$C62-SUM($F62:BH62),($C62/$B57))) -> 0 | BJ62: =IF($B57="n/a","n/a",IF(BJ$3>($B57+$E62),$C62-SUM($F62:BI62),($C62/$B57))) -> 0 | BK62: =IF($B57="n/a","n/a",IF(BK$3>($B57+$E62),$C62-SUM($F62:BJ62),($C62/$B57))) -> 0 | BL62: =IF($B57="n/a","n/a",IF(BL$3>($B57+$E62),$C62-SUM($F62:BK62),($C62/$B57))) -> 0 | BM62: =IF($B57="n/a","n/a",IF(BM$3>($B57+$E62),$C62-SUM($F62:BL62),($C62/$B57))) -> 0 | BN62: =IF($B57="n/a","n/a",IF(BN$3>($B57+$E62),$C62-SUM($F62:BM62),($C62/$B57))) -> 0
B63: =+OFFSET('I3 CAPEX '!$E$79,$A52,E60) -> -12.07698474 | C63: =OFFSET('I3 CAPEX '!$E$44,$A52,E63)+OFFSET('I3 CAPEX '!$E$79,$A52,E63) -> 0 | E63: 7 | M63: =IF($B57="n/a","n/a",IF(M$3>($B57+$E63),$C63-SUM($F63:L63),($C63/$B57))) -> 0 | N63: =IF($B57="n/a","n/a",IF(N$3>($B57+$E63),$C63-SUM($F63:M63),($C63/$B57))) -> 0 | O63: =IF($B57="n/a","n/a",IF(O$3>($B57+$E63),$C63-SUM($F63:N63),($C63/$B57))) -> 0 | P63: =IF($B57="n/a","n/a",IF(P$3>($B57+$E63),$C63-SUM($F63:O63),($C63/$B57))) -> 0 | Q63: =IF($B57="n/a","n/a",IF(Q$3>($B57+$E63),$C63-SUM($F63:P63),($C63/$B57))) -> 0 | R63: =IF($B57="n/a","n/a",IF(R$3>($B57+$E63),$C63-SUM($F63:Q63),($C63/$B57))) -> 0 | S63: =IF($B57="n/a","n/a",IF(S$3>($B57+$E63),$C63-SUM($F63:R63),($C63/$B57))) -> 0 | T63: =IF($B57="n/a","n/a",IF(T$3>($B57+$E63),$C63-SUM($F63:S63),($C63/$B57))) -> 0 | U63: =IF($B57="n/a","n/a",IF(U$3>($B57+$E63),$C63-SUM($F63:T63),($C63/$B57))) -> 0 | V63: =IF($B57="n/a","n/a",IF(V$3>($B57+$E63),$C63-SUM($F63:U63),($C63/$B57))) -> 0 | W63: =IF($B57="n/a","n/a",IF(W$3>($B57+$E63),$C63-SUM($F63:V63),($C63/$B57))) -> 0 | X63: =IF($B57="n/a","n/a",IF(X$3>($B57+$E63),$C63-SUM($F63:W63),($C63/$B57))) -> 0 | Y63: =IF($B57="n/a","n/a",IF(Y$3>($B57+$E63),$C63-SUM($F63:X63),($C63/$B57))) -> 0 | Z63: =IF($B57="n/a","n/a",IF(Z$3>($B57+$E63),$C63-SUM($F63:Y63),($C63/$B57))) -> 0 | AA63: =IF($B57="n/a","n/a",IF(AA$3>($B57+$E63),$C63-SUM($F63:Z63),($C63/$B57))) -> 0 | AB63: =IF($B57="n/a","n/a",IF(AB$3>($B57+$E63),$C63-SUM($F63:AA63),($C63/$B57))) -> 0 | AC63: =IF($B57="n/a","n/a",IF(AC$3>($B57+$E63),$C63-SUM($F63:AB63),($C63/$B57))) -> 0 | AD63: =IF($B57="n/a","n/a",IF(AD$3>($B57+$E63),$C63-SUM($F63:AC63),($C63/$B57))) -> 0 | AE63: =IF($B57="n/a","n/a",IF(AE$3>($B57+$E63),$C63-SUM($F63:AD63),($C63/$B57))) -> 0 | AF63: =IF($B57="n/a","n/a",IF(AF$3>($B57+$E63),$C63-SUM($F63:AE63),($C63/$B57))) -> 0 | AG63: =IF($B57="n/a","n/a",IF(AG$3>($B57+$E63),$C63-SUM($F63:AF63),($C63/$B57))) -> 0 | AH63: =IF($B57="n/a","n/a",IF(AH$3>($B57+$E63),$C63-SUM($F63:AG63),($C63/$B57))) -> 0 | AI63: =IF($B57="n/a","n/a",IF(AI$3>($B57+$E63),$C63-SUM($F63:AH63),($C63/$B57))) -> 0 | AJ63: =IF($B57="n/a","n/a",IF(AJ$3>($B57+$E63),$C63-SUM($F63:AI63),($C63/$B57))) -> 0 | AK63: =IF($B57="n/a","n/a",IF(AK$3>($B57+$E63),$C63-SUM($F63:AJ63),($C63/$B57))) -> 0 | AL63: =IF($B57="n/a","n/a",IF(AL$3>($B57+$E63),$C63-SUM($F63:AK63),($C63/$B57))) -> 0 | AM63: =IF($B57="n/a","n/a",IF(AM$3>($B57+$E63),$C63-SUM($F63:AL63),($C63/$B57))) -> 0 | AN63: =IF($B57="n/a","n/a",IF(AN$3>($B57+$E63),$C63-SUM($F63:AM63),($C63/$B57))) -> 0 | AO63: =IF($B57="n/a","n/a",IF(AO$3>($B57+$E63),$C63-SUM($F63:AN63),($C63/$B57))) -> 0 | AP63: =IF($B57="n/a","n/a",IF(AP$3>($B57+$E63),$C63-SUM($F63:AO63),($C63/$B57))) -> 0 | AQ63: =IF($B57="n/a","n/a",IF(AQ$3>($B57+$E63),$C63-SUM($F63:AP63),($C63/$B57))) -> 0 | AR63: =IF($B57="n/a","n/a",IF(AR$3>($B57+$E63),$C63-SUM($F63:AQ63),($C63/$B57))) -> 0 | AS63: =IF($B57="n/a","n/a",IF(AS$3>($B57+$E63),$C63-SUM($F63:AR63),($C63/$B57))) -> 0 | AT63: =IF($B57="n/a","n/a",IF(AT$3>($B57+$E63),$C63-SUM($F63:AS63),($C63/$B57))) -> 0 | AU63: =IF($B57="n/a","n/a",IF(AU$3>($B57+$E63),$C63-SUM($F63:AT63),($C63/$B57))) -> 0 | AV63: =IF($B57="n/a","n/a",IF(AV$3>($B57+$E63),$C63-SUM($F63:AU63),($C63/$B57))) -> 0 | AW63: =IF($B57="n/a","n/a",IF(AW$3>($B57+$E63),$C63-SUM($F63:AV63),($C63/$B57))) -> 0 | AX63: =IF($B57="n/a","n/a",IF(AX$3>($B57+$E63),$C63-SUM($F63:AW63),($C63/$B57))) -> 0 | AY63: =IF($B57="n/a","n/a",IF(AY$3>($B57+$E63),$C63-SUM($F63:AX63),($C63/$B57))) -> 0 | AZ63: =IF($B57="n/a","n/a",IF(AZ$3>($B57+$E63),$C63-SUM($F63:AY63),($C63/$B57))) -> 0 | BA63: =IF($B57="n/a","n/a",IF(BA$3>($B57+$E63),$C63-SUM($F63:AZ63),($C63/$B57))) -> 0 | BB63: =IF($B57="n/a","n/a",IF(BB$3>($B57+$E63),$C63-SUM($F63:BA63),($C63/$B57))) -> 0 | BC63: =IF($B57="n/a","n/a",IF(BC$3>($B57+$E63),$C63-SUM($F63:BB63),($C63/$B57))) -> 0 | BD63: =IF($B57="n/a","n/a",IF(BD$3>($B57+$E63),$C63-SUM($F63:BC63),($C63/$B57))) -> 0 | BE63: =IF($B57="n/a","n/a",IF(BE$3>($B57+$E63),$C63-SUM($F63:BD63),($C63/$B57))) -> 0 | BF63: =IF($B57="n/a","n/a",IF(BF$3>($B57+$E63),$C63-SUM($F63:BE63),($C63/$B57))) -> 0 | BG63: =IF($B57="n/a","n/a",IF(BG$3>($B57+$E63),$C63-SUM($F63:BF63),($C63/$B57))) -> 0 | BH63: =IF($B57="n/a","n/a",IF(BH$3>($B57+$E63),$C63-SUM($F63:BG63),($C63/$B57))) -> 0 | BI63: =IF($B57="n/a","n/a",IF(BI$3>($B57+$E63),$C63-SUM($F63:BH63),($C63/$B57))) -> 0 | BJ63: =IF($B57="n/a","n/a",IF(BJ$3>($B57+$E63),$C63-SUM($F63:BI63),($C63/$B57))) -> 0 | BK63: =IF($B57="n/a","n/a",IF(BK$3>($B57+$E63),$C63-SUM($F63:BJ63),($C63/$B57))) -> 0 | BL63: =IF($B57="n/a","n/a",IF(BL$3>($B57+$E63),$C63-SUM($F63:BK63),($C63/$B57))) -> 0 | BM63: =IF($B57="n/a","n/a",IF(BM$3>($B57+$E63),$C63-SUM($F63:BL63),($C63/$B57))) -> 0 | BN63: =IF($B57="n/a","n/a",IF(BN$3>($B57+$E63),$C63-SUM($F63:BM63),($C63/$B57))) -> 0
B64: Accel Dep adj | C64: =OFFSET('I3 CAPEX '!$E$44,$A52,E64)+OFFSET('I3 CAPEX '!$E$79,$A52,E64) -> 0 | E64: 8 | N64: =IF($B57="n/a","n/a",IF(N$3>($B57+$E64),$C64-SUM($F64:M64),($C64/$B57))) -> 0 | O64: =IF($B57="n/a","n/a",IF(O$3>($B57+$E64),$C64-SUM($F64:N64),($C64/$B57))) -> 0 | P64: =IF($B57="n/a","n/a",IF(P$3>($B57+$E64),$C64-SUM($F64:O64),($C64/$B57))) -> 0 | Q64: =IF($B57="n/a","n/a",IF(Q$3>($B57+$E64),$C64-SUM($F64:P64),($C64/$B57))) -> 0 | R64: =IF($B57="n/a","n/a",IF(R$3>($B57+$E64),$C64-SUM($F64:Q64),($C64/$B57))) -> 0 | S64: =IF($B57="n/a","n/a",IF(S$3>($B57+$E64),$C64-SUM($F64:R64),($C64/$B57))) -> 0 | T64: =IF($B57="n/a","n/a",IF(T$3>($B57+$E64),$C64-SUM($F64:S64),($C64/$B57))) -> 0 | U64: =IF($B57="n/a","n/a",IF(U$3>($B57+$E64),$C64-SUM($F64:T64),($C64/$B57))) -> 0 | V64: =IF($B57="n/a","n/a",IF(V$3>($B57+$E64),$C64-SUM($F64:U64),($C64/$B57))) -> 0 | W64: =IF($B57="n/a","n/a",IF(W$3>($B57+$E64),$C64-SUM($F64:V64),($C64/$B57))) -> 0 | X64: =IF($B57="n/a","n/a",IF(X$3>($B57+$E64),$C64-SUM($F64:W64),($C64/$B57))) -> 0 | Y64: =IF($B57="n/a","n/a",IF(Y$3>($B57+$E64),$C64-SUM($F64:X64),($C64/$B57))) -> 0 | Z64: =IF($B57="n/a","n/a",IF(Z$3>($B57+$E64),$C64-SUM($F64:Y64),($C64/$B57))) -> 0 | AA64: =IF($B57="n/a","n/a",IF(AA$3>($B57+$E64),$C64-SUM($F64:Z64),($C64/$B57))) -> 0 | AB64: =IF($B57="n/a","n/a",IF(AB$3>($B57+$E64),$C64-SUM($F64:AA64),($C64/$B57))) -> 0 | AC64: =IF($B57="n/a","n/a",IF(AC$3>($B57+$E64),$C64-SUM($F64:AB64),($C64/$B57))) -> 0 | AD64: =IF($B57="n/a","n/a",IF(AD$3>($B57+$E64),$C64-SUM($F64:AC64),($C64/$B57))) -> 0 | AE64: =IF($B57="n/a","n/a",IF(AE$3>($B57+$E64),$C64-SUM($F64:AD64),($C64/$B57))) -> 0 | AF64: =IF($B57="n/a","n/a",IF(AF$3>($B57+$E64),$C64-SUM($F64:AE64),($C64/$B57))) -> 0 | AG64: =IF($B57="n/a","n/a",IF(AG$3>($B57+$E64),$C64-SUM($F64:AF64),($C64/$B57))) -> 0 | AH64: =IF($B57="n/a","n/a",IF(AH$3>($B57+$E64),$C64-SUM($F64:AG64),($C64/$B57))) -> 0 | AI64: =IF($B57="n/a","n/a",IF(AI$3>($B57+$E64),$C64-SUM($F64:AH64),($C64/$B57))) -> 0 | AJ64: =IF($B57="n/a","n/a",IF(AJ$3>($B57+$E64),$C64-SUM($F64:AI64),($C64/$B57))) -> 0 | AK64: =IF($B57="n/a","n/a",IF(AK$3>($B57+$E64),$C64-SUM($F64:AJ64),($C64/$B57))) -> 0 | AL64: =IF($B57="n/a","n/a",IF(AL$3>($B57+$E64),$C64-SUM($F64:AK64),($C64/$B57))) -> 0 | AM64: =IF($B57="n/a","n/a",IF(AM$3>($B57+$E64),$C64-SUM($F64:AL64),($C64/$B57))) -> 0 | AN64: =IF($B57="n/a","n/a",IF(AN$3>($B57+$E64),$C64-SUM($F64:AM64),($C64/$B57))) -> 0 | AO64: =IF($B57="n/a","n/a",IF(AO$3>($B57+$E64),$C64-SUM($F64:AN64),($C64/$B57))) -> 0 | AP64: =IF($B57="n/a","n/a",IF(AP$3>($B57+$E64),$C64-SUM($F64:AO64),($C64/$B57))) -> 0 | AQ64: =IF($B57="n/a","n/a",IF(AQ$3>($B57+$E64),$C64-SUM($F64:AP64),($C64/$B57))) -> 0 | AR64: =IF($B57="n/a","n/a",IF(AR$3>($B57+$E64),$C64-SUM($F64:AQ64),($C64/$B57))) -> 0 | AS64: =IF($B57="n/a","n/a",IF(AS$3>($B57+$E64),$C64-SUM($F64:AR64),($C64/$B57))) -> 0 | AT64: =IF($B57="n/a","n/a",IF(AT$3>($B57+$E64),$C64-SUM($F64:AS64),($C64/$B57))) -> 0 | AU64: =IF($B57="n/a","n/a",IF(AU$3>($B57+$E64),$C64-SUM($F64:AT64),($C64/$B57))) -> 0 | AV64: =IF($B57="n/a","n/a",IF(AV$3>($B57+$E64),$C64-SUM($F64:AU64),($C64/$B57))) -> 0 | AW64: =IF($B57="n/a","n/a",IF(AW$3>($B57+$E64),$C64-SUM($F64:AV64),($C64/$B57))) -> 0 | AX64: =IF($B57="n/a","n/a",IF(AX$3>($B57+$E64),$C64-SUM($F64:AW64),($C64/$B57))) -> 0 | AY64: =IF($B57="n/a","n/a",IF(AY$3>($B57+$E64),$C64-SUM($F64:AX64),($C64/$B57))) -> 0 | AZ64: =IF($B57="n/a","n/a",IF(AZ$3>($B57+$E64),$C64-SUM($F64:AY64),($C64/$B57))) -> 0 | BA64: =IF($B57="n/a","n/a",IF(BA$3>($B57+$E64),$C64-SUM($F64:AZ64),($C64/$B57))) -> 0 | BB64: =IF($B57="n/a","n/a",IF(BB$3>($B57+$E64),$C64-SUM($F64:BA64),($C64/$B57))) -> 0 | BC64: =IF($B57="n/a","n/a",IF(BC$3>($B57+$E64),$C64-SUM($F64:BB64),($C64/$B57))) -> 0 | BD64: =IF($B57="n/a","n/a",IF(BD$3>($B57+$E64),$C64-SUM($F64:BC64),($C64/$B57))) -> 0 | BE64: =IF($B57="n/a","n/a",IF(BE$3>($B57+$E64),$C64-SUM($F64:BD64),($C64/$B57))) -> 0 | BF64: =IF($B57="n/a","n/a",IF(BF$3>($B57+$E64),$C64-SUM($F64:BE64),($C64/$B57))) -> 0 | BG64: =IF($B57="n/a","n/a",IF(BG$3>($B57+$E64),$C64-SUM($F64:BF64),($C64/$B57))) -> 0 | BH64: =IF($B57="n/a","n/a",IF(BH$3>($B57+$E64),$C64-SUM($F64:BG64),($C64/$B57))) -> 0 | BI64: =IF($B57="n/a","n/a",IF(BI$3>($B57+$E64),$C64-SUM($F64:BH64),($C64/$B57))) -> 0 | BJ64: =IF($B57="n/a","n/a",IF(BJ$3>($B57+$E64),$C64-SUM($F64:BI64),($C64/$B57))) -> 0 | BK64: =IF($B57="n/a","n/a",IF(BK$3>($B57+$E64),$C64-SUM($F64:BJ64),($C64/$B57))) -> 0 | BL64: =IF($B57="n/a","n/a",IF(BL$3>($B57+$E64),$C64-SUM($F64:BK64),($C64/$B57))) -> 0 | BM64: =IF($B57="n/a","n/a",IF(BM$3>($B57+$E64),$C64-SUM($F64:BL64),($C64/$B57))) -> 0 | BN64: =IF($B57="n/a","n/a",IF(BN$3>($B57+$E64),$C64-SUM($F64:BM64),($C64/$B57))) -> 0
